Workbook

Sheet Design Regulator
A1: LM5145/6 IBB Design Tool
A3: About | C3: xx | F3: = Input Box | O3: TERMS OF USE
A5: Step 1: Operating Specifications
D6: Input Voltage ‒ Min, VIN(min) | E6: 9 | F6: V
D7: Input Voltage ‒ Nom, VIN(nom) | E7: 12 | F7: V
D8: Input Voltage ‒ Max, VIN(max) | E8: 18 | F8: V
D9: Output Voltage, VOUT | E9: -7 | F9: V
D10: Maximum Output Current, IOUT | E10: 8 | F10: A
D11: Free-running Switching Frequency, FSW | E11: 250 | F11: kHz
D12: SYNC Frequency (if used), FSW-SYNC | E12: 250 | F12: kHz
D13: Frequency Set Resistor, RRT | E13: ='Standard Value Calculator'!S4/1000 -> 40.2 | F13: kΩ
A15: Step 2: Filter Inductor
D16: Recommended Filter Inductance | E16: =Lout1*1000000 -> 3.490304709 | F16: µH
D17: Inductance, LF | E17: 4.7 | F17: µH
D18: Inductor DCR | E18: 20 | F18: mΩ
D19: Pk-to-Pk Ripple Current at VIN(nom), DIL | E19: =Iripple1 -> 3.874400896 | F19: Apk-pk
D20: Inductor Ripple Current as a % of Max IL | E20: =Iripple1/IL*100 -> 30.58737549 | F20: %
A22: Step 3: RDS(on) or Shunt-Based Current Limit
D23: Shunt, RS | E23: 5 | F23: mΩ | S23: \
D24: Target Current Limit Setpoint, based on IL | E24: 16 | F24: A
D25: Current Limit Set Resistor, RILIM | E25: =IF(RDSON_sense=1, Rilim_Rdson, Rilim_shunt) -> 422 | F25: Ω
D26: Min Inductor Sat Current, IL(SAT) | E26: ='Variable Management'!B53 -> 21.6 | F26: A
D27: Power Loss in RS at Full Load, Max VIN | E27: =_Rs3 -> 0.17 | F27: W
A29: Step 4: Output Capacitance
D30: Output Voltage Ripple Specification | E30: 600 | F30: mVpk-pk
D31: Minimum Ideal Output Capacitance | E31: =Coutmin*1000000 -> 20.23298246 | F31: µF
D32: Total Output Capacitance (Derated), COUT | E32: 470 | F32: µF
D33: Maximum Permitted ESR | E33: =IF(ISERROR(Resrmax*1000),"N/A",Resrmax*1000) -> 39.31634383 | F33: mΩ
D34: Output Capacitor ESR | E34: 10 | F34: mΩ
D35: Resulting Output Voltage Ripple | E35: =Vripple2*1000 -> 171.8680105 | F35: mVpk-pk
D36: Output Capacitor Ripple Current | E36: =Icoutrms -> 6.25465905 | F36: A (rms)
A38: Step 5: Input Capacitance
D39: Input Voltage Ripple Specification | E39: 500 | F39: mVpk-pk
D40: Minimum Ideal Input Capacitance | E40: ='Variable Management'!B83*1000000 -> 38.44266667 | F40: µF
D41: Total Input Capacitance (Derated), CIN | E41: 40 | F41: µF
D42: Maximum Permitted ESR | E42: =IF(CinEsrMax*1000<0,"N/A",CinEsrMax*1000) -> 1.332980266 | F42: mΩ
D43: Input Capacitor ESR | E43: 1 | F43: mΩ
D44: Resulting Input Voltage Ripple | E44: =Vinripple2*1000 -> 495.1372004 | F44: mVpk-pk
D45: Input Capacitor Ripple Current | E45: =Icinrms -> 6.14624496 | F45: A (rms)
A47: Step 6: Soft-start, UVLO
D48: Soft-Start Time, tSS | E48: 4 | F48: ms
D49: Soft-Start Capacitance, CSS | E49: =Css_u*1000000000 -> 47 | F49: nF
D50: Input Voltage UVLO Turn-On | E50: 9 | F50: V
D51: Input Voltage UVLO Turn-Off | E51: 8 | F51: V
D52: UVLO Upper Resistor, RUV1 | E52: ='Variable Management'!F100 -> 100 | F52: kΩ
D53: UVLO Lower Resistor, RUV2 | E53: ='Variable Management'!F101 -> 15.4 | F53: kΩ
A54: If the SYNC feature is not required, connect SYNCIN to GND
A55: or VCC for DCM or CCM operation, respectively
A57: Step 7: Compensation Design
D58: LC Complex Pole Frequency | E58: =Fo/1000 -> 2.667713638 | F58: kHz
D59: RHP Zero | E59: =Frhp/1000 -> 30.08378986 | F59: kHz
D60: ESR Zero Frequency | E60: =Fesr/1000 -> 33.86275389 | F60: kHz
D61: Desired Crossover Frequency | E61: 8 | F61: kHz
D62: Appropriate Midband Gain | E62: =Kmidband -> 0.199921508 | F62: V/V
D63: Upper Feedback Resistor, RFB1 | E63: 77.5 | F63: kΩ
D64: Lower Feedback Resistor, RFB2 | E64: =IF(Vout=Vref,"OPEN",Rfb2_u/1000) -> 10 | F64: =IF(Vout=Vref,"","kΩ") -> kΩ
D65: Actual Output Voltage, VOUT | E65: ='Variable Management'!B132 -> 7 | F65: V
A67: Pole & Zero Placement | D67: FZ1 | E67: =Fo/1000*0.7 -> 1.867399546 | F67: =" kHz " -> kHz
A68: =" Baseline P/Z Frequencies:" -> Baseline P/Z Frequencies: | D68: FZ2 | E68: =Fo/1000*0.9 -> 2.400942274 | F68: =" kHz" -> kHz
D69: FP1 | E69: =Fesr/1000 -> 33.86275389 | F69: =" kHz" -> kHz
D70: FP2 | E70: =Fsw/2000 -> 125 | F70: =" kHz" -> kHz
A72: Compensation Components
B73: Calculated / | C73: Std Values | D73: =C73 -> Std Values | F73: Actual P/Z Frequencies
A74: RC1 | B74: =Rcea1/1000 -> 15.49391687 | C74: ='Standard Value Calculator'!S27 -> 15.4 | D74: =C74 -> 15.4 | E74: kΩ | F74: =Fz1_u/1000 -> 1.845488674 | G74: kHz (FZ1)
A75: CC1 | B75: =Cc1ea*1000000000000 -> 5500.746887 | C75: ='Standard Value Calculator'!S28 -> 5600 | D75: =C75 -> 5600 | E75: pF | F75: =Fz2_u/1000 -> 2.327234943 | G75: kHz (FZ2)
A76: CC2 | B76: =Cc2ea*1000000000000 -> 83.42301068 | C76: ='Standard Value Calculator'!S29 -> 82 | D76: =C76 -> 82 | E76: pF | F76: =Fp1_u/1000 -> 32.89684648 | G76: kHz (FP1)
A77: RC2 | B77: =Rcea2 -> 5914.250219 | C77: ='Standard Value Calculator'!S30 -> 5900 | D77: =C77 -> 5900 | E77: Ω | F77: =Fp2_u/1000 -> 127.8788616 | G77: kHz (FP2)
A78: CC3 | B78: =Cc3ea*1000000000000 -> 794.6907597 | C78: ='Standard Value Calculator'!S31 -> 820 | D78: =C78 -> 820 | E78: pF | L78: ** Specify Inductor Core Loss ** | M78: 0.1 | N78: W
A80: Efficiency / Power Loss Analyzer
A82: Step 8: Efficiency
D84: High-Side MOSFET (Q1) Specifications | E84: CSD18563Q5A
D85: On-State Resistance, RDS(on) | E85: 6 | F85: mΩ
D86: Total Gate Charge, QG | E86: 11.5 | F86: nC
D87: Gate-Drain Charge, QGD | E87: 2.9 | F87: nC
D88: Gate-Source Charge, QGS | E88: 3.3 | F88: nC
D89: Output Capacitance, COSS | E89: 280 | F89: pF
D90: Gate Resistance, RG | E90: 1.5 | F90: Ω
D91: Transconductance, gFS | E91: 60 | F91: S
D92: Gate-Source Threshold Voltage, VGS(TH) | E92: 3 | F92: V
D93: Body Diode Forward Voltage, VBD1 | E93: 0.8 | F93: V
D94: Thermal Resistance, θJA | E94: 50 | F94: °C/W
D96: Low-Side MOSFET (Q2) Specifications | E96: CSD18563Q5A
D97: On-State Resistance, RDS(on) | E97: 6 | F97: mΩ
D98: Total Gate Charge, QG | E98: 11.5 | F98: nC
D99: Output Charge, QOSS | E99: 36 | F99: nC
D100: Output Capacitance, COSS | E100: 280 | F100: pF
D101: Body Diode Forward Voltage, VBD2 | E101: 0.8 | F101: V
D102: Body Diode Recovery Charge, QRR | E102: 63 | F102: nC
D103: Thermal Resistance, θJA | E103: 50 | F103: °C/W
D104: Antiparallel Schottky Diode (if applicable)
D105: Schottky Diode Forward Voltage, VSD | E105: 0 | F105: V
D106: Schottky Diode Recovery Charge, QRR2 | E106: 0 | F106: nC

Sheet Schematic & BOM
B34: ** Tie SYNCIN to VCC and GND for CCM and DCM operation, respectively **
A35: ="VIN = "&Vin&" V, VOUT = "& Vout &" V, IOUT = " &Iout & " A, Fsw = " & Fsw/1000 &" kHz, Current Limit = "&ROUNDUP(DC_Current_Limit_Setpoint,0)&" A" -> VIN = 12 V, VOUT = 7 V, IOUT = 8 A, Fsw = 250 kHz, Current Limit = 16 A
A36: Wide VIN, High Efficiency Synchronous Buck-Boost Regulator BOM
A37: Count | B37: Ref Des | C37: Value | D37: Description | H37: Size | I37: Part Number | J37: MFR | K37: Footprint (mm) | L37: Area (mm2)
A38: 1 | B38: CBOOT | C38: 0.1 | D38: =C38 -> 0.1 | I38: Std | J38: Std | K38: =CHOOSE(Q38, 'Variable Management'!N71,'Variable Management'!N72,'Variable Management'!N73) -> 1.6 x 0.8 | L38: =CHOOSE(Q38, 'Variable Management'!O71,'Variable Management'!O72,'Variable Management'!O73) -> 1.3 | Q38: 2
A39: 1 | B39: CC1 | C39: ='Design Regulator'!D75 -> 5600 | D39: 5600 | I39: Std | J39: Std | K39: =CHOOSE(Q39, 'Variable Management'!N71,'Variable Management'!N72,'Variable Management'!N73) -> 1.0 x 0.5 | L39: =CHOOSE(Q39, 'Variable Management'!O71,'Variable Management'!O72,'Variable Management'!O73) -> 0.5 | Q39: 1
A40: 1 | B40: CC2 | C40: ='Design Regulator'!D76 -> 82 | D40: 82 | I40: Std | J40: Std | K40: =CHOOSE(Q40, 'Variable Management'!N71,'Variable Management'!N72,'Variable Management'!N73) -> 1.0 x 0.5 | L40: =CHOOSE(Q40, 'Variable Management'!O71,'Variable Management'!O72,'Variable Management'!O73) -> 0.5 | Q40: 1
A41: 1 | B41: CC3 | C41: ='Design Regulator'!D78 -> 820 | D41: 820 | I41: Std | J41: Std | K41: =CHOOSE(Q41, 'Variable Management'!N71,'Variable Management'!N72,'Variable Management'!N73) -> 1.0 x 0.5 | L41: =CHOOSE(Q41, 'Variable Management'!O71,'Variable Management'!O72,'Variable Management'!O73) -> 0.5 | Q41: 1
A42: 1 | B42: CS | C42: ='Variable Management'!B275 -> 12pF | D42: ="Capacitor, Ceramic, "&'Variable Management'!B275&", 100V, X7R, 20%" -> Capacitor, Ceramic, 12pF, 100V, X7R, 20% | I42: Std | J42: Std | K42: =CHOOSE(Q42, 'Variable Management'!N71,'Variable Management'!N72,'Variable Management'!N73) -> 1.6 x 0.8 | L42: =CHOOSE(RDSON_sense,CHOOSE(Q42,'Variable Management'!O71,'Variable Management'!O72,'Variable Management'!O73),0) -> 1.3 | Q42: 2
A43: =ROUNDUP('Design Regulator'!E41/10,0) -> 4 | B43: CIN | C43: ='Variable Management'!B254 -> 4.7µF | D43: =CHOOSE(Cin_Voltage_Rating, "Capacitor, Ceramic, "&'Variable Management'!B254&", 10V, X7R, 10%", "Capacitor, Ceramic, "&'Variable Management'!B254&", 16V, X7R, 10%", "Capacitor, Ceramic, "&'Variable Management'!B254&", 25V, X7R, 10%", "Capacitor, Ceramic, "&'Variable Management'!B254&", 50V, X7R, 10%", "Capacitor, Ceramic, "&'Variable Management'!B254&", 100V, X7S, 10%") -> Capacitor, Ceramic, 4.7µF, 25V, X7R, 10% | I43: Std | J43: Std | K43: =CHOOSE(Q43, 'Variable Management'!N71,'Variable Management'!N72,'Variable Management'!N73,'Variable Management'!N74,'Variable Management'!N75) -> 3.2 x 2.5 | L43: =CHOOSE(Q43, 'Variable Management'!O71,'Variable Management'!O72,'Variable Management'!O73,'Variable Management'!O74,'Variable Management'!O75)*A43 -> 32 | Q43: 5
A44: ='Variable Management'!D247 -> 10 | B44: COUT | C44: ='Variable Management'!F248 -> 47µF | D44: =CHOOSE(Cout_Voltage_Rating, "Capacitor, Ceramic, "&'Variable Management'!B249&", 6.3V, X7R, 10%", "Capacitor, Ceramic, "&'Variable Management'!B249&", 10V, X7R, 10%", "Capacitor, Ceramic, "&'Variable Management'!B249&", 16V, X7R, 10%", "Capacitor, Ceramic, "&'Variable Management'!B249&", 25V, X7R, 10%", "Capacitor, Ceramic, "&'Variable Management'!B249&", 50V, X7R, 10%", "Capacitor, Ceramic, "&'Variable Management'!B249&", 100V, X7R, 10%") -> Capacitor, Ceramic, 47µF, 10V, X7R, 10% | I44: Std | J44: Std | K44: =CHOOSE(Q44, 'Variable Management'!N71,'Variable Management'!N72,'Variable Management'!N73,'Variable Management'!N74,'Variable Management'!N75) -> 3.2 x 2.5 | L44: =CHOOSE(Q44, 'Variable Management'!O71,'Variable Management'!O72,'Variable Management'!O73,'Variable Management'!O74,'Variable Management'!O75)*A44 -> 80 | Q44: 5
A45: 1 | B45: CSS | C45: ='Design Regulator'!E49 -> 47 | D45: =C45 -> 47 | I45: Std | J45: Std | K45: =CHOOSE(Q45, 'Variable Management'!N71,'Variable Management'!N72,'Variable Management'!N73) -> 1.6 x 0.8 | L45: =CHOOSE(Q45, 'Variable Management'!O71,'Variable Management'!O72,'Variable Management'!O73) -> 1.3 | Q45: 2
A46: 1 | B46: CVCC | C46: 2.2 | D46: 2.2 | I46: Std | J46: Std | K46: =CHOOSE(Q46, 'Variable Management'!N71,'Variable Management'!N72,'Variable Management'!N73) -> 2.0 x 1.25 | L46: =CHOOSE(Q46, 'Variable Management'!O71,'Variable Management'!O72,'Variable Management'!O73) -> 2.5 | Q46: 3
A47: 1 | B47: CVIN | C47: 0.1 | D47: 0.1 | I47: Std | J47: Std | K47: =CHOOSE(Q47, 'Variable Management'!N71,'Variable Management'!N72,'Variable Management'!N73) -> 1.6 x 0.8 | L47: =CHOOSE(Q47, 'Variable Management'!O71,'Variable Management'!O72,'Variable Management'!O73) -> 1.3 | Q47: 2
A48: 1 | B48: LF | C48: ='Design Regulator'!E17 -> 4.7 | D48: ="Inductor, "&Lout2*1000000&"µH, "&Rdcr*1000&"mΩ, >"&ROUNDUP(Ilsat,0)&"A" -> Inductor, 4.7µH, 20mΩ, >22A | I48: Various | J48: Various | K48: =CHOOSE(Q48, 'Variable Management'!N81,'Variable Management'!N82,'Variable Management'!N83, 'Variable Management'!N84, 'Variable Management'!N85, 'Variable Management'!N86, 'Variable Management'!N87, 'Variable Management'!N88) -> 10.0 x 10.0 | L48: =CHOOSE(Q48, 'Variable Management'!O81,'Variable Management'!O82,'Variable Management'!O83, 'Variable Management'!O84, 'Variable Management'!O85, 'Variable Management'!O86, 'Variable Management'!O87, 'Variable Management'!O88) -> 100 | Q48: 7
A49: =R49 -> 1 | B49: Q1 | C49: See description | D49: ='Design Regulator'!E85 -> 6 | I49: ='Design Regulator'!E84 -> CSD18563Q5A | J49: TI | K49: =CHOOSE(Q49, 'Variable Management'!N50,'Variable Management'!N51,'Variable Management'!N52,'Variable Management'!N53) -> 5.0 x 6.0 | L49: =CHOOSE(Q49, 'Variable Management'!O50,'Variable Management'!O51,'Variable Management'!O52,'Variable Management'!O53)*R49 -> 30 | Q49: 1 | R49: 1
A50: =R50 -> 1 | B50: Q2 | C50: See description | D50: ='Design Regulator'!E97 -> 6 | I50: ='Design Regulator'!E96 -> CSD18563Q5A | J50: TI | K50: =CHOOSE(Q50, 'Variable Management'!N50,'Variable Management'!N51,'Variable Management'!N52,'Variable Management'!N53) -> 5.0 x 6.0 | L50: =CHOOSE(Q50, 'Variable Management'!O50,'Variable Management'!O51,'Variable Management'!O52,'Variable Management'!O53)*R50 -> 30 | Q50: 1 | R50: 1
A52: 1 | B52: RC1 | C52: ='Design Regulator'!D74 -> 15.4 | D52: =C52 -> 15.4 | I52: Std | J52: Std | K52: =CHOOSE(Q52, 'Variable Management'!N71,'Variable Management'!N72,'Variable Management'!N73) -> 1.0 x 0.5 | L52: =CHOOSE(Q52, 'Variable Management'!O71,'Variable Management'!O72,'Variable Management'!O73) -> 0.5 | Q52: 1
A53: 1 | B53: RC2 | C53: ='Design Regulator'!D77 -> 5900 | D53: 5900 | I53: Std | J53: Std | K53: =CHOOSE(Q52, 'Variable Management'!N71,'Variable Management'!N72,'Variable Management'!N73) -> 1.0 x 0.5 | L53: =CHOOSE(Q53, 'Variable Management'!O71,'Variable Management'!O72,'Variable Management'!O73) -> 0.5 | Q53: 1
A54: 1 | B54: RILIM | C54: ='Design Regulator'!E25 -> 422 | D54: 422 | I54: Std | J54: Std | K54: =CHOOSE(Q52, 'Variable Management'!N71,'Variable Management'!N72,'Variable Management'!N73) -> 1.0 x 0.5 | L54: =CHOOSE(Q54, 'Variable Management'!O71,'Variable Management'!O72,'Variable Management'!O73) -> 2.5 | Q54: 3
A55: 1 | B55: RRT | C55: ='Design Regulator'!E13 -> 40.2 | D55: 40.2 | I55: Std | J55: Std | K55: =CHOOSE(Q55, 'Variable Management'!N71,'Variable Management'!N72,'Variable Management'!N73) -> 1.0 x 0.5 | L55: =CHOOSE(Q55, 'Variable Management'!O71,'Variable Management'!O72,'Variable Management'!O73) -> 0.5 | Q55: 1
A56: 1 | B56: RFB1 | C56: ='Design Regulator'!E63 -> 77.5 | D56: 77.5 | I56: Std | J56: Std | K56: =CHOOSE(Q56, 'Variable Management'!N71,'Variable Management'!N72,'Variable Management'!N73) -> 1.0 x 0.5 | L56: =CHOOSE(Q56, 'Variable Management'!O71,'Variable Management'!O72,'Variable Management'!O73) -> 0.5 | Q56: 1
A57: 1 | B57: RFB2 | C57: ='Design Regulator'!E64 -> 10 | D57: 10 | I57: Std | J57: Std | K57: =CHOOSE(Q57, 'Variable Management'!N71,'Variable Management'!N72,'Variable Management'!N73) -> 1.0 x 0.5 | L57: =CHOOSE(Q57, 'Variable Management'!O71,'Variable Management'!O72,'Variable Management'!O73) -> 0.5 | Q57: 1
A58: 1 | B58: RPGOOD | C58: 20 | D58: 20 | I58: Std | J58: Std | K58: =CHOOSE(Q58, 'Variable Management'!N71,'Variable Management'!N72,'Variable Management'!N73) -> 1.0 x 0.5 | L58: =CHOOSE(Q58, 'Variable Management'!O71,'Variable Management'!O72,'Variable Management'!O73) -> 0.5 | Q58: 1
A59: 1 | B59: RS | C59: ='Design Regulator'!E23 -> 5 | D59: 5 | H59: 1206 | I59: Std | J59: Std | K59: 3.2 x 1.6 | L59: =CHOOSE(RDSON_sense, 0,5.1) -> 0
A60: 1 | B60: RUV1 | C60: ='Design Regulator'!E52 -> 100 | D60: 100 | I60: Std | J60: Std | K60: =CHOOSE(Q60, 'Variable Management'!N71,'Variable Management'!N72,'Variable Management'!N73) -> 1.6 x 0.8 | L60: =CHOOSE(Q60, 'Variable Management'!O71,'Variable Management'!O72,'Variable Management'!O73) -> 1.3 | Q60: 2
A61: 1 | B61: RUV2 | C61: ='Design Regulator'!E53 -> 15.4 | D61: 15.4 | I61: Std | J61: Std | K61: =CHOOSE(Q61, 'Variable Management'!N71,'Variable Management'!N72,'Variable Management'!N73) -> 1.0 x 0.5 | L61: =CHOOSE(Q61, 'Variable Management'!O71,'Variable Management'!O72,'Variable Management'!O73) -> 0.5 | Q61: 1
A62: 1 | B62: RVIN | C62: 2.2 | D62: 2.2 | I62: Std | J62: Std | K62: =CHOOSE(Q62, 'Variable Management'!N71,'Variable Management'!N72,'Variable Management'!N73) -> 1.0 x 0.5 | L62: =CHOOSE(Q62, 'Variable Management'!O71,'Variable Management'!O72,'Variable Management'!O73) -> 0.5 | Q62: 1
A63: 1 | B63: U1 | C63: LM5145 | D63: IC, LM5145, PWM Controller, 6V-42V Input | H63: VQFN-20 | I63: LM5145RGYR | J63: TI | K63: 3.5 x 4.5 x 1.0 | L63: 15.75
I65: Total Solution Size (buffered by 25%) | L65: =SUM(L38:L63)*1.25 -> 380.9375 | M65: mm2 = | N65: =L65/25.4/25.4 -> 0.5904543059 | O65: in2
A66: NOTES:
A67: ** Inductor saturation current should be higher than the current limit setpoint at all operating temperatures **
A68: ** Effective output capacitance should be appropriately derated for applied voltage and temperature, particularly with ceramics **
Q455: 2

Sheet EVM
A1: LM5145 Quickstart Calculator
B3: LM5145EVM-HD-20A PCB Layout
O5: Top
O6: Layer
O31: Layer 2
O57: Layer 3
O84: Bottom
O85: Layer

Sheet Variable Management (hidden)
A1: Excel Variables Names/Calculations
B2: Input from user =
B3: Output =
B4: Constant
A5: Variable Name | B5: Value | C5: STD Units | D5: Notes | H5: iteration
A6: Step 1: Operational Specs
A7: Vin | B7: ='Design Regulator'!E7 -> 12 | C7: V | D7: Nominal input voltage | H7: 1
A8: Vinmin | B8: ='Design Regulator'!E6 -> 9 | C8: V | D8: Min input voltage
A9: Vinmax | B9: ='Design Regulator'!E8 -> 18 | C9: V | D9: Max input voltage
A10: Vout | B10: =ABS('Design Regulator'!E9) -> 7 | C10: V | D10: Output Voltage | H10: 1
A11: Iout | B11: ='Design Regulator'!E10 -> 8 | C11: A | D11: Maximum output Current | H11: 1
A12: Fsw | B12: =IF(AND('Design Regulator'!E12<='Design Regulator'!E11*1.5, 'Design Regulator'!E12>='Design Regulator'!E11*0.8), 'Design Regulator'!E12*1000, 'Design Regulator'!E11*1000) -> 250000 | C12: Hz | D12: Nominal Operational Frequency | H12: 1
A13: Fsw_freerunning | B13: ='Design Regulator'!E11*1000 -> 250000 | C13: Hz | D13: Free-running switching frequency
A14: Vref | B14: 0.8 | C14: V | D14: Reference Voltage
A15: R_RT | B15: =1/(B13*0.0000000001) -> 40000 | C15: W
A17: Ton at Vin-max | B17: =B40/Fsw*1000000000 -> 1153.28 | C17: ns
A18: Toff at Vin-min | B18: =B39/Fsw*1000000000 -> 2198 | C18: ns
A22: Step 2: Inductor
A23: Don1 | B23: =Vout/(Vin+Vout) -> 0.3684210526 | C23: index | D23: Ideal Duty Cycle | H23: 1
A24: Doff1 | B24: =1-23:23 -> 0.6315789474 | C24: index | D24: Ideal 1- Duty Cycle | H24: 1
A25: Don_Vinmin | B25: =Vout/(Vinmin+Vout) -> 0.4375
A26: Doff_Vinmin | B26: =1-B25 -> 0.5625
A27: Don_Vinmax | B27: =Vout/(Vinmax+Vout) -> 0.28
A28: Doff_Vinmax | B28: =1-B27 -> 0.72
A30: IL | B30: =Iout/(1-_Don1) -> 12.66666667 | C30: A | D30: IL = Iout/(1 - D) = Iin + Iout
A32: Lout1 | B32: =Vin*_Don1/(Fsw*IL*0.4) -> 3.490304709e-06 | C32: H | D32: Calculated Inductor value for 30% ripple | H32: 1
A33: Lout2 | B33: ='Design Regulator'!E17/1000000 -> 4.7e-06 | C33: H | D33: Chosen Inductor Value | H33: 2
A34: Rdcr | B34: ='Design Regulator'!E18/1000 -> 0.02 | C34: W | D34: DCR | H34: 1
A36: Don2 | B36: =(Vout+(Rdcr+RdsonBot)*Iout)/(Vin+(RdsonBot-RdsonTop)*Iout+Vout) -> 0.3793684211 | D36: Duty Cycle with DCR accounted for | H36: 2
A37: Doff2 | B37: =1-_Don2 -> 0.6206315789 | D37: 1-Duty Cycle with DCR accounted for | H37: 2
A38: Don2_Vinmin | B38: =(Vout+(Rdcr+RdsonBot)*Iout)/(Vinmin+(RdsonBot-RdsonTop)*Iout+Vout) -> 0.4505
A39: Doff2_Vinmin | B39: =1-B38 -> 0.5495
A40: Don2_Vinmax | B40: =(Vout+(Rdcr+RdsonBot)*Iout)/(Vinmax+(RdsonBot-RdsonTop)*Iout+Vout) -> 0.28832 | L40: Vout<5V | M40: 100 | N40: 1
A41: Doff2_Vinmax | B41: =1-B40 -> 0.71168 | L41: Vout<=8V | M41: 47 | N41: 2
L42: Vout<=12V | M42: 22 | N42: 3
A43: Vripple1 | B43: ='Design Regulator'!E30/1000 -> 0.6 | C43: V | D43: Choosen Initial Voltage ripple Value | H43: 1 | L43: Vout<=20V | M43: 22 | N43: 4
A44: Irripple1 | B44: =Vin*_Don2/(Fsw*Lout2) -> 3.874400896 | C44: A | D44: Ripple Current after Chosen inductor (p-p) | H44: 1 | L44: Vout<=42V | M44: 10 | N44: 5
A45: DCR at hot | B45: =Rdcr*(1+0.0039*(F45-25)) -> 0.02585 | C45: Ohms | E45: Temp | F45: 100 | L45: Vout<60V | M45: 4.7 | N45: 6
A46: TL | B46: =Lout2/Rdcr -> 0.000235 | C46: s | D46: L/R Time Constant | L46: Cout Capacitance | M46: =CHOOSE(N46,"100", "47","22","22","10", "4.7") -> 47 | N46: =IF(Vout<5, 1, IF(Vout<=8, 2, IF(Vout<=12, 3, IF(Vout<=20, 4, IF(Vout<=42, 5, 6))))) -> 2 | Q46: Quantity: 1 | R46: 1
Q47: Quantity: 2 | R47: 2
A48: Step 3: Current Limit
L50: SON 5 x 6 | M50: 1 | N50: 5.0 x 6.0 | O50: 30
A51: DC Current Limit Setpoint | B51: ='Design Regulator'!E24 -> 16 | L51: SON 3 x 3 | M51: 2 | N51: 3.3 x 3.3 | O51: 10.9
A52: Ilimit | B52: ='Design Regulator'!E24-Iripple1/2 -> 14.06279955 | C52: A | D52: Chosen current limit level - valley current | L52: DPAK, TO-252 | M52: 3 | N52: 10.0 x 6.6 | O52: 66
A53: Ilsat | B53: =ROUND('Design Regulator'!E24+Iripple1/2,0)*1.2 -> 21.6 | C53: A | L53: D2PAK, TO-263 | M53: 4 | N53: 15.0 x 10.0 | O53: 150
K54: MOSFET package | L54: =CHOOSE(M54, L50, L51, L52, L53) -> SON 5 x 6 | M54: 1
A55: Ilim1 | B55: 0.0002 | C55: A | D55: Current Limit Current Source - Rdson sensing
A56: Ilim2 | B56: 0.0001 | C56: A | D56: Current Limit Current Source - shunt sensing | L56: RDS(on) sensing | M56: 1
A57: Rilim_Rdson_ideal | B57: =ILimit*RdsonBot/Ilim1 -> 421.8839866 | C57: W | D57: Ideal Rset for the chosen current limit | L57: Shunt sensing | M57: 2
A58: Rilim_Rdson | B58: ='Standard Value Calculator'!S6 -> 422 | C58: W | D58: Standard value current limit set resistor | K58: Current Sensing | L58: =CHOOSE(RDSON_sense, L56,L57) -> RDS(on) sensing | M58: 1 | N58: 1 = Yes, 2 = No
A60: Rshunt | B60: ='Design Regulator'!E23/1000 -> 0.005 | C60: W
A61: Rilim_shunt_ideal | B61: =ILimit*Rshunt/Ilim2 -> 703.1399776 | C61: W | K61: Vout<5V | L61: 6.3V | M61: 1
A62: Rilim_shunt | B62: ='Standard Value Calculator'!S22 -> 698 | C62: W | D62: Standard value current limit set resistor | K62: Vout<=8V | L62: 10V | M62: 2 | Q62: Vin(max)<=8V | R62: 10V | S62: 1
K63: Vout<=12V | L63: 16V | M63: 3 | Q63: Vin(max)<=12V | R63: 16V | S63: 2
A64: Power dissipation in the shunt | B64: =ROUND(((1-Don_Vinmax)*Iout)^2*Rshunt,2) -> 0.17 | C64: W | K64: Vout<=20V | L64: 25V | M64: 4 | Q64: Vin(max)<=20V | R64: 25V | S64: 3
A66: Cilim | B66: =0.000000006/Rilim_Rdson_ideal - 0.000000000002 -> 1.222191927e-11 | C66: F | D66: Choose cap for 6ns time constant | K66: Vout<=42V | L66: 50V | M66: 5 | Q66: Vin(max)<=42V | R66: 50V | S66: 4
A67: Cilim_ideal | B67: ='Standard Value Calculator'!S23 -> 12 | C67: pF | K67: Vout<60V | L67: 100V | M67: 6 | Q67: Vin(max)<100V | R67: 100V | S67: 5
A68: Ilimit2 | B68: =Ics*Rset/Rdcr-Iripple1/2 ->  | C68: A | D68: Current limit setpoint after standard components are selected | K68: Cout Voltage Rating | L68: =CHOOSE(M68,"6.3V","10V","16V","25V","50V","100V") -> 10V | M68: =IF(Vout<5, 1, IF(Vout<=8, 2, IF(Vout<=12, 3, IF(Vout<=20, 4, IF(Vout<=42, 5, 6))))) -> 2 | Q68: Cin Voltage Rating | R68: =CHOOSE(S68,"10V","16V","25V","50V","100V") -> 25V | S68: =IF(Vinmax<=8,1,IF(Vinmax<=12,2,IF(Vinmax<=20,3,IF(Vinmax<=42,4,5)))) -> 3
A70: Step 4: Output Capacitor
A71: Icoutrms | B71: =Iout*SQRT(_Don2/(1-_Don2)) -> 6.25465905 | C71: A | D71: Output cap rms current | L71: 0402 | M71: 1 | N71: 1.0 x 0.5 | O71: 0.5
A72: Pk-pk ripple current | B72: =IL -> 12.66666667 | C72: A | D72: Output cap pk-pk ripple current | L72: 0603 | M72: 2 | N72: 1.6 x 0.8 | O72: 1.3 | S72: =(IL-Iout)*(1 - _Don2)/(Fsw*Cout) -> 0.02464919746 | T72: =Iout*(_Don2)/(Fsw*Cout) -> 0.02582933931
A73: Coutmin | B73: =Iout*_Don2/(Vripple1*Fsw) -> 2.023298246e-05 | C73: F | D73: Minimum output capacitnace | H73: 1 | L73: 0805 | M73: 3 | N73: 2.0 x 1.25 | O73: 2.5
A74: Cout | B74: ='Design Regulator'!E32/1000000 -> 0.00047 | C74: F | D74: Chosen output capacitor | H74: 1 | L74: 1206 | M74: 4 | N74: 3.2 x 1.6 | O74: 5.1
A75: Resrmax | B75: =(Vripple1 - Iout*_Don2/(Fsw*Cout))/(IL+Iripple1/2) -> 0.03931634383 | C75: W | D75: Max ESR before ripple exceeds Vripple1 | H75: 1 | L75: 1210 | M75: 5 | N75: 3.2 x 2.5 | O75: 8
A76: CoutEsr | B76: ='Design Regulator'!E34/1000 -> 0.01 | C76: W | D76: Chosen ESR | H76: 1 | K76: Component Size | L76: =CHOOSE(M76,"0402","0603","0805","1206","1210") -> 1210 | M76: 5 | N76: =CHOOSE(M76,N71,N72, N73,N74,N75) -> 3.2 x 2.5
A77: Vripple | B77: =Iout*_Don2/(Fsw*Cout)+(IL+Iripple1/2)*CoutEsr -> 0.1718680105 | C77: Vp-p
A80: Step 5: Input Capacitor
A81: Vinripple1 | B81: ='Design Regulator'!E39/1000 -> 0.5 | C81: Vp-p | L81: 3mm x 3mm | M81: 1 | N81: 3.0 x 3.0 | O81: 9
A82: Icinrms | B82: =IL*SQRT(_Don2*Doff2) -> 6.14624496 | C82: A | L82: 4mm x 4mm | M82: 2 | N82: 4.0 x 4.0 | O82: 16
A83: Cinmin | B83: =IL*_Don2/(Vinripple1*Fsw) -> 3.844266667e-05 | C83: F | L83: 5mm x 5mm | M83: 3 | N83: 5.0 x 5.0 | O83: 25
A84: Cin | B84: ='Design Regulator'!E41/1000000 -> 4e-05 | C84: F | D84: Input capacitance | L84: 6mm x 6mm | M84: 4 | N84: 6.0 x 6.0 | O84: 36
A85: CinEsrMax | B85: =-(IL*_Don2/(Cin*Fsw)-Vinripple1)/(IL+Iripple1/2) -> 0.001332980266 | C85: W | L85: 7mm x 7mm | M85: 5 | N85: 7.0 x 7.0 | O85: 49
A86: RCinEsr | B86: ='Design Regulator'!E43/1000 -> 0.001 | C86: W | D86: Input capacitance series resistance (ESR) | L86: 8mm x 8mm | M86: 6 | N86: 8.0 x 8.0 | O86: 64
A87: Vinripple2 | B87: =IL*_Don2/(Cin*Fsw)+(IL+Iripple1/2)*RCinEsr -> 0.4951372004 | C87: Vp-p | L87: 10mm x 10mm | M87: 7 | N87: 10.0 x 10.0 | O87: 100
B88: =IL*_Don1/(Cin*Fsw) -> 0.4666666667 | L88: 12mm x 12mm | M88: 8 | N88: 12.0 x 12.0 | O88: 144
K89: Inductor Size | L89: =CHOOSE(M89,L81,L82, L83, L84, L85, L86, L87, L88) -> 12mm x 12mm | M89: 8 | N89: =CHOOSE(M89,N81,N82, N83,N84,N85, N86, N87, N88) -> 12.0 x 12.0
A90: Step 6: Soft Start
A91: Tss | B91: ='Design Regulator'!E48/1000 -> 0.004 | C91: s | D91: Soft Start Time
A92: Iss | B92: =Cout*Vout/Tss -> 0.8225 | C92: A | D92: Load Cap current during soft start
A93: Css | B93: =0.00001*Tss/0.8 -> 5e-08 | C93: F
A94: Css_u | B94: ='Standard Value Calculator'!B4 -> 4.7e-08 | C94: F
A96: Step 7: Other Components
A98: VINUVLO_ON | B98: ='Design Regulator'!E50 -> 9 | C98: V
A99: VINUVLO_OFF | B99: ='Design Regulator'!E51 -> 8 | C99: V
A100: RUV1 | B100: =(VINuvlo_off-VINuvlo_on*Vuvlo_off/Vuvlo_on)/(Iuvlo1*Vuvlo_off/Vuvlo_on-Iuvlo2) -> 100 | C100: kΩ | D100: ='Standard Value Calculator'!S16 -> 100 | E100: kΩ | F100: =IF(Ruvlo1<0,"N/A",D100) -> 100 | G100: =IF(Ruvlo1<0,"N/A",D100&"kΩ") -> 100kΩ
A101: RUV2 | B101: =D100*Vuvlo_on/(VINuvlo_on-Vuvlo_on+Ruvlo1*Iuvlo1) -> 15.38461538 | C101: kΩ | D101: ='Standard Value Calculator'!S17 -> 15.4 | E101: kΩ | F101: =IF(F100="N/A","N/A",D101) -> 15.4 | G101: =IF(G100="N/A","N/A",D101&"kΩ") -> 15.4kΩ
A103: VINUVLO_ON_ACTUAL | B103: =(D100+D101)/D101*Vuvlo_on-Iuvlo1*D100 -> 8.992207792
A104: VINUVLO_OFF_ACTUAL | B104: =(D100+D101)/D101*Vuvlo_off-Iuvlo2*D100 -> 7.992207792
A107: Rising UVLO/EN Threshold | B107: 1.2
A108: Falling UVLO/EN Threshold | B108: 1.2
A109: Falling UVLO/EN Threshold | B109: =B107-B108 -> 0
A110: UVLO/EN Current Hysteresis | B110: 0
A111: Falling UVLO/EN Falling | B111: 0.01
A112: Rising UVLO/EN Hysteresis | B112: =B111-B110 -> 0.01
A114: RPG | C114: W
A115: RSB | C115: W
A116: Rh | C116: W
A117: Rotp | B117: =80700/(Totp+273)*398 ->  | C117: W
A120: CSBY | B120: 100 | C120: pF
A124: Step 8: Compensation
A125: Eadcg | B125: 10000 | C125: V/V | D125: Error Amplifier Finite DC Gain (AOL)
A126: GBP | B126: 5000000 | C126: Hz | D126: Error Amplifier Gain Bandwidth Product (GBW)
A127: Chosen Crossover | B127: ='Design Regulator'!E61*1000 -> 8000 | C127: Hz
A128: Kmidband | B128: =Fcross/Fo/15 -> 0.199921508 | C128: V/V | D128: Midband Gain For the Error Amplifier | H128: 1
A129: Rfb1 | B129: ='Design Regulator'!E63*1000 -> 77500 | C129: W | D129: Top Feedback Resistor | H129: 1
A130: Rfb2 | B130: =IF(Vout=Vref,100000000,Vref/((Vout-Vref)/_Rfb1)) -> 10000 | C130: W | D130: Lower Feedback Resistor
A131: Rfb2_u | B131: =IF(Vout=Vref,"N/A",'Standard Value Calculator'!S11) -> 10000 | C131: W | D131: Calculated Lower Feedback Resistor
A132: Vout_actual | B132: =0.8/Rfb2_u*(Rfb2_u+_Rfb1) -> 7 | C132: V | D132: Actual VOUT
A134: Vramp | B134: =(Vin+Vout)/15 -> 1.266666667 | C134: Vpk-pk | D134: Peak-to-Peak Ramp Voltage of PWM
A135: Rcea1 | B135: =Kmidband*_Rfb1 -> 15493.91687 | C135: W | D135: This component will first set the midband gain | H135: 1
A136: Cc1ea | B136: =1/(Rcea1*('Design Regulator'!E67*1000)*2*Pi) -> 5.500746887e-09 | C136: F | D136: This along with Rcea1 will set a zero | H136: 1
A137: Cc2ea | B137: =1/((Rcea1*2*Pi*'Design Regulator'!E70*1000)-1/Cc1ea) -> 8.342301068e-11 | C137: F | H137: 1
A138: Rcea2 | B138: =(1/(1000*2*Pi*'Design Regulator'!E69))*_Rfb1/(1/('Design Regulator'!E68*1000*2*Pi)-(1/(1000*2*Pi*'Design Regulator'!E69))) -> 5914.250219 | C138: W | H138: 1
A139: Cc3ea | B139: =(1/(1000*2*Pi*'Design Regulator'!E69))/Rcea2 -> 7.946907597e-10 | C139: F | H139: 1
A141: Choosen Compensation Components from the standard value sheet
A142: Rcea1_u | B142: ='Design Regulator'!D74*1000 -> 15400 | C142: W | H142: 2
A143: Cc1ea_u | B143: ='Design Regulator'!D75*0.000000000001 -> 5.6e-09 | C143: F | H143: 2
A144: Cc2ea_u | B144: ='Design Regulator'!D76*0.000000000001 -> 8.2e-11 | C144: F | H144: 2
A145: Rcea2_u | B145: ='Design Regulator'!D77 -> 5900 | C145: W | H145: 2
A146: Cc3ea_u | B146: ='Design Regulator'!D78*0.000000000001 -> 8.2e-10 | C146: F | H146: 2
A148: Resulting Poles/Zero/Q Locations | D148: =Cout -> 0.00047 | E148: =CoutEsr -> 0.01
A149: Fo | B149: =SQRT((1-_Don2)/(Cout*Lout2))/(2*Pi) -> 2667.713638 | C149: Hz | D149: LC double pole location for IBB topology
A150: Q | B150: =Ro*(1-_Don2)/SQRT(Lout2/Cout) -> 5.430472011 | C150: V/V | D150: Quality factor of LC output filter
A151: Fesr | B151: =1/(2*Pi*Cout*CoutEsr) -> 33862.75389 | C151: Hz | D151: Cout ESR zero location
A152: Frhp | B152: =(1-_Don2)^2/_Don2*Ro/Lout2/2/Pi -> 30083.78986 | C152: Hz | D152: RHP zero from power stage
A154: Fz1 | B154: =1/(2*Pi*Rcea1_u*Cc1ea_u) -> 1845.488674 | C154: Hz | D154: This zero is set at or below the double pole location
A155: Fz2 | B155: =1/(2*Pi*Cc3ea_u*(_Rfb1+Rcea2_u)) -> 2327.234943 | C155: Hz | D155: This zero is set at or below the double pole location
A156: Fp1 | B156: =1/(2*Pi*Rcea2_u*Cc3ea_u) -> 32896.84648 | C156: Hz | D156: This pole cancels the zero from the Output Cap ESR
A157: Fp2 | B157: =1/(2*Pi*Rcea1_u*(Cc1ea_u*Cc2ea_u/(Cc1ea_u+Cc2ea_u))) -> 127878.8616 | C157: Hz | D157: This pole is set at half the switching frequency
A158: Ro | B158: =Vout/(Iout+Vref/_Rfb2) -> 0.8749912501 | D158: Output Resistance
A159: Pi | B159: 3.14159265 | D159: PI
A160: Other Input Variables
A161: Rfets | B161: 0 | C161: W | D161: Series resistance due to FETs | G161: =_Don2*RdsonTop+Doff2*RdsonBot+B166*Vin^2*Fsw/2/(((Iripple1/SQRT(3))^2)) -> 0.02398683088
A163: Diode loss eq res | B163: =0.00000002*Fsw*0.6*4/Iripple1 -> 0.003097253052
A164: Fet loss eq res | B164: =_Don2*RdsonTop+Doff2*RdsonBot -> 0.006
A165: cap loss eq res | B165: =B166*Vin^2*Fsw/2/(((Iripple1/SQRT(3))^2)) -> 0.01798683088
A166: Sw cap | B166: 5e-09
A169: Step 8: Efficiency
A171: Design
A172: Ta | B172: 25 | D172: Ambient Temperature
A173: Components
A174: LTc | B174: =4000/1000000 -> 0.004 | C174: %/°C | D174: Inductor Series Resistance Temp Co
A175: ThetaCa | B175: 20 | C175: °C/W | D175: Core to Ambient Thermal Resistance
A176: RCinEsr | B176: =RCinEsr -> 0.001 | C176: W | D176: Input Capacitor Series Resistance
A177: Part Characteristics
A178: Vcc | B178: 7.5
A179: Top Driver
A180: RdsonDRT | B180: 1 | C180: W | D180: Drain to Source Resistance of pull up Top FET Driver
A181: RdsonDRT2 | B181: 0.9 | C181: W | D181: Drain to Source Resistance of pull down Top FET Driver
A182: Bottom Driver
A183: RdsonDRB | B183: 1 | C183: W | D183: Drain to Source Resistance of pull up Top FET Driver
A184: RdsonDRB2 | B184: 0.9 | C184: W | D184: Drain to Source Resistance of pull down Top FET Driver
A185: Deadtime | D185: Output Capacitor Capcitance
A186: Deadtime | B186: 3e-08 | C186: s | D186: Total Deadtime
A187: IQ
A188: IQ | B188: 0.003 | C188: A | D188: Quiescent Current Of Controller (Not Switching!)
A189: Top FET
A190: RdsonTop | B190: ='Design Regulator'!E85/1000 -> 0.006 | C190: W | D190: Drain to Source Resistance of Top FET
A191: RdsonTopTc | B191: =4000/1000000 -> 0.004 | C191: %/°C | D191: Drain to Source Resistance Temp Co
A192: QgTop | B192: ='Design Regulator'!E86/1000000000 -> 1.15e-08 | C192: C | D192: Gate Charge Of Top FET
A193: QgdTop | B193: ='Design Regulator'!E87/1000000000 -> 2.9e-09 | C193: C | D193: Gate to Drain Charge
A194: QgsTop | B194: ='Design Regulator'!E88/1000000000 -> 3.3e-09 | C194: C | D194: Gate to Source Charge
A195: CossTop | B195: ='Design Regulator'!E89/1000000000000 -> 2.8e-10 | C195: F | D195: Output Capacitance of High-side FET
A196: RGateTop | B196: ='Design Regulator'!E90 -> 1.5 | C196: W | D196: Gate Resistance of High-side FET
A197: GfsTop | B197: ='Design Regulator'!E91 -> 60 | C197: S | D197: Transconductance of Top FET
A198: VthTop | B198: ='Design Regulator'!E92 -> 3 | C198: V | D198: Threshold Voltage of Top FET
A199: VspTop | B199: =VthTop+Iout/GmTop -> 3.133333333 | C199: V | D199: Switch Point Voltage of Top FET
A200: VsdTop | B200: ='Design Regulator'!E93 -> 0.8 | C200: V | D200: Diode Forward Voltage of Top FET Body diode
A201: ThetaJaTop | B201: ='Design Regulator'!E94 -> 50 | C201: °C/W | D201: Junction to Ambient Resistance
A202: Bottom FET
A203: RdsonBot | B203: ='Design Regulator'!E97/1000 -> 0.006 | C203: W | D203: Drain To Source Resistance of Bottom FET Driver
A204: RdsonBotTc | B204: =4000/1000000 -> 0.004 | C204: %/°C | D204: Drain To Source Resitance Temp Co
A205: QgBot | B205: ='Design Regulator'!E98/1000000000 -> 1.15e-08 | C205: C | D205: Gate Charge Of Bottom FET | J205: =RGateTop -> 1.5
A206: QossBot | B206: ='Design Regulator'!E99/1000000000 -> 3.6e-08 | C206: C | D206: Output Charge Of Bottom FET
A207: CossBot | B207: ='Design Regulator'!E100/1000000000000 -> 2.8e-10 | C207: F | D207: Output Capacitance Of Bottom FET
A208: RGateBot | B208: 1 | C208: W | D208: Gate Resistance
A209: VsdBot | B209: ='Design Regulator'!E101 -> 0.8 | C209: V | D209: Diode Forward Voltage of Bottom FET Body Diode
A210: QrrBot | B210: ='Design Regulator'!E102/1000000000 -> 6.3e-08 | C210: C | D210: Reverse Recovery Charge of Body Diode
A211: TrrBot | B211: 4e-08 | C211: s | D211: Reverse Recovery Time of Body Diode
A212: ThetaJaBot | B212: ='Design Regulator'!E103 -> 50 | C212: °C/W | D212: Junction to Ambient Resistance
A213: Bottom Schottky
A214: VfdSky | B214: ='Design Regulator'!E105 -> 0 | C214: V | D214: Diode Forward Voltage
A215: QrrSky | B215: ='Design Regulator'!E106/1000000000 -> 0 | C215: C | D215: Diode Reverse Recovery Charge
A216: Ireverse | B216: 0 | C216: A | D216: Reverse Leakage Current
A217: Controller
A218: ThetaJaCtrl | B218: 30
A219: Outputs
A220: Top FET
A221: Tr | B221: =(QgdTop+QgsTop/2)*(RdsonDRT+RGateTop)/(Vdd-VspTop) -> 2.604961832e-09 | C221: s
A222: Tf | B222: =(QgdTop+QgsTop/2)*(RdsonDRT+RGateTop)/(VspTop) -> 3.630319149e-09 | C222: s
A225: Part Power Disipation | B225: Value | C225: Units
A226: Power Dis | B226: ='Power Calculations'!AO9 -> 0.16625 | C226: W
A227: Temp rise | B227: =B226*ThetaJaCtrl -> 4.9875 | C227: °C
A228: Current (switching) | B228: =(QgBot+QgTop)*Fsw+Iq -> 0.00875 | C228: A
A229: Qrr Current | B229: =QrrBot*Fsw -> 0.01575 | C229: A
A230: Diode Current | B230: =C230/Vin -> 0.0003140703518 | C230: =Deadtime*Fsw*(Ipp/2)*(VsdTop+VsdBot) -> 0.003768844221
A231: Total Application Switching IQ | B231: =SUM(B228:B230) -> 0.02481407035 | C231: A
A237: Bottom FET/Diode
A238: Part Power
A239: Power Dis
... 62 more rows

Sheet Standard Value Calculator (hidden)
A2: Capacitors | B2: Css | C2: Cc1ea | D2: Cc2ea | E2: Cc3ea | F2: Cout | G2: Cin | H2: Cilim | I2: Cdd | J2: Csb | K2: Csby | L2: Cby | M2: Cb | N2: Sugested Cs
A3: Inputs | B3: =Css -> 5e-08 | C3: =Cc1ea -> 5.500746887e-09 | D3: =Cc2ea -> 8.342301068e-11 | E3: =Cc3ea -> 7.946907597e-10 | F3: =Cout -> 0.00047 | G3: =Cin -> 4e-05 | H3: =Cilim -> 1.222191927e-11 | I3: =Cdd -> 0 | J3: =Csb -> 0 | K3: =Csby -> 100 | L3: =Cby -> 0 | M3: =Cb -> 0 | N3: ='Variable Management'!#REF! ->  | Q3: Resistors | R3: inputs | S3: Standard Result
A4: Standard Result | B4: =SUM(B6:B158)/1000000000000 -> 4.7e-08 | C4: =SUM(C6:C158)/1000000000000 -> 5.6e-09 | D4: 8.2e-11 | E4: 8.2e-10 | F4: 0.00047 | G4: 3.9e-05 | H4: 1.2e-11 | I4: =IF(I3="OPEN","OPEN",SUM(I6:I158)/1000000000000) -> 0 | J4: 0 | K4: 0 | L4: 0 | M4: 0 | Q4: Radj | R4: =Rfadj -> 40000 | S4: =IF(R4>(INT(0.5+100*POWER(10,IF(96*(LOG(R4)-INT(LOG(R4)))-ROUND(96*(LOG(R4)-INT(LOG(R4))),0)<0,ROUND(96*(LOG(R4)-INT(LOG(R4))),0)-1,ROUND(96*(LOG(R4)-INT(LOG(R4))),0))/96))*POWER(10,INT(LOG(R4))-2)+INT(0.5+100*POWER(10,(IF(96*(LOG(R4)-INT(LOG(R4)))-ROUND(96*(LOG(R4)-INT(LOG(R4))),0)<0,ROUND(96*(LOG(R4)-INT(LOG(R4))),0)-1,ROUND(96*(LOG(R4)-INT(LOG(R4))),0))+1)/96))*POWER(10,INT(LOG(R4))-2))/2,INT(0.5+100*POWER(10,(IF(96*(LOG(R4)-INT(LOG(R4)))-ROUND(96*(LOG(R4)-INT(LOG(R4))),0)<0,ROUND(96*(LOG(R4)-INT(LOG(R4))),0)-1,ROUND(96*(LOG(R4)-INT(LOG(R4))),0))+1)/96))*POWER(10,INT(LOG(R4))-2),INT(0.5+100*POWER(10,IF(96*(LOG(R4)-INT(LOG(R4)))-ROUND(96*(LOG(R4)-INT(LOG(R4))),0)<0,ROUND(96*(LOG(R4)-INT(LOG(R4))),0)-1,ROUND(96*(LOG(R4)-INT(LOG(R4))),0))/96))*POWER(10,INT(LOG(R4))-2)) -> 40200 | T4: Ω
A5: (pF) | Q5: Rilim_Rdson | R5: =Rilim_Rdson_ideal -> 421.8839866 | S5: 422 | T5: Ω
A6: 0.47 | B6: =IF(IF((B$3*10^12-$A7)*(B$3*10^12-$A6)*-1<0,0,1)*IF(ABS(B$3*10^12-$A7)>(B$3*10^12-$A6),$A6,$A7)=B7,0,IF((B$3*10^12-$A7)*(B$3*10^12-$A6)*-1<0,0,1)*IF(ABS(B$3*10^12-$A7)>(B$3*10^12-$A6),$A6,$A7)) -> 0 | C6: =IF(IF((C$3*10^12-$A7)*(C$3*10^12-$A6)*-1<0,0,1)*IF(ABS(C$3*10^12-$A7)>(C$3*10^12-$A6),$A6,$A7)=C7,0,IF((C$3*10^12-$A7)*(C$3*10^12-$A6)*-1<0,0,1)*IF(ABS(C$3*10^12-$A7)>(C$3*10^12-$A6),$A6,$A7)) -> 0 | D6: =IF(IF((D$3*10^12-$A7)*(D$3*10^12-$A6)*-1<0,0,1)*IF(ABS(D$3*10^12-$A7)>(D$3*10^12-$A6),$A6,$A7)=D7,0,IF((D$3*10^12-$A7)*(D$3*10^12-$A6)*-1<0,0,1)*IF(ABS(D$3*10^12-$A7)>(D$3*10^12-$A6),$A6,$A7)) -> 0 | E6: =IF(IF((E$3*10^12-$A7)*(E$3*10^12-$A6)*-1<0,0,1)*IF(ABS(E$3*10^12-$A7)>(E$3*10^12-$A6),$A6,$A7)=E7,0,IF((E$3*10^12-$A7)*(E$3*10^12-$A6)*-1<0,0,1)*IF(ABS(E$3*10^12-$A7)>(E$3*10^12-$A6),$A6,$A7)) -> 0 | F6: =IF(IF((F$3*10^12-$A7)*(F$3*10^12-$A6)*-1<0,0,1)*IF(ABS(F$3*10^12-$A7)>(F$3*10^12-$A6),$A6,$A7)=F7,0,IF((F$3*10^12-$A7)*(F$3*10^12-$A6)*-1<0,0,1)*IF(ABS(F$3*10^12-$A7)>(F$3*10^12-$A6),$A6,$A7)) -> 0 | G6: =IF(IF((G$3*10^12-$A7)*(G$3*10^12-$A6)*-1<0,0,1)*IF(ABS(G$3*10^12-$A7)>(G$3*10^12-$A6),$A6,$A7)=G7,0,IF((G$3*10^12-$A7)*(G$3*10^12-$A6)*-1<0,0,1)*IF(ABS(G$3*10^12-$A7)>(G$3*10^12-$A6),$A6,$A7)) -> 0 | H6: =IF(IF((H$3*10^12-$A7)*(H$3*10^12-$A6)*-1<0,0,1)*IF(ABS(H$3*10^12-$A7)>(H$3*10^12-$A6),$A6,$A7)=H7,0,IF((H$3*10^12-$A7)*(H$3*10^12-$A6)*-1<0,0,1)*IF(ABS(H$3*10^12-$A7)>(H$3*10^12-$A6),$A6,$A7)) -> 0 | I6: 0 | J6: 0 | K6: 0 | L6: =IF(IF((L$3*10^12-$A7)*(L$3*10^12-$A6)*-1<0,0,1)*IF(ABS(L$3*10^12-$A7)>(L$3*10^12-$A6),$A6,$A7)=L7,0,IF((L$3*10^12-$A7)*(L$3*10^12-$A6)*-1<0,0,1)*IF(ABS(L$3*10^12-$A7)>(L$3*10^12-$A6),$A6,$A7)) -> 0 | M6: =IF(IF((M$3*10^12-$A7)*(M$3*10^12-$A6)*-1<0,0,1)*IF(ABS(M$3*10^12-$A7)>(M$3*10^12-$A6),$A6,$A7)=M7,0,IF((M$3*10^12-$A7)*(M$3*10^12-$A6)*-1<0,0,1)*IF(ABS(M$3*10^12-$A7)>(M$3*10^12-$A6),$A6,$A7)) -> 0 | N6: =IF(IF((N$3*10^12-$A7)*(N$3*10^12-$A6)*-1<0,0,1)*IF(ABS(N$3*10^12-$A7)>(N$3*10^12-$A6),$A6,$A7)=N7,0,IF((N$3*10^12-$A7)*(N$3*10^12-$A6)*-1<0,0,1)*IF(ABS(N$3*10^12-$A7)>(N$3*10^12-$A6),$A6,$A7)) ->  | Q6: Rilim_Rdson | R6: =Rilim_Rdson_ideal -> 421.8839866 | S6: 422 | T6: Ω
A7: 0.56 | B7: =IF(IF((B$3*10^12-$A8)*(B$3*10^12-$A7)*-1<0,0,1)*IF(ABS(B$3*10^12-$A8)>(B$3*10^12-$A7),$A7,$A8)=B8,0,IF((B$3*10^12-$A8)*(B$3*10^12-$A7)*-1<0,0,1)*IF(ABS(B$3*10^12-$A8)>(B$3*10^12-$A7),$A7,$A8)) -> 0 | C7: =IF(IF((C$3*10^12-$A8)*(C$3*10^12-$A7)*-1<0,0,1)*IF(ABS(C$3*10^12-$A8)>(C$3*10^12-$A7),$A7,$A8)=C8,0,IF((C$3*10^12-$A8)*(C$3*10^12-$A7)*-1<0,0,1)*IF(ABS(C$3*10^12-$A8)>(C$3*10^12-$A7),$A7,$A8)) -> 0 | D7: 0 | E7: 0 | F7: 0 | G7: 0 | H7: 0 | I7: 0 | J7: 0 | K7: 0 | L7: 0 | M7: 0
A8: 0.68 | B8: 0 | C8: 0 | D8: 0 | E8: 0 | F8: 0 | G8: 0 | H8: 0 | I8: 0 | J8: 0 | K8: 0 | L8: 0 | M8: 0 | Q8: Rc1ea | R8: =Rcea1 -> 15493.91687 | S8: =IF(R8>(INT(0.5+100*POWER(10,IF(96*(LOG(R8)-INT(LOG(R8)))-ROUND(96*(LOG(R8)-INT(LOG(R8))),0)<0,ROUND(96*(LOG(R8)-INT(LOG(R8))),0)-1,ROUND(96*(LOG(R8)-INT(LOG(R8))),0))/96))*POWER(10,INT(LOG(R8))-2)+INT(0.5+100*POWER(10,(IF(96*(LOG(R8)-INT(LOG(R8)))-ROUND(96*(LOG(R8)-INT(LOG(R8))),0)<0,ROUND(96*(LOG(R8)-INT(LOG(R8))),0)-1,ROUND(96*(LOG(R8)-INT(LOG(R8))),0))+1)/96))*POWER(10,INT(LOG(R8))-2))/2,INT(0.5+100*POWER(10,(IF(96*(LOG(R8)-INT(LOG(R8)))-ROUND(96*(LOG(R8)-INT(LOG(R8))),0)<0,ROUND(96*(LOG(R8)-INT(LOG(R8))),0)-1,ROUND(96*(LOG(R8)-INT(LOG(R8))),0))+1)/96))*POWER(10,INT(LOG(R8))-2),INT(0.5+100*POWER(10,IF(96*(LOG(R8)-INT(LOG(R8)))-ROUND(96*(LOG(R8)-INT(LOG(R8))),0)<0,ROUND(96*(LOG(R8)-INT(LOG(R8))),0)-1,ROUND(96*(LOG(R8)-INT(LOG(R8))),0))/96))*POWER(10,INT(LOG(R8))-2)) -> 15400 | T8: Ω
A9: 0.82 | B9: 0 | C9: 0 | D9: 0 | E9: 0 | F9: 0 | G9: 0 | H9: 0 | I9: 0 | J9: 0 | K9: 0 | L9: 0 | M9: 0 | Q9: Rc2ea | R9: =Rcea2 -> 5914.250219 | S9: =IF(R9>(INT(0.5+100*POWER(10,IF(96*(LOG(R9)-INT(LOG(R9)))-ROUND(96*(LOG(R9)-INT(LOG(R9))),0)<0,ROUND(96*(LOG(R9)-INT(LOG(R9))),0)-1,ROUND(96*(LOG(R9)-INT(LOG(R9))),0))/96))*POWER(10,INT(LOG(R9))-2)+INT(0.5+100*POWER(10,(IF(96*(LOG(R9)-INT(LOG(R9)))-ROUND(96*(LOG(R9)-INT(LOG(R9))),0)<0,ROUND(96*(LOG(R9)-INT(LOG(R9))),0)-1,ROUND(96*(LOG(R9)-INT(LOG(R9))),0))+1)/96))*POWER(10,INT(LOG(R9))-2))/2,INT(0.5+100*POWER(10,(IF(96*(LOG(R9)-INT(LOG(R9)))-ROUND(96*(LOG(R9)-INT(LOG(R9))),0)<0,ROUND(96*(LOG(R9)-INT(LOG(R9))),0)-1,ROUND(96*(LOG(R9)-INT(LOG(R9))),0))+1)/96))*POWER(10,INT(LOG(R9))-2),INT(0.5+100*POWER(10,IF(96*(LOG(R9)-INT(LOG(R9)))-ROUND(96*(LOG(R9)-INT(LOG(R9))),0)<0,ROUND(96*(LOG(R9)-INT(LOG(R9))),0)-1,ROUND(96*(LOG(R9)-INT(LOG(R9))),0))/96))*POWER(10,INT(LOG(R9))-2)) -> 5900 | T9: Ω
A10: 1 | B10: 0 | C10: 0 | D10: 0 | E10: 0 | F10: 0 | G10: 0 | H10: 0 | I10: 0 | J10: 0 | K10: 0 | L10: 0 | M10: 0 | Q10: Rfb1 | R10: =_Rfb1 -> 77500 | S10: =IF(R10>(INT(0.5+100*POWER(10,IF(96*(LOG(R10)-INT(LOG(R10)))-ROUND(96*(LOG(R10)-INT(LOG(R10))),0)<0,ROUND(96*(LOG(R10)-INT(LOG(R10))),0)-1,ROUND(96*(LOG(R10)-INT(LOG(R10))),0))/96))*POWER(10,INT(LOG(R10))-2)+INT(0.5+100*POWER(10,(IF(96*(LOG(R10)-INT(LOG(R10)))-ROUND(96*(LOG(R10)-INT(LOG(R10))),0)<0,ROUND(96*(LOG(R10)-INT(LOG(R10))),0)-1,ROUND(96*(LOG(R10)-INT(LOG(R10))),0))+1)/96))*POWER(10,INT(LOG(R10))-2))/2,INT(0.5+100*POWER(10,(IF(96*(LOG(R10)-INT(LOG(R10)))-ROUND(96*(LOG(R10)-INT(LOG(R10))),0)<0,ROUND(96*(LOG(R10)-INT(LOG(R10))),0)-1,ROUND(96*(LOG(R10)-INT(LOG(R10))),0))+1)/96))*POWER(10,INT(LOG(R10))-2),INT(0.5+100*POWER(10,IF(96*(LOG(R10)-INT(LOG(R10)))-ROUND(96*(LOG(R10)-INT(LOG(R10))),0)<0,ROUND(96*(LOG(R10)-INT(LOG(R10))),0)-1,ROUND(96*(LOG(R10)-INT(LOG(R10))),0))/96))*POWER(10,INT(LOG(R10))-2)) -> 76800 | T10: Ω
A11: 1.2 | B11: 0 | C11: 0 | D11: 0 | E11: 0 | F11: 0 | G11: 0 | H11: 0 | I11: 0 | J11: 0 | K11: 0 | L11: 0 | M11: 0 | Q11: Rfb2 | R11: =_Rfb2 -> 10000 | S11: =IF(R11="OPEN","OPEN",IF(R11>(INT(0.5+100*POWER(10,IF(96*(LOG(R11)-INT(LOG(R11)))-ROUND(96*(LOG(R11)-INT(LOG(R11))),0)<0,ROUND(96*(LOG(R11)-INT(LOG(R11))),0)-1,ROUND(96*(LOG(R11)-INT(LOG(R11))),0))/96))*POWER(10,INT(LOG(R11))-2)+INT(0.5+100*POWER(10,(IF(96*(LOG(R11)-INT(LOG(R11)))-ROUND(96*(LOG(R11)-INT(LOG(R11))),0)<0,ROUND(96*(LOG(R11)-INT(LOG(R11))),0)-1,ROUND(96*(LOG(R11)-INT(LOG(R11))),0))+1)/96))*POWER(10,INT(LOG(R11))-2))/2,INT(0.5+100*POWER(10,(IF(96*(LOG(R11)-INT(LOG(R11)))-ROUND(96*(LOG(R11)-INT(LOG(R11))),0)<0,ROUND(96*(LOG(R11)-INT(LOG(R11))),0)-1,ROUND(96*(LOG(R11)-INT(LOG(R11))),0))+1)/96))*POWER(10,INT(LOG(R11))-2),INT(0.5+100*POWER(10,IF(96*(LOG(R11)-INT(LOG(R11)))-ROUND(96*(LOG(R11)-INT(LOG(R11))),0)<0,ROUND(96*(LOG(R11)-INT(LOG(R11))),0)-1,ROUND(96*(LOG(R11)-INT(LOG(R11))),0))/96))*POWER(10,INT(LOG(R11))-2))) -> 10000 | T11: Ω
A12: 1.5 | B12: 0 | C12: 0 | D12: 0 | E12: 0 | F12: 0 | G12: 0 | H12: 0 | I12: 0 | J12: 0 | K12: 0 | L12: 0 | M12: 0 | Q12: Rs1 | R12: =_Rs1 -> 12
A13: 1.8 | B13: 0 | C13: 0 | D13: 0 | E13: 0 | F13: 0 | G13: 0 | H13: 0 | I13: 0 | J13: 0 | K13: 0 | L13: 0 | M13: 0 | Q13: Rs2 | R13: =_Rs2 -> 1.222191927e-11
A14: 2.2 | B14: 0 | C14: 0 | D14: 0 | E14: 0 | F14: 0 | G14: 0 | H14: 0 | I14: 0 | J14: 0 | K14: 0 | L14: 0 | M14: 0 | Q14: Rs3 | R14: =_Rs3 -> 0.17
A15: 2.7 | B15: 0 | C15: 0 | D15: 0 | E15: 0 | F15: 0 | G15: 0 | H15: 0 | I15: 0 | J15: 0 | K15: 0 | L15: 0 | M15: 0
A16: 3.3 | B16: 0 | C16: 0 | D16: 0 | E16: 0 | F16: 0 | G16: 0 | H16: 0 | I16: 0 | J16: 0 | K16: 0 | L16: 0 | M16: 0 | Q16: Ruv1 | R16: =Ruvlo1 -> 100 | S16: =IF(R16="OPEN","OPEN",IF(R16>(INT(0.5+100*POWER(10,IF(96*(LOG(R16)-INT(LOG(R16)))-ROUND(96*(LOG(R16)-INT(LOG(R16))),0)<0,ROUND(96*(LOG(R16)-INT(LOG(R16))),0)-1,ROUND(96*(LOG(R16)-INT(LOG(R16))),0))/96))*POWER(10,INT(LOG(R16))-2)+INT(0.5+100*POWER(10,(IF(96*(LOG(R16)-INT(LOG(R16)))-ROUND(96*(LOG(R16)-INT(LOG(R16))),0)<0,ROUND(96*(LOG(R16)-INT(LOG(R16))),0)-1,ROUND(96*(LOG(R16)-INT(LOG(R16))),0))+1)/96))*POWER(10,INT(LOG(R16))-2))/2,INT(0.5+100*POWER(10,(IF(96*(LOG(R16)-INT(LOG(R16)))-ROUND(96*(LOG(R16)-INT(LOG(R16))),0)<0,ROUND(96*(LOG(R16)-INT(LOG(R16))),0)-1,ROUND(96*(LOG(R16)-INT(LOG(R16))),0))+1)/96))*POWER(10,INT(LOG(R16))-2),INT(0.5+100*POWER(10,IF(96*(LOG(R16)-INT(LOG(R16)))-ROUND(96*(LOG(R16)-INT(LOG(R16))),0)<0,ROUND(96*(LOG(R16)-INT(LOG(R16))),0)-1,ROUND(96*(LOG(R16)-INT(LOG(R16))),0))/96))*POWER(10,INT(LOG(R16))-2))) -> 100 | T16: kΩ
A17: 3.9 | B17: 0 | C17: 0 | D17: 0 | E17: 0 | F17: 0 | G17: 0 | H17: 0 | I17: 0 | J17: 0 | K17: 0 | L17: 0 | M17: 0 | Q17: Ruv2 | R17: =Ruvlo2 -> 15.38461538 | S17: 15.4 | T17: kΩ
A18: 4.7 | B18: 0 | C18: 0 | D18: 0 | E18: 0 | F18: 0 | G18: 0 | H18: 0 | I18: 0 | J18: 0 | K18: 0 | L18: 0 | M18: 0
A19: 5.6 | B19: 0 | C19: 0 | D19: 0 | E19: 0 | F19: 0 | G19: 0 | H19: 0 | I19: 0 | J19: 0 | K19: 0 | L19: 0 | M19: 0
A20: 6.8 | B20: 0 | C20: 0 | D20: 0 | E20: 0 | F20: 0 | G20: 0 | H20: 0 | I20: 0 | J20: 0 | K20: 0 | L20: 0 | M20: 0
A21: 8.2 | B21: 0 | C21: 0 | D21: 0 | E21: 0 | F21: 0 | G21: 0 | H21: 0 | I21: 0 | J21: 0 | K21: 0 | L21: 0 | M21: 0
A22: 10 | B22: 0 | C22: 0 | D22: 0 | E22: 0 | F22: 0 | G22: 0 | H22: 0 | I22: 0 | J22: 0 | K22: 0 | L22: 0 | M22: 0 | Q22: Rilim_shunt | R22: =Rilim_shunt_ideal -> 703.1399776 | S22: =IF(R22=0,0,IF(R22>(INT(0.5+100*POWER(10,IF(96*(LOG(R22)-INT(LOG(R22)))-ROUND(96*(LOG(R22)-INT(LOG(R22))),0)<0,ROUND(96*(LOG(R22)-INT(LOG(R22))),0)-1,ROUND(96*(LOG(R22)-INT(LOG(R22))),0))/96))*POWER(10,INT(LOG(R22))-2)+INT(0.5+100*POWER(10,(IF(96*(LOG(R22)-INT(LOG(R22)))-ROUND(96*(LOG(R22)-INT(LOG(R22))),0)<0,ROUND(96*(LOG(R22)-INT(LOG(R22))),0)-1,ROUND(96*(LOG(R22)-INT(LOG(R22))),0))+1)/96))*POWER(10,INT(LOG(R22))-2))/2,INT(0.5+100*POWER(10,(IF(96*(LOG(R22)-INT(LOG(R22)))-ROUND(96*(LOG(R22)-INT(LOG(R22))),0)<0,ROUND(96*(LOG(R22)-INT(LOG(R22))),0)-1,ROUND(96*(LOG(R22)-INT(LOG(R22))),0))+1)/96))*POWER(10,INT(LOG(R22))-2),INT(0.5+100*POWER(10,IF(96*(LOG(R22)-INT(LOG(R22)))-ROUND(96*(LOG(R22)-INT(LOG(R22))),0)<0,ROUND(96*(LOG(R22)-INT(LOG(R22))),0)-1,ROUND(96*(LOG(R22)-INT(LOG(R22))),0))/96))*POWER(10,INT(LOG(R22))-2))) -> 698 | T22: Ω
A23: 12 | B23: 0 | C23: 0 | D23: 0 | E23: 0 | F23: 0 | G23: 0 | H23: 12 | I23: 0 | J23: 0 | K23: 0 | L23: 0 | M23: 0 | Q23: Cilim | R23: =Cilim -> 1.222191927e-11 | S23: =H4*1000000000000 -> 12 | T23: pF
A24: 15 | B24: 0 | C24: 0 | D24: 0 | E24: 0 | F24: 0 | G24: 0 | H24: 0 | I24: 0 | J24: 0 | K24: 0 | L24: 0 | M24: 0
A25: 18 | B25: 0 | C25: 0 | D25: 0 | E25: 0 | F25: 0 | G25: 0 | H25: 0 | I25: 0 | J25: 0 | K25: 0 | L25: 0 | M25: 0
A26: 22 | B26: 0 | C26: 0 | D26: 0 | E26: 0 | F26: 0 | G26: 0 | H26: 0 | I26: 0 | J26: 0 | K26: 0 | L26: 0 | M26: 0
A27: 27 | B27: 0 | C27: 0 | D27: 0 | E27: 0 | F27: 0 | G27: 0 | H27: 0 | I27: 0 | J27: 0 | K27: 0 | L27: 0 | M27: 0 | Q27: Rc1 | R27: =S8/1000&" kΩ" -> 15.4 kΩ | S27: =S8/1000 -> 15.4 | T27: kΩ
A28: 33 | B28: 0 | C28: 0 | D28: 0 | E28: 0 | F28: 0 | G28: 0 | H28: 0 | I28: 0 | J28: 0 | K28: 0 | L28: 0 | M28: 0 | Q28: Cc1 | R28: =C4*1000000000000&" pF" -> 5600 pF | S28: =C4*1000000000000 -> 5600 | T28: pF
A29: 39 | B29: 0 | C29: 0 | D29: 0 | E29: 0 | F29: 0 | G29: 0 | H29: 0 | I29: 0 | J29: 0 | K29: 0 | L29: 0 | M29: 0 | Q29: Cc2 | R29: =D4*1000000000000&" pF" -> 82 pF | S29: =D4*1000000000000 -> 82 | T29: pF
A30: 47 | B30: 0 | C30: 0 | D30: 0 | E30: 0 | F30: 0 | G30: 0 | H30: 0 | I30: 0 | J30: 0 | K30: 0 | L30: 0 | M30: 0 | Q30: Rc2 | R30: =S9&" Ω" -> 5900 Ω | S30: =S9 -> 5900 | T30: Ω
A31: 56 | B31: 0 | C31: 0 | D31: 0 | E31: 0 | F31: 0 | G31: 0 | H31: 0 | I31: 0 | J31: 0 | K31: 0 | L31: 0 | M31: 0 | Q31: Cc3 | R31: =E4*1000000000000&" pF" -> 820 pF | S31: =E4*1000000000000 -> 820 | T31: pF
A32: 68 | B32: 0 | C32: 0 | D32: 0 | E32: 0 | F32: 0 | G32: 0 | H32: 0 | I32: 0 | J32: 0 | K32: 0 | L32: 0 | M32: 0
A33: 82 | B33: 0 | C33: 0 | D33: 82 | E33: 0 | F33: 0 | G33: 0 | H33: 0 | I33: 0 | J33: 0 | K33: 0 | L33: 0 | M33: 0
A34: =A22*10 -> 100 | B34: 0 | C34: 0 | D34: 0 | E34: 0 | F34: 0 | G34: 0 | H34: 0 | I34: 0 | J34: 0 | K34: 0 | L34: 0 | M34: 0
A35: =A23*10 -> 120 | B35: 0 | C35: 0 | D35: 0 | E35: 0 | F35: 0 | G35: 0 | H35: 0 | I35: 0 | J35: 0 | K35: 0 | L35: 0 | M35: 0
A36: 150 | B36: 0 | C36: 0 | D36: 0 | E36: 0 | F36: 0 | G36: 0 | H36: 0 | I36: 0 | J36: 0 | K36: 0 | L36: 0 | M36: 0
A37: 180 | B37: 0 | C37: 0 | D37: 0 | E37: 0 | F37: 0 | G37: 0 | H37: 0 | I37: 0 | J37: 0 | K37: 0 | L37: 0 | M37: 0
A38: 220 | B38: 0 | C38: 0 | D38: 0 | E38: 0 | F38: 0 | G38: 0 | H38: 0 | I38: 0 | J38: 0 | K38: 0 | L38: 0 | M38: =IF(IF((M$3*10^12-$A39)*(M$3*10^12-$A38)*-1<0,0,1)*IF(ABS(M$3*10^12-$A39)>(M$3*10^12-$A38),$A38,$A39)=M39,0,IF((M$3*10^12-$A39)*(M$3*10^12-$A38)*-1<0,0,1)*IF(ABS(M$3*10^12-$A39)>(M$3*10^12-$A38),$A38,$A39)) -> 0 | N38: =IF(IF((N$3*10^12-$A39)*(N$3*10^12-$A38)*-1<0,0,1)*IF(ABS(N$3*10^12-$A39)>(N$3*10^12-$A38),$A38,$A39)=N39,0,IF((N$3*10^12-$A39)*(N$3*10^12-$A38)*-1<0,0,1)*IF(ABS(N$3*10^12-$A39)>(N$3*10^12-$A38),$A38,$A39)) -> 
A39: 270 | B39: 0 | C39: =IF(IF((C$3*10^12-$A40)*(C$3*10^12-$A39)*-1<0,0,1)*IF(ABS(C$3*10^12-$A40)>(C$3*10^12-$A39),$A39,$A40)=C40,0,IF((C$3*10^12-$A40)*(C$3*10^12-$A39)*-1<0,0,1)*IF(ABS(C$3*10^12-$A40)>(C$3*10^12-$A39),$A39,$A40)) -> 0 | D39: 0 | E39: 0 | F39: 0 | G39: 0 | H39: 0 | I39: 0 | J39: 0 | K39: 0 | L39: 0 | M39: 0
A40: 330 | B40: 0 | C40: 0 | D40: 0 | E40: 0 | F40: 0 | G40: 0 | H40: 0 | I40: 0 | J40: 0 | K40: 0 | L40: 0 | M40: 0
A41: 390 | B41: 0 | C41: 0 | D41: 0 | E41: 0 | F41: 0 | G41: 0 | H41: 0 | I41: 0 | J41: 0 | K41: 0 | L41: 0 | M41: 0
A42: 470 | B42: 0 | C42: 0 | D42: 0 | E42: 0 | F42: 0 | G42: 0 | H42: 0 | I42: 0 | J42: 0 | K42: 0 | L42: 0 | M42: 0
A43: 560 | B43: 0 | C43: 0 | D43: 0 | E43: 0 | F43: 0 | G43: 0 | H43: 0 | I43: 0 | J43: 0 | K43: 0 | L43: 0 | M43: 0
A44: 680 | B44: 0 | C44: 0 | D44: 0 | E44: 820 | F44: 0 | G44: 0 | H44: 0 | I44: 0 | J44: 0 | K44: 0 | L44: 0 | M44: 0
A45: =A33*10 -> 820 | B45: 0 | C45: 0 | D45: 0 | E45: 0 | F45: 0 | G45: 0 | H45: 0 | I45: 0 | J45: 0 | K45: 0 | L45: 0 | M45: 0
A46: 1000 | B46: 0 | C46: 0 | D46: 0 | E46: 0 | F46: 0 | G46: 0 | H46: 0 | I46: 0 | J46: 0 | K46: 0 | L46: 0 | M46: 0
A47: 1200 | B47: 0 | C47: 0 | D47: 0 | E47: 0 | F47: 0 | G47: 0 | H47: 0 | I47: 0 | J47: 0 | K47: 0 | L47: 0 | M47: 0
A48: 1500 | B48: 0 | C48: 0 | D48: 0 | E48: 0 | F48: 0 | G48: 0 | H48: 0 | I48: 0 | J48: 0 | K48: 0 | L48: 0 | M48: 0
A49: 1800 | B49: 0 | C49: 0 | D49: 0 | E49: 0 | F49: 0 | G49: 0 | H49: 0 | I49: 0 | J49: 0 | K49: 0 | L49: 0 | M49: 0
A50: 2200 | B50: 0 | C50: 0 | D50: 0 | E50: 0 | F50: 0 | G50: 0 | H50: 0 | I50: 0 | J50: 0 | K50: 0 | L50: 0 | M50: 0
A51: 2700 | B51: 0 | C51: 0 | D51: 0 | E51: 0 | F51: 0 | G51: 0 | H51: 0 | I51: 0 | J51: 0 | K51: 0 | L51: 0 | M51: 0
A52: 3300 | B52: 0 | C52: 0 | D52: 0 | E52: 0 | F52: 0 | G52: 0 | H52: 0 | I52: 0 | J52: 0 | K52: 0 | L52: 0 | M52: 0
A53: 3900 | B53: 0 | C53: 0 | D53: 0 | E53: 0 | F53: 0 | G53: 0 | H53: 0 | I53: 0 | J53: 0 | K53: 0 | L53: 0 | M53: 0
A54: 4700 | B54: 0 | C54: 5600 | D54: 0 | E54: 0 | F54: 0 | G54: 0 | H54: 0 | I54: 0 | J54: 0 | K54: 0 | L54: 0 | M54: 0
A55: 5600 | B55: 0 | C55: 0 | D55: 0 | E55: 0 | F55: 0 | G55: 0 | H55: 0 | I55: 0 | J55: 0 | K55: 0 | L55: 0 | M55: 0
A56: 6800 | B56: 0 | C56: 0 | D56: 0 | E56: 0 | F56: 0 | G56: 0 | H56: 0 | I56: 0 | J56: 0 | K56: 0 | L56: 0 | M56: 0
A57: 8200 | B57: 0 | C57: 0 | D57: 0 | E57: 0 | F57: 0 | G57: 0 | H57: 0 | I57: 0 | J57: 0 | K57: 0 | L57: 0 | M57: 0
A58: 10000 | B58: 0 | C58: 0 | D58: 0 | E58: 0 | F58: 0 | G58: 0 | H58: 0 | I58: 0 | J58: 0 | K58: 0 | L58: 0 | M58: 0
A59: 12000 | B59: 0 | C59: 0 | D59: 0 | E59: 0 | F59: 0 | G59: 0 | H59: 0 | I59: 0 | J59: 0 | K59: 0 | L59: 0 | M59: 0
A60: 15000 | B60: 0 | C60: 0 | D60: 0 | E60: 0 | F60: 0 | G60: 0 | H60: 0 | I60: 0 | J60: 0 | K60: 0 | L60: 0 | M60: 0
A61: 18000 | B61: 0 | C61: 0 | D61: 0 | E61: 0 | F61: 0 | G61: 0 | H61: 0 | I61: 0 | J61: 0 | K61: 0 | L61: 0 | M61: 0
A62: 22000 | B62: 0 | C62: 0 | D62: 0 | E62: 0 | F62: 0 | G62: 0 | H62: 0 | I62: 0 | J62: 0 | K62: 0 | L62: 0 | M62: 0
A63: 27000 | B63: 0 | C63: 0 | D63: 0 | E63: 0 | F63: 0 | G63: 0 | H63: 0 | I63: 0 | J63: 0 | K63: 0 | L63: 0 | M63: 0
A64: 33000 | B64: 0 | C64: 0 | D64: 0 | E64: 0 | F64: 0 | G64: 0 | H64: 0 | I64: 0 | J64: 0 | K64: 0 | L64: 0 | M64: 0
A65: 39000 | B65: 0 | C65: 0 | D65: 0 | E65: 0 | F65: 0 | G65: 0 | H65: 0 | I65: 0 | J65: 0 | K65: 0 | L65: 0 | M65: 0
A66: 47000 | B66: 47000 | C66: 0 | D66: 0 | E66: 0 | F66: 0 | G66: 0 | H66: 0 | I66: 0 | J66: 0 | K66: 0 | L66: 0 | M66: 0
A67: 56000 | B67: 0 | C67: 0 | D67: 0 | E67: 0 | F67: 0 | G67: 0 | H67: 0 | I67: 0 | J67: 0 | K67: 0 | L67: 0 | M67: 0
A68: 68000 | B68: 0 | C68: 0 | D68: 0 | E68: 0 | F68: 0 | G68: 0 | H68: 0 | I68: 0 | J68: 0 | K68: 0 | L68: 0 | M68: 0
A69: 82000 | B69: 0 | C69: 0 | D69: 0 | E69: 0 | F69: 0 | G69: 0 | H69: 0 | I69: 0 | J69: 0 | K69: =IF(IF((K$3*10^12-$A70)*(K$3*10^12-$A69)*-1<0,0,1)*IF(ABS(K$3*10^12-$A70)>(K$3*10^12-$A69),$A69,$A70)=K70,0,IF((K$3*10^12-$A70)*(K$3*10^12-$A69)*-1<0,0,1)*IF(ABS(K$3*10^12-$A70)>(K$3*10^12-$A69),$A69,$A70)) -> 0 | L69: 0 | M69: 0
A70: 100000 | B70: 0 | C70: 0 | D70: =IF(IF((D$3*10^12-$A71)*(D$3*10^12-$A70)*-1<0,0,1)*IF(ABS(D$3*10^12-$A71)>(D$3*10^12-$A70),$A70,$A71)=D71,0,IF((D$3*10^12-$A71)*(D$3*10^12-$A70)*-1<0,0,1)*IF(ABS(D$3*10^12-$A71)>(D$3*10^12-$A70),$A70,$A71)) -> 0 | E70: 0 | F70: 0 | G70: 0 | H70: 0 | I70: 0 | J70: 0 | K70: 0 | L70: 0 | M70: =IF(IF((M$3*10^12-$A71)*(M$3*10^12-$A70)*-1<0,0,1)*IF(ABS(M$3*10^12-$A71)>(M$3*10^12-$A70),$A70,$A71)=M71,0,IF((M$3*10^12-$A71)*(M$3*10^12-$A70)*-1<0,0,1)*IF(ABS(M$3*10^12-$A71)>(M$3*10^12-$A70),$A70,$A71)) -> 0 | N70: =IF(IF((N$3*10^12-$A71)*(N$3*10^12-$A70)*-1<0,0,1)*IF(ABS(N$3*10^12-$A71)>(N$3*10^12-$A70),$A70,$A71)=N71,0,IF((N$3*10^12-$A71)*(N$3*10^12-$A70)*-1<0,0,1)*IF(ABS(N$3*10^12-$A71)>(N$3*10^12-$A70),$A70,$A71)) -> 
A71: 120000 | B71: =IF(IF((B$3*10^12-$A72)*(B$3*10^12-$A71)*-1<0,0,1)*IF(ABS(B$3*10^12-$A72)>(B$3*10^12-$A71),$A71,$A72)=B72,0,IF((B$3*10^12-$A72)*(B$3*10^12-$A71)*-1<0,0,1)*IF(ABS(B$3*10^12-$A72)>(B$3*10^12-$A71),$A71,$A72)) -> 0 | C71: =IF(IF((C$3*10^12-$A72)*(C$3*10^12-$A71)*-1<0,0,1)*IF(ABS(C$3*10^12-$A72)>(C$3*10^12-$A71),$A71,$A72)=C72,0,IF((C$3*10^12-$A72)*(C$3*10^12-$A71)*-1<0,0,1)*IF(ABS(C$3*10^12-$A72)>(C$3*10^12-$A71),$A71,$A72)) -> 0 | D71: 0 | E71: 0 | F71: 0 | G71: =IF(IF((G$3*10^12-$A72)*(G$3*10^12-$A71)*-1<0,0,1)*IF(ABS(G$3*10^12-$A72)>(G$3*10^12-$A71),$A71,$A72)=G72,0,IF((G$3*10^12-$A72)*(G$3*10^12-$A71)*-1<0,0,1)*IF(ABS(G$3*10^12-$A72)>(G$3*10^12-$A71),$A71,$A72)) -> 0 | H71: =IF(IF((H$3*10^12-$A72)*(H$3*10^12-$A71)*-1<0,0,1)*IF(ABS(H$3*10^12-$A72)>(H$3*10^12-$A71),$A71,$A72)=H72,0,IF((H$3*10^12-$A72)*(H$3*10^12-$A71)*-1<0,0,1)*IF(ABS(H$3*10^12-$A72)>(H$3*10^12-$A71),$A71,$A72)) -> 0 | I71: =IF(IF((I$3*10^12-$A72)*(I$3*10^12-$A71)*-1<0,0,1)*IF(ABS(I$3*10^12-$A72)>(I$3*10^12-$A71),$A71,$A72)=I72,0,IF((I$3*10^12-$A72)*(I$3*10^12-$A71)*-1<0,0,1)*IF(ABS(I$3*10^12-$A72)>(I$3*10^12-$A71),$A71,$A72)) -> 0 | J71: =IF(IF((J$3*10^12-$A72)*(J$3*10^12-$A71)*-1<0,0,1)*IF(ABS(J$3*10^12-$A72)>(J$3*10^12-$A71),$A71,$A72)=J72,0,IF((J$3*10^12-$A72)*(J$3*10^12-$A71)*-1<0,0,1)*IF(ABS(J$3*10^12-$A72)>(J$3*10^12-$A71),$A71,$A72)) -> 0 | K71: 0 | L71: 0 | M71: 0
A72: 150000 | B72: 0 | C72: 0 | D72: 0 | E72: 0 | F72: 0 | G72: 0 | H72: 0 | I72: 0 | J72: 0 | K72: 0 | L72: 0 | M72: 0
A73: 180000 | B73: 0 | C73: 0 | D73: 0 | E73: 0 | F73: 0 | G73: 0 | H73: 0 | I73: 0 | J73: 0 | K73: 0 | L73: 0 | M73: 0
A74: 220000 | B74: 0 | C74: 0 | D74: 0 | E74: 0 | F74: 0 | G74: 0 | H74: 0 | I74: 0 | J74: 0 | K74: 0 | L74: 0 | M74: 0
A75: 270000 | B75: 0 | C75: 0 | D75: 0 | E75: 0 | F75: 0 | G75: 0 | H75: 0 | I75: 0 | J75: 0 | K75: 0 | L75: 0 | M75: 0
A76: 330000 | B76: 0 | C76: 0 | D76: 0 | E76: 0 | F76: 0 | G76: 0 | H76: 0 | I76: 0 | J76: 0 | K76: 0 | L76: 0 | M76: 0
A77: 390000 | B77: 0 | C77: 0 | D77: 0 | E77: 0 | F77: 0 | G77: 0 | H77: 0 | I77: 0 | J77: 0 | K77: 0 | L77: 0 | M77: 0
A78: 470000 | B78: 0 | C78: 0 | D78: 0 | E78: 0 | F78: 0 | G78: 0 | H78: 0 | I78: 0 | J78: 0 | K78: 0 | L78: 0 | M78: 0
A79: 560000 | B79: 0 | C79: 0 | D79: 0 | E79: 0 | F79: 0 | G79: 0 | H79: 0 | I79: 0 | J79: 0 | K79: 0 | L79: 0 | M79: 0
A80: 680000 | B80: 0 | C80: 0 | D80: 0 | E80: 0 | F80: 0 | G80: 0 | H80: 0 | I80: 0 | J80: 0 | K80: 0 | L80: 0 | M80: 0
A81: 820000 | B81: 0 | C81: 0 | D81: 0 | E81: 0 | F81: 0 | G81: 0 | H81: 0 | I81: 0 | J81: 0 | K81: 0 | L81: 0 | M81: 0
A82: 1000000 | B82: 0 | C82: 0 | D82: 0 | E82: 0 | F82: 0 | G82: 0 | H82: 0 | I82: 0 | J82: 0 | K82: 0 | L82: 0 | M82: 0
A83: 1200000 | B83: 0 | C83: 0 | D83: 0 | E83: 0 | F83: 0 | G83: 0 | H83: 0 | I83: 0 | J83: 0 | K83: 0 | L83: 0 | M83: 0
A84: 1500000 | B84: 0 | C84: 0 | D84: 0 | E84: 0 | F84: 0 | G84: 0 | H84: 0 | I84: 0 | J84: 0 | K84: 0 | L84: 0 | M84: 0
A85: 1800000 | B85: 0 | C85: 0 | D85: 0 | E85: 0 | F85: 0 | G85: 0 | H85: 0 | I85: 0 | J85: 0 | K85: 0 | L85: 0 | M85: 0
A86: 2200000 | B86: 0 | C86: 0 | D86: 0 | E86: 0 | F86: 0 | G86: 0 | H86: 0 | I86: 0 | J86: 0 | K86: 0 | L86: 0 | M86: 0
A87: 2700000 | B87: 0 | C87: 0 | D87: 0 | E87: 0 | F87: 0 | G87: 0 | H87: 0 | I87: 0 | J87: 0 | K87: 0 | L87: 0 | M87: 0
A88: 3300000 | B88: 0 | C88: 0 | D88: 0 | E88: 0 | F88: 0 | G88: 0 | H88: 0 | I88: 0 | J88: 0 | K88: 0 | L88: 0 | M88: 0
A89: 3900000 | B89: 0 | C89: 0 | D89: 0 | E89: 0 | F89: 0 | G89: 0 | H89: 0 | I89: 0 | J89: 0 | K89: 0 | L89: 0 | M89: 0
A90: 4700000 | B90: 0 | C90: 0 | D90: 0 | E90: 0 | F90: 0 | G90: 0 | H90: 0 | I90: 0 | J90: 0 | K90: 0 | L90: 0 | M90: 0
A91: 5600000 | B91: 0 | C91: 0 | D91: 0 | E91: 0 | F91: 0 | G91: 0 | H91: 0 | I91: 0 | J91: 0 | K91: 0 | L91: 0 | M91: 0
A92: 6800000 | B92: 0 | C92: 0 | D92: 0 | E92: 0 | F92: 0 | G92: 0 | H92: 0 | I92: 0 | J92: 0 | K92: 0 | L92: 0 | M92: 0
A93: 8200000 | B93: 0 | C93: 0 | D93: 0 | E93: 0 | F93: 0 | G93: 0 | H93: 0 | I93: 0 | J93: 0 | K93: 0 | L93: 0 | M93: 0
A94: 10000000 | B94: 0 | C94: 0 | D94: 0 | E94: 0 | F94: 0 | G94: 0 | H94: 0 | I94: 0 | J94: 0 | K94: 0 | L94: 0 | M94: 0
A95: 12000000 | B95: 0 | C95: 0 | D95: 0 | E95: 0 | F95: 0 | G95: 0 | H95: 0 | I95: 0 | J95: 0 | K95: 0 | L95: 0 | M95: 0
A96: 15000000 | B96: 0 | C96: 0 | D96: 0 | E96: 0 | F96: 0 | G96: 0 | H96: 0 | I96: 0 | J96: 0 | K96: 0 | L96: 0 | M96: 0
A97: 18000000 | B97: 0 | C97: 0 | D97: 0 | E97: 0 | F97: 0 | G97: 0 | H97: 0 | I97: 0 | J97: 0 | K97: 0 | L97: 0 | M97: 0
A98: 22000000 | B98: 0 | C98: 0 | D98: 0 | E98: 0 | F98: 0 | G98: 0 | H98: 0 | I98: 0 | J98: 0 | K98: 0 | L98: 0 | M98: 0
A99: =A87*10 -> 27000000 | B99: 0 | C99: 0 | D99: 0 | E99: 0 | F99: 0 | G99: 0 | H99: 0 | I99: 0 | J99: 0 | K99: 0 | L99: 0 | M99: 0
A100: 33000000 | B100: 0 | C100: 0 | D100: 0 | E100: 0 | F100: 0 | G100: 0 | H100: 0 | I100: 0 | J100: 0 | K100: 0 | L100: 0 | M100: 0
A101: 39000000 | B101: 0 | C101: 0 | D101: 0 | E101: 0 | F101: 0 | G101: 39000000 | H101: 0 | I101: 0 | J101: 0 | K101: 0 | L101: 0 | M101: 0
A102: 47000000 | B102: 0 | C102: 0 | D102: 0 | E102: 0 | F102: 0 | G102: 0 | H102: 0 | I102: 0 | J102: 0 | K102: 0 | L102: 0 | M102: =IF(IF((M$3*10^12-$A103)*(M$3*10^12-$A102)*-1<0,0,1)*IF(ABS(M$3*10^12-$A103)>(M$3*10^12-$A102),$A102,$A103)=M103,0,IF((M$3*10^12-$A103)*(M$3*10^12-$A102)*-1<0,0,1)*IF(ABS(M$3*10^12-$A103)>(M$3*10^12-$A102),$A102,$A103)) -> 0 | N102: =IF(IF((N$3*10^12-$A103)*(N$3*10^12-$A102)*-1<0,0,1)*IF(ABS(N$3*10^12-$A103)>(N$3*10^12-$A102),$A102,$A103)=N103,0,IF((N$3*10^12-$A103)*(N$3*10^12-$A102)*-1<0,0,1)*IF(ABS(N$3*10^12-$A103)>(N$3*10^12-$A102),$A102,$A103)) -> 
A103: 56000000 | B103: 0 | C103: 0 | D103: 0 | E103: 0 | F103: 0 | G103: =IF(IF((G$3*10^12-$A104)*(G$3*10^12-$A103)*-1<0,0,1)*IF(ABS(G$3*10^12-$A104)>(G$3*10^12-$A103),$A103,$A104)=G104,0,IF((G$3*10^12-$A104)*(G$3*10^12-$A103)*-1<0,0,1)*IF(ABS(G$3*10^12-$A104)>(G$3*10^12-$A103),$A103,$A104)) -> 0 | H103: =IF(IF((H$3*10^12-$A104)*(H$3*10^12-$A103)*-1<0,0,1)*IF(ABS(H$3*10^12-$A104)>(H$3*10^12-$A103),$A103,$A104)=H104,0,IF((H$3*10^12-$A104)*(H$3*10^12-$A103)*-1<0,0,1)*IF(ABS(H$3*10^12-$A104)>(H$3*10^12-$A103),$A103,$A104)) -> 0 | I103: =IF(IF((I$3*10^12-$A104)*(I$3*10^12-$A103)*-1<0,0,1)*IF(ABS(I$3*10^12-$A104)>(I$3*10^12-$A103),$A103,$A104)=I104,0,IF((I$3*10^12-$A104)*(I$3*10^12-$A103)*-1<0,0,1)*IF(ABS(I$3*10^12-$A104)>(I$3*10^12-$A103),$A103,$A104)) -> 0 | J103: =IF(IF((J$3*10^12-$A104)*(J$3*10^12-$A103)*-1<0,0,1)*IF(ABS(J$3*10^12-$A104)>(J$3*10^12-$A103),$A103,$A104)=J104,0,IF((J$3*10^12-$A104)*(J$3*10^12-$A103)*-1<0,0,1)*IF(ABS(J$3*10^12-$A104)>(J$3*10^12-$A103),$A103,$A104)) -> 0 | K103: 0 | L103: 0 | M103: 0
A104: 68000000 | B104: 0 | C104: 0 | D104: 0 | E104: 0 | F104: 0 | G104: 0 | H104: 0 | I104: 0 | J104: 0 | K104: 0 | L104: 0 | M104: 0
A105: 82000000 | B105: 0 | C105: 0 | D105: 0 | E105: 0 | F105: 0 | G105: 0 | H105: 0 | I105: 0 | J105: 0 | K105: 0 | L105: 0 | M105: 0
A106: 100000000 | B106: 0 | C106: 0 | D106: 0 | E106: 0 | F106: 0 | G106: 0 | H106: 0 | I106: 0 | J106: 0 | K106: 0 | L106: 0 | M106: 0
A107: 120000000 | B107: 0 | C107: 0 | D107: 0 | E107: 0 | F107: 0 | G107: 0 | H107: 0 | I107: 0 | J107: 0 | K107: 0 | L107: 0 | M107: 0
A108: 150000000 | B108: 0 | C108: 0 | D108: 0 | E108: 0 | F108: 0 | G108: 0 | H108: 0 | I108: 0 | J108: 0 | K108: 0 | L108: 0 | M108: 0
A109: 180000000 | B109: 0 | C109: 0 | D109: 0 | E109: 0 | F109: 0 | G109: 0 | H109: 0 | I109: 0 | J109: 0 | K109: 0 | L109: 0 | M109: 0
A110: 220000000 | B110: 0 | C110: 0 | D110: 0 | E110: 0 | F110: 0 | G110: 0 | H110: 0 | I110: 0 | J110: 0 | K110: 0 | L110: 0 | M110: 0
A111: 270000000 | B111: 0 | C111: 0 | D111: 0 | E111: 0 | F111: 0 | G111: 0 | H111: 0 | I111: 0 | J111: 0 | K111: 0 | L111: 0 | M111: 0
A112: 330000000 | B112: 0 | C112: 0 | D112: 0 | E112: 0 | F112: 0 | G112: 0 | H112: 0 | I112: 0 | J112: 0 | K112: 0 | L112: 0 | M112: 0
A113: 390000000 | B113: 0 | C113: 0 | D113: 0 | E113: 0 | F113: 0 | G113: 0 | H113: 0 | I113: 0 | J113: 0 | K113: 0 | L113: 0 | M113: 0
A114: 470000000 | B114: 0 | C114: 0 | D114: 0 | E114: 0 | F114: 470000000 | G114: 0 | H114: 0 | I114: 0 | J114: 0 | K114: 0 | L114: 0 | M114: 0
A115: 560000000 | B115: 0 | C115: 0 | D115: 0 | E115: 0 | F115: 0 | G115: 0 | H115: 0 | I115: 0 | J115: 0 | K115: 0 | L115: 0 | M115: 0
A116: 680000000 | B116: 0 | C116: 0 | D116: 0 | E116: 0 | F116: 0 | G116: 0 | H116: 0 | I116: 0 | J116: 0 | K116: 0 | L116: 0 | M116: 0
A117: 820000000 | B117: 0 | C117: 0 | D117: 0 | E117: 0 | F117: 0 | G117: 0 | H117: 0 | I117: 0 | J117: 0 | K117: 0 | L117: 0 | M117: 0
A118: 1000000000 | B118: 0 | C118: 0 | D118: 0 | E118: 0 | F118: 0 | G118: 0 | H118: 0 | I118: 0 | J118: 0 | K118: 0 | L118: 0 | M118: 0
A119: 1200000000 | B119: 0 | C119: 0 | D119: 0 | E119: 0 | F119: 0 | G119: 0 | H119: 0 | I119: 0 | J119: 0 | K119: 0 | L119: 0 | M119: 0
A120: 1500000000 | B120: 0 | C120: 0 | D120: 0 | E120: 0 | F120: 0 | G120: 0 | H120: 0 | I120: 0 | J120: 0 | K120: 0 | L120: 0 | M120: 0
A121: 1800000000 | B121: 0 | C121: 0 | D121: 0 | E121: 0 | F121: 0 | G121: 0 | H121: 0 | I121: 0 | J121: 0 | K121: 0 | L121: 0 | M121: 0
A122: 2200000000 | B122: 0 | C122: 0 | D122: 0 | E122: 0 | F122: 0 | G122: 0 | H122: 0 | I122: 0 | J122: 0 | K122: 0 | L122: 0 | M122: 0
A123: 2700000000 | B123: 0 | C123: 0 | D123: 0 | E123: 0 | F123: 0 | G123: 0 | H123: 0 | I123: 0 | J123: 0 | K123: 0 | L123: 0 | M123: 0
A124: 3300000000 | B124: 0 | C124: 0 | D124: 0 | E124: 0 | F124: 0 | G124: 0 | H124: 0 | I124: 0 | J124: 0 | K124: 0 | L124: 0 | M124: 0
A125: 3900000000 | B125: 0 | C125: 0 | D125: 0 | E125: 0 | F125: 0 | G125: 0 | H125: 0 | I125: 0 | J125: 0 | K125: 0 | L125: 0 | M125: 0
A126: 4700000000 | B126: 0 | C126: 0 | D126: 0 | E126: 0 | F126: 0 | G126: 0 | H126: 0 | I126: 0 | J126: 0 | K126: 0 | L126: 0 | M126: 0
A127: 5600000000 | B127: 0 | C127: 0 | D127: 0 | E127: 0 | F127: 0 | G127: 0 | H127: 0 | I127: 0 | J127: 0 | K127: 0 | L127: 0 | M127: 0
A128: 6800000000 | B128: 0 | C128: 0 | D128: 0 | E128: 0 | F128: 0 | G128: 0 | H128: 0 | I128: 0 | J128: 0 | K128: 0 | L128: 0 | M128: 0
A129: 8200000000 | B129: 0 | C129: 0 | D129: 0 | E129: 0 | F129: 0 | G129: 0 | H129: 0 | I129: 0 | J129: 0 | K129: 0 | L129: 0 | M129: 0
A130: 10000000000 | B130: 0 | C130: 0 | D130: 0 | E130: 0 | F130: 0 | G130: 0 | H130: 0 | I130: 0 | J130: 0 | K130: 0 | L130: 0 | M130: 0
A131: 12000000000 | B131: 0 | C131: 0 | D131: 0 | E131: 0 | F131: 0 | G131: 0 | H131: 0 | I131: 0 | J131: 0 | K131: 0 | L131: 0 | M131: 0
A132: 15000000000 | B132: 0 | C132: 0 | D132: 0 | E132: 0 | F132: 0 | G132: 0 | H132: 0 | I132: 0 | J132: 0 | K132: 0 | L132: 0 | M132: 0
A133: 18000000000 | B133: 0 | C133: 0 | D133: 0 | E133: 0 | F133: 0 | G133: 0 | H133: 0 | I133: 0 | J133: 0 | K133: =IF(IF((K$3*10^12-$A134)*(K$3*10^12-$A133)*-1<0,0,1)*IF(ABS(K$3*10^12-$A134)>(K$3*10^12-$A133),$A133,$A134)=K134,0,IF((K$3*10^12-$A134)*(K$3*10^12-$A133)*-1<0,0,1)*IF(ABS(K$3*10^12-$A134)>(K$3*10^12-$A133),$A133,$A134)) -> 0 | L133: =IF(IF((L$3*10^12-$A134)*(L$3*10^12-$A133)*-1<0,0,1)*IF(ABS(L$3*10^12-$A134)>(L$3*10^12-$A133),$A133,$A134)=L134,0,IF((L$3*10^12-$A134)*(L$3*10^12-$A133)*-1<0,0,1)*IF(ABS(L$3*10^12-$A134)>(L$3*10^12-$A133),$A133,$A134)) -> 0 | M133: 0
A134: 22000000000 | B134: 0 | C134: 0 | D134: 0 | E134: 0 | F134: =IF(IF((F$3*10^12-$A135)*(F$3*10^12-$A134)*-1<0,0,1)*IF(ABS(F$3*10^12-$A135)>(F$3*10^12-$A134),$A134,$A135)=F135,0,IF((F$3*10^12-$A135)*(F$3*10^12-$A134)*-1<0,0,1)*IF(ABS(F$3*10^12-$A135)>(F$3*10^12-$A134),$A134,$A135)) -> 0 | G134: 0 | H134: 0 | I134: 0 | J134: 0 | K134: =IF(IF((K$3*10^12-$A135)*(K$3*10^12-$A134)*-1<0,0,1)*IF(ABS(K$3*10^12-$A135)>(K$3*10^12-$A134),$A134,$A135)=K135,0,IF((K$3*10^12-$A135)*(K$3*10^12-$A134)*-1<0,0,1)*IF(ABS(K$3*10^12-$A135)>(K$3*10^12-$A134),$A134,$A135)) -> 0 | L134: =IF(IF((L$3*10^12-$A135)*(L$3*10^12-$A134)*-1<0,0,1)*IF(ABS(L$3*10^12-$A135)>(L$3*10^12-$A134),$A134,$A135)=L135,0,IF((L$3*10^12-$A135)*(L$3*10^12-$A134)*-1<0,0,1)*IF(ABS(L$3*10^12-$A135)>(L$3*10^12-$A134),$A134,$A135)) -> 0 | M134: =IF(IF((M$3*10^12-$A135)*(M$3*10^12-$A134)*-1<0,0,1)*IF(ABS(M$3*10^12-$A135)>(M$3*10^12-$A134),$A134,$A135)=M135,0,IF((M$3*10^12-$A135)*(M$3*10^12-$A134)*-1<0,0,1)*IF(ABS(M$3*10^12-$A135)>(M$3*10^12-$A134),$A134,$A135)) -> 0 | N134: =IF(IF((N$3*10^12-$A135)*(N$3*10^12-$A134)*-1<0,0,1)*IF(ABS(N$3*10^12-$A135)>(N$3*10^12-$A134),$A134,$A135)=N135,0,IF((N$3*10^12-$A135)*(N$3*10^12-$A134)*-1<0,0,1)*IF(ABS(N$3*10^12-$A135)>(N$3*10^12-$A134),$A134,$A135)) -> 
A135: 27000000000 | B135: =IF(IF((B$3*10^12-$A136)*(B$3*10^12-$A135)*-1<0,0,1)*IF(ABS(B$3*10^12-$A136)>(B$3*10^12-$A135),$A135,$A136)=B136,0,IF((B$3*10^12-$A136)*(B$3*10^12-$A135)*-1<0,0,1)*IF(ABS(B$3*10^12-$A136)>(B$3*10^12-$A135),$A135,$A136)) -> 0 | C135: =IF(IF((C$3*10^12-$A136)*(C$3*10^12-$A135)*-1<0,0,1)*IF(ABS(C$3*10^12-$A136)>(C$3*10^12-$A135),$A135,$A136)=C136,0,IF((C$3*10^12-$A136)*(C$3*10^12-$A135)*-1<0,0,1)*IF(ABS(C$3*10^12-$A136)>(C$3*10^12-$A135),$A135,$A136)) -> 0 | D135: 0 | E135: 0 | F135: 0 | G135: 0 | H135: 0 | I135: 0 | J135: 0 | K135: 0 | L135: 0 | M135: 0
A136: 33000000000 | B136: 0 | C136: 0 | D136: 0 | E136: 0 | F136: 0 | G136: 0 | H136: 0 | I136: 0 | J136: 0 | K136: 0 | L136: 0 | M136: 0
A137: 39000000000 | B137: 0 | C137: 0 | D137: 0 | E137: 0 | F137: 0 | G137: 0 | H137: 0 | I137: 0 | J137: 0 | K137: 0 | L137: 0 | M137: 0
A138: 47000000000 | B138: 0 | C138: 0 | D138: 0 | E138: 0 | F138: 0 | G138: 0 | H138: 0 | I138: 0 | J138: 0 | K138: 0 | L138: 0 | M138: 0
A139: 56000000000 | B139: 0 | C139: 0 | D139: 0 | E139: 0 | F139: 0 | G139: 0 | H139: 0 | I139: 0 | J139: 0 | K139: 0 | L139: 0 | M139: 0
A140: 68000000000 | B140: 0 | C140: 0 | D140: 0 | E140: 0 | F140: 0 | G140: 0 | H140: 0 | I140: 0 | J140: 0 | K140: 0 | L140: 0 | M140: 0
A141: 82000000000 | B141: 0 | C141: 0 | D141: 0 | E141: 0 | F141: 0 | G141: 0 | H141: 0 | I141: 0 | J141: 0 | K141: 0 | L141: 0 | M141: 0
A142: 100000000000 | B142: 0 | C142: 0 | D142: 0 | E142: 0 | F142: 0 | G142: 0 | H142: 0 | I142: 0 | J142: 0 | K142: 0 | L142: 0 | M142: 0
A143: 120000000000 | B143: 0 | C143: 0 | D143: 0 | E143: 0 | F143: 0 | G143: 0 | H143: 0 | I143: 0 | J143: 0 | K143: 0 | L143: 0 | M143: 0
A144: 150000000000 | B144: 0 | C144: 0 | D144: 0 | E144: 0 | F144: 0 | G144: 0 | H144: 0 | I144: 0 | J144: 0 | K144: 0 | L144: 0 | M144: 0
A145: 180000000000 | B145: 0 | C145: 0 | D145: 0 | E145: 0 | F145: 0 | G145: 0 | H145: 0 | I145: 0 | J145: 0 | K145: 0 | L145: 0 | M145: 0
A146: 220000000000 | B146: 0 | C146: 0 | D146: 0 | E146: 0 | F146: 0 | G146: 0 | H146: 0 | I146: 0 | J146: 0 | K146: 0 | L146: 0 | M146: 0
A147: 270000000000 | B147: 0 | C147: 0 | D147: 0 | E147: 0 | F147: 0 | G147: 0 | H147: 0 | I147: 0 | J147: 0 | K147: 0 | L147: 0 | M147: 0
A148: 330000000000 | B148: 0 | C148: 0 | D148: 0 | E148: 0 | F148: 0 | G148: 0 | H148: 0 | I148: 0 | J148: 0 | K148: 0 | L148: 0 | M148: 0
A149: 390000000000 | B149: 0 | C149: 0 | D149: 0 | E149: 0 | F149: 0 | G149: 0 | H149: 0 | I149: 0 | J149: 0 | K149: 0 | L149: 0 | M149: 0
A150: 470000000000 | B150: 0 | C150: 0 | D150: 0 | E150: 0 | F150: 0 | G150: 0 | H150: 0 | I150: 0 | J150: 0 | K150: 0 | L150: 0 | M150: 0
A151: 560000000000 | B151: 0 | C151: 0 | D151: 0 | E151: 0 | F151: 0 | G151: 0 | H151: 0 | I151: 0 | J151: 0 | K151: 0 | L151: 0 | M151: 0
A152: 680000000000 | B152: 0 | C152: 0 | D152: 0 | E152: 0 | F152: 0 | G152: 0 | H152: 0 | I152: 0 | J152: 0 | K152: 0 | L152: 0 | M152: 0
A153: 820000000000 | B153: 0 | C153: 0 | D153: 0 | E153: 0 | F153: 0 | G153: 0 | H153: 0 | I153: 0 | J153: 0 | K153: 0 | L153: 0 | M153: 0
A154: 1000000000000 | B154: 0 | C154: 0 | D154: 0 | E154: 0 | F154: 0 | G154: 0 | H154: 0 | I154: 0 | J154: 0 | K154: 0 | L154: 0 | M154: 0
A155: 1200000000000 | B155: 0 | C155: 0 | D155: 0 | E155: 0 | F155: 0 | G155: 0 | H155: 0 | I155: 0 | J155: 0 | K155: 0 | L155: 0 | M155: 0
A156: 1500000000000 | B156: 0 | C156: 0 | D156: 0 | E156: 0 | F156: 0 | G156: 0 | H156: 0 | I156: 0 | J156: 0 | K156: 0 | L156: 0 | M156: 0
A157: 1800000000000 | B157: 0 | C157: 0 | D157: 0 | E157: 0 | F157: 0 | G157: 0 | H157: 0 | I157: 0 | J157: 0 | K157: 0 | L157: 0 | M157: 0
A158: 2200000000000 | B158: 0 | C158: 0 | D158: 0 | E158: 0 | F158: 0 | G158: 0 | H158: 0 | I158: 0 | J158: 0 | K158: 0 | L158: 0 | M158: 0
A159: 2700000000000 | B159: 2700000000000 | C159: 2700000000000 | D159: 2700000000000 | E159: 2700000000000 | F159: 2700000000000 | G159: 2700000000000 | H159: 2700000000000 | I159: 2700000000000 | J159: 2700000000000 | K159: 0 | L159: 2700000000000 | M159: 2700000000000

Sheet Bode Plots Calculations (hidden)
B1: Bode Plot Setup (log frequency) | AG1: EA MODELING
A3: 10 | B3: Hz | C3: min_f | AX3: =AX9/10000000000000 -> -4.104506189e-05 | AY3: =AY9/10000000000000 -> -0.00275234137
A4: 1000000 | B4: Hz | C4: max_f | AX4: =AX3*1000 -> -0.04104506189 | AY4: =AY3*1000 -> -2.75234137 | BN4: XOVER SEARCH
A5: =LOG(max_f/min_f,EXP(1)) -> 11.51292546 | C5: rr | AG5: a | AH5: b | AI5: c | AJ5: d | AN5: a | AO5: b | AP5: c | AQ5: d | BN5: xover | BO5: =SUM(BN9:BN626)/1000 -> 10.20897255
D6: Output Filter | N6: Pwm | Q6: Compensation | AB6: Design Output | AG6: Z1 | AN6: Z3 | AU6: Ea Gain BW | AX6: Complex EA | BE6: Actual EA Response | BJ6: Actual Open Loop System Response | BN6: phase margin | BO6: =SUM(BO10:BO627) -> 45.73258214 | BQ6: Comp To Output
D7: Esr zero | G7: LC Double Pole | K7: RHP Zero | N7: Ramp | Q7: Origin Pole | S7: Fz1 | U7: Fz2 | W7: Fp1 | Y7: Fp2 | AG7: Num | AI7: Den | AK7: Total | AN7: Num | AP7: Den | AR7: Total | AU7: A(s) | AX7: Num | BA7: Den
A8: Step | B8: Frequency | D8: Gain | E8: Phase | G8: Gain | I8: Phase | K8: Gain | L8: Phase | N8: Gain | Q8: Gain | R8: Phase | S8: Gain | T8: Phase | U8: Gain | V8: Phase | W8: Gain | X8: Phase | Y8: Gain | Z8: Phase | AB8: Total Gain | AC8: Total Phase | AD8: Phase margin | AG8: Real | AH8: Imag | AI8: Real | AJ8: Imag | AK8: Z1 Real | AL8: Z1 Imag | AN8: Real | AO8: Imag | AP8: Real | AQ8: Imag | AR8: Z3 Real | AS8: Z3 Imag | AU8: Real | AV8: Imag | AX8: Real | AY8: Imag | AZ8: Phase | BA8: Real | BB8: Imag | BC8: Phase | BE8: EAGain | BF8: Ea Gain (dB) | BG8: Ea Phase | BJ8: Total Gain | BK8: Total Phase | BL8: Total Phase Margin | BQ8: Total Gain | BR8: Total Phase margin | BX8: Output to Comp 5V In @ 500kHz 0A Iout 25DegC
A9: 1 | B9: =min_f*EXP(A9*rr/668) -> 10.17384297 | C9: =B9/1000 -> 0.01017384297 | D9: =SQRT((B9/Fesr)^2+1) -> 1.000000045 | E9: =ATAN(B9/Fesr) -> 0.0003004434516 | G9: =(Ro/(Ro+Rdcr))/SQRT((B9/(Q*Fo))^2+(1-(B9^2/Fo^2))^2) -> 0.9776673912 | H9: =-ATAN(B9*Fo/(Q*(Fo^2-B9^2))) -> -0.000702286769 | I9: =IF(H9>0,H9-Pi,H9) -> -0.000702286769 | K9: =SQRT((B9/Frhp)^2+1) -> 1.000000057 | L9: =-ATAN(B9/Frhp) -> -0.0003381835409 | N9: 15 | Q9: =1/(2*Pi*_Rfb1*(Cc1ea_u+Cc2ea_u)*B9) -> 35.52484325 | R9: =-Pi/2 -> -1.570796325 | S9: =SQRT(1+(B9/Fz1_u)^2) -> 1.000015195 | T9: =ATAN2(Fz1_u,B9) -> 0.005512762036 | U9: =SQRT(1+(B9/Fz2_u)^2) -> 1.000009556 | V9: =ATAN2(Fz2_u,B9) -> 0.004371616276 | W9: =1/SQRT(1+(B9/Fp1_u)^2) -> 0.9999999522 | X9: =-ATAN2(Fp1_u,B9) -> -0.0003092649822 | Y9: =1/SQRT(1+(B9/Fp2_u)^2) -> 0.9999999968 | Z9: =-ATAN2(Fp2_u,B9) -> -7.955844164e-05 | AB9: =20*LOG(D9*N9*S9*U9*G9*Q9*W9*Y9*K9) -> 54.33650662 | AC9: =(180/Pi)*(E9+I9+R9+T9+V9+X9+Z9+L9) -> -89.4983452 | AD9: =AC9+180 -> 90.5016548 | AG9: 1 | AH9: =Rcea1_u*Cc1ea_u*B9*2*Pi -> 0.005512817882 | AI9: =-Rcea1_u*Cc1ea_u*Cc2ea_u*(B9*2*Pi)^2 -> -2.889697591e-11 | AJ9: =(Cc2ea_u+Cc1ea_u)*B9*2*Pi -> 3.632169667e-07 | AK9: =AG9*AI9/(AI9^2+AJ9^2)+AH9*AJ9/(AI9^2+AJ9^2) -> 14958.71588 | AL9: =AH9*AI9/(AI9^2+AJ9^2)-AG9*AJ9/(AI9^2+AJ9^2) -> -2753176.542 | AM9: =SQRT(AK9^2+AL9^2) -> 2753217.179 | AN9: =_Rfb1 -> 77500 | AO9: =_Rfb1*Rcea2_u*Cc3ea_u*B9*2*Pi -> 23.96803688 | AP9: 1 | AQ9: =(_Rfb1+Rcea2_u)*Cc3ea_u*B9*2*Pi -> 0.004371644125 | AR9: =AN9*AP9/(AP9^2+AQ9^2)+AO9*AQ9/(AP9^2+AQ9^2) -> 77498.62368 | AS9: =AO9*AP9/(AP9^2+AQ9^2)-AN9*AQ9/(AP9^2+AQ9^2) -> -314.828366 | AT9: =SQRT(AR9^2+AS9^2) -> 77499.26316 | AU9: =Eadcg/(1+(Eadcg*B9/GBP)^2) -> 9995.86143 | AV9: =-(B9*Eadcg*Eadcg/GBP)/(1+(Eadcg*B9/GBP)^2) -> -203.392649 | AX9: =-AV9*AL9+AK9*AU9 -> -410450618.9 | AY9: =AU9*AL9+AK9*AV9 -> -2.75234137e+10 | AZ9: =ATAN2(AX9,AY9) -> -1.585708002 | BA9: =AK9-AL9*AS9/_Rfb2+AK9*AR9/_Rfb2+AR9-AS9*AV9+AU9*AR9 -> 774723177.1 | BB9: =AL9+AL9*AR9/_Rfb2+AK9*AS9/_Rfb2+AS9+AS9*AU9+AR9*AV9 -> -43000332.67 | BC9: =ATAN2(BA9,BB9) -> -0.05544723358 | BE9: =SQRT(AX9^2+AY9^2)/SQRT(BA9^2+BB9^2) -> 35.47611847 | BF9: =20*LOG(BE9) -> 30.99872193 | BG9: =AZ9-BC9 -> -1.530260768 | BH9: =BG9*180/Pi-180 -> -267.6774837 | BJ9: =20*LOG(BE9*N9*G9*D9*K9) -> 54.3243706 | BK9: =(180/Pi)*(E9+I9+BG9+L9) -> -87.71988408 | BL9: =IF(BK9>180,BK9-180,BK9+180) -> 92.28011592 | BM9: =IF(BL9>180,BL9-360,BL9) -> 92.28011592 | BN9: =SUM((BJ10<0)*(BJ9>0))*B9 -> 0 | BO9: =IF(BN9>0,BM9,0) -> 0 | BQ9: =20*LOG(N9*G9*D9) -> 23.32564818 | BR9: =(I9+E9)*180/Pi -> -0.02302392614 | BU9: =20*LOG(BE9*7) -> 47.90068273 | BX9: Frequency | BY9: Gain | BZ9: Phase
A10: 2 | B10: 10.35070807 | C10: =B10/1000 -> 0.01035070807 | D10: 1.000000047 | E10: 0.0003056664493 | G10: 0.9776678814 | H10: -0.0007144958908 | I10: -0.0007144958908 | K10: 1.000000059 | L10: -0.0003440626233 | N10: 15 | Q10: 34.91782149 | R10: -1.570796325 | S10: 1.000015728 | T10: 0.005608595533 | U10: 1.000009891 | V10: 0.004447612756 | W10: 0.9999999505 | X10: -0.000314641336 | Y10: 0.9999999967 | Z10: -8.094150917e-05 | AB10: =20*LOG(D10*N10*S10*U10*G10*Q10*W10*Y10*K10) -> 54.18681793 | AC10: -89.48962447 | AD10: =AC10+180 -> 90.51037553 | AG10: 1 | AH10: 0.005608654343 | AI10: -2.991041616e-11 | AJ10: 3.695312381e-07 | AK10: =AG10*AI10/(AI10^2+AJ10^2)+AH10*AJ10/(AI10^2+AJ10^2) -> 14958.71587 | AL10: =AH10*AI10/(AI10^2+AJ10^2)-AG10*AJ10/(AI10^2+AJ10^2) -> -2706132.376 | AN10: 77500 | AO10: 24.38470434 | AP10: 1 | AQ10: 0.004447642082 | AR10: =AN10*AP10/(AP10^2+AQ10^2)+AO10*AQ10/(AP10^2+AQ10^2) -> 77498.57541 | AS10: =AO10*AP10/(AP10^2+AQ10^2)-AN10*AQ10/(AP10^2+AQ10^2) -> -320.301221 | AU10: 9995.716349 | AV10: -206.9254837 | AX10: =-AV10*AL10+AK10*AU10 -> -410444670.1 | AY10: =AU10*AL10+AK10*AV10 -> -2.705282697e+10 | AZ10: =ATAN2(AX10,AY10) -> -1.585967132 | BA10: 774709206.3 | BB10: -42917142.57 | BC10: =ATAN2(BA10,BB10) -> -0.05534117825 | BE10: 34.8705287 | BF10: =20*LOG(BE10) -> 30.84917064 | BG10: =AZ10-BC10 -> -1.530625954 | BH10: -267.6984073 | BJ10: =20*LOG(BE10*N10*G10*D10*K10) -> 54.1748237 | BK10: -87.74154483 | BL10: =IF(BK10>180,BK10-180,BK10+180) -> 92.25845517 | BM10: =IF(BL10>180,BL10-360,BL10) -> 92.25845517 | BN10: 0 | BO10: =IF(BN10>0,BM10,0) -> 0 | BQ10: =20*LOG(N10*G10*D10) -> 23.32565254 | BR10: -0.02342420156 | BU10: =20*LOG(BE10*7) -> 47.75113144 | BX10: 100 | BY10: 35.3593 | BZ10: -267.6677
A11: 3 | B11: 10.53064785 | C11: 0.01053064785 | D11: 1.000000048 | E11: 0.0003109802452 | G11: 0.9776683888 | H11: -0.0007269172786 | I11: -0.0007269172786 | K11: 1.000000061 | L11: -0.0003500439095 | N11: 15 | Q11: 34.32117206 | R11: -1.570796325 | S11: 1.00001628 | T11: 0.005706094923 | U11: 1.000010238 | V11: 0.004524930328 | W11: 0.9999999488 | X11: -0.0003201111539 | Y11: 0.9999999966 | Z11: -8.234862036e-05 | AB11: 54.03712966 | AC11: -89.48075215 | AD11: 90.51924785 | AG11: 1 | AH11: 0.005706156853 | AI11: -3.095939859e-11 | AJ11: 3.759552787e-07 | AK11: 14958.71587 | AL11: -2659892.066 | AN11: 77500 | AO11: 24.80861527 | AP11: 1 | AQ11: 0.004524961211 | AR11: 77498.52545 | AS11: -325.8692063 | AU11: 9995.566185 | AV11: -210.519575 | AX11: -410438512.9 | AY11: -2.659027629e+10 | AZ11: -1.586230763 | BA11: 774694746 | BB11: -42846680.56 | BC11: =ATAN2(BA11,BB11) -> -0.05525153242 | BE11: 34.27525866 | BF11: 30.69961482 | BG11: -1.53097923 | BH11: -267.7186485 | BJ11: 54.02527242 | BK11: -87.762536 | BL11: 92.237464 | BM11: 92.237464 | BN11: 0 | BO11: 0 | BQ11: 23.32565707 | BR11: -0.02383143659 | BU11: 47.60157562 | BX11: 102.329 | BY11: 34.9368 | BZ11: -265.9149
A12: 4 | B12: 10.71371575 | C12: 0.01071371575 | D12: 1.00000005 | E12: 0.0003163864176 | G12: 0.9776689141 | H12: -0.0007395546237 | I12: -0.0007395546237 | K12: 1.000000063 | L12: -0.0003561291761 | N12: 15 | Q12: 33.73471772 | R12: -1.570796325 | S12: 1.000016851 | T12: 0.005805289159 | U12: 1.000010597 | V12: 0.004603591957 | W12: 0.999999947 | X12: -0.0003256760607 | Y12: 0.9999999965 | Z12: -8.378019318e-05 | AB12: 53.88744182 | AC12: -89.47172561 | AD12: 90.52827439 | AG12: 1 | AH12: 0.005805354375 | AI12: -3.204516968e-11 | AJ12: 3.824909968e-07 | AK12: 14958.71587 | AL12: -2614441.877 | AN12: 77500 | AO12: 25.2398956 | AP12: 1 | AQ12: 0.004603624479 | AR12: 77498.47374 | AS12: -331.5339752 | AU12: 9995.410759 | AV12: -214.1759794 | AX12: -410432139.9 | AY12: -2.613562426e+10 | AZ12: -1.586498971 | BA12: 774679778.9 | BB12: -42788924.63 | BC12: -0.05517827021 | BE12: 33.69013347 | BF12: 30.55005463 | BG12: -1.531320701 | BH12: -267.7382133 | BJ12: 53.87571693 | BK12: -87.78286378 | BL12: 92.21713622 | BM12: 92.21713622 | BN12: 0 | BO12: 0 | BQ12: 23.32566175 | BR12: -0.02424575226 | BU12: 47.45201543 | BX12: 104.713 | BY12: 34.1908 | BZ12: -264.9322
A13: 5 | B13: 10.89996616 | C13: 0.01089996616 | D13: 1.000000052 | E13: 0.0003218865725 | G13: 0.9776694577 | H13: -0.0007524116814 | I13: -0.0007524116814 | K13: 1.000000066 | L13: -0.0003623202308 | N13: 15 | Q13: 33.15828427 | R13: -1.570796325 | S13: 1.000017442 | T13: 0.0059062077 | U13: 1.000010968 | V13: 0.004683621004 | W13: 0.9999999451 | X13: -0.0003313377095 | Y13: 0.9999999964 | Z13: -8.52366529e-05 | AB13: 53.73775443 | AC13: -89.46254215 | AD13: 90.53745785 | AG13: 1 | AH13: 0.005906276377 | AI13: -3.316901963e-11 | AJ13: 3.891403337e-07 | AK13: 14958.71586 | AL13: -2569768.306 | AN13: 77500 | AO13: 25.67867343 | AP13: 1 | AQ13: 0.004683655251 | AR13: 77498.42022 | AS13: -337.2972094 | AU13: 9995.249887 | AV13: -217.8957711 | AX13: -410425543.6 | AY13: -2.568873581e+10 | AZ13: -1.586771836 | BA13: 774664287.5 | BB13: -42743856.49 | BC13: -0.05512137053 | BE13: 33.11498115 | BF13: 30.40049024 | BG13: -1.531650465 | BH13: -267.7571074 | BJ13: 53.72615741 | BK13: -87.80253413 | BL13: 92.19746587 | BM13: 92.19746587 | BN13: 0 | BO13: 0 | BQ13: 23.32566659 | BR13: -0.02466727174 | BU13: 47.30245104 | BX13: 107.152 | BY13: 34.4777 | BZ13: -262.3057
A14: 6 | B14: 11.08945441 | C14: 0.01108945441 | D14: 1.000000054 | E14: 0.0003274823437 | G14: 0.9776700204 | H14: -0.0007654922723 | I14: -0.0007654922723 | K14: 1.000000068 | L14: -0.0003686189125 | N14: 15 | Q14: 32.59170049 | R14: -1.570796325 | S14: 1.000018054 | T14: 0.006008880516 | U14: 1.000011353 | V14: 0.004765041238 | W14: 0.9999999432 | X14: -0.0003370977821 | Y14: 0.9999999962 | Z14: -8.671843214e-05 | AB14: 53.5880675 | AC14: -89.45319906 | AD14: 90.54680094 | AG14: 1 | AH14: 0.006008952837 | AI14: -3.433228391e-11 | AJ14: 3.959052646e-07 | AK14: 14958.71586 | AL14: -2525858.085 | AN14: 77500 | AO14: 26.1250791 | AP14: 1 | AQ14: 0.004765077303 | AR14: 77498.36481 | AS14: -343.1606201 | AU14: 9995.083379 | AV14: -221.6800428 | AX14: -410418716.2 | AY14: -2.524947821e+10 | AZ14: -1.587049438 | BA14: 774648253.3 | BB14: -42711461.54 | BC14: -0.0550808171 | BE14: 32.54963261 | BF14: 30.25092182 | BG14: -1.531968621 | BH14: -267.7753364 | BJ14: 53.57659402 | BK14: -87.82155285 | BL14: 92.17844715 | BM14: 92.17844715 | BN14: 0 | BO14: 0 | BQ14: 23.32567161 | BR14: -0.02509612032 | BU14: 47.15288262 | BX14: 109.648 | BY14: 34.1144 | BZ14: -262.7662
A15: 7 | B15: 11.28223677 | C15: 0.01128223677 | D15: 1.000000056 | E15: 0.0003331753935 | G15: 0.9776706029 | H15: -0.0007788002836 | I15: -0.0007788002836 | K15: 1.00000007 | L15: -0.0003750270924 | N15: 15 | Q15: 32.03479806 | R15: -1.570796325 | S15: 1.000018687 | T15: 0.006113338096 | U15: 1.000011751 | V15: 0.004847876841 | W15: 0.9999999412 | X15: -0.0003429579894 | Y15: 0.9999999961 | Z15: -8.822597107e-05 | AB15: 53.43838106 | AC15: -89.44369356 | AD15: 90.55630644 | AG15: 1 | AH15: 0.006113414255 | AI15: -3.55363448e-11 | AJ15: 4.027877991e-07 | AK15: 14958.71585 | AL15: -2482698.17 | AN15: 77500 | AO15: 26.57924522 | AP15: 1 | AQ15: 0.00484791482 | AR15: 77498.30747 | AS15: -349.1259481 | AU15: 9994.911036 | AV15: -225.5299056 | AX15: -410411649.6 | AY15: -2.481772097e+10 | AZ15: -1.58733186 | BA15: 774631657.4 | BB15: -42691728.91 | BC15: -0.05505659838 | BE15: 31.99392158 | BF15: 30.10134952 | BG15: -1.532275261 | BH15: -267.7929056 | BJ15: 53.42702693 | BK15: -87.83992553 | BL15: 92.16007447 | BM15: 92.16007447 | BN15: 0 | BO15: 0 | BQ15: 23.3256768 | BR15: -0.02553242548 | BU15: 47.00331032 | BX15: 112.202 | BY15: 34.2977 | BZ15: -267.0128
A16: 8 | B16: 11.47837052 | C16: 0.01147837052 | D16: 1.000000057 | E16: 0.0003389674129 | G16: 0.9776712058 | H16: -0.00079233967 | I16: -0.00079233967 | K16: 1.000000073 | L16: -0.0003815466739 | N16: 15 | Q16: 31.48741156 | R16: -1.570796325 | S16: 1.000019342 | T16: 0.006219611461 | U16: 1.000012163 | V16: 0.004932152415 | W16: 0.9999999391 | X16: -0.0003489200723 | Y16: 0.999999996 | Z16: -8.97597175e-05 | AB16: 53.2886951 | AC16: -89.43402283 | AD16: 90.56597717 | AG16: 1 | AH16: 0.006219691661 | AI16: -3.678263309e-11 | AJ16: 4.097899816e-07 | AK16: 14958.71585 | AL16: -2440275.739 | AN16: 77500 | AO16: 27.0413067 | AP16: 1 | AQ16: 0.004932192408 | AR16: 77498.24811 | AS16: -355.1949643 | AU16: 9994.732656 | AV16: -229.4464893 | AX16: -410404335.4 | AY16: -2.439333584e+10 | AZ16: -1.587619185 | BA16: 774614480 | BB16: -42684651.39 | BC16: -0.05504870766 | BE16: 31.44768455 | BF16: 29.95177349 | BG16: -1.532570477 | BH16: -267.8098202 | BJ16: 53.27745629 | BK16: -87.85765756 | BL16: 92.14234244 | BM16: 92.14234244 | BN16: 0 | BO16: 0 | BQ16: 23.32568217 | BR16: -0.02597631691 | BU16: 46.85373429 | BX16: 114.815 | BY16: 33.3465 | BZ16: -266.2048
A17: 9 | B17: 11.67791391 | C17: 0.01167791391 | D17: 1.000000059 | E17: 0.0003448601224 | G17: 0.9776718298 | H17: -0.0008061144552 | I17: -0.0008061144552 | K17: 1.000000075 | L17: -0.0003881795938 | N17: 15 | Q17: 30.94937839 | R17: -1.570796325 | S17: 1.00002002 | T17: 0.006327732169 | U17: 1.00001259 | V17: 0.005017892988 | W17: 0.999999937 | X17: -0.0003549858018 | Y17: 0.9999999958 | Z17: -9.132012703e-05 | AB17: 53.13900967 | AC17: -89.42418399 | AD17: 90.57581601 | AG17: 1 | AH17: 0.006327816625 | AI17: -3.80726297e-11 | AJ17: 4.169138922e-07 | AK17: 14958.71585 | AL17: -2398578.191 | AN17: 77500 | AO17: 27.51140079 | AP17: 1 | AQ17: 0.005017935104 | AR17: 77498.18667 | AS17: -361.3694706 | AU17: 9994.548027 | AV17: -233.4309429 | AX17: -410396765 | AY17: -2.397619676e+10 | AZ17: -1.587911497 | BA17: 774596700.8 | BB17: -42690225.49 | BC17: -0.05505714296 | BE17: 30.91076077 | BF17: 29.80219388 | BG17: -1.532854354 | BH17: -267.8260852 | BJ17: 53.12788227 | BK17: -87.87475418 | BL17: 92.12524582 | BM17: 92.12524582 | BN17: 0 | BO17: 0 | BQ17: 23.32568773 | BR17: -0.02642792658 | BU17: 46.70415468 | BX17: 117.49 | BY17: 33.0246 | BZ17: -264.9049
A18: 10 | B18: 11.88092623 | C18: 0.01188092623 | D18: 1.000000062 | E18: 0.0003508552726 | G18: 0.9776724757 | H18: -0.0008201287329 | I18: -0.0008201287329 | K18: 1.000000078 | L18: -0.0003949278223 | N18: 15 | Q18: 30.42053873 | R18: -1.570796325 | S18: 1.000020723 | T18: 0.006437732328 | U18: 1.000013031 | V18: 0.005105124025 | W18: 0.9999999348 | X18: -0.0003611569797 | Y18: 0.9999999957 | Z18: -9.290766319e-05 | AB18: 52.98932476 | AC18: -89.41417412 | AD18: 90.58582588 | AG18: 1 | AH18: 0.006437821265 | AI18: -3.940786754e-11 | AJ18: 4.241616469e-07 | AK18: 14958.71584 | AL18: -2357593.141 | AN18: 77500 | AO18: 27.98966714 | AP18: 1 | AQ18: 0.005105168375 | AR18: 77498.12308 | AS18: -367.6513 | AU18: 9994.35693 | AV18: -237.4844349 | AX18: -410388929.4 | AY18: -2.356617981e+10 | AZ18: -1.588208884 | BA18: 774578298.8 | BB18: -42708451.37 | BC18: -0.05508190713 | BE18: 30.38299217 | BF18: 29.65261083 | BG18: -1.533126977 | BH18: -267.8417053 | BJ18: 52.978305 | BK18: -87.89122041 | BL18: 92.10877959 | BM18: 92.10877959 | BN18: 0 | BO18: 0 | BQ18: 23.32569349 | BR18: -0.02688738875 | BU18: 46.55457164 | BX18: 120.226 | BY18: 33.736 | BZ18: -269.9808
A19: 11 | B19: 12.08746778 | C19: 0.01208746778 | D19: 1.000000064 | E19: 0.0003569546441 | G19: 0.9776731443 | H19: -0.0008343866678 | I19: -0.0008343866678 | K19: 1.000000081 | L19: -0.0004017933639 | N19: 15 | Q19: 29.90073548 | R19: -1.570796325 | S19: 1.000021449 | T19: 0.006549644602 | U19: 1.000013488 | V19: 0.005193871432 | W19: 0.9999999325 | X19: -0.0003674354391 | Y19: 0.9999999955 | Z19: -9.452279754e-05 | AB19: 52.8396404 | AC19: -89.40399026 | AD19: 90.59600974 | AG19: 1 | AH19: 0.006549738259 | AI19: -4.078993325e-11 | AJ19: 4.315353988e-07 | AK19: 14958.71584 | AL19: -2317308.413 | AN19: 77500 | AO19: 28.47624781 | AP19: 1 | AQ19: 0.005193918136 | AR19: 77498.05725 | AS19: -374.0423173 | AU19: 9994.159138 | AV19: -241.6081531 | AX19: -410380819.3 | AY19: -2.31631632e+10 | AZ19: -1.588511433 | BA19: 774559252.2 | BB19: -42739332.91 | BC19: -0.05512300775 | BE19: 29.86422333 | BF19: 29.50302449 | BG19: -1.533388425 | BH19: -267.8566852 | BJ19: 52.82872464 | BK19: -87.90706111 | BL19: 92.09293889 | BM19: 92.09293889 | BN19: 0 | BO19: 0 | BQ19: 23.32569945 | BR19: -0.02735483999 | BU19: 46.40498529 | BX19: 123.027 | BY19: 32.7649 | BZ19: -265.7341
A20: 12 | B20: 12.2975999 | C20: 0.0122975999 | D20: 1.000000066 | E20: 0.000363160049 | G20: 0.9776738363 | H20: -0.0008488924974 | I20: -0.0008488924974 | K20: 1.000000084 | L20: -0.0004087782581 | N20: 15 | Q20: 29.38981423 | R20: -1.570796325 | S20: 1.000022202 | T20: 0.006663502224 | U20: 1.000013961 | V20: 0.005284161566 | W20: 0.9999999301 | X20: -0.0003738230452 | Y20: 0.9999999954 | Z20: -9.616600987e-05 | AB20: 52.68995662 | AC20: -89.39362937 | AD20: 90.60637063 | AG20: 1 | AH20: 0.006663600851 | AI20: -4.222046912e-11 | AJ20: 4.390373381e-07 | AK20: 14958.71583 | AL20: -2277712.041 | AN20: 77500 | AO20: 28.97128735 | AP20: 1 | AQ20: 0.005284210749 | AR20: 77497.98912 | AS20: -380.5444198 | AU20: 9993.954419 | AV20: -245.8033057 | AX20: -410372425.1 | AY20: -2.276702722e+10 | AZ20: -1.588819233 | BA20: 774539538.4 | BB20: -42782877.63 | BC20: -0.05518045722 | BE20: 29.35430142 | BF20: 29.35343499 | BG20: -1.533638776 | BH20: -267.8710292 | BJ20: 52.67914133 | BK20: -87.92228093 | BL20: 92.07771907 | BM20: 92.07771907 | BN20: 0 | BO20: 0 | BQ20: 23.32570562 | BR20: -0.0278304193 | BU20: 46.25539579 | BX20: 125.893 | BY20: 32.2472 | BZ20: -266.3711
A21: 13 | B21: 12.51138502 | C21: 0.01251138502 | D21: 1.000000068 | E21: 0.0003694733304 | G21: 0.9776745526 | H21: -0.0008636505326 | I21: -0.0008636505326 | K21: 1.000000086 | L21: -0.0004158845797 | N21: 15 | Q21: 28.88762322 | R21: -1.570796325 | S21: 1.00002298 | T21: 0.006779339004 | U21: 1.000014451 | V21: 0.005376021243 | W21: 0.9999999277 | X21: -0.0003803216952 | Y21: 0.9999999952 | Z21: -9.783778829e-05 | AB21: 52.54027342 | AC21: -89.38308838 | AD21: 90.61691162 | AG21: 1 | AH21: 0.006779442864 | AI21: -4.370117503e-11 | AJ21: 4.466696933e-07 | AK21: 14958.71583 | AL21: -2238792.263 | AN21: 77500 | AO21: 29.4749328 | AP21: 1 | AQ21: 0.005376073036 | AR21: 77497.9186 | AS21: -387.1595377 | AU21: 9993.742528 | AV21: -250.0711212 | AX21: -410363736.9 | AY21: -2.23776542e+10 | AZ21: -1.589132375 | BA21: 774519134.1 | BB21: -42839096.75 | BC21: -0.05525427272 | BE21: 28.8530762 | BF21: 29.20384246 | BG21: -1.533878102 | BH21: -267.8847416 | BJ21: 52.52955521 | BK21: -87.93688435 | BL21: 92.06311565 | BM21: 92.06311565 | BN21: 0 | BO21: 0 | BQ21: 23.325712 | BR21: -0.02831426805 | BU21: 46.10580326 | BX21: 128.825 | BY21: 32.3142 | BZ21: -268.0596
A22: 14 | B22: 12.72888665 | C22: 0.01272888665 | D22: 1.000000071 | E22: 0.0003758963637 | G22: 0.977675294 | H22: -0.0008786651597 | I22: -0.0008786651597 | K22: 1.00000009 | L22: -0.0004231144397 | N22: 15 | Q22: 28.39401328 | R22: -1.570796325 | S22: 1.000023786 | T22: 0.006897189338 | U22: 1.000014958 | V22: 0.005469477742 | W22: 0.9999999251 | X22: -0.0003869333197 | Y22: 0.999999995 | Z22: -9.95386294e-05 | AB22: 52.39059083 | AC22: -89.37236416 | AD22: 90.62763584 | AG22: 1 | AH22: 0.006897298709 | AI22: -4.52338105e-11 | AJ22: 4.544347317e-07 | AK22: 14958.71582 | AL22: -2200537.518 | AN22: 77500 | AO22: 29.98733377 | AP22: 1 | AQ22: 0.005469532283 | AR22: 77497.84561 | AS22: -393.8896347 | AU22: 9993.523215 | AV22: -254.4128485 | AX22: =-AV22*AL22+AK22*AU22 -> -410354744.3 | AY22: =AU22*AL22+AK22*AV22 -> -2.199492846e+10 | AZ22: -1.589450952 | BA22: 774498015.1 | BB22: -42908005.16 | BC22: -0.05534447622 | BE22: 28.36039994 | BF22: 29.05424702 | BG22: -1.534106476 | BH22: -267.8978265 | BJ22: 52.3799664 | BK22: -87.95087568 | BL22: 92.04912432 | BM22: 92.04912432 | BN22: 0 | BO22: 0 | BQ22: 23.32571861 | BR22: -0.02880653012 | BU22: 45.95620782 | BX22: 131.826 | BY22: 32.1558 | BZ22: -263.3605
A23: 15 | B23: 12.95016939 | C23: 0.01295016939 | D23: 1.000000073 | E23: 0.0003824310569 | G23: 0.9776760614 | H23: -0.0008939408411 | I23: -0.0008939408411 | K23: 1.000000093 | L23: -0.0004304699857 | N23: 15 | Q23: 27.90883777 | R23: -1.570796325 | S23: 1.00002462 | T23: 0.00701708822 | U23: 1.000015482 | V23: 0.005564558819 | W23: 0.9999999225 | X23: -0.0003936598825 | Y23: 0.9999999949 | Z23: -0.0001012690384 | AB23: 52.24090888 | AC23: -89.36145353 | AD23: 90.63854647 | AG23: 1 | AH23: 0.007017203395 | AI23: -4.682019673e-11 | AJ23: 4.623347598e-07 | AK23: 14958.71582 | AL23: -2162936.442 | AN23: 77500 | AO23: 30.50864247 | AP23: 1 | AQ23: 0.005564616254 | AR23: 77497.77005 | AS23: -400.7367084 | AU23: 9993.296222 | AV23: -258.8297577 | AX23: -410345436.8 | AY23: -2.161873633e+10 | AZ23: -1.589775057 | BA23: 774476156.5 | BB23: -42989621.41 | BC23: -0.05545109449 | BE23: 27.87612738 | BF23: 28.90464881 | BG23: -1.534323963 | BH23: -267.9102876 | BJ23: 52.23037506 | BK23: -87.96425903 | BL23: 92.03574097 | BM23: 92.03574097 | BN23: 0 | BO23: 0 | BQ23: 23.32572545 | BR23: -0.02930735185 | BU23: 45.80660961 | BX23: 134.896 | BY23: 32.8753 | BZ23: -269.4654
A24: 16 | B24: 13.17529897 | C24: 0.01317529897 | D24: 1.000000076 | E24: 0.0003890793511 | G24: 0.9776768557 | H24: -0.0009094821169 | I24: -0.0009094821169 | K24: 1.000000096 | L24: -0.0004379534026 | N24: 15 | Q24: 27.43195257 | R24: -1.570796325 | S24: 1.000025484 | T24: 0.007139071253 | U24: 1.000016025 | V24: 0.00566129271 | W24: 0.9999999198 | X24: -0.0004005033819 | Y24: 0.9999999947 | Z24: -0.0001030295294 | AB24: 52.09122758 | AC24: -89.35035324 | AD24: 90.64964676 | AG24: 1 | AH24: 0.007139192539 | AI24: -4.84622188e-11 | AJ24: 4.703721244e-07 | AK24: 14958.71581 | AL24: -2125977.865 | AN24: 77500 | AO24: 31.03901376 | AP24: 1 | AQ24: 0.005661353193 | AR24: 77497.69185 | AS24: -407.7027915 | AU24: 9993.061278 | AV24: -263.32314 | AX24: -410335803.4 | AY24: -2.124896606e+10 | AZ24: -1.590104787 | BA24: 774453532.3 | BB24: -43083967.73 | BC24: -0.05557415912 | BE24: 27.40011573 | BF24: 28.75504794 | BG24: -1.534530628 | BH24: -267.9221286 | BJ24: 52.0807813 | BK24: -87.97703836 | BL24: 92.02296164 | BM24: 92.02296164 | BN24: 0 | BO24: 0 | BQ24: 23.32573253 | BR24: -0.02981688216 | BU24: 45.65700874 | BX24: 138.038 | BY24: 32.5387 | BZ24: -267.9507
A25: 17 | B25: 13.40434228 | C25: 0.01340434228 | D25: 1.000000078 | E25: 0.0003958432212 | G25: 0.9776776779 | H25: -0.0009252936063 | I25: -0.0009252936063 | K25: 1.000000099 | L25: -0.0004455669134 | N25: 15 | Q25: 26.96321603 | R25: -1.570796325 | S25: 1.000026377 | T25: 0.007263174657 | U25: 1.000016587 | V25: 0.005759708143 | W25: 0.999999917 | X25: -0.0004074658507 | Y25: 0.9999999945 | Z25: -0.0001048206253 | AB25: 51.94154696 | AC25: -89.33906001 | AD25: 90.66093999 | AG25: 1 | AH25: 0.007263302379 | AI25: -5.016182791e-11 | AJ25: 4.785492129e-07 | AK25: 14958.71581 | AL25: -2089650.81 | AN25: 77500 | AO25: 31.57860518 | AP25: 1 | AQ25: 0.005759771836 | AR25: 77497.6109 | AS25: -414.7899514 | AU25: 9992.818106 | AV25: -267.8943084 | AX25: -410325832.5 | AY25: -2.088550781e+10 | AZ25: -1.590440238 | BA25: 774430115.7 | BB25: -43191070.03 | BC25: -0.0557137065 | BE25: 26.93222456 | BF25: 28.60544454 | BG25: -1.534726531 | BH25: -267.933353 | BJ25: 51.93118525 | BK25: -87.98921741 | BL25: 92.01078259 | BM25: 92.01078259 | BN25: 0 | BO25: 0 | BQ25: 23.32573985 | BR25: -0.03033527256 | BU25: 45.50740534 | BX25: 141.254 | BY25: 32.377 | BZ25: -263.1143
A26: 18 | B26: 13.63736734 | C26: 0.01363736734 | D26: 1.000000081 | E26: 0.0004027246764 | G26: 0.9776785289 | H26: -0.0009413800088 | I26: -0.0009413800088 | K26: 1.000000103 | L26: -0.0004533127797 | N26: 15 | Q26: 26.5024889 | R26: -1.570796325 | S26: 1.000027302 | T26: 0.007389435281 | U26: 1.000017169 | V26: 0.005859834345 | W26: 0.9999999141 | X26: -0.0004145493571 | Y26: 0.9999999943 | Z26: -0.0001066428581 | AB26: 51.79186703 | AC26: -89.32757047 | AD26: 90.67242953 | AG26: 1 | AH26: 0.007389569781 | AI26: -5.192104368e-11 | AJ26: 4.868684543e-07 | AK26: 14958.7158 | AL26: -2053944.485 | AN26: 77500 | AO26: 32.12757701 | AP26: 1 | AQ26: 0.005859901417 | AR26: 77497.52712 | AS26: -422.000292 | AU26: 9992.566418 | AV26: -272.5445978 | AX26: -410315512.5 | AY26: -2.05282536e+10 | AZ26: -1.590781509 | BA26: 774405879.2 | BB26: -43310957.9 | BC26: -0.05586977786 | BE26: 26.47231583 | BF26: 28.45583871 | BG26: -1.534911731 | BH26: -267.9439642 | BJ26: 51.78158704 | BK26: -88.00079979 | BL26: 91.99920021 | BM26: 91.99920021 | BN26: 0 | BO26: 0 | BQ26: 23.32574744 | BR26: -0.03086267719 | BU26: 45.35779951 | BX26: 144.544 | BY26: 31.4991 | BZ26: -266.2885
A27: 19 | B27: 13.87444338 | C27: 0.01387444338 | D27: 1.000000084 | E27: 0.0004097257608 | G27: 0.9776794098 | H27: -0.0009577461059 | I27: -0.0009577461059 | K27: 1.000000106 | L27: -0.0004611933024 | N27: 15 | Q27: 26.04963434 | R27: -1.570796325 | S27: 1.00002826 | T27: 0.007517890616 | U27: 1.000017771 | V27: 0.00596170105 | W27: 0.9999999111 | X27: -0.0004217560052 | Y27: 0.9999999941 | Z27: -0.0001084967692 | AB27: 51.64218783 | AC27: -89.31588122 | AD27: 90.68411878 | AG27: 1 | AH27: 0.007518032253 | AI27: -5.374195657e-11 | AJ27: 4.953323199e-07 | AK27: 14958.71579 | AL27: -2018848.284 | AN27: 77500 | AO27: 32.68609234 | AP27: 1 | AQ27: 0.005961771681 | AR27: 77497.4404 | AS27: -429.3359532 | AU27: 9992.305917 | AV27: -277.2753653 | AX27: -410304831.1 | AY27: -2.017709734e+10 | AZ27: -1.591128701 | BA27: 774380793.9 | BB27: -43443664.59 | BC27: -0.05604241927 | BE27: 26.02025383 | BF27: 28.30623058 | BG27: -1.535086282 | BH27: -267.9539652 | BJ27: 51.63198679 | BK27: -88.0117889 | BL27: 91.9882111 | BM27: 91.9882111 | BN27: 0 | BO27: 0 | BQ27: 23.32575529 | BR27: -0.0313992529 | BU27: 45.20819138 | BX27: 147.911 | BY27: 31.4819 | BZ27: -266.3463
A28: 20 | B28: 14.11564081 | C28: 0.01411564081 | D28: 1.000000087 | E28: 0.0004168485541 | G28: 0.9776803215 | H28: -0.0009743967621 | I28: -0.0009743967621 | K28: 1.00000011 | L28: -0.0004692108223 | N28: 15 | Q28: 25.60451781 | R28: -1.570796325 | S28: 1.000029251 | T28: 0.007648578803 | U28: 1.000018394 | V28: 0.006065338508 | W28: 0.9999999079 | X28: -0.0004290879357 | Y28: 0.9999999939 | Z28: -0.0001103829091 | AB28: 51.49250939 | AC28: -89.30398878 | AD28: 90.69601122 | AG28: 1 | AH28: 0.007648727955 | AI28: -5.562673035e-11 | AJ28: 5.039433238e-07 | AK28: 14958.71579 | AL28: -1984351.781 | AN28: 77500 | AO28: 33.25431706 | AP28: 1 | AQ28: 0.006065412887 | AR28: 77497.35063 | AS28: -436.7991122 | AU28: 9992.036294 | AV28: -282.0879907 | AX28: -410293775.7 | AY28: -1.983193469e+10 | AZ28: -1.591481916 | BA28: 774354830.3 | BB28: -43589227.06 | BC28: -0.05623168164 | BE28: 25.57590512 | BF28: 28.15662024 | BG28: -1.535250234 | BH28: -267.963359 | BJ28: 51.48238461 | BK28: -88.02218798 | BL28: 91.97781202 | BM28: 91.97781202 | BN28: 0 | BO28: 0 | BQ28: 23.32576341 | BR28: -0.03194515923 | BU28: 45.05858104 | BX28: 151.356 | BY28: 31.0519 | BZ28: -267.0283
A29: 21 | B29: 14.3610313 | C29: 0.0143610313 | D29: 1.00000009 | E29: 0.0004240951721 | G29: 0.9776812653 | H29: -0.0009913369267 | I29: -0.0009913369267 | K29: 1.000000114 | L29: -0.0004773677211 | N29: 15 | Q29: 25.16700709 | R29: -1.570796325 | S29: 1.000030277 | T29: 0.007781538643 | U29: 1.00001904 | V29: 0.006170777498 | W29: 0.9999999047 | X29: -0.0004365473267 | Y29: 0.9999999937 | Z29: -0.0001123018384 | AB29: 51.34283171 | AC29: -89.29188962 | AD29: 90.70811038 | AG29: 1 | AH29: 0.00778169571 | AI29: -5.757760466e-11 | AJ29: 5.127040239e-07 | AK29: 14958.71578 | AL29: -1950444.73 | AN29: 77500 | AO29: 33.83241997 | AP29: 1 | AQ29: 0.006170855823 | AR29: 77497.25772 | AS29: -444.3919841 | AU29: 9991.757231 | AV29: -286.9838767 | AX29: -410282333.1 | AY29: -1.949266314e+10 | AZ29: -1.591841258 | BA29: 774327957.6 | BB29: -43747685.94 | BC29: -0.05643762077 | BE29: 25.13913852 | BF29: 28.00700782 | BG29: -1.535403638 | BH29: -267.9721484 | BJ29: 51.33278063 | BK29: -88.0320001 | BL29: 91.9679999 | BM29: 91.9679999 | BN29: 0 | BO29: 0 | BQ29: 23.32577182 | BR29: -0.03250055854 | BU29: 44.90896862 | BX29: 154.882 | BY29: 31.2487 | BZ29: -260.6973
A30: 22 | B30: 14.61068773 | C30: 0.01461068773 | D30: 1.000000093 | E30: 0.0004314677674 | G30: 0.9776822421 | H30: -0.001008571635 | I30: -0.001008571635 | K30: 1.000000118 | L30: -0.0004856664218 | N30: 15 | Q30: 24.73697223 | R30: -1.570796325 | S30: 1.000031339 | T30: 0.007916809614 | U30: 1.000019707 | V30: 0.006278049329 | W30: 0.9999999014 | X30: -0.0004441363939 | Y30: 0.9999999935 | Z30: -0.0001142541268 | AB30: 51.19315485 | AC30: -89.27958016 | AD30: 90.72041984 | AG30: 1 | AH30: 0.007916975015 | AI30: -5.959689771e-11 | AJ30: 5.216170227e-07 | AK30: 14958.71578 | AL30: -1917117.057 | AN30: 77500 | AO30: 34.42057279 | AP30: 1 | AQ30: 0.006278131811 | AR30: 77497.16155 | AS30: -452.1168224 | AU30: 9991.468397 | AV30: -291.9644494 | AX30: -410270490 | AY30: -1.91591819e+10 | AZ30: -1.592206834 | BA30: 774300144.1 | BB30: -43919085.55 | BC30: -0.05666029731 | BE30: 24.70982503 | BF30: 27.8573934 | BG30: -1.535546536 | BH30: -267.9803359 | BJ30: 51.18317496 | BK30: -88.04122814 | BL30: 91.95877186 | BM30: 91.95877186 | BN30: 0 | BO30: 0 | BQ30: 23.32578053 | BR30: -0.03306561601 | BU30: 44.7593542 | BX30: 158.489 | BY30: 31.0037 | BZ30: -259.869
A31: 23 | B31: 14.86468425 | C31: 0.01486468425 | D31: 1.000000096 | E31: 0.0004389685301 | G31: 0.9776832532 | H31: -0.001026106011 | I31: -0.001026106011 | K31: 1.000000122 | L31: -0.0004941093896 | N31: 15 | Q31: 24.31428548 | R31: -1.570796325 | S31: 1.000032438 | T31: 0.008054431878 | U31: 1.000020398 | V31: 0.006387185857 | W31: 0.9999998979 | X31: -0.0004518573916 | Y31: 0.9999999932 | Z31: -0.0001162403544 | AB31: 51.04347881 | AC31: -89.26705674 | AD31: 90.73294326 | AG31: 1 | AH31: 0.008054606057 | AI31: -6.168700899e-11 | AJ31: 5.306849677e-07 | AK31: 14958.71577 | AL31: -1884358.864 | AN31: 77500 | AO31: 35.01895023 | AP31: 1 | AQ31: 0.006387272716 | AR31: 77497.06201 | AS31: -459.9759195 | AU31: 9991.169451 | AV31: -297.0311584 | AX31: -410258232.2 | AY31: -1.883139192e+10 | AZ31: -1.59257875 | BA31: 774271356.8 | BB31: -44103473.93 | BC31: -0.05689977684 | BE31: 24.28783788 | BF31: 27.70777711 | BG31: -1.535678973 | BH31: -267.9879239 | BJ31: 51.03356771 | BK31: -88.04987482 | BL31: 91.95012518 | BM31: 91.95012518 | BN31: 0 | BO31: 0 | BQ31: 23.32578954 | BR31: -0.03364049969 | BU31: 44.60973791 | BX31: 162.181 | BY31: 30.4293 | BZ31: -262.3986
A32: 24 | B32: 15.12309633 | C32: 0.01512309633 | D32: 1.0000001 | E32: 0.0004465996882 | G32: 0.9776842998 | H32: -0.001043945266 | I32: -0.001043945266 | K32: 1.000000126 | L32: -0.0005026991323 | N32: 15 | Q32: 23.89882129 | R32: -1.570796325 | S32: 1.000033575 | T32: 0.008194446295 | U32: 1.000021114 | V32: 0.00649821949 | W32: 0.9999998943 | X32: -0.0004597126134 | Y32: 0.999999993 | Z32: -0.0001182611112 | AB32: 50.89380364 | AC32: -89.25431563 | AD32: 90.74568437 | AG32: 1 | AH32: 0.008194629716 | AI32: -6.385042217e-11 | AJ32: 5.399105525e-07 | AK32: 14958.71576 | AL32: -1852160.419 | AN32: 77500 | AO32: 35.62773004 | AP32: 1 | AQ32: 0.006498310958 | AR32: 77496.95897 | AS32: -467.9716077 | AU32: 9990.86004 | AV32: -302.1854776 | AX32: -410245545.3 | AY32: -1.850919582e+10 | AZ32: -1.592957116 | BA32: 774241561.7 | BB32: -44300902.81 | BC32: -0.05715612984 | BE32: 23.87305239 | BF32: 27.55815902 | BG32: -1.535800986 | BH32: -267.9949148 | BJ32: 50.88395899 | BK32: -88.05794269 | BL32: 91.94205731 | BM32: 91.94205731 | BN32: 0 | BO32: 0 | BQ32: 23.32579887 | BR32: -0.03422538056 | BU32: 44.46011982 | BX32: 165.959 | BY32: 29.9194 | BZ32: -264.8295
A33: 25 | B33: 15.38600072 | C33: 0.01538600072 | D33: 1.000000103 | E33: 0.0004543635085 | G33: 0.977685383 | H33: -0.001062094704 | I33: -0.001062094704 | K33: 1.000000131 | L33: -0.0005114382015 | N33: 15 | Q33: 23.49045623 | R33: -1.570796325 | S33: 1.000034753 | T33: 0.008336894435 | U33: 1.000021854 | V33: 0.006611183201 | W33: 0.9999998906 | X33: -0.0004677043926 | Y33: 0.9999999928 | Z33: -0.0001203169974 | AB33: 50.74412936 | AC33: -89.24135307 | AD33: 90.75864693 | AG33: 1 | AH33: 0.008337087589 | AI33: -6.608970798e-11 | AJ33: 5.492965176e-07 | AK33: 14958.71575 | AL33: -1820512.158 | AN33: 77500 | AO33: 36.24709307 | AP33: 1 | AQ33: 0.006611279523 | AR33: 77496.85233 | AS33: -476.1062598 | AU33: 9990.539797 | AV33: -307.4289051 | AX33: -410232414.3 | AY33: -1.819249791e+10 | AZ33: -1.593342043 | BA33: 774210723.7 | BB33: -44511427.64 | BC33: -0.05742943174 | BE33: 23.46534601 | BF33: 27.40853925 | BG33: -1.535912612 | BH33: -268.0013105 | BJ33: 50.73434891 | BK33: -88.06543414 | BL33: 91.93456586 | BM33: 91.93456586 | BN33: 0 | BO33: 0 | BQ33: 23.32580852 | BR33: -0.0348204326 | BU33: 44.31050005 | BX33: 169.824 | BY33: 29.8089 | BZ33: -267.7277
A34: 26 | B34: 15.65347552 | C34: 0.01565347552 | D34: 1.000000107 | E34: 0.0004622622973 | G34: 0.9776865043 | H34: -0.001080559719 | I34: -0.001080559719 | K34: 1.000000135 | L34: -0.0005203291933 | N34: 15 | Q34: 23.08906901 | R34: -1.570796325 | S34: 1.000035972 | T34: 0.008481818588 | U34: 1.000022621 | V34: 0.006726110534 | W34: 0.9999998868 | X34: -0.0004758351032 | Y34: 0.9999999925 | Z34: -0.0001224086237 | AB34: 50.594456 | AC34: -89.22816519 | AD34: 90.77183481 | AG34: 1 | AH34: 0.008482021992 | AI34: -6.840752736e-11 | AJ34: 5.588456512e-07 | AK34: 14958.71575 | AL34: -1789404.679 | AN34: 77500 | AO34: 36.87722328 | AP34: 1 | AQ34: 0.006726211966 | AR34: 77496.74194 | AS34: -484.3822897 | AU34: 9990.208345 | AV34: -312.7629636 | AX34: -410218823.7 | AY34: -1.788120409e+10 | AZ34: -1.593733646 | BA34: 774178806.3 | BB34: -44735107.57 | BC34: -0.0577197629 | BE34: 23.06459825 | BF34: 27.25891789 | BG34: -1.536013883 | BH34: -268.0071129 | BJ34: 50.58473758 | BK34: -88.07235135 | BL34: 91.92764865 | BM34: 91.92764865 | BN34: 0 | BO34: 0 | BQ34: 23.32581852 | BR34: -0.0354258328 | BU34: 44.16087869 | BX34: 173.78 | BY34: 30.0709 | BZ34: -269.952
A35: 27 | B35: 15.92560018 | C35: 0.01592560018 | D35: 1.000000111 | E35: 0.000470298401 | G35: 0.9776876649 | H35: -0.001099345802 | I35: -0.001099345802 | K35: 1.00000014 | L35: -0.0005293747486 | N35: 15 | Q35: 22.69454039 | R35: -1.570796325 | S35: 1.000037233 | T35: 0.008629261781 | U35: 1.000023414 | V35: 0.006843035614 | W35: 0.9999998828 | X35: -0.0004841071604 | Y35: 0.9999999922 | Z35: -0.0001245366115 | AB35: 50.4447836 | AC35: -89.21474808 | AD35: 90.78525192 | AG35: 1 | AH35: 0.008629475977 | AI35: -7.080663454e-11 | AJ35: 5.685607897e-07 | AK35: 14958.71574 | AL35: -1758828.743 | AN35: 77500 | AO35: 37.51830786 | AP35: 1 | AQ35: 0.00684314243 | AR35: 77496.62768 | AS35: -492.8021532 | AU35: 9989.865292 | AV35: -318.189201 | AX35: -410204757.4 | AY35: -1.757522192e+10 | AZ35: -1.594132038 | BA35: 774145771.7 | BB35: -44972005.51 | BC35: -0.05802720868 | BE35: 22.67069067 | BF35: 27.10929503 | BG35: -1.536104829 | BH35: -268.0123237 | BJ35: 50.4351251 | BK35: -88.07869638 | BL35: 91.92130362 | BM35: 91.92130362 | BN35: 0 | BO35: 0 | BQ35: 23.32582886 | BR35: -0.03604176125 | BU35: 44.01125583 | BX35: 177.828 | BY35: 29.7201 | BZ35: -271.5601
A36: 28 | B36: 16.20245554 | C36: 0.01620245554 | D36: 1.000000114 | E36: 0.0004784742066 | G36: 0.9776888662 | H36: -0.001118458538 | I36: -0.001118458538 | K36: 1.000000145 | L36: -0.0005385775544 | N36: 15 | Q36: 22.30675318 | R36: -1.570796325 | S36: 1.000038539 | T36: 0.008779267784 | U36: 1.000024235 | V36: 0.006961993163 | W36: 0.9999998787 | X36: -0.0004925230215 | Y36: 0.999999992 | Z36: -0.0001267015928 | AB36: 50.29511218 | AC36: -89.20109776 | AD36: 90.79890224 | AG36: 1 | AH36: 0.008779493346 | AI36: -7.328988034e-11 | AJ36: 5.78444819e-07 | AK36: 14958.71573 | AL36: -1728775.267 | AN36: 77500 | AO36: 38.17053725 | AP36: 1 | AQ36: 0.006962105647 | AR36: 77496.50942 | AS36: -501.3683486 | AU36: 9989.510232 | AV36: -323.7091908 | AX36: -410190198.7 | AY36: -1.727446049e+10 | AZ36: -1.594537336 | BA36: 774111581 | BB36: -45222188.09 | BC36: -0.05835185944 | BE36: 22.28350682 | BF36: 26.95967076 | BG36: -1.536185477 | BH36: -268.0169445 | BJ36: 50.28551159 | BK36: -88.08447109 | BL36: 91.91552891 | BM36: 91.91552891 | BN36: 0 | BO36: 0 | BQ36: 23.32583957 | BR36: -0.03666840117 | BU36: 43.86163156 | BX36: 181.97 | BY36: 30.0421 | BZ36: -268.8459
A37: 29 | B37: 16.48412383 | C37: 0.01648412383 | D37: 1.000000118 | E37: 0.0004867921428 | G37: 0.9776901096 | H37: -0.001137903608 | I37: -0.001137903608 | K37: 1.00000015 | L37: -0.0005479403444 | N37: 15 | Q37: 21.92559218 | R37: -1.570796325 | S37: 1.000039891 | T37: 0.00893188113 | U37: 1.000025085 | V37: 0.007083018503 | W37: 0.9999998745 | X37: -0.0005010851863 | Y37: 0.9999999917 | Z37: -0.0001289042109 | AB37: 50.14544179 | AC37: -89.18721018 | AD37: 90.81278982 | AG37: 1 | AH37: 0.008932118662 | AI37: -7.586021557e-11 | AJ37: 5.885006753e-07 | AK37: 14958.71572 | AL37: -1699235.323 | AN37: 77500 | AO37: 38.83410519 | AP37: 1 | AQ37: 0.007083136955 | AR37: 77496.38701 | AS37: -510.0834175 | AU37: 9989.142747 | AV37: -329.324532 | AX37: -410175130.6 | AY37: -1.697883047e+10 | AZ37: -1.594949661 | BA37: 774076193.8 | BB37: -45485725.69 | BC37: -0.05869381055 | BE37: 21.90293221 | BF37: 26.81004518 | BG37: -1.53625585 | BH37: -268.0209766 | BJ37: 50.13589713 | BK37: -88.08967718 | BL37: 91.91032282 | BM37: 91.91032282 | BN37: 0 | BO37: 0 | BQ37: 23.32585065 | BR37: -0.037305939 | BU37: 43.71200598 | BX37: 186.209 | BY37: 29.9018 | BZ37: -265.3796
A38: 30 | B38: 16.77068872 | C38: 0.01677068872 | D38: 1.000000123 | E38: 0.0004952546804 | G38: 0.9776913966 | H38: -0.001157686795 | I38: -0.001157686795 | K38: 1.000000155 | L38: -0.0005574658999 | N38: 15 | Q38: 21.55094418 | R38: -1.570796325 | S38: 1.00004129 | T38: 0.009087147125 | U38: 1.000025965 | V38: 0.007206147571 | W38: 0.9999998701 | X38: -0.0005097961983 | Y38: 0.9999999914 | Z38: -0.0001311451199 | AB38: 49.99577246 | AC38: -89.17308122 | AD38: 90.82691878 | AG38: 1 | AH38: 0.009087397261 | AI38: -7.852069453e-11 | AJ38: 5.987313455e-07 | AK38: 14958.71571 | AL38: -1670200.136 | AN38: 77500 | AO38: 39.50920879 | AP38: 1 | AQ38: 0.007206272308 | AR38: 77496.26031 | AS38: -518.9499459 | AU38: 9988.762403 | AV38: -335.03685 | AX38: -410159535.2 | AY38: -1.668824404e+10 | AZ38: -1.595369132 | BA38: 774039568.3 | BB38: -45762692.46 | BC38: -0.05905316246 | BE38: 21.52885431 | BF38: 26.66041838 | BG38: -1.53631597 | BH38: -268.0244212 | BJ38: 49.98628184 | BK38: -88.09431619 | BL38: 91.90568381 | BM38: 91.90568381 | BN38: 0 | BO38: 0 | BQ38: 23.32586212 | BR38: -0.0379545644 | BU38: 43.56237918 | BX38: 190.546 | BY38: 29.5667 | BZ38: -265.8945
A39: 31 | B39: 17.06223535 | C39: 0.01706223535 | D39: 1.000000127 | E39: 0.0005038643331 | G39: 0.9776927288 | H39: -0.001177813979 | I39: -0.001177813979 | K39: 1.000000161 | L39: -0.0005671570503 | N39: 15 | Q39: 21.18269788 | R39: -1.570796325 | S39: 1.000042738 | T39: 0.009245111861 | U39: 1.000026875 | V39: 0.007331416926 | W39: 0.9999998655 | X39: -0.000518658645 | Y39: 0.9999999911 | Z39: -0.0001334249855 | AB39: 49.84610422 | AC39: -89.15870668 | AD39: 90.84129332 | AG39: 1 | AH39: 0.009245375269 | AI39: -8.127447864e-11 | AJ39: 6.091398687e-07 | AK39: 14958.7157 | AL39: -1641661.082 | AN39: 77500 | AO39: 40.19604859 | AP39: 1 | AQ39: 0.007331548283 | AR39: 77496.12916 | AS39: -527.9705641 | AU39: 9988.368749 | AV39: -340.8477967 | AX39: -410143394.1 | AY39: -1.640261489e+10 | AZ39: -1.595795874 | BA39: 774001661.3 | BB39: -46053166.31 | BC39: -0.05943002067 | BE39: 21.16116247 | BF39: 26.51079043 | BG39: -1.536365853 | BH39: -268.0272793 | BJ39: 49.83666582 | BK39: -88.09838947 | BL39: 91.90161053 | BM39: 91.90161053 | BN39: 0 | BO39: 0 | BQ39: 23.32587399 | BR39: -0.03861447037 | BU39: 43.41275123 | BX39: 194.984 | BY39: 29.6856 | BZ39: -265.6327
A40: 32 | B40: 17.35885031 | C40: 0.01735885031 | D40: 1.000000131 | E40: 0.0005126236586 | G40: 0.9776941077 | H40: -0.001198291146 | I40: -0.001198291146 | K40: 1.000000166 | L40: -0.0005770166745 | N40: 15 | Q40: 20.82074389 | R40: -1.570796325 | S40: 1.000044236 | T40: 0.009405822228 | U40: 1.000027818 | V40: 0.007458863765 | W40: 0.9999998608 | X40: -0.000527675159 | Y40: 0.9999999908 | Z40: -0.000135744485 | AB40: 49.69643712 | AC40: -89.14408229 | AD40: 90.85591771 | AE40: =20*LOG(7) -> 16.9019608 | AG40: 1 | AH40: 0.009406099614 | AI40: -8.412484017e-11 | AJ40: 6.197293368e-07 | AK40: 14958.7157 | AL40: -1613609.682 | AN40: 77500 | AO40: 40.89482862 | AP40: 1 | AQ40: 0.007459002092 | AR40: 77495.99341 | AS40: -537.1479484 | AU40: 9987.961323 | AV40: -346.759051 | AX40: -410126688.3 | AY40: -1.612185817e+10 | AZ40: -1.596230011 | BA40: 773962428 | BB40: -46357228.93 | BC40: -0.05982449579 | BE40: 20.79974793 | BF40: 26.36116144 | BG40: -1.536405515 | BH40: -268.0295517 | BJ40: 49.68704916 | BK40: -88.10189822 | BL40: 91.89810178 | BM40: 91.89810178 | BN40: 0 | BO40: 0 | BQ40: 23.32588628 | BR40: -0.03928585325 | BU40: 43.26312224 | BX40: 199.526 | BY40: 29.051 | BZ40: -267.8015
A41: 33 | B41: 17.66062171 | C41: 0.01766062171 | D41: 1.000000136 | E41: 0.0005215352586 | G41: 0.9776955349 | H41: -0.001219124385 | I41: -0.001219124385 | K41: 1.000000172 | L41: -0.0005870477012 | N41: 15 | Q41: 20.46497471 | R41: -1.570796325 | S41: 1.000045788 | T41: 0.009569325934 | U41: 1.000028794 | V41: 0.007588525929 | W41: 0.9999998559 | X41: -0.0005368484187 | Y41: 0.9999999905 | Z41: -0.0001381043073 | AB41: 49.5467712 | AC41: -89.12920371 | AD41: 90.87079629 | AG41: 1 | AH41: 0.009569618039 | AI41: -8.707516619e-11 | AJ41: 6.305028954e-07 | AK41: 14958.71569 | AL41: -1586037.606 | AN41: 77500 | AO41: 41.60575644 | AP41: 1 | AQ41: 0.007588671596 | AR41: 77495.85291 | AS41: -546.4848213 | AU41: 9987.539643 | AV41: -352.7723189 | AX41: -410109398 | AY41: -1.584589048e+10 | AZ41: -1.596671671 | BA41: 773921822.2 | BB41: -46674965.81 | BC41: -0.06023670357 | BE41: 20.44450377 | BF41: 26.21153148 | BG41: -1.536434967 | BH41: -268.0312392 | BJ41: 49.53743197 | BK41: -88.10484349 | BL41: 91.89515651 | BM41: 91.89515651 | BN41: 0 | BO41: 0 | BQ41: 23.325899 | BR41: -0.03996891281 | BU41: 43.11349228 | BX41: 204.174 | BY41: 28.4243 | BZ41: -264.1684
A42: 34 | B42: 17.96763919 | C42: 0.01796763919 | D42: 1.000000141 | E42: 0.0005306017805 | G42: 0.9776970123 | H42: -0.00124031989 | I42: -0.00124031989 | K42: 1.000000178 | L42: -0.0005972531101 | N42: 15 | Q42: 20.11528463 | R42: -1.570796325 | S42: 1.000047394 | T42: 0.009735671512 | U42: 1.000029803 | V42: 0.007720441917 | W42: 0.9999998508 | X42: -0.0005461811489 | Y42: 0.9999999901 | Z42: -0.0001405051535 | AB42: 49.39710649 | AC42: -89.11406653 | AD42: 90.88593347 | AG42: 1 | AH42: 0.009735979116 | AI42: -9.012896251e-11 | AJ42: 6.414637447e-07 | AK42: 14958.71568 | AL42: -1558936.661 | AN42: 77500 | AO42: 42.32904325 | AP42: 1 | AQ42: 0.007720595313 | AR42: 77495.70747 | AS42: -555.9839527 | AU42: 9987.103212 | AV42: -358.8893342 | AX42: -410091502.9 | AY42: -1.557462986e+10 | AZ42: -1.597120983 | BA42: 773879796 | BB42: -47006466.25 | BC42: -0.06066676494 | BE42: 20.09532487 | BF42: 26.06190063 | BG42: -1.536454218 | BH42: -268.0323422 | BJ42: 49.38781435 | BK42: -88.10722612 | BL42: 91.89277388 | BM42: 91.89277388 | BN42: 0 | BO42: 0 | BQ42: 23.32591216 | BR42: -0.04066385234 | BU42: 42.96386143 | BX42: 208.93 | BY42: 28.5109 | BZ42: -267.6911
A43: 35 | B43: 18.27999396 | C43: 0.01827999396 | D43: 1.000000146 | E43: 0.0005398259174 | G43: 0.9776985414 | H43: -0.001261883963 | I43: -0.001261883963 | K43: 1.000000185 | L43: -0.0006076359327 | N43: 15 | Q43: 19.7715698 | R43: -1.570796325 | S43: 1.000049056 | T43: 0.009904908337 | U43: 1.000030849 | V43: 0.007854650895 | W43: 0.9999998456 | X43: -0.000555676122 | Y43: 0.9999999898 | Z43: -0.0001429477367 | AB43: 49.24744304 | AC43: -89.09866626 | AD43: 90.90133374 | AG43: 1 | AH43: 0.009905232264 | AI43: -9.328985794e-11 | AJ43: 6.526151406e-07 | AK43: 14958.71567 | AL43: -1532298.798 | AN43: 77500 | AO43: 43.06490389 | AP43: 1 | AQ43: 0.007854812431 | AR43: 77495.55694 | AS43: -565.6481601 | AU43: 9986.651515 | AV43: -365.1118587 | AX43: -410072981.8 | AY43: -1.530799572e+10 | AZ43: -1.597578078 | BA43: 773836299.7 | BB43: -47351823.35 | BC43: -0.06111480601 | BE43: 19.75210791 | BF43: 25.91226899 | BG43: -1.536463272 | BH43: -268.032861 | BJ43: 49.23819639 | BK43: -88.10904682 | BL43: 91.89095318 | BM43: 91.89095318 | BN43: 0 | BO43: 0 | BQ43: 23.32592579 | BR43: -0.04137087864 | BU43: 42.81422979 | BX43: 213.796 | BY43: 28.179 | BZ43: -266.9667
A44: 36 | B44: 18.5977788 | C44: 0.0185977788 | D44: 1.000000151 | E44: 0.0005492104094 | G44: 0.9777001242 | H44: -0.001283823019 | I44: -0.001283823019 | K44: 1.000000191 | L44: -0.0006181992532 | N44: 15 | Q44: 19.43372811 | R44: -1.570796325 | S44: 1.000050776 | T44: 0.01007708664 | U44: 1.00003193 | V44: 0.007991192712 | W44: 0.9999998402 | X44: -0.0005653361584 | Y44: 0.9999999894 | Z44: -0.0001454327825 | AB44: 49.09778089 | AC44: -89.08299832 | AD44: 90.91700168 | AG44: 1 | AH44: 0.01007742776 | AI44: -9.656160853e-11 | AJ44: 6.639603957e-07 | AK44: 14958.71565 | AL44: -1506116.104 | AN44: 77500 | AO44: 43.81355695 | AP44: 1 | AQ44: 0.00799136282 | AR44: 77495.40113 | AS44: -575.4803103 | AU44: 9986.184019 | AV44: -371.4416828 | AX44: -410053813 | AY44: -1.504590886e+10 | AZ44: -1.598043091 | BA44: 773791282.2 | BB44: -47711134.08 | BC44: -0.06158095811 | BE44: 19.41475129 | BF44: 25.76263663 | BG44: -1.536462133 | BH44: -268.0327957 | BJ44: 49.08857819 | BK44: -88.11030612 | BL44: 91.88969388 | BM44: 91.88969388 | BN44: 0 | BO44: 0 | BQ44: 23.3259399 | BR44: -0.04209020213 | BU44: 42.66459743 | BX44: 218.776 | BY44: 27.7064 | BZ44: -263.5369
A45: 37 | B45: 18.9210881 | C45: 0.0189210881 | D45: 1.000000156 | E45: 0.000558758044 | G45: 0.9777017625 | H45: -0.00130614358 | I45: -0.00130614358 | K45: 1.000000198 | L45: -0.0006289462095 | N45: 15 | Q45: 19.1016592 | R45: -1.570796325 | S45: 1.000052557 | T45: 0.01025225754 | U45: 1.00003305 | V45: 0.008130107906 | W45: 0.9999998346 | X45: -0.0005751641277 | Y45: 0.9999999891 | Z45: -0.0001479610291 | AB45: 48.94812009 | AC45: -89.06705806 | AD45: 90.93294194 | AG45: 1 | AH45: 0.01025261675 | AI45: -9.994810204e-11 | AJ45: 6.755028801e-07 | AK45: 14958.71564 | AL45: -1480380.802 | AN45: 77500 | AO45: 44.57522481 | AP45: 1 | AQ45: 0.00813028704 | AR45: 77495.23985 | AS45: -585.4833195 | AU45: 9985.700175 | AV45: -377.8806254 | AX45: -410033973.7 | AY45: -1.478829144e+10 | AZ45: -1.598516158 | BA45: 773744690.4 | BB45: -48084499.21 | BC45: -0.06206535787 | BE45: 19.08315516 | BF45: 25.61300363 | BG45: -1.5364508 | BH45: -268.0321464 | BJ45: 48.93895985 | BK45: -88.11100439 | BL45: 91.88899561 | BM45: 91.88899561 | BN45: 0 | BO45: 0 | BQ45: 23.3259545 | BR45: -0.04282203692 | BU45: 42.51496443 | BX45: 223.872 | BY45: 27.9371 | BZ45: -265.1945
A46: 38 | B46: 19.2500179 | C46: 0.0192500179 | D46: 1.000000162 | E46: 0.0005684716574 | G46: 0.9777034582 | H46: -0.001328852285 | I46: -0.001328852285 | K46: 1.000000205 | L46: -0.000639879994 | N46: 15 | Q46: 18.77526444 | R46: -1.570796325 | S46: 1.0000544 | T46: 0.010430473 | U46: 1.000034209 | V46: 0.008271437721 | W46: 0.9999998288 | X46: -0.0005851629492 | Y46: 0.9999999887 | Z46: -0.0001505332275 | AB46: 48.79846069 | AC46: -89.05084076 | AD46: 90.94915924 | AG46: 1 | AH46: 0.01043085128 | AI46: -1.034533626e-10 | AJ46: 6.872460225e-07 | AK46: 14958.71563 | AL46: -1455085.246 | AN46: 77500 | AO46: 45.35013374 | AP46: 1 | AQ46: 0.008271626361 | AR46: 77495.07292 | AS46: -595.6601543 | AU46: 9985.199411 | AV46: -384.4305348 | AX46: -410013440.8 | AY46: -1.453506693e+10 | AZ46: -1.598997417 | BA46: 773696469.3 | BB46: -48472023.41 | BC46: -0.06256814719 | BE46: 18.75722137 | BF46: 25.46337008 | BG46: -1.53642927 | BH46: -268.0309128 | BJ46: 48.78934147 | BK46: -88.11114183 | BL46: 91.88885817 | BM46: 91.88885817 | BN46: 0 | BO46: 0 | BQ46: 23.32596961 | BR46: -0.04356660084 | BU46: 42.36533088 | BX46: 229.087 | BY46: 27.6763 | BZ46: -266.7544
A47: 39 | B47: 19.58466592 | C47: 0.01958466592 | D47: 1.000000167 | E47: 0.0005783541351 | G47: 0.9777052134 | H47: -0.001351955888 | I47: -0.001351955888 | K47: 1.000000212 | L47: -0.0006510038544 | N47: 15 | Q47: 18.45444686 | R47: -1.570796325 | S47: 1.000056308 | T47: 0.01061178594 | U47: 1.000035409 | V47: 0.008415224117 | W47: 0.9999998228 | X47: -0.000595335593 | Y47: 0.9999999883 | Z47: -0.0001531501417 | AB47: 48.64880273 | AC47: -89.03434159 | AD47: 90.96565841 | AG47: 1 | AH47: 0.01061218429 | AI47: -1.070815555e-10 | AJ47: 6.991933111e-07 | AK47: 14958.71562 | AL47: -1430221.923 | AN47: 77500 | AO47: 46.13851391 | AP47: 1 | AQ47: 0.008415422766 | AR47: 77494.90014 | AS47: -606.013833 | AU47: 9984.681137 | AV47: -391.0932888 | AX47: -409992189.8 | AY47: -1.428616011e+10 | AZ47: -1.59948701 | BA47: 773646562.3 | BB47: -48873815.21 | BC47: -0.06308947332 | BE47: 18.43685339 | BF47: 25.31373604 | BG47: -1.536397536 | BH47: -268.0290946 | BJ47: 48.63972314 | BK47: -88.11071847 | BL47: 91.88928153 | BM47: 91.88928153 | BN47: 0 | BO47: 0 | BQ47: 23.32598525 | BR47: -0.04432411553 | BU47: 42.21569685 | BX47: 234.423 | BY47: 27.6703 | BZ47: -266.7612
A48: 40 | B48: 19.92513156 | C48: 0.01992513156 | D48: 1.000000173 | E48: 0.0005884084126 | G48: 0.9777070302 | H48: -0.001375461261 | I48: -0.001375461261 | K48: 1.000000219 | L48: -0.0006623210952 | N48: 15 | Q48: 18.13911118 | R48: -1.570796325 | S48: 1.000058282 | T48: 0.01079625016 | U48: 1.000036651 | V48: 0.00856150978 | W48: 0.9999998166 | X48: -0.0006056850809 | Y48: 0.9999999879 | Z48: -0.0001558125491 | AB48: 48.49914626 | AC48: -89.01755566 | AD48: 90.98244434 | AG48: 1 | AH48: 0.01079666965 | AI48: -1.10836992e-10 | AJ48: 7.113482949e-07 | AK48: 14958.71561 | AL48: -1405783.447 | AN48: 77500 | AO48: 46.94059951 | AP48: 1 | AQ48: 0.008561718971 | AR48: 77494.72129 | AS48: -616.5474259 | AU48: 9984.144744 | AV48: -397.8707951 | AX48: -409970195.9 | AY48: -1.404149705e+10 | AZ48: -1.599985078 | BA48: 773594910.5 | BB48: -49289987.03 | BC48: -0.06362948888 | BE48: 18.12195638 | BF48: 25.16410162 | BG48: -1.536355589 | BH48: -268.0266912 | BJ48: 48.49010497 | BK48: -88.10973418 | BL48: 91.89026582 | BM48: 91.89026582 | BN48: 0 | BO48: 0 | BQ48: 23.32600144 | BR48: -0.04509480651 | BU48: 42.06606242 | BX48: 239.883 | BY48: 27.2761 | BZ48: -267.5957
A49: 41 | B49: 20.27151596 | C49: 0.02027151596 | D49: 1.000000179 | E49: 0.0005986374765 | G49: 0.9777089107 | H49: -0.001399375394 | I49: -0.001399375394 | K49: 1.000000227 | L49: -0.000673835078 | N49: 15 | Q49: 17.82916371 | R49: -1.570796325 | S49: 1.000060326 | T49: 0.01098392041 | U49: 1.000037936 | V49: 0.008710338141 | W49: 0.9999998101 | X49: -0.0006162144873 | Y49: 0.9999999874 | Z49: -0.0001585212406 | AB49: 48.34949135 | AC49: -89.000478 | AD49: 90.999522 | AG49: 1 | AH49: 0.01098436216 | AI49: -1.147241348e-10 | AJ49: 7.237145846e-07 | AK49: 14958.71559 | AL49: -1381762.559 | AN49: 77500 | AO49: 47.75662881 | AP49: 1 | AQ49: 0.008710558432 | AR49: 77494.53618 | AS49: -627.2640567 | AU49: 9983.5896 | AV49: -404.7649917 | AX49: -409947433.2 | AY49: -1.380100507e+10 | AZ49: -1.600491767 | BA49: 773541453.1 | BB49: -49720655.2 | BC49: -0.06418835191 | BE49: 17.81243708 | BF49: 25.01446687 | BG49: -1.536303415 | BH49: -268.0237019 | BJ49: 48.34048704 | BK49: -88.10818867 | BL49: 91.89181133 | BM49: 91.89181133 | BN49: 0 | BO49: 0 | BQ49: 23.3260182 | BR49: -0.04587890324 | BU49: 41.91642767 | BX49: 245.471 | BY49: 27.0755 | BZ49: -266.8096
A50: 42 | B50: 20.623922 | C50: 0.020623922 | D50: 1.000000185 | E50: 0.0006090443653 | G50: 0.9777108572 | H50: -0.001423705402 | I50: -0.001423705402 | K50: 1.000000235 | L50: -0.0006855492231 | N50: 15 | Q50: 17.52451239 | R50: -1.570796325 | S50: 1.000062442 | T50: 0.01117485238 | U50: 1.000039267 | V50: 0.008861753382 | W50: 0.9999998035 | X50: -0.0006269269399 | Y50: 0.999999987 | Z50: -0.0001612770208 | AB50: 48.19983803 | AC50: -88.98310353 | AD50: 91.01689647 | AG50: 1 | AH50: 0.01117531757 | AI50: -1.187476027e-10 | AJ50: 7.362958535e-07 | AK50: 14958.71558 | AL50: -1358152.123 | AN50: 77500 | AO50: 48.58684421 | AP50: 1 | AQ50: 0.008861985363 | AR50: 77494.34457 | AS50: -638.1669031 | AU50: 9983.015052 | AV50: -411.7778475 | AX50: -409923874.8 | AY50: -1.356461275e+10 | AZ50: -1.601007226 | BA50: 773486127.2 | BB50: -50165939.96 | BC50: -0.06476622591 | BE50: 17.50820382 | BF50: 24.86483188 | BG50: -1.536241001 | BH50: -268.0201257 | BJ50: 48.19086947 | BK50: -88.10608146 | BL50: 91.89391854 | BM50: 91.89391854 | BN50: 0 | BO50: 0 | BQ50: 23.32603555 | BR50: -0.04667663918 | BU50: 41.76679268 | BX50: 251.189 | BY50: 27.0434 | BZ50: -265.9205
A51: 43 | B51: 20.98245437 | C51: 0.02098245437 | D51: 1.000000192 | E51: 0.0006196321704 | G51: 0.9777128719 | H51: -0.001448458521 | I51: -0.001448458521 | K51: 1.000000243 | L51: -0.0006974670103 | N51: 15 | Q51: 17.22506672 | R51: -1.570796325 | S51: 1.000064632 | T51: 0.01136910273 | U51: 1.000040644 | V51: 0.009015800454 | W51: 0.9999997966 | X51: -0.0006378256208 | Y51: 0.9999999865 | Z51: -0.0001640807083 | AB51: 48.05018638 | AC51: -88.9654271 | AD51: 91.0345729 | AG51: 1 | AH51: 0.0113695926 | AI51: -1.22912177e-10 | AJ51: 7.490958389e-07 | AK51: 14958.71557 | AL51: -1334945.125 | AN51: 77500 | AO51: 49.43149232 | AP51: 1 | AQ51: 0.009016044744 | AR51: 77494.14625 | AS51: -649.2591977 | AU51: 9982.420423 | AV51: -418.9113621 | AX51: -409899493 | AY51: -1.333224986e+10 | AZ51: -1.601531605 | BA51: 773428867.7 | BB51: -50625965.51 | BC51: -0.06536327987 | BE51: 17.20916649 | BF51: 24.71519672 | BG51: -1.536168325 | BH51: -268.0159618 | BJ51: 48.04125234 | BK51: -88.10341194 | BL51: 91.89658806 | BM51: 91.89658806 | BN51: 0 | BO51: 0 | BQ51: 23.32605351 | BR51: -0.04748825186 | BU51: 41.61715752 | BX51: 257.04 | BY51: 26.6776 | BZ51: -267.6031
A52: 44 | B52: 21.34721958 | C52: 0.02134721958 | D52: 1.000000199 | E52: 0.000630404037 | G52: 0.9777149573 | H52: -0.001473642114 | I52: -0.001473642114 | K52: 1.000000252 | L52: -0.0007095919796 | N52: 15 | Q52: 16.93073776 | R52: -1.570796325 | S52: 1.000066898 | T52: 0.01156672911 | U52: 1.000042069 | V52: 0.009172525086 | W52: 0.9999997895 | X52: -0.0006489137674 | Y52: 0.9999999861 | Z52: -0.000166933136 | AB52: 47.90053644 | AC52: -88.94744346 | AD52: 91.05255654 | AG52: 1 | AH52: 0.01156724497 | AI52: -1.272228062e-10 | AJ52: 7.621183431e-07 | AK52: 14958.71555 | AL52: -1312134.673 | AN52: 77500 | AO52: 50.29082403 | AP52: 1 | AQ52: 0.009172782339 | AR52: 77493.94097 | AS52: -660.5442291 | AU52: 9981.805015 | AV52: -426.167567 | AX52: -409874259.3 | AY52: -1.310384738e+10 | AZ52: -1.602065057 | BA52: 773369607.4 | BB52: -51100859.97 | BC52: -0.06597968833 | BE52: 16.9152365 | BF52: 24.56556149 | BG52: -1.536085369 | BH52: -268.0112087 | BJ52: 47.89163576 | BK52: -88.1001793 | BL52: 91.8998207 | BM52: 91.8998207 | BN52: 0 | BO52: 0 | BQ52: 23.32607209 | BR52: -0.04831398301 | BU52: 41.46752229 | BX52: 263.027 | BY52: 26.2703 | BZ52: -267.3229
A53: 45 | B53: 21.71832598 | C53: 0.02171832598 | D53: 1.000000206 | E53: 0.0006413631647 | G53: 0.9777171159 | H53: -0.001499263675 | I53: -0.001499263675 | K53: 1.000000261 | L53: -0.0007219277327 | N53: 15 | Q53: 16.64143806 | R53: -1.570796325 | S53: 1.000069244 | T53: 0.01176779015 | U53: 1.000043544 | V53: 0.009331973803 | W53: 0.9999997821 | X53: -0.0006601946735 | Y53: 0.9999999856 | Z53: -0.0001698351511 | AB53: 47.75088827 | AC53: -88.92914727 | AD53: 91.07085273 | AG53: 1 | AH53: 0.01176833338 | AI53: -1.316846126e-10 | AJ53: 7.753672344e-07 | AK53: 14958.71554 | AL53: -1289713.99 | AN53: 77500 | AO53: 51.16509463 | AP53: 1 | AQ53: 0.009332244707 | AR53: 77493.7285 | AS53: -672.0253429 | AU53: 9981.168104 | AV53: -433.548525 | AX53: -409848143.8 | AY53: -1.287933747e+10 | AZ53: -1.602607737 | BA53: 773308276.5 | BB53: -51590755.46 | BC53: -0.06661563139 | BE53: 16.62632678 | BF53: 24.41592624 | BG53: -1.535992105 | BH53: -268.0058651 | BJ53: 47.74201983 | BK53: -88.09638259 | BL53: 91.90361741 | BM53: 91.90361741 | BN53: 0 | BO53: 0 | BQ53: 23.32609133 | BR53: -0.04915407852 | BU53: 41.31788704 | BX53: 269.153 | BY53: 26.2359 | BZ53: -265.677
A54: 46 | B54: 22.0958838 | C54: 0.0220958838 | D54: 1.000000213 | E54: 0.000652512809 | G54: 0.9777193502 | H54: -0.001525330825 | I54: -0.001525330825 | K54: 1.00000027 | L54: -0.000734477934 | N54: 15 | Q54: 16.3570817 | R54: -1.570796325 | S54: 1.000071673 | T54: 0.01197234552 | U54: 1.000045072 | V54: 0.009494193938 | W54: 0.9999997744 | X54: -0.00067167169 | Y54: 0.9999999851 | Z54: -0.0001727876156 | AB54: 47.60124195 | AC54: -88.91053312 | AD54: 91.08946688 | AG54: 1 | AH54: 0.01197291758 | AI54: -1.363028982e-10 | AJ54: 7.888464483e-07 | AK54: 14958.71552 | AL54: -1267676.417 | AN54: 77500 | AO54: 52.05456381 | AP54: 1 | AQ54: 0.009494479216 | AR54: 77493.50857 | AS54: -683.7059427 | AU54: 9980.508941 | AV54: -441.0563316 | AX54: -409821116 | AY54: -1.265865345e+10 | AZ54: -1.603159803 | BA54: 773244803.1 | BB54: -52095788.07 | BC54: -0.06727129482 | BE54: 16.34235172 | BF54: 24.26629106 | BG54: -1.535888508 | BH54: -267.9999294 | BJ54: 47.59240464 | BK54: -88.09202067 | BL54: 91.90797933 | BM54: 91.90797933 | BN54: 0 | BO54: 0 | BQ54: 23.32611124 | BR54: -0.05000878864 | BU54: 41.16825186 | BX54: 275.423 | BY54: 25.8456 | BZ54: -266.4657
A55: 47 | B55: 22.48000519 | C55: 0.02248000519 | D55: 1.00000022 | E55: 0.0006638562818 | G55: 0.9777216628 | H55: -0.00155185132 | I55: -0.00155185132 | K55: 1.000000279 | L55: -0.0007472463114 | N55: 15 | Q55: 16.07758421 | R55: -1.570796325 | S55: 1.000074186 | T55: 0.01218045592 | U55: 1.000046652 | V55: 0.009659233642 | W55: 0.9999997665 | X55: -0.0006833482263 | Y55: 0.9999999845 | Z55: -0.0001757914067 | AB55: 47.45159753 | AC55: -88.89159546 | AD55: 91.10840454 | AG55: 1 | AH55: 0.01218105833 | AI55: -1.410831508e-10 | AJ55: 8.025599888e-07 | AK55: 14958.71551 | AL55: -1246015.406 | AN55: 77500 | AO55: 52.95949578 | AP55: 1 | AQ55: 0.009659534058 | AR55: 77493.28093 | AS55: -695.5894906 | AU55: 9979.826753 | AV55: -448.6931144 | AX55: -409793144 | AY55: -1.244172976e+10 | AZ55: -1.603721415 | BA55: 773179112.4 | BB55: -52616097.87 | BC55: -0.06794687004 | BE55: 16.06322718 | BF55: 24.11665603 | BG55: -1.535774545 | BH55: -267.9933998 | BJ55: 47.44279031 | BK55: -88.08709225 | BL55: 91.91290775 | BM55: 91.91290775 | BN55: 0 | BO55: 0 | BQ55: 23.32613185 | BR55: -0.05087836796 | BU55: 41.01861683 | BX55: 281.838 | BY55: 26.1068 | BZ55: -266.6757
A56: 48 | B56: 22.87080427 | C56: 0.02287080427 | D56: 1.000000228 | E56: 0.0006753969528 | G56: 0.9777240566 | H56: -0.001578833051 | I56: -0.001578833051 | K56: 1.000000289 | L56: -0.0007602366579 | N56: 15 | Q56: 15.80286256 | R56: -1.570796325 | S56: 1.000076788 | T56: 0.01239218308 | U56: 1.000048288 | V56: 0.009827141905 | W56: 0.9999997583 | X56: -0.0006952277506 | Y56: 0.999999984 | Z56: -0.0001788474166 | AB56: 47.30195508 | AC56: -88.8723287 | AD56: 91.1276713 | AG56: 1 | AH56: 0.01239281746 | AI56: -1.460310508e-10 | AJ56: 8.165119296e-07 | AK56: 14958.71549 | AL56: -1224724.524 | AN56: 77500 | AO56: 53.88015936 | AP56: 1 | AQ56: 0.009827458262 | AR56: 77493.04531 | AS56: -707.679509 | AU56: 9979.120738 | AV56: -456.4610343 | AX56: -409764195 | AY56: -1.222850197e+10 | AZ56: -1.604292738 | BA56: 773111127.5 | BB56: -53151828.98 | BC56: -0.06864255421 | BE56: 15.78887046 | BF56: 23.96702123 | BG56: -1.535650184 | BH56: -267.9862744 | BJ56: 47.29317692 | BK56: -88.08159587 | BL56: 91.91840413 | BM56: 91.91840413 | BN56: 0 | BO56: 0 | BQ56: 23.32615318 | BR56: -0.05176307554 | BU56: 40.86898203 | BX56: 288.403 | BY56: 25.7844 | BZ56: -268.0599
A57: 49 | B57: 23.26839711 | C57: 0.02326839711 | D57: 1.000000236 | E57: 0.00068713825 | G57: 0.9777265343 | H57: -0.001606284047 | I57: -0.001606284047 | K57: 1.000000299 | L57: -0.0007734528322 | N57: 15 | Q57: 15.53283515 | R57: -1.570796325 | S57: 1.000079481 | T57: 0.01260758983 | U57: 1.000049982 | V57: 0.009997968567 | W57: 0.9999997499 | X57: -0.000707313792 | Y57: 0.9999999834 | Z57: -0.000181956553 | AB57: 47.15231467 | AC57: -88.8527271 | AD57: 91.1472729 | AG57: 1 | AH57: 0.01260825787 | AI57: -1.511524775e-10 | AJ57: 8.307064151e-07 | AK57: 14958.71548 | AL57: -1203797.446 | AN57: 77500 | AO57: 54.81682802 | AP57: 1 | AQ57: 0.00999830171 | AR57: 77492.80143 | AS57: -719.979581 | AU57: 9978.390068 | AV57: -464.3622852 | AX57: -409734235.1 | AY57: -1.201890674e+10 | AZ57: -1.604873937 | BA57: 773040768.6 | BB57: -53703129.53 | BC57: -0.06935855024 | BE57: 15.51920023 | BF57: 23.81738673 | BG57: -1.535515387 | BH57: -267.9785511 | BJ57: 47.14356459 | BK57: -88.07552989 | BL57: 91.92447011 | BM57: 91.92447011 | BN57: 0 | BO57: 0 | BQ57: 23.32617526 | BR57: -0.05266317497 | BU57: 40.71934753 | BX57: 295.121 | BY57: 25.5811 | BZ57: -265.88
A58: 50 | B58: 23.67290182 | C58: 0.02367290182 | D58: 1.000000244 | E58: 0.0006990836612 | G58: 0.9777290989 | H58: -0.001634212476 | I58: -0.001634212476 | K58: 1.00000031 | L58: -0.00078689876 | N58: 15 | Q58: 15.26742177 | R58: -1.570796325 | S58: 1.000082268 | T58: 0.01282674008 | U58: 1.000051735 | V58: 0.01017176433 | W58: 0.9999997411 | X58: -0.0007196099405 | Y58: 0.9999999829 | Z58: -0.0001851197396 | AB58: 47.00267637 | AC58: -88.83278487 | AD58: 91.16721513 | AG58: 1 | AH58: 0.01282744357 | AI58: -1.564535169e-10 | AJ58: 8.451476618e-07 | AK58: 14958.71546 | AL58: -1183227.956 | AN58: 77500 | AO58: 55.76978001 | AP58: 1 | AQ58: 0.01017211515 | AR58: 77492.54899 | AS58: -732.4933517 | AU58: 9977.633885 | AV58: -472.3990948 | AX58: -409703229.1 | AY58: -1.181288183e+10 | AZ58: -1.60546518 | BA58: 772967953 | BB58: -54270151.69 | BC58: -0.0700950669 | BE58: 15.25413658 | BF58: 23.66775261 | BG58: -1.535370114 | BH58: -267.9702276 | BJ58: 46.99395342 | BK58: -88.06889251 | BL58: 91.93110749 | BM58: 91.93110749 | BN58: 0 | BO58: 0 | BQ58: 23.32619812 | BR58: -0.05357893446 | BU58: 40.56971341 | BX58: 301.995 | BY58: 24.917 | BZ58: -267.1358
A59: 51 | B59: 24.08443857 | C59: 0.02408443857 | D59: 1.000000253 | E59: 0.0007112367348 | G59: 0.9777317535 | H59: -0.00166262665 | I59: -0.00166262665 | K59: 1.00000032 | L59: -0.0008005784356 | N59: 15 | Q59: 15.00654356 | R59: -1.570796325 | S59: 1.000085153 | T59: 0.01304969883 | U59: 1.000053549 | V59: 0.01034858078 | W59: 0.999999732 | X59: -0.0007321198486 | Y59: 0.9999999823 | Z59: -0.000188337916 | AB59: 46.85304025 | AC59: -88.81249607 | AD59: 91.18750393 | AG59: 1 | AH59: 0.01305043965 | AI59: -1.619404679e-10 | AJ59: 8.598399593e-07 | AK59: 14958.71544 | AL59: -1163009.943 | AN59: 77500 | AO59: 56.73929841 | AP59: 1 | AQ59: 0.01034895022 | AR59: 77492.28771 | AS59: -745.2245293 | AU59: 9976.851303 | AV59: -480.5737246 | AX59: -409671140.7 | AY59: -1.161036604e+10 | AZ59: -1.60606664 | BA59: 772892595.4 | BB59: -54853051.69 | BC59: -0.07085231882 | BE59: 14.99360094 | BF59: 23.51811895 | BG59: -1.535214322 | BH59: -267.9613014 | BJ59: 46.84434351 | BK59: -88.06168176 | BL59: 91.93831824 | BM59: 91.93831824 | BN59: 0 | BO59: 0 | BQ59: 23.32622178 | BR59: -0.0545106269 | BU59: 40.42007976 | BX59: 309.03 | BY59: 24.8252 | BZ59: -265.0361
A60: 52 | B60: 24.50312959 | C60: 0.02450312959 | D60: 1.000000262 | E60: 0.0007236010808 | G60: 0.9777345012 | H60: -0.001691535026 | I60: -0.001691535026 | K60: 1.000000332 | L60: -0.0008144959224 | N60: 15 | Q60: 14.75012305 | R60: -1.570796325 | S60: 1.00008814 | T60: 0.01327653224 | U60: 1.000055427 | V60: 0.0105284704 | W60: 0.9999997226 | X60: -0.0007448472325 | Y60: 0.9999999816 | Z60: -0.0001916120381 | AB60: 46.7034064 | AC60: -88.79185469 | AD60: 91.20814531 | AG60: 1 | AH60: 0.01327731236 | AI60: -1.676198508e-10 | AJ60: 8.747876721e-07 | AK60: 14958.71542 | AL60: -1143137.403 | AN60: 77500 | AO60: 57.72567119 | AP60: 1 | AQ60: 0.01052885944 | AR60: 77492.01726 | AS60: -758.176886 | AU60: 9976.041405 | AV60: -488.8884707 | AX60: -409637932.2 | AY60: -1.14112992e+10 | AZ60: -1.606678491 | BA60: 772814607.6 | BB60: -55451989.86 | BC60: -0.07163052655 | BE60: 14.73751608 | BF60: 23.36848584 | BG60: -1.535047964 | BH60: -267.9517698 | BJ60: 46.69473498 | BK60: -88.05389551 | BL60: 91.94610449 | BM60: 91.94610449 | BN60: 0 | BO60: 0 | BQ60: 23.32624626 | BR60: -0.05545852998 | BU60: 40.27044664 | BX60: 316.228 | BY60: 24.722 | BZ60: -265.2184
A61: 53 | B61: 24.92909926 | C61: 0.02492909926 | D61: 1.000000271 | E61: 0.0007361803721 | G61: 0.9777373452 | H61: -0.001720946207 | I61: -0.001720946207 | K61: 1.000000343 | L61: -0.0008286553546 | N61: 15 | Q61: 14.49808406 | R61: -1.570796325 | S61: 1.000091231 | T61: 0.01350730758 | U61: 1.000057371 | V61: 0.01071148657 | W61: 0.9999997129 | X61: -0.0007577958727 | Y61: 0.999999981 | Z61: -0.0001949430785 | AB61: 46.55377488 | AC61: -88.77085461 | AD61: 91.22914539 | AG61: 1 | AH61: 0.0135081291 | AI61: -1.734984142e-10 | AJ61: 8.899952404e-07 | AK61: 14958.7154 | AL61: -1123604.431 | AN61: 77500 | AO61: 58.72919138 | AP61: 1 | AQ61: 0.01071189625 | AR61: 77491.73733 | AS61: -771.3542592 | AU61: 9975.203241 | AV61: -497.3456635 | AX61: -409603564.7 | AY61: -1.121562221e+10 | AZ61: -1.607300909 | BA61: 772733898.1 | BB61: -56067130.6 | BC61: -0.07242991665 | BE61: 14.48580608 | BF61: 23.21885334 | BG61: -1.534870993 | BH61: -267.9416301 | BJ61: 46.54512793 | BK61: -88.04553145 | BL61: 91.95446855 | BM61: 91.95446855 | BN61: 0 | BO61: 0 | BQ61: 23.32627161 | BR61: -0.05642292623 | BU61: 40.12081414 | BX61: 323.594 | BY61: 24.5962 | BZ61: -266.9949
A62: 54 | B62: 25.36247411 | C62: 0.02536247411 | D62: 1.00000028 | E62: 0.0007489783452 | G62: 0.9777402891 | H62: -0.001750868948 | I62: -0.001750868948 | K62: 1.000000355 | L62: -0.0008430609382 | N62: 15 | Q62: 14.25035172 | R62: -1.570796325 | S62: 1.00009443 | T62: 0.01374209331 | U62: 1.000059383 | V62: 0.01089768361 | W62: 0.9999997028 | X62: -0.0007709696157 | Y62: 0.9999999803 | Z62: -0.0001983320267 | AB62: 46.40414579 | AC62: -88.7494896 | AD62: 91.2505104 | AG62: 1 | AH62: 0.01374295842 | AI62: -1.795831435e-10 | AJ62: 9.054671815e-07 | AK62: 14958.71538 | AL62: -1104405.225 | AN62: 77500 | AO62: 59.75015705 | AP62: 1 | AQ62: 0.01089811503 | AR62: 77491.44759 | AS62: -784.7605527 | AU62: 9974.335831 | AV62: -505.9476686 | AX62: -409567998 | AY62: -1.102327693e+10 | AZ62: -1.607934075 | BA62: 772650372.5 | BB62: -56698642.39 | BC62: -0.07325072168 | BE62: 14.23839633 | BF62: 23.06922155 | BG62: -1.534683354 | BH62: -267.9308792 | BJ62: 46.39552248 | BK62: -88.03658709 | BL62: 91.96341291 | BM62: 91.96341291 | BN62: 0 | BO62: 0 | BQ62: 23.32629784 | BR62: -0.05740410316 | BU62: 39.97118235 | BX62: 331.131 | BY62: 24.3868 | BZ62: -265.0934
A63: 55 | B63: 25.80338288 | C63: 0.02580338288 | D63: 1.00000029 | E63: 0.0007619988018 | G63: 0.9777433362 | H63: -0.001781312157 | I63: -0.001781312157 | K63: 1.000000368 | L63: -0.0008577169524 | N63: 15 | Q63: 14.00685244 | R63: -1.570796325 | S63: 1.000097742 | T63: 0.01398095907 | U63: 1.000061465 | V63: 0.01108711678 | W63: 0.9999996924 | X63: -0.0007843723746 | Y63: 0.9999999796 | Z63: -0.0002017798893 | AB63: 46.25451921 | AC63: -88.72775333 | AD63: 91.27224667 | AG63: 1 | AH63: 0.01398187008 | AI63: -1.858812693e-10 | AJ63: 9.212080915e-07 | AK63: 14958.71536 | AL63: -1085534.083 | AN63: 77500 | AO63: 60.7888715 | AP63: 1 | AQ63: 0.01108757109 | AR63: 77491.14769 | AS63: -798.3997377 | AU63: 9973.438158 | AV63: -514.6968869 | AX63: -409531190.4 | AY63: -1.083420625e+10 | AZ63: -1.608578172 | BA63: 772563933.1 | BB63: -57346697.87 | BC63: -0.07409318034 | BE63: 13.99521346 | BF63: 22.91959054 | BG63: -1.534484992 | BH63: -267.9195139 | BJ63: 46.24591873 | BK63: -88.02705979 | BL63: 91.97294021 | BM63: 91.97294021 | BN63: 0 | BO63: 0 | BQ63: 23.326325 | BR63: -0.0584023533 | BU63: 39.82155134 | BX63: 338.844 | BY63: 24.1369 | BZ63: -266.4201
A64: 56 | B64: 26.25195654 | C64: 0.02625195654 | D64: 1.000000301 | E64: 0.0007752456097 | G64: 0.9777464901 | H64: -0.001812284895 | I64: -0.001812284895 | K64: 1.000000381 | L64: -0.0008726277507 | N64: 15 | Q64: 13.7675139 | R64: -1.570796325 | S64: 1.000101169 | T64: 0.01422397571 | U64: 1.000063621 | V64: 0.0112798423 | W64: 0.9999996816 | X64: -0.0007980081308 | Y64: 0.9999999789 | Z64: -0.0002052876907 | AB64: 46.10489522 | AC64: -88.70563934 | AD64: 91.29436066 | AG64: 1 | AH64: 0.01422493506 | AI64: -1.924002754e-10 | AJ64: 9.372226461e-07 | AK64: 14958.71534 | AL64: -1066985.398 | AN64: 77500 | AO64: 61.84564327 | AP64: 1 | AQ64: 0.01128032072 | AR64: 77490.83727 | AS64: -812.2758538 | AU64: 9972.509174 | AV64: -523.5957549 | AX64: -409493099 | AY64: -1.064835399e+10 | AZ64: -1.609233386 | BA64: 772474478.6 | BB64: -58011473.76 | BC64: -0.07495753745 | BE64: 13.75618537 | BF64: 22.76996039 | BG64: -1.534275849 | BH64: -267.9075309 | BJ64: 46.0963168 | BK64: -88.01694671 | BL64: 91.98305329 | BM64: 91.98305329 | BN64: 0 | BO64: 0 | BQ64: 23.3263531 | BR64: -0.0594179743 | BU64: 39.67192119 | BX64: 346.737 | BY64: 24.0404 | BZ64: -265.8794
A65: 57 | B65: 26.70832834 | C65: 0.02670832834 | D65: 1.000000311 | E65: 0.0007887227037 | G65: 0.9777497548 | H65: -0.001843796385 | I65: -0.001843796385 | K65: 1.000000394 | L65: -0.0008877977624 | N65: 15 | Q65: 13.53226499 | R65: -1.570796325 | S65: 1.000104717 | T65: 0.01447121529 | U65: 1.000065852 | V65: 0.01147591735 | W65: 0.9999996704 | X65: -0.0008118809347 | Y65: 0.9999999782 | Z65: -0.0002088564726 | AB65: 45.95527392 | AC65: -88.68314109 | AD65: 91.31685891 | AG65: 1 | AH65: 0.01447222555 | AI65: -1.991479082e-10 | AJ65: 9.535156025e-07 | AK65: 14958.71532 | AL65: -1048753.661 | AN65: 77500 | AO65: 62.92078627 | AP65: 1 | AQ65: 0.01147642116 | AR65: 77490.51597 | AS65: -826.3930107 | AU65: 9971.547792 | AV65: -532.6467449 | AX65: -409453679.1 | AY65: -1.046566496e+10 | AZ65: -1.609899906 | BA65: 772381904.6 | BB65: -58693150.96 | BC65: -0.07584404405 | BE65: 13.52124119 | BF65: 22.6203312 | BG65: -1.534055862 | BH65: -267.8949265 | BJ65: 45.94671682 | BK65: -88.00624487 | BL65: 91.99375513 | BM65: 91.99375513 | BN65: 0 | BO65: 0 | BQ65: 23.3263822 | BR65: -0.06045126906 | BU65: 39.522292 | BX65: 354.813 | BY65: 23.629 | BZ65: -265.9549
A66: 58 | B66: 27.17263384 | C66: 0.02717263384 | D66: 1.000000322 | E66: 0.0008024340872 | G66: 0.9777531339 | H66: -0.001875856008 | I66: -0.001875856008 | K66: 1.000000408 | L66: -0.0009032314936 | N66: 15 | Q66: 13.30103584 | R66: -1.570796325 | S66: 1.000108389 | T66: 0.01472275115 | U66: 1.000068161 | V66: 0.01167540013 | W66: 0.9999996589 | X66: -0.0008259949073 | Y66: 0.9999999774 | Z66: -0.0002124872954 | AB66: 45.8056554 | AC66: -88.66025189 | AD66: 91.33974811 | AG66: 1 | AH66: 0.01472381501 | AI66: -2.06132186e-10 | AJ66: 9.700918004e-07 | AK66: 14958.7153 | AL66: -1030833.456 | AN66: 77500 | AO66: 64.01461987 | AP66: 1 | AQ66: 0.01167593067 | AR66: 77490.1834 | AS66: -840.7553888 | AU66: 9970.552888 | AV66: -541.8523656 | AX66: -409412884.8 | AY66: -1.028608491e+10 | AZ66: -1.610577924 | BA66: 772286103 | BB66: -59391914.48 | BC66: -0.07675295746 | BE66: 13.29031124 | BF66: 22.47070303 | BG66: -1.533824967 | BH66: -267.8816972 | BJ66: 45.79711889 | BK66: -87.99495109 | BL66: 92.00504891 | BM66: 92.00504891 | BN66: 0 | BO66: 0 | BQ66: 23.32641231 | BR66: -0.06150254576 | BU66: 39.37266383 | BX66: 363.078 | BY66: 23.6126 | BZ66: -265.3916
A67: 59 | B67: 27.64501096 | C67: 0.02764501096 | D67: 1.000000333 | E67: 0.0008163838331 | G67: 0.9777566316 | H67: -0.001908473311 | I67: -0.001908473311 | K67: 1.000000422 | L67: -0.0009189335289 | N67: 15 | Q67: 13.07375776 | R67: -1.570796325 | S67: 1.000112191 | T67: 0.01497865787 | U67: 1.000070552 | V67: 0.01187834982 | W67: 0.9999996469 | X67: -0.0008403542409 | Y67: 0.9999999766 | Z67: -0.0002161812374 | AB67: 45.65603976 | AC67: -88.63696496 | AD67: 91.36303504 | AG67: 1 | AH67: 0.01497977817 | AI67: -2.133614081e-10 | AJ67: 9.869561639e-07 | AK67: 14958.71527 | AL67: -1013219.46 | AN67: 77500 | AO67: 65.127469 | AP67: 1 | AQ67: 0.01187890851 | AR67: 77489.83917 | AS67: -855.3672407 | AU67: 9969.523302 | AV67: -551.2151619 | AX67: -409370668.3 | AY67: -1.010956049e+10 | AZ67: -1.611267635 | BA67: 772186961.8 | BB67: -60107953.53 | BC67: -0.07768454131 | BE67: 13.06332704 | BF67: 22.32107599 | BG67: -1.533583094 | BH67: -267.8678389 | BJ67: 45.64752314 | BK67: -87.98306203 | BL67: 92.01693797 | BM67: 92.01693797 | BN67: 0 | BO67: 0 | BQ67: 23.32644348 | BR67: -0.06257211802 | BU67: 39.22303679 | BX67: 371.535 | BY67: 23.316 | BZ67: -265.2439
A68: 60 | B68: 28.12560003 | C68: 0.02812560003 | D68: 1.000000345 | E68: 0.0008305760853 | G68: 0.9777602519 | H68: -0.001941658008 | I68: -0.001941658008 | K68: 1.000000437 | L68: -0.0009349085326 | N68: 15 | Q68: 12.85036324 | R68: -1.570796325 | S68: 1.000116125 | T68: 0.01523901133 | U68: 1.000073026 | V68: 0.01208482664 | W68: 0.9999996345 | X68: -0.0008549632012 | Y68: 0.9999999758 | Z68: -0.000219939396 | AB68: 45.50642709 | AC68: -88.6132734 | AD68: 91.3867266 | AG68: 1 | AH68: 0.01524019108 | AI68: -2.208441648e-10 | AJ68: 1.004113702e-06 | AK68: 14958.71525 | AL68: -995906.4407 | AN68: 77500 | AO68: 66.25966423 | AP68: 1 | AQ68: 0.01208541497 | AR68: 77489.48287 | AS68: -870.2328925 | AU68: 9968.457831 | AV68: -560.7377157 | AX68: -409326980.5 | AY68: -9936039273 | AZ68: -1.611969237 | BA68: 772084365.4 | BB68: -60841461.45 | BC68: -0.07863906565 | BE68: 12.84022128 | BF68: 22.17145016 | BG68: -1.533330172 | BH68: -267.8533475 | BJ68: 45.4979297 | BK68: -87.97057416 | BL68: 92.02942584 | BM68: 92.02942584 | BN68: 0 | BO68: 0 | BQ68: 23.32647574 | BR68: -0.06366030493 | BU68: 39.07341096 | BX68: 380.189 | BY68: 23.2133 | BZ68: -265.4987
A69: 61 | B69: 28.6145438 | C69: 0.0286145438 | D69: 1.000000357 | E69: 0.0008450150594 | G69: 0.9777639993 | H69: -0.001975419981 | I69: -0.001975419981 | K69: 1.000000452 | L69: -0.00095116125 | N69: 15 | Q69: 12.63078591 | R69: -1.570796325 | S69: 1.000120197 | T69: 0.01550388873 | U69: 1.000075587 | V69: 0.01229489186 | W69: 0.9999996217 | X69: -0.0008698261275 | Y69: 0.999999975 | Z69: -0.0002237628876 | AB69: 45.35681751 | AC69: -88.58917019 | AD69: 91.41082981 | AG69: 1 | AH69: 0.01550513108 | AI69: -2.285893479e-10 | AJ69: 1.021569513e-06 | AK69: 14958.71522 | AL69: -978889.2551 | AN69: 77500 | AO69: 67.41154188 | AP69: 1 | AQ69: 0.01229551141 | AR69: 77489.11409 | AS69: -885.3567447 | AU69: 9967.355232 | AV69: -570.4226457 | AX69: -409281770.3 | AY69: -9765469728 | AZ69: -1.612682933 | BA69: 771978194.2 | BB69: -61592635.76 | BC69: -0.07961680696 | BE69: 12.62092777 | BF69: 22.02182562 | BG69: -1.533066126 | BH69: -267.8382188 | BJ69: 45.34833869 | BK69: -87.95748378 | BL69: 92.04251622 | BM69: 92.04251622 | BN69: 0 | BO69: 0 | BQ69: 23.32650914 | BR69: -0.06476743122 | BU69: 38.92378642 | BX69: 389.045 | BY69: 22.9552 | BZ69: -266.0672
A70: 62 | B70: 29.11198751 | C70: 0.02911198751 | D70: 1.00000037 | E70: 0.0008597050446 | G70: 0.9777678781 | H70: -0.002009769286 | I70: -0.002009769286 | K70: 1.000000468 | L70: -0.000967696509 | N70: 15 | Q70: 12.41496055 | R70: -1.570796325 | S70: 1.000124412 | T70: 0.01577336861 | U70: 1.000078238 | V70: 0.0125086078 | W70: 0.9999996084 | X70: -0.000884947435 | Y70: 0.9999999741 | Z70: -0.0002276528478 | AB70: 45.20721113 | AC70: -88.56464817 | AD70: 91.43535183 | AG70: 1 | AH70: 0.01577467687 | AI70: -2.366061607e-10 | AJ70: 1.03932878e-06 | AK70: 14958.7152 | AL70: -962162.8482 | AN70: 77500 | AO70: 68.58344412 | AP70: 1 | AQ70: 0.01250926023 | AR70: 77488.73237 | AS70: -900.7432738 | AU70: 9966.214222 | AV70: -580.272608 | AX70: -409234985.1 | AY70: -9597801195 | AZ70: -1.613408926 | BA70: 771868324.4 | BB70: -62361678.18 | BC70: -0.08061804824 | BE70: 12.40538148 | BF70: 21.87220247 | BG70: -1.532790878 | BH70: -267.8224483 | BJ70: 45.19875024 | BK70: -87.94378702 | BL70: 92.05621298 | BM70: 92.05621298 | BN70: 0 | BO70: 0 | BQ70: 23.3265437 | BR70: -0.06589382729 | BU70: 38.77416327 | BX70: 398.107 | BY70: 22.7385 | BZ70: -265.2319
A71: 63 | B71: 29.61807894 | C71: 0.02961807894 | D71: 1.000000383 | E71: 0.0008746504044 | G71: 0.9777718929 | H71: -0.002044716155 | I71: -0.002044716155 | K71: 1.000000485 | L71: -0.0009845192213 | N71: 15 | Q71: 12.20282306 | R71: -1.570796325 | S71: 1.000128775 | T71: 0.01604753085 | U71: 1.000080981 | V71: 0.01272603787 | W71: 0.9999995947 | X71: -0.0009003316154 | Y71: 0.9999999732 | Z71: -0.0002316104323 | AB71: 45.05760804 | AC71: -88.53970008 | AD71: 91.46029992 | AG71: 1 | AH71: 0.01604890853 | AI71: -2.449041297e-10 | AJ71: 1.05739678e-06 | AK71: 14958.71517 | AL71: -945722.2516 | AN71: 77500 | AO71: 69.77571904 | AP71: 1 | AQ71: 0.01272672492 | AR71: 77488.33727 | AS71: -916.3970336 | AU71: 9965.033471 | AV71: -590.2902959 | AX71: -409186570.4 | AY71: -9432983876 | AZ71: -1.614147425 | BA71: 771754628.1 | BB71: -63148794.58 | BC71: -0.08164307911 | BE71: 12.19351846 | BF71: 21.7225808 | BG71: -1.532504346 | BH71: -267.8060312 | BJ71: 45.04916449 | BK71: -87.92947982 | BL71: 92.07052018 | BM71: 92.07052018 | BN71: 0 | BO71: 0 | BQ71: 23.32657948 | BR71: -0.06703982937 | BU71: 38.6245416 | BX71: 407.38 | BY71: 22.7593 | BZ71: -265.7319
A72: 64 | B72: 30.1329684 | C72: 0.0301329684 | D72: 1.000000396 | E72: 0.0008898555784 | G72: 0.9777760486 | H72: -0.002080271 | I72: -0.002080271 | K72: 1.000000502 | L72: -0.001001634384 | N72: 15 | Q72: 11.99431041 | R72: -1.570796325 | S72: 1.000133291 | T72: 0.01632645674 | U72: 1.000083821 | V72: 0.01294724657 | W72: 0.9999995805 | X72: -0.0009159832384 | Y72: 0.9999999722 | Z72: -0.0002356368166 | AB72: 44.90800838 | AC72: -88.51431852 | AD72: 91.48568148 | AG72: 1 | AH72: 0.01632790752 | AI72: -2.534931151e-10 | AJ72: 1.075778879e-06 | AK72: 14958.71514 | AL72: -929562.5816 | AN72: 77500 | AO72: 70.98872083 | AP72: 1 | AQ72: 0.01294797008 | AR72: 77487.92831 | AS72: -932.3226563 | AU72: 9963.811604 | AV72: -600.4784405 | AX72: -409136469.8 | AY72: -9270968823 | AZ72: -1.614898641 | BA72: 771636973.1 | BB72: -63954195.06 | BC72: -0.08269219578 | BE72: 11.98527588 | BF72: 21.57296071 | BG72: -1.532206445 | BH72: -267.7889627 | BJ72: 44.89958158 | BK72: -87.91455794 | BL72: 92.08544206 | BM72: 92.08544206 | BN72: 0 | BO72: 0 | BQ72: 23.32661651 | BR72: -0.06820577959 | BU72: 38.47492151 | BX72: 416.869 | BY72: 22.4206 | BZ72: -265.2494
A73: 65 | B73: =min_f*EXP(A73*rr/668) -> 30.65680886 | C73: 0.03065680886 | D73: =SQRT((B73/Fesr)^2+1) -> 1.00000041 | E73: =ATAN(B73/Fesr) -> 0.0009053250833 | G73: =(Ro/(Ro+Rdcr))/SQRT((B73/(Q*Fo))^2+(1-(B73^2/Fo^2))^2) -> 0.9777803501 | H73: =-ATAN(B73*Fo/(Q*(Fo^2-B73^2))) -> -0.002116444412 | I73: =IF(H73>0,H73-Pi,H73) -> -0.002116444412 | K73: =SQRT((B73/Frhp)^2+1) -> 1.000000519 | L73: =-ATAN(B73/Frhp) -> -0.001019047081 | N73: 15 | Q73: =1/(2*Pi*_Rfb1*(Cc1ea_u+Cc2ea_u)*B73) -> 11.78936067 | R73: =-Pi/2 -> -1.570796325 | S73: =SQRT(1+(B73/Fz1_u)^2) -> 1.000137966 | T73: =ATAN2(Fz1_u,B73) -> 0.01661022895 | U73: =SQRT(1+(B73/Fz2_u)^2) -> 1.000086761 | V73: =ATAN2(Fz2_u,B73) -> 0.01317229953 | W73: =1/SQRT(1+(B73/Fp1_u)^2) -> 0.9999995658 | X73: =-ATAN2(Fp1_u,B73) -> -0.0009319069535 | Y73: =1/SQRT(1+(B73/Fp2_u)^2) -> 0.9999999713 | Z73: =-ATAN2(Fp2_u,B73) -> -0.0002397331967 | AB73: 44.75841225 | AC73: =(180/Pi)*(E73+I73+R73+T73+V73+X73+Z73+L73) -> -88.48849597 | AD73: 91.51150403 | AG73: 1 | AH73: =Rcea1_u*Cc1ea_u*B73*2*Pi -> 0.0166117567 | AI73: =-Rcea1_u*Cc1ea_u*Cc2ea_u*(B73*2*Pi)^2 -> -2.623833231e-10 | AJ73: =(Cc2ea_u+Cc1ea_u)*B73*2*Pi -> 1.094480538e-06 | AK73: 14958.71511 | AL73: -913679.0379 | AN73: =_Rfb1 -> 77500 | AO73: =_Rfb1*Rcea2_u*Cc3ea_u*B73*2*Pi -> 72.2228098 | AP73: 1 | AQ73: =(_Rfb1+Rcea2_u)*Cc3ea_u*B73*2*Pi -> 0.01317306143 | AR73: 77487.50502 | AS73: -948.5248537 | AU73: =Eadcg/(1+(Eadcg*B73/GBP)^2) -> 9962.547201 | AV73: =-(B73*Eadcg*Eadcg/GBP)/(1+(Eadcg*B73/GBP)^2) -> -610.8398106 | AX73: -409084625.1 | AY73: -9111707921 | AZ73: -1.615662788 | BA73: 771515222.4 | BB73: -64778093.86 | BC73: -0.08376570122 | BE73: =SQRT(AX73^2+AY73^2)/SQRT(BA73^2+BB73^2) -> 11.78059196 | BF73: 21.42334228 | BG73: -1.531897087 | BH73: =BG73*180/Pi-180 -> -267.7712378 | BJ73: 44.75000163 | BK73: =(180/Pi)*(E73+I73+BG73+L73) -> -87.89901696 | BL73: 92.10098304 | BM73: 92.10098304 | BN73: =SUM((BJ74<0)*(BJ73>0))*B73 -> 0 | BO73: 0 | BQ73: 23.32665485 | BR73: =(I73+E73)*180/Pi -> -0.0693920261 | BU73: 38.32530308 | BX73: 426.58 | BY73: 22.3737 | BZ73: -265.1406
A74: 66 | B74: 31.18975591 | C74: =B74/1000 -> 0.03118975591 | D74: 1.000000424 | E74: 0.0009210635141 | G74: 0.9777848025 | H74: -0.00215324717 | I74: -0.00215324717 | K74: 1.000000537 | L74: -0.001036762485 | N74: 15 | Q74: 11.58791295 | R74: -1.570796325 | S74: 1.000142804 | T74: 0.01689893159 | U74: 1.000089804 | V74: 0.01340126351 | W74: 0.9999995505 | X74: -0.0009481074907 | Y74: 0.9999999703 | Z74: -0.0002439007895 | AB74: =20*LOG(D74*N74*S74*U74*G74*Q74*W74*Y74*K74) -> 44.60881979 | AC74: -88.46222478 | AD74: =AC74+180 -> 91.53777522 | AG74: 1 | AH74: 0.01690054041 | AI74: -2.715853179e-10 | AJ74: 1.113507312e-06 | AK74: =AG74*AI74/(AI74^2+AJ74^2)+AH74*AJ74/(AI74^2+AJ74^2) -> 14958.71508 | AL74: =AH74*AI74/(AI74^2+AJ74^2)-AG74*AJ74/(AI74^2+AJ74^2) -> -898066.9023 | AN74: 77500 | AO74: 73.47835254 | AP74: 1 | AQ74: 0.01340206583 | AR74: =AN74*AP74/(AP74^2+AQ74^2)+AO74*AQ74/(AP74^2+AQ74^2) -> 77487.06689 | AS74: =AO74*AP74/(AP74^2+AQ74^2)-AN74*AQ74/(AP74^2+AQ74^2) -> -965.0084192 | AU74: 9961.238793 | AV74: -621.3772131 | AX74: -409030976 | AY74: -8955153871 | AZ74: =ATAN2(AX74,AY74) -> -1.616440086 | BA74: =AK74-AL74*AS74/_Rfb2+AK74*AR74/_Rfb2+AR74-AS74*AV74+AU74*AR74 -> 771389234.7 | BB74: =AL74+AL74*AR74/_Rfb2+AK74*AS74/_Rfb2+AS74+AS74*AU74+AR74*AV74 -> -65620709.43 | BC74: -0.08486390517 | BE74: 11.57940598 | BF74: =20*LOG(BE74) -> 21.27372561 | BG74: =AZ74-BC74 -> -1.531576181 | BH74: -267.7528512 | BJ74: =20*LOG(BE74*N74*G74*D74*K74) -> 44.6004248 | BK74: -87.88285229 | BL74: =IF(BK74>180,BK74-180,BK74+180) -> 92.11714771 | BM74: =IF(BL74>180,BL74-360,BL74) -> 92.11714771 | BN74: 0 | BO74: =IF(BN74>0,BM74,0) -> 0 | BQ74: =20*LOG(N74*G74*D74) -> 23.32669452 | BR74: -0.07059892317 | BU74: =20*LOG(BE74*7) -> 38.17568641 | BX74: 436.516 | BY74: 22.0741 | BZ74: -264.9151
A75: 67 | B75: 31.73196788 | C75: 0.03173196788 | D75: 1.000000439 | E75: 0.0009370755461 | G75: 0.9777894111 | H75: -0.002190690242 | I75: -0.002190690242 | K75: 1.000000556 | L75: -0.001054785858 | N75: 15 | Q75: 11.38990743 | R75: -1.570796325 | S75: 1.000147812 | T75: 0.01719265024 | U75: 1.000092953 | V75: 0.01363420643 | W75: 0.9999995348 | X75: -0.0009645896623 | Y75: 0.9999999692 | Z75: -0.000248140833 | AB75: 44.45923112 | AC75: -88.43549716 | AD75: 91.56450284 | AG75: 1 | AH75: 0.01719434441 | AI75: -2.811100342e-10 | AJ75: 1.132864853e-06 | AK75: 14958.71505 | AL75: -882721.5374 | AN75: 77500 | AO75: 74.75572201 | AP75: 1 | AQ75: 0.01363505132 | AR75: 77486.6134 | AS75: -981.7782283 | AU75: 9959.884859 | AV75: -632.0934928 | AX75: -408975460.2 | AY75: -8801260181 | AZ75: -1.617230755 | BA75: 771258863.7 | BB75: -66482264.41 | BC75: =ATAN2(BA75,BB75) -> -0.08598712422 | BE75: 11.38165824 | BF75: 21.12411081 | BG75: -1.53124363 | BH75: -267.7337975 | BJ75: 44.45085124 | BK75: -87.86605913 | BL75: 92.13394087 | BM75: 92.13394087 | BN75: 0 | BO75: 0 | BQ75: 23.32673559 | BR75: -0.07182683131 | BU75: 38.02607161 | BX75: 446.684 | BY75: 21.7611 | BZ75: -265.3082
A76: 68 | B76: 32.28360582 | C76: 0.03228360582 | D76: 1.000000454 | E76: 0.0009533659354 | G76: 0.9777941813 | H76: -0.002228784787 | I76: -0.002228784787 | K76: 1.000000576 | L76: -0.001073122555 | N76: 15 | Q76: 11.19528527 | R76: -1.570796325 | S76: 1.000152995 | T76: 0.01749147193 | U76: 1.000096213 | V76: 0.01387119737 | W76: 0.9999995185 | X76: -0.0009813583643 | Y76: 0.9999999681 | Z76: -0.0002524545866 | AB76: 44.30964638 | AC76: -88.4083052 | AD76: 91.5916948 | AG76: 1 | AH76: 0.017493256 | AI76: -2.909687898e-10 | AJ76: 1.152558912e-06 | AK76: 14958.71502 | AL76: -867638.3846 | AN76: 77500 | AO76: 76.05529765 | AP76: 1 | AQ76: 0.01387208709 | AR76: 77486.14402 | AS76: -998.8392407 | AU76: 9958.48383 | AV76: -642.991533 | AX76: -408918013.4 | AY76: -8649981150 | AZ76: -1.61803502 | BA76: 771123958.1 | BB76: -67362985.59 | BC76: -0.08713568187 | BE76: 11.18729008 | BF76: 20.97449798 | BG76: -1.530899338 | BH76: -267.714071 | BJ76: 44.30128108 | BK76: -87.84863252 | BL76: 92.15136748 | BM76: 92.15136748 | BN76: 0 | BO76: 0 | BQ76: 23.3267781 | BR76: -0.07307611738 | BU76: 37.87645878 | BX76: 457.088 | BY76: 21.6126 | BZ76: -265.6514
A77: 69 | B77: 32.84483359 | C77: 0.03284483359 | D77: 1.00000047 | E77: 0.0009699395212 | G77: 0.9777991189 | H77: -0.002267542159 | I77: -0.002267542159 | K77: 1.000000596 | L77: -0.00109177802 | N77: 15 | Q77: 11.00398867 | R77: -1.570796325 | S77: 1.000158361 | T77: 0.01779548522 | U77: 1.000099587 | V77: 0.01411230664 | W77: 0.9999995016 | X77: -0.0009984185778 | Y77: 0.999999967 | Z77: -0.0002568433318 | AB77: 44.1600657 | AC77: -88.38064083 | AD77: 91.61935917 | AG77: 1 | AH77: 0.01779736394 | AI77: -3.011733001e-10 | AJ77: 1.172595338e-06 | AK77: 14958.71498 | AL77: -852812.9636 | AN77: 77500 | AO77: 77.37746549 | AP77: 1 | AQ77: 0.01411324357 | AR77: 77485.65817 | AS77: -1016.196501 | AU77: 9957.03408 | AV77: -654.0742549 | AX77: -408858568.8 | AY77: -8501271853 | AZ77: -1.618853109 | BA77: 770984361.5 | BB77: -68263103.96 | BC77: -0.08830990862 | BE77: 10.99624383 | BF77: 20.82488722 | BG77: -1.530543201 | BH77: -267.6936659 | BJ77: 44.1517145 | BK77: -87.8305673 | BL77: 92.1694327 | BM77: 92.1694327 | BN77: 0 | BO77: 0 | BQ77: 23.3268221 | BR77: -0.0743471547 | BU77: 37.72684802 | BX77: 467.735 | BY77: 21.3672 | BZ77: -265.0501
A78: 70 | B78: 33.41581792 | C78: 0.03341581792 | D78: 1.000000487 | E78: 0.0009868012266 | G78: 0.9778042297 | H78: -0.002306973911 | I78: -0.002306973911 | K78: 1.000000617 | L78: -0.001110757798 | N78: 15 | Q78: 10.8159608 | R78: -1.570796325 | S78: 1.000163914 | T78: 0.01810478019 | U78: 1.000103079 | V78: 0.01435760574 | W78: 0.9999994841 | X78: -0.001015775371 | Y78: 0.9999999659 | Z78: -0.0002613083722 | AB78: 44.01048922 | AC78: -88.35249586 | AD78: 91.64750414 | AG78: 1 | AH78: 0.0181067586 | AI78: -3.117356907e-10 | AJ78: 1.192980083e-06 | AK78: 14958.71495 | AL78: -838240.8705 | AN78: 77500 | AO78: 78.7226183 | AP78: 1 | AQ78: 0.01435859238 | AR78: 77485.1553 | AS78: -1033.855142 | AU78: 9955.533931 | AV78: -665.3446182 | AX78: -408797057.7 | AY78: -8355088129 | AZ78: -1.619685256 | BA78: 770839912.5 | BB78: -69182854.66 | BC78: -0.08951014202 | BE78: 10.8084628 | BF78: 20.67527864 | BG78: -1.530175114 | BH78: -267.6725761 | BJ78: 44.00215164 | BK78: -87.81185811 | BL78: 92.18814189 | BM78: 92.18814189 | BN78: 0 | BO78: 0 | BQ78: 23.32686764 | BR78: -0.07564032316 | BU78: 37.57723944 | BX78: 478.63 | BY78: 21.1958 | BZ78: -264.3513
A79: 71 | B79: 33.99672841 | C79: 0.03399672841 | D79: 1.000000504 | E79: 0.00100395606 | G79: 0.9778095198 | H79: -0.002347091801 | I79: -0.002347091801 | K79: 1.000000639 | L79: -0.001130067524 | N79: 15 | Q79: 10.63114581 | R79: -1.570796325 | S79: 1.000169662 | T79: 0.01841944848 | U79: 1.000106694 | V79: 0.01460716741 | W79: 0.999999466 | X79: -0.001033433898 | Y79: 0.9999999647 | Z79: -0.0002658510343 | AB79: 43.8609171 | AC79: -88.32386195 | AD79: 91.67613805 | AG79: 1 | AH79: 0.01842153186 | AI79: -3.226685128e-10 | AJ79: 1.213719202e-06 | AK79: 14958.71491 | AL79: -823917.7767 | AN79: 77500 | AO79: 80.09115564 | AP79: 1 | AQ79: 0.01460820641 | AR79: 77484.63479 | AS79: -1051.820383 | AU79: 9953.981646 | AV79: -676.8056212 | AX79: -408733408.9 | AY79: -8211386569 | AZ79: -1.620531695 | BA79: 770690443.7 | BB79: -70122476.95 | BC79: -0.09073672676 | BE79: 10.62389127 | BF79: 20.52567235 | BG79: -1.529794969 | BH79: -267.6507953 | BJ79: 43.85259268 | BK79: -87.79249943 | BL79: 92.20750057 | BM79: 92.20750057 | BN79: 0 | BO79: 0 | BQ79: 23.32691478 | BR79: -0.07695600935 | BU79: 37.42763315 | BX79: 489.779 | BY79: 20.9448 | BZ79: -263.9108
A80: 72 | B80: 34.58773761 | C80: 0.03458773761 | D80: 1.000000522 | E80: 0.001021409118 | G80: 0.9778149955 | H80: -0.00238790779 | I80: -0.00238790779 | K80: 1.000000661 | L80: -0.001149712936 | N80: 15 | Q80: 10.44948879 | R80: -1.570796325 | S80: 1.000175612 | T80: 0.01873958331 | U80: 1.000110436 | V80: 0.01486106567 | W80: 0.9999994473 | X80: -0.001051399407 | Y80: 0.9999999634 | Z80: -0.0002704726672 | AB80: 43.71134948 | AC80: -88.29473062 | AD80: 91.70526938 | AG80: 1 | AH80: 0.01874177723 | AI80: -3.339847579e-10 | AJ80: 1.234818857e-06 | AK80: 14958.71488 | AL80: -809839.4274 | AN80: 77500 | AO80: 81.48348403 | AP80: 1 | AQ80: 0.0148621598 | AR80: 77484.09604 | AS80: -1070.097533 | AU80: 9952.375432 | AV80: -688.4603001 | AX80: -408667548.8 | AY80: -8070124502 | AZ80: -1.621392667 | BA80: 770535782.4 | BB80: -71082214.26 | BC80: -0.09199001472 | BE80: 10.44247448 | BF80: 20.37606845 | BG80: -1.529402652 | BH80: -267.6283172 | BJ80: 43.70303777 | BK80: -87.77248553 | BL80: 92.22751447 | BM80: 92.22751447 | BN80: 0 | BO80: 0 | BQ80: 23.32696358 | BR80: -0.0782946067 | BU80: 37.27802925 | BX80: 501.187 | BY80: 20.7819 | BZ80: -264.7826
A81: 73 | B81: 35.1890211 | C81: 0.0351890211 | D81: 1.00000054 | E81: 0.001039165584 | G81: 0.9778206633 | H81: -0.00242943405 | I81: -0.00242943405 | K81: 1.000000684 | L81: -0.001169699869 | N81: 15 | Q81: 10.2709358 | R81: -1.570796325 | S81: 1.00018177 | T81: 0.01906527952 | U81: 1.000114309 | V81: 0.01511937581 | W81: 0.9999994279 | X81: -0.001069677232 | Y81: 0.9999999621 | Z81: -0.000275174644 | AB81: 43.56178652 | AC81: -88.26509324 | AD81: 91.73490676 | AG81: 1 | AH81: 0.01906758984 | AI81: -3.456978728e-10 | AJ81: 1.256285314e-06 | AK81: 14958.71484 | AL81: -796001.6408 | AN81: 77500 | AO81: 82.90001708 | AP81: 1 | AQ81: 0.01512052799 | AR81: 77483.5384 | AS81: -1088.691994 | AU81: 9950.713432 | AV81: -700.3117298 | AX81: -408599401.3 | AY81: -7931259982 | AZ81: -1.622268412 | BA81: 770375750.1 | BB81: -72062314.1 | BC81: -0.09327036506 | BE81: 10.26415859 | BF81: 20.22646707 | BG81: -1.528998047 | BH81: -267.6051351 | BJ81: 43.5534871 | BK81: -87.75181048 | BL81: 92.24818952 | BM81: 92.24818952 | BN81: 0 | BO81: 0 | BQ81: 23.32701408 | BR81: -0.07965651555 | BU81: 37.12842787 | BX81: 512.861 | BY81: 20.6348 | BZ81: -265.043
A82: 74 | B82: 35.80075747 | C82: 0.03580075747 | D82: 1.000000559 | E82: 0.001057230734 | G82: 0.9778265299 | H82: -0.002471682966 | I82: -0.002471682966 | K82: 1.000000708 | L82: -0.001190034259 | N82: 15 | Q82: 10.09543379 | R82: -1.570796325 | S82: 1.000188144 | T82: 0.01939663358 | U82: 1.000118317 | V82: 0.01538217442 | W82: 0.9999994078 | X82: -0.001088272803 | Y82: 0.9999999608 | Z82: -0.0002799583614 | AB82: 43.41222839 | AC82: -88.23494104 | AD82: 91.76505896 | AG82: 1 | AH82: 0.01939906648 | AI82: -3.578217761e-10 | AJ82: 1.27812495e-06 | AK82: 14958.7148 | AL82: -782400.3062 | AN82: 77500 | AO82: 84.34117556 | AP82: 1 | AQ82: 0.01538338773 | AR82: 77482.96122 | AS82: -1107.60926 | AU82: 9948.993728 | AV82: -712.3630232 | AX82: -408528887.8 | AY82: -7794751775 | AZ82: -1.62315918 | BA82: 770210162.2 | BB82: -73063028.09 | BC82: -0.09457814429 | BE82: 10.08889068 | BF82: 20.07686833 | BG82: -1.528581036 | BH82: -267.5812421 | BJ82: 43.40394083 | BK82: -87.73046817 | BL82: 92.26953183 | BM82: 92.26953183 | BN82: 0 | BO82: 0 | BQ82: 23.32706636 | BR82: -0.08104214334 | BU82: 36.97882913 | BX82: 524.807 | BY82: 20.2436 | BZ82: -263.9557
A83: 75 | B83: 36.42312846 | C83: 0.03642312846 | D83: 1.000000578 | E83: 0.001075609932 | G83: 0.9778326024 | H83: -0.002514667142 | I83: -0.002514667142 | K83: 1.000000733 | L83: -0.001210722147 | N83: 15 | Q83: 9.922930618 | R83: -1.570796325 | S83: 1.000194742 | T83: 0.01973374363 | U83: 1.000122467 | V83: 0.01564953942 | W83: 0.9999993871 | X83: -0.001107191645 | Y83: 0.9999999594 | Z83: -0.0002848252403 | AB83: 43.26267526 | AC83: -88.20426508 | AD83: 91.79573492 | AG83: 1 | AH83: 0.0197363056 | AI83: -3.703708745e-10 | AJ83: 1.300344253e-06 | AK83: 14958.71476 | AL83: -769031.3835 | AN83: 77500 | AO83: 85.80738756 | AP83: 1 | AQ83: 0.01565081711 | AR83: 77482.3638 | AS83: -1126.854917 | AU83: 9947.21434 | AV83: -724.6173314 | AX83: -408455926.9 | AY83: -7660559350 | AZ83: -1.624065219 | BA83: 770038827.7 | BB83: -74084611.89 | BC83: -0.09591372633 | BE83: 9.916618743 | BF83: 19.92727233 | BG83: -1.528151493 | BH83: -267.5566311 | BJ83: 43.25439917 | BK83: -87.70845228 | BL83: 92.29154772 | BM83: 92.29154772 | BN83: 0 | BO83: 0 | BQ83: 23.32712047 | BR83: -0.0824519047 | BU83: 36.82923313 | BX83: 537.032 | BY83: 20.2926 | BZ83: -264.5682
A84: 76 | B84: 37.05631892 | C84: 0.03705631892 | D84: 1.000000599 | E84: 0.001094308639 | G84: 0.9778388878 | H84: -0.002558399401 | I84: -0.002558399401 | K84: 1.000000759 | L84: -0.001231769679 | N84: 15 | Q84: 9.753375054 | R84: -1.570796325 | S84: 1.000201571 | T84: 0.02007670949 | U84: 1.000126761 | V84: 0.01592155007 | W84: 0.9999993656 | X84: -0.001126439377 | Y84: 0.999999958 | Z84: -0.0002897767265 | AB84: 43.1131273 | AC84: -88.17305629 | AD84: 91.82694371 | AG84: 1 | AH84: 0.02007940739 | AI84: -3.833600799e-10 | AJ84: 1.322949824e-06 | AK84: 14958.71471 | AL84: -755890.9014 | AN84: 77500 | AO84: 87.29908863 | AP84: 1 | AQ84: 0.01592289555 | AR84: 77481.74544 | AS84: -1146.434651 | AU84: 9945.373217 | AV84: -737.0778434 | AX84: -408380434.8 | AY84: -7528642862 | AZ84: -1.624986785 | BA84: 769861549.6 | BB84: -75127325.21 | BC84: -0.0972774926 | BE84: 9.747291647 | BF84: 19.77767921 | BG84: -1.527709292 | BH84: -267.5312949 | BJ84: 43.10486228 | BK84: -87.6857563 | BL84: 92.3142437 | BM84: 92.3142437 | BN84: 0 | BO84: 0 | BQ84: 23.32717648 | BR84: -0.08388622157 | BU84: 36.67964001 | BX84: 549.541 | BY84: 19.992 | BZ84: -264.4762
A85: 77 | B85: 37.70051696 | C85: 0.03770051696 | D85: 1.00000062 | E85: 0.00111333241 | G85: 0.9778453939 | H85: -0.002602892793 | I85: -0.002602892793 | K85: 1.000000785 | L85: -0.001253183106 | N85: 15 | Q85: 9.586716728 | R85: -1.570796325 | S85: 1.00020864 | T85: 0.02042563272 | U85: 1.000131207 | V85: 0.01619828702 | W85: 0.9999993433 | X85: -0.001146021716 | Y85: 0.9999999565 | Z85: -0.0002948142907 | AB85: 42.96358469 | AC85: -88.14130542 | AD85: 91.85869458 | AG85: 1 | AH85: 0.02042847376 | AI85: -3.968048272e-10 | AJ85: 1.345948376e-06 | AK85: 14958.71467 | AL85: -742974.9565 | AN85: 77500 | AO85: 88.81672187 | AP85: 1 | AQ85: 0.01619970389 | AR85: 77481.10541 | AS85: -1166.354243 | AU85: 9943.468242 | AV85: -749.7477861 | AX85: -408302324.5 | AY85: -7398963147 | AZ85: -1.625924135 | BA85: 769678123.8 | BB85: -76191431.74 | BC85: -0.09866983206 | BE85: 9.580859139 | BF85: 19.6280891 | BG85: -1.527254303 | BH85: -267.5052259 | BJ85: 42.95533037 | BK85: -87.66237352 | BL85: 92.33762648 | BM85: 92.33762648 | BN85: 0 | BO85: 0 | BQ85: 23.32723445 | BR85: -0.08534552337 | BU85: 36.5300499 | BX85: 562.341 | BY85: 19.6823 | BZ85: -264.604
A86: 78 | B86: 38.35591392 | C86: 0.03835591392 | D86: 1.000000641 | E86: 0.001132686894 | G86: 0.9778521281 | H86: -0.002648160595 | I86: -0.002648160595 | K86: 1.000000813 | L86: -0.001274968789 | N86: 15 | Q86: 9.422906134 | R86: -1.570796325 | S86: 1.000215956 | T86: 0.02078061663 | U86: 1.000135808 | V86: 0.01647983229 | W86: 0.9999993203 | X86: -0.001165944479 | Y86: 0.999999955 | Z86: -0.0002999394294 | AB86: 42.81404762 | AC86: -88.10900307 | AD86: 91.89099693 | AG86: 1 | AH86: 0.02078360841 | AI86: -4.107210926e-10 | AJ86: 1.369346741e-06 | AK86: 14958.71463 | AL86: -730279.7121 | AN86: 77500 | AO86: 90.3607381 | AP86: 1 | AQ86: 0.01648132435 | AR86: 77480.44294 | AS86: -1186.619572 | AU86: 9941.497226 | AV86: -762.6304238 | AX86: =-AV86*AL86+AK86*AU86 -> -408221506.3 | AY86: =AU86*AL86+AK86*AV86 -> -7271481703 | AZ86: -1.626877531 | BA86: 769488339.9 | BB86: -77277199.14 | BC86: -0.1000911414 | BE86: 9.417271823 | BF86: 19.47850212 | BG86: -1.52678639 | BH86: -267.4784164 | BJ86: 42.80580364 | BK86: -87.63829702 | BL86: 92.36170298 | BM86: 92.36170298 | BN86: 0 | BO86: 0 | BQ86: 23.32729446 | BR86: -0.08683024713 | BU86: 36.38046292 | BX86: 575.44 | BY86: 19.596 | BZ86: -264.9076
A87: 79 | B87: 39.0227045 | C87: 0.0390227045 | D87: 1.000000664 | E87: 0.001152377841 | G87: 0.9778590987 | H87: -0.00269421632 | I87: -0.00269421632 | K87: 1.000000841 | L87: -0.0012971332 | N87: 15 | Q87: 9.261894612 | R87: -1.570796325 | S87: 1.000223529 | T87: 0.02114176631 | U87: 1.00014057 | V87: 0.01676626936 | W87: 0.9999992964 | X87: -0.001186213585 | Y87: 0.9999999534 | Z87: -0.0003051536651 | AB87: 42.66451628 | AC87: -88.07613969 | AD87: 91.92386031 | AG87: 1 | AH87: 0.02114491682 | AI87: -4.251254126e-10 | AJ87: 1.393151871e-06 | AK87: 14958.71458 | AL87: -717801.3971 | AN87: 77500 | AO87: 91.93159596 | AP87: 1 | AQ87: 0.01676784058 | AR87: 77479.75725 | AS87: -1207.236621 | AU87: 9939.457908 | AV87: -775.7290578 | AX87: -408137887.5 | AY87: -7146160683 | AZ87: -1.627847239 | BA87: 769291980 | BB87: -78384898.98 | BC87: -0.1015418248 | BE87: 9.256481147 | BF87: 19.32891842 | BG87: -1.526305415 | BH87: -267.4508586 | BJ87: 42.6562823 | BK87: -87.6135197 | BL87: 92.3864803 | BM87: 92.3864803 | BN87: 0 | BO87: 0 | BQ87: 23.32735657 | BR87: -0.0883408376 | BU87: 36.23087922 | BX87: 588.844 | BY87: 19.3732 | BZ87: -263.8817
A88: 80 | B88: 39.70108677 | C88: 0.03970108677 | D88: 1.000000687 | E88: 0.001172411101 | G88: 0.9778663138 | H88: -0.002741073716 | I88: -0.002741073716 | K88: 1.000000871 | L88: -0.001319682922 | N88: 15 | Q88: 9.103634333 | R88: -1.570796325 | S88: 1.000231367 | T88: 0.02150918866 | U88: 1.0001455 | V88: 0.0170576831 | W88: 0.9999992718 | X88: -0.001206835054 | Y88: 0.9999999518 | Z88: -0.0003104585466 | AB88: 42.51499088 | AC88: -88.04270555 | AD88: 91.95729445 | AG88: 1 | AH88: 0.02151250632 | AI88: -4.400349039e-10 | AJ88: 1.417370836e-06 | AK88: 14958.71453 | AL88: -705536.3049 | AN88: 77500 | AO88: 93.52976208 | AP88: 1 | AQ88: 0.01705933769 | AR88: 77479.04753 | AS88: -1228.211473 | AU88: 9937.347951 | AV88: -789.0470265 | AX88: -408051372.3 | AY88: -7022962883 | AZ88: -1.62883353 | BA88: 769088819.2 | BB88: -79514806.69 | BC88: -0.1030222945 | BE88: 9.098439385 | BF88: 19.17933812 | BG88: -1.525811235 | BH88: -267.4225442 | BJ88: 42.50676655 | BK88: -87.58803421 | BL88: 92.41196579 | BM88: 92.41196579 | BN88: 0 | BO88: 0 | BQ88: 23.32742086 | BR88: -0.08987774742 | BU88: 36.08129892 | BX88: 602.56 | BY88: 19.198 | BZ88: -264.0026
A89: 81 | B89: 40.39126223 | C89: 0.04039126223 | D89: 1.000000711 | E89: 0.001192792624 | G89: 0.9778737821 | H89: -0.002788746775 | I89: -0.002788746775 | K89: 1.000000901 | L89: -0.001342624654 | N89: 15 | Q89: 8.948078287 | R89: -1.570796325 | S89: 1.00023948 | T89: 0.02188299244 | U89: 1.000150602 | V89: 0.0173541599 | W89: 0.9999992462 | X89: -0.001227815011 | Y89: 0.9999999501 | Z89: -0.0003158556496 | AB89: 42.36547163 | AC89: -88.00869075 | AD89: 91.99130925 | AG89: 1 | AH89: 0.02188648611 | AI89: -4.554672829e-10 | AJ89: 1.442010831e-06 | AK89: 14958.71448 | AL89: -693480.792 | AN89: 77500 | AO89: 95.1557112 | AP89: 1 | AQ89: 0.01735590227 | AR89: 77478.31293 | AS89: -1249.550316 | AU89: 9935.164939 | AV89: -802.5877048 | AX89: -407961861.6 | AY89: -6901851731 | AZ89: -1.629836675 | BA89: 768878625.1 | BB89: -80667201.52 | BC89: -0.1045329705 | BE89: 8.943099629 | BF89: 19.02976138 | BG89: -1.525303705 | BH89: -267.3934649 | BJ89: 42.35725661 | BK89: -87.56183303 | BL89: 92.43816697 | BM89: 92.43816697 | BN89: 0 | BO89: 0 | BQ89: 23.32748741 | BR89: -0.09144143725 | BU89: 35.93172218 | BX89: 616.595 | BY89: 18.9837 | BZ89: -264.1331
A90: 82 | B90: 41.09343591 | C90: 0.04109343591 | D90: 1.000000736 | E90: 0.001213528465 | G90: 0.9778815124 | H90: -0.002837249734 | I90: -0.002837249734 | K90: 1.000000933 | L90: -0.001365965211 | N90: 15 | Q90: 8.795180265 | R90: -1.570796325 | S90: 1.000247878 | T90: 0.02226328825 | U90: 1.000155884 | V90: 0.0176557876 | W90: 0.9999992198 | X90: -0.00124915969 | Y90: 0.9999999484 | Z90: -0.0003213465775 | AB90: 42.21595873 | AC90: -87.97408523 | AD90: 92.02591477 | AG90: 1 | AH90: 0.02226696727 | AI90: -4.71440888e-10 | AJ90: 1.467079175e-06 | AK90: 14958.71443 | AL90: -681631.2775 | AN90: 77500 | AO90: 96.8099263 | AP90: 1 | AQ90: 0.01765762242 | AR90: 77477.55258 | AS90: -1271.259443 | AU90: 9932.906377 | AV90: -816.3545033 | AX90: -407869253 | AY90: -6782791277 | AZ90: -1.630856955 | BA90: 768661157.4 | BB90: -81842366.47 | BC90: -0.1060742806 | BE90: 8.790415767 | BF90: 18.88018833 | BG90: -1.524782674 | BH90: -267.363612 | BJ90: 42.20775272 | BK90: -87.53490841 | BL90: 92.46509159 | BM90: 92.46509159 | BN90: 0 | BO90: 0 | BQ90: 23.32755629 | BR90: -0.09303237594 | BU90: 35.78214913 | BX90: 630.957 | BY90: 18.8029 | BZ90: -263.7485
A91: 83 | B91: 41.80781639 | C91: 0.04180781639 | D91: 1.000000762 | E91: 0.001234624782 | G91: 0.9778895139 | H91: -0.00288659708 | I91: -0.00288659708 | K91: 1.000000966 | L91: -0.001389711525 | N91: 15 | Q91: 8.64489485 | R91: -1.570796325 | S91: 1.00025657 | T91: 0.02265018862 | U91: 1.00016135 | V91: 0.01796265559 | W91: 0.9999991924 | X91: -0.001270875429 | Y91: 0.9999999466 | Z91: -0.0003269329613 | AB91: 42.06645241 | AC91: -87.93887875 | AD91: 92.06112125 | AG91: 1 | AH91: 0.02265406283 | AI91: -4.879747003e-10 | AJ91: 1.492583314e-06 | AK91: 14958.71437 | AL91: -669984.2414 | AN91: 77500 | AO91: 98.49289876 | AP91: 1 | AQ91: 0.01796458777 | AR91: 77476.76559 | AS91: -1293.345257 | AU91: 9930.569687 | AV91: -830.3508681 | AX91: -407773441 | AY91: -6665746179 | AZ91: -1.631894649 | BA91: 768436168.1 | BB91: -83040588.23 | BC91: -0.1076466608 | BE91: 8.640342479 | BF91: 18.73061914 | BG91: -1.524247988 | BH91: -267.3329768 | BJ91: 42.05825511 | BK91: -87.5072524 | BL91: 92.4927476 | BM91: 92.4927476 | BN91: 0 | BO91: 0 | BQ91: 23.32762758 | BR91: -0.09465104065 | BU91: 35.63257994 | BX91: 645.654 | BY91: 18.5986 | BZ91: -263.7636
A92: 84 | B92: 42.53461586 | C92: 0.04253461586 | D92: 1.000000789 | E92: 0.001256087843 | G92: 0.9778977962 | H92: -0.002936803556 | I92: -0.002936803556 | K92: 1.000001 | L92: -0.00141387065 | N92: 15 | Q92: 8.497177399 | R92: -1.570796325 | S92: 1.000265567 | T92: 0.02304380803 | U92: 1.000167008 | V92: 0.0182748548 | W92: 0.9999991641 | X92: -0.00129296868 | Y92: 0.9999999447 | Z92: -0.0003326164604 | AB92: 41.9169529 | AC92: -87.90306091 | AD92: 92.09693909 | AG92: 1 | AH92: 0.02304788778 | AI92: -5.050883667e-10 | AJ92: 1.518530825e-06 | AK92: 14958.71432 | AL92: -658536.2239 | AN92: 77500 | AO92: 100.2051285 | AP92: 1 | AQ92: 0.01827688949 | AR92: 77475.95101 | AS92: -1315.814266 | AU92: 9928.152204 | AV92: -844.5802805 | AX92: -407674316.2 | AY92: -6550681698 | AZ92: -1.632950044 | BA92: 768203400.6 | BB92: -84262157.09 | BC92: -0.109250555 | BE92: 8.492835217 | BF92: 18.58105395 | BG92: -1.523699489 | BH92: -267.3015501 | BJ92: 41.90876402 | BK92: -87.47885683 | BL92: 92.52114317 | BM92: 92.52114317 | BN92: 0 | BO92: 0 | BQ92: 23.32770138 | BR92: -0.09629791701 | BU92: 35.48301475 | BX92: 660.693 | BY92: 18.468 | BZ92: -263.6098
A93: 85 | B93: 43.27405024 | C93: 0.04327405024 | D93: 1.000000817 | E93: 0.001277924023 | G93: 0.9779063691 | H93: -0.002987884164 | I93: -0.002987884164 | K93: 1.000001035 | L93: -0.001438449763 | N93: 15 | Q93: 8.351984032 | R93: -1.570796325 | S93: 1.00027488 | T93: 0.0234442629 | U93: 1.000172865 | V93: 0.01859247771 | W93: 0.9999991348 | X93: -0.001315446005 | Y93: 0.9999999427 | Z93: -0.0003383987632 | AB93: 41.76746045 | AC93: -87.8666211 | AD93: 92.1333789 | AG93: 1 | AH93: 0.02344855909 | AI93: -5.228022232e-10 | AJ93: 1.544929415e-06 | AK93: 14958.71426 | AL93: -647283.8245 | AN93: 77500 | AO93: 101.9471242 | AP93: 1 | AQ93: 0.01859462035 | AR93: 77475.10788 | AS93: -1338.673094 | AU93: 9925.651178 | AV93: -859.0462554 | AX93: -407571765.8 | AY93: -6437563683 | AZ93: -1.634023431 | BA93: 767962590.2 | BB93: -85507366.88 | BC93: -0.1108864155 | BE93: 8.347850192 | BF93: 18.43149294 | BG93: -1.523137015 | BH93: -267.2693227 | BJ93: 41.75927969 | BK93: -87.4497133 | BL93: 92.5502867 | BM93: 92.5502867 | BN93: 0 | BO93: 0 | BQ93: 23.32777777 | BR93: -0.09797349932 | BU93: 35.33345374 | BX93: 676.083 | BY93: 18.2744 | BZ93: -263.3252
A94: 86 | B94: 44.02633916 | C94: 0.04402633916 | D94: 1.000000845 | E94: 0.001300139808 | G94: 0.9779152428 | H94: -0.003039854171 | I94: -0.003039854171 | K94: 1.000001071 | L94: -0.001463456165 | N94: 15 | Q94: 8.20927162 | R94: -1.570796325 | S94: 1.000284519 | T94: 0.02385167168 | U94: 1.000178927 | V94: 0.01891561842 | W94: 0.9999991045 | X94: -0.001338314081 | Y94: 0.9999999407 | Z94: -0.0003442815871 | AB94: 41.6179753 | AC94: -87.82954856 | AD94: 92.17045144 | AG94: 1 | AH94: 0.0238561958 | AI94: -5.41137319e-10 | AJ94: 1.571786926e-06 | AK94: 14958.7142 | AL94: -636223.7006 | AN94: 77500 | AO94: 103.7194032 | AP94: 1 | AQ94: 0.01891787475 | AR94: 77474.23521 | AS94: -1361.928475 | AU94: 9923.063766 | AV94: -873.7523417 | AX94: -407465673.4 | AY94: -6326358562 | AZ94: -1.635115102 | BA94: 767713463.3 | BB94: -86776514.89 | BC94: -0.1125547025 | BE94: 8.205344366 | BF94: 18.28193625 | BG94: -1.5225604 | BH94: -267.2362851 | BJ94: 41.60980238 | BK94: -87.41981321 | BL94: 92.58018679 | BM94: 92.58018679 | BN94: 0 | BO94: 0 | BQ94: 23.32785683 | BR94: -0.09967829065 | BU94: 35.18389705 | BX94: 691.831 | BY94: 18.0926 | BZ94: -263.5782
A95: 87 | B95: 44.79170609 | C95: 0.04479170609 | D95: 1.000000875 | E95: 0.001322741798 | G95: 0.9779244279 | H95: -0.003092729113 | I95: -0.003092729113 | K95: 1.000001108 | L95: -0.001488897283 | N95: 15 | Q95: 8.06899777 | R95: -1.570796325 | S95: 1.000294495 | T95: 0.02426615484 | U95: 1.000185202 | V95: 0.01924437265 | W95: 0.9999990731 | X95: -0.001361579701 | Y95: 0.9999999387 | Z95: -0.0003502666798 | AB95: 41.46849769 | AC95: -87.79183231 | AD95: 92.20816769 | AG95: 1 | AH95: 0.02427091898 | AI95: -5.601154413e-10 | AJ95: 1.599111336e-06 | AK95: 14958.71414 | AL95: -625352.5667 | AN95: 77500 | AO95: 105.5224921 | AP95: 1 | AQ95: 0.01924674869 | AR95: 77473.33195 | AS95: -1385.587258 | AU95: 9920.387032 | AV95: -888.7021205 | AX95: -407355918.4 | AY95: -6217033334 | AZ95: -1.636225357 | BA95: 767455737.4 | BB95: -88069901.76 | BC95: -0.1142558849 | BE95: 8.065275433 | BF95: 18.13238407 | BG95: -1.521969472 | BH95: -267.2024274 | BJ95: 41.46033237 | BK95: -87.38914773 | BL95: 92.61085227 | BM95: 92.61085227 | BN95: 0 | BO95: 0 | BQ95: 23.32793867 | BR95: -0.101412803 | BU95: 35.03434487 | BX95: 707.946 | BY95: 17.887 | BZ95: -262.8499
A96: 88 | B96: 45.57037839 | C96: 0.04557037839 | D96: 1.000000906 | E96: 0.001345736706 | G96: 0.9779339353 | H96: -0.003146524799 | I96: -0.003146524799 | K96: 1.000001147 | L96: -0.001514780676 | N96: 15 | Q96: 7.931120814 | R96: -1.570796325 | S96: 1.000304822 | T96: 0.02468783495 | U96: 1.000191696 | V96: 0.01957883777 | W96: 0.9999990405 | X96: -0.001385249777 | Y96: 0.9999999365 | Z96: -0.0003563558191 | AB96: 41.31902791 | AC96: -87.75346122 | AD96: 92.24653878 | AG96: 1 | AH96: 0.02469285183 | AI96: -5.797591418e-10 | AJ96: 1.626910762e-06 | AK96: 14958.71407 | AL96: -614667.1937 | AN96: 77500 | AO96: 107.3569264 | AP96: 1 | AQ96: 0.01958133988 | AR96: 77472.39704 | AS96: -1409.656411 | AU96: 9917.617942 | AV96: -903.8992047 | AX96: -407242376.5 | AY96: -6109555559 | AZ96: -1.637354497 | BA96: 767189120.5 | BB96: -89387831.39 | BC96: -0.1159904395 | BE96: 7.927601812 | BF96: 17.98283656 | BG96: -1.521364058 | BH96: -267.1677397 | BJ96: 41.31086991 | BK96: -87.3577078 | BL96: 92.6422922 | BM96: 92.6422922 | BN96: 0 | BO96: 0 | BQ96: 23.32802338 | BR96: -0.1031775576 | BU96: 34.88479737 | BX96: 724.436 | BY96: 17.7536 | BZ96: -262.8169
A97: 89 | B97: 46.36258736 | C97: 0.04636258736 | D97: 1.000000937 | E97: 0.001369131363 | G97: 0.9779437763 | H97: -0.003201257318 | I97: -0.003201257318 | K97: 1.000001188 | L97: -0.001541114031 | N97: 15 | Q97: 7.795599796 | R97: -1.570796325 | S97: 1.000315511 | T97: 0.02511683666 | U97: 1.000198418 | V97: 0.01991911283 | W97: 0.9999990069 | X97: -0.001409331338 | Y97: 0.9999999343 | Z97: -0.0003625508138 | AB97: 41.16956622 | AC97: -87.71442395 | AD97: 92.28557605 | AG97: 1 | AH97: 0.02512211969 | AI97: -6.000917626e-10 | AJ97: 1.655193461e-06 | AK97: 14958.714 | AL97: -604164.4075 | AN97: 77500 | AO97: 109.223251 | AP97: 1 | AQ97: 0.0199217477 | AR97: 77471.42936 | AS97: -1434.143018 | AU97: 9914.753367 | AV97: -919.3472382 | AX97: -407124919.4 | AY97: -6003893346 | AZ97: -1.638502829 | BA97: 766913311.3 | BB97: -90730610.81 | BC97: -0.1177588518 | BE97: 7.79228263 | BF97: 17.83329392 | BG97: -1.520743977 | BH97: -267.1322117 | BJ97: 41.1614153 | BK97: -87.32548414 | BL97: 92.67451586 | BM97: 92.67451586 | BN97: 0 | BO97: 0 | BQ97: 23.32811107 | BR97: -0.1049730849 | BU97: 34.73525472 | BX97: 741.31 | BY97: 17.4164 | BZ97: -262.1972
A98: 90 | B98: 47.16856833 | C98: 0.04716856833 | D98: 1.00000097 | E98: 0.001392932718 | G98: 0.9779539627 | H98: -0.003256943044 | I98: -0.003256943044 | K98: 1.000001229 | L98: -0.001567905171 | N98: 15 | Q98: 7.662394459 | R98: -1.570796325 | S98: 1.000326574 | T98: 0.02555328677 | U98: 1.000205376 | V98: 0.02026529861 | W98: 0.9999989721 | X98: -0.001433831539 | Y98: 0.999999932 | Z98: -0.0003688535041 | AB98: 41.02011291 | AC98: -87.67470895 | AD98: 92.32529105 | AG98: 1 | AH98: 0.02555885007 | AI98: -6.211374649e-10 | AJ98: 1.683967835e-06 | AK98: 14958.71394 | AL98: -593841.0881 | AN98: 77500 | AO98: 111.1220204 | AP98: 1 | AQ98: 0.02026807326 | AR98: 77470.42778 | AS98: -1459.054286 | AU98: 9911.79007 | AV98: -935.0498943 | AX98: -407003414.5 | AY98: -5900015345 | AZ98: -1.639670664 | BA98: 766627998.6 | BB98: -92098550.1 | BC98: -0.1195616159 | BE98: 7.659277713 | BF98: 17.68375633 | BG98: -1.520109048 | BH98: -267.095833 | BJ98: 41.01196883 | BK98: -87.29246723 | BL98: 92.70753277 | BM98: 92.70753277 | BN98: 0 | BO98: 0 | BQ98: 23.32820182 | BR98: -0.1067999248 | BU98: 34.58571713 | BX98: 758.578 | BY98: 17.2832 | BZ98: -262.5669
A99: 91 | B99: 47.9885607 | C99: 0.0479885607 | D99: 1.000001004 | E99: 0.001417147841 | G99: 0.9779645065 | H99: -0.003313598639 | I99: -0.003313598639 | K99: 1.000001272 | L99: -0.001595162053 | N99: 15 | Q99: 7.531465234 | R99: -1.570796325 | S99: 1.000338025 | T99: 0.02599731426 | U99: 1.000212578 | V99: 0.02061749759 | W99: 0.999998936 | X99: -0.001458757656 | Y99: 0.9999999296 | Z99: -0.0003752657622 | AB99: 40.87066827 | AC99: -87.6343045 | AD99: 92.3656955 | AG99: 1 | AH99: 0.02600317269 | AI99: -6.429212569e-10 | AJ99: 1.713242431e-06 | AK99: 14958.71386 | AL99: -583694.1691 | AN99: 77500 | AO99: 113.0537985 | AP99: 1 | AQ99: 0.02062041946 | AR99: 77469.3911 | AS99: -1484.397541 | AU99: 9908.724714 | AV99: -951.0108748 | AX99: -406877724.7 | AY99: -5797890739 | AZ99: -1.640858317 | BA99: 766332860.9 | BB99: -93491962.23 | BC99: -0.1213992343 | BE99: 7.528547576 | BF99: 17.53422398 | BG99: -1.519459082 | BH99: -267.0585927 | BJ99: 40.8625308 | BK99: -87.25864734 | BL99: 92.74135266 | BM99: 92.74135266 | BN99: 0 | BO99: 0 | BQ99: 23.32829577 | BR99: -0.1086586269 | BU99: 34.43618478 | BX99: 776.247 | BY99: 17.0071 | BZ99: -262.7177
A100: 92 | B100: 48.82280807 | C100: 0.04882280807 | D100: 1.000001039 | E100: 0.001441783926 | G100: 0.9779754203 | H100: -0.003371241058 | I100: -0.003371241058 | K100: 1.000001317 | L100: -0.001622892775 | N100: 15 | Q100: 7.402773229 | R100: -1.570796325 | S100: 1.000349878 | T100: 0.02644905033 | U100: 1.000220033 | V100: 0.02097581406 | W100: 0.9999988987 | X100: -0.001484117095 | Y100: 0.9999999271 | Z100: -0.0003817894928 | AB100: 40.7212326 | AC100: -87.59319865 | AD100: 92.40680135 | AG100: 1 | AH100: 0.02645521956 | AI100: -6.65469024e-10 | AJ100: 1.743025945e-06 | AK100: 14958.71379 | AL100: -573720.6364 | AN100: 77500 | AO100: 115.0191593 | AP100: 1 | AQ100: 0.02097889095 | AR100: 77468.31809 | AS100: -1510.180238 | AU100: 9905.553849 | AV100: -967.2339088 | AX100: -406747708.7 | AY100: -5697489233 | AZ100: -1.642066106 | BA100: 766027566.4 | BB100: -94911162.91 | BC100: -0.1232722181 | BE100: 7.400053403 | BF100: 17.38469708 | BG100: -1.518793888 | BH100: -267.0204798 | BJ100: 40.71310152 | BK100: -87.22401449 | BL100: 92.77598551 | BM100: 92.77598551 | BN100: 0 | BO100: 0 | BQ100: 23.328393 | BR100: -0.1105497506 | BU100: 34.28665788 | BX100: 794.328 | BY100: 16.8354 | BZ100: -262.7938
A101: 93 | B101: 49.67155824 | C101: 0.04967155824 | D101: 1.000001076 | E101: 0.001466848289 | G101: 0.9779867172 | H101: -0.003429887559 | I101: -0.003429887559 | K101: 1.000001363 | L101: -0.001651105573 | N101: 15 | Q101: 7.276280217 | R101: -1.570796325 | S101: 1.000362146 | T101: 0.02690862844 | U101: 1.000227749 | V101: 0.02134035407 | W101: 0.9999988601 | X101: -0.001509917387 | Y101: 0.9999999246 | Z101: -0.0003884266339 | AB101: 40.57180622 | AC101: -87.55137928 | AD101: 92.44862072 | AG101: 1 | AH101: 0.02691512494 | AI101: -6.888075596e-10 | AJ101: 1.773327225e-06 | AK101: 14958.71371 | AL101: -563917.5271 | AN101: 77500 | AO101: 117.0186865 | AP101: 1 | AQ101: 0.02134359421 | AR101: 77467.20749 | AS101: -1536.409954 | AU101: 9902.273916 | AV101: -983.7227511 | AX101: -406613220.6 | AY101: -5598781047 | AZ101: -1.643294356 | BA101: 765711772.7 | BB101: -96356470.51 | BC101: -0.1251810872 | BE101: 7.273757047 | BF101: 17.23517582 | BG101: -1.518113268 | BH101: -266.9814832 | BJ101: 40.56368131 | BK101: -87.18855845 | BL101: 92.81144155 | BM101: 92.81144155 | BN101: 0 | BO101: 0 | BQ101: 23.32849365 | BR101: -0.1124738653 | BU101: 34.13713662 | BX101: 812.831 | BY101: 16.6614 | BZ101: -262.2369
A102: 94 | B102: 50.53506334 | C102: 0.05053506334 | D102: 1.000001114 | E102: 0.001492348378 | G102: 0.9779984105 | H102: -0.003489555704 | I102: -0.003489555704 | K102: 1.000001411 | L102: -0.001679808829 | N102: 15 | Q102: 7.151948621 | R102: -1.570796325 | S102: 1.000374845 | T102: 0.02737618432 | U102: 1.000235735 | V102: 0.02171122554 | W102: 0.9999988201 | X102: -0.001536166198 | Y102: 0.9999999219 | Z102: -0.000395179157 | AB102: 40.42238945 | AC102: -87.50883403 | AD102: 92.49116597 | AG102: 1 | AH102: 0.02738302545 | AI102: -7.129645964e-10 | AJ102: 1.804155272e-06 | AK102: 14958.71363 | AL102: -554281.9295 | AN102: 77500 | AO102: 119.052974 | AP102: 1 | AQ102: 0.02171463758 | AR102: 77466.05797 | AS102: -1563.094399 | AU102: 9898.88124 | AV102: -1000.481181 | AX102: -406474109.6 | AY102: -5501736905 | AZ102: -1.644543393 | BA102: 765385126 | BB102: -97828205.81 | BC102: -0.1271263702 | BE102: 7.149621008 | BF102: 17.08566042 | BG102: -1.517417023 | BH102: -266.9415913 | BJ102: 40.41427051 | BK102: -87.15226877 | BL102: 92.84773123 | BM102: 92.84773123 | BN102: 0 | BO102: 0 | BQ102: 23.32859783 | BR102: -0.1144315508 | BU102: 33.98762122 | BX102: 831.764 | BY102: 16.5098 | BZ102: -262.3432
A103: 95 | B103: 51.41357986 | C103: 0.05141357986 | D103: 1.000001153 | E103: 0.001518291765 | G103: 0.9780105142 | H103: -0.003550263365 | I103: -0.003550263365 | K103: 1.00000146 | L103: -0.001709011067 | N103: 15 | Q103: 7.02974151 | R103: -1.570796325 | S103: 1.000387988 | T103: 0.02785185605 | U103: 1.000244001 | V103: 0.02208853821 | W103: 0.9999987787 | X103: -0.001562871324 | Y103: 0.9999999192 | Z103: -0.0004020490679 | AB103: 40.27298264 | AC103: -87.46555034 | AD103: 92.53444966 | AG103: 1 | AH103: 0.02785906009 | AI103: -7.3796884e-10 | AJ103: 1.835519242e-06 | AK103: 14958.71355 | AL103: -544810.9812 | AN103: 77500 | AO103: 121.1226262 | AP103: 1 | AQ103: 0.02209213127 | AR103: 77464.86818 | AS103: -1590.241411 | AU103: 9895.372028 | AV103: -1017.513 | AX103: -406330220.3 | AY103: -5406328029 | AZ103: -1.64581355 | BA103: 765047261.4 | BB103: -99326691.9 | BC103: -0.1291086046 | BE103: 7.027608431 | BF103: 16.9361511 | BG103: -1.516704945 | BH103: -266.9007922 | BJ103: 40.26486945 | BK103: -87.11513474 | BL103: 92.88486526 | BM103: 92.88486526 | BN103: 0 | BO103: 0 | BQ103: 23.32870567 | BR103: -0.1164233969 | BU103: 33.8381119 | BX103: 851.138 | BY103: 16.2768 | BZ103: -262.197
A104: 96 | B104: 52.30736878 | C104: 0.05230736878 | D104: 1.000001193 | E104: 0.001544686157 | G104: 0.9780230426 | H104: -0.003612028733 | I104: -0.003612028733 | K104: 1.000001512 | L104: -0.001738720963 | N104: 15 | Q104: 6.909622583 | R104: -1.570796325 | S104: 1.000401593 | T104: 0.02833578405 | U104: 1.000252558 | V104: 0.02247240375 | W104: 0.9999987359 | X104: -0.001590040697 | Y104: 0.9999999163 | Z104: -0.0004090384073 | AB104: 40.12358613 | AC104: -87.42151544 | AD104: 92.57848456 | AG104: 1 | AH104: 0.02834337025 | AI104: -7.638500026e-10 | AJ104: 1.867428452e-06 | AK104: 14958.71347 | AL104: -535501.8688 | AN104: 77500 | AO104: 123.2282578 | AP104: 1 | AQ104: 0.02247618743 | AR104: 77463.6367 | AS104: -1617.85896 | AU104: 9891.742365 | AV104: -1034.822032 | AX104: -406181392.1 | AY104: -5312526129 | AZ104: -1.647105162 | BA104: 764697802.1 | BB104: -100852254 | BC104: -0.1311283367 | BE104: 6.907683088 | BF104: 16.78664809 | BG104: -1.515976826 | BH104: -266.859074 | BJ104: 40.11547851 | BK104: -87.07714543 | BL104: 92.92285457 | BM104: 92.92285457 | BN104: 0 | BO104: 0 | BQ104: 23.32881729 | BR104: -0.1184500045 | BU104: 33.68860889 | BX104: 870.964 | BY104: 16.1061 | BZ104: -261.768
A105: 97 | B105: 53.21669559 | C105: 0.05321669559 | D105: 1.000001235 | E105: 0.001571539396 | G105: 0.9780360108 | H105: -0.003674870319 | I105: -0.003674870319 | K105: 1.000001565 | L105: -0.001768947341 | N105: 15 | Q105: 6.791556157 | R105: -1.570796325 | S105: 1.000415674 | T105: 0.02882811118 | U105: 1.000261414 | V105: 0.02286293572 | W105: 0.9999986916 | X105: -0.001617682388 | Y105: 0.9999999134 | Z105: -0.0004161492515 | AB105: 39.97420028 | AC105: -87.37671634 | AD105: 92.62328366 | AG105: 1 | AH105: 0.0288360998 | AI105: -7.906388385e-10 | AJ105: 1.899892382e-06 | AK105: 14958.71338 | AL105: -526351.8272 | AN105: 77500 | AO105: 125.3704944 | AP105: 1 | AQ105: 0.02286692014 | AR105: 77462.36207 | AS105: -1645.955153 | AU105: 9887.988209 | AV105: -1052.412117 | AX105: -406027459.3 | AY105: -5220303393 | AZ105: -1.648418571 | BA105: 764336359.4 | BB105: -102405219.1 | BC105: -0.1331861217 | BE105: 6.78980937 | BF105: 16.63715163 | BG105: -1.515232449 | BH105: -266.8164244 | BJ105: 39.96609803 | BK105: -87.03828962 | BL105: 92.96171038 | BM105: 92.96171038 | BN105: 0 | BO105: 0 | BQ105: 23.32893282 | BR105: -0.1205119849 | BU105: 33.53911243 | BX105: 891.251 | BY105: 15.8824 | BZ105: -261.3831
A106: 98 | B106: 54.1418304 | C106: 0.0541418304 | D106: 1.000001278 | E106: 0.001598859456 | G106: 0.9780494342 | H106: -0.003738806963 | I106: -0.003738806963 | K106: 1.000001619 | L106: -0.00179969918 | N106: 15 | Q106: 6.675507161 | R106: -1.570796325 | S106: 1.000430249 | T106: 0.02932898272 | U106: 1.000270581 | V106: 0.02326024965 | W106: 0.9999986457 | X106: -0.001645804608 | Y106: 0.9999999104 | Z106: -0.0004233837126 | AB106: 39.82482546 | AC106: -87.33113982 | AD106: 92.66886018 | AG106: 1 | AH106: 0.02933739511 | AI106: -8.183671804e-10 | AJ106: 1.932920675e-06 | AK106: 14958.71329 | AL106: -517358.1382 | AN106: 77500 | AO106: 127.5499723 | AP106: 1 | AQ106: 0.02326444546 | AR106: 77461.0428 | AS106: -1674.538233 | AU106: 9884.105393 | AV106: -1070.287116 | AX106: -405868250.9 | AY106: -5129632482 | AZ106: -1.64975412 | BA106: 763962532.1 | BB106: -103985916.1 | BC106: -0.1352825239 | BE106: 6.67395228 | BF106: 16.48766194 | BG106: -1.514471596 | BH106: -266.7728307 | BJ106: 39.81672841 | BK106: -86.99855588 | BL106: 93.00144412 | BM106: 93.00144412 | BN106: 0 | BO106: 0 | BQ106: 23.32905241 | BR106: -0.1226099606 | BU106: 33.38962274 | BX106: 912.011 | BY106: 15.6715 | BZ106: -261.7487
A107: 99 | B107: 55.08304804 | C107: 0.05508304804 | D107: 1.000001323 | E107: 0.001626654455 | G107: 0.9780633287 | H107: -0.003803857841 | I107: -0.003803857841 | K107: 1.000001676 | L107: -0.001830985615 | N107: 15 | Q107: 6.561441123 | R107: -1.570796325 | S107: 1.000445335 | T107: 0.02983854646 | U107: 1.000280069 | V107: 0.02366446307 | W107: 0.9999985982 | X107: -0.00167441571 | Y107: 0.9999999072 | Z107: -0.0004307439397 | AB107: 39.67546206 | AC107: -87.28477244 | AD107: 92.71522756 | AG107: 1 | AH107: 0.02984740508 | AI107: -8.470679777e-10 | AJ107: 1.966523141e-06 | AK107: 14958.7132 | AL107: -508518.1304 | AN107: 77500 | AO107: 129.7673388 | AP107: 1 | AQ107: 0.02366888148 | AR107: 77459.6773 | AS107: -1703.616583 | AU107: 9880.089613 | AV107: -1088.450902 | AX107: -405703590.6 | AY107: -5040486523 | AZ107: -1.651112158 | BA107: 763575906.3 | BB107: -105594675.3 | BC107: -0.1374181166 | BE107: 6.560077415 | BF107: 16.33817929 | BG107: -1.513694042 | BH107: -266.7282802 | BJ107: 39.66737004 | BK107: -86.95793249 | BL107: 93.04206751 | BM107: 93.04206751 | BN107: 0 | BO107: 0 | BQ107: 23.32917619 | BR107: -0.1247445653 | BU107: 33.24014009 | BX107: 933.254 | BY107: 15.4714 | BZ107: -261.2073
A108: 100 | B108: 56.04062808 | C108: 0.05604062808 | D108: 1.000001369 | E108: 0.001654932647 | G108: 0.9780777109 | H108: -0.003870042468 | I108: -0.003870042468 | K108: 1.000001735 | L108: -0.001862815939 | N108: 15 | Q108: 6.449324159 | R108: -1.570796325 | S108: 1.000460949 | T108: 0.03035695269 | U108: 1.00028989 | V108: 0.02407569552 | W108: 0.999998549 | X108: -0.001703524193 | Y108: 0.999999904 | Z108: -0.0004382321191 | AB108: 39.52611049 | AC108: -87.23760052 | AD108: 92.76239948 | AG108: 1 | AH108: 0.03036628122 | AI108: -8.76775335e-10 | AJ108: 2.000709762e-06 | AK108: 14958.7131 | AL108: -499829.1777 | AN108: 77500 | AO108: 132.0232527 | AP108: 1 | AQ108: 0.02408034833 | AR108: 77458.26397 | AS108: -1733.198725 | AU108: 9875.936433 | AV108: -1106.907361 | AX108: -405533296.5 | AY108: -4952839096 | AZ108: -1.652493039 | BA108: 763176055 | BB108: -107231828.1 | BC108: -0.139593482 | BE108: 6.448150964 | BF108: 16.18870393 | BG108: -1.512899557 | BH108: -266.6827595 | BJ108: 39.51802332 | BK108: -86.91640748 | BL108: 93.08359252 | BM108: 93.08359252 | BN108: 0 | BO108: 0 | BQ108: 23.32930432 | BR108: -0.1269164441 | BU108: 33.09066473 | BX108: 954.993 | BY108: 15.3525 | BZ108: -261.2661
A109: 101 | B109: 57.01485497 | C109: 0.05701485497 | D109: 1.000001417 | E109: 0.001683702433 | G109: 0.978092598 | H109: -0.003937380708 | I109: -0.003937380708 | K109: 1.000001796 | L109: -0.001895199607 | N109: 15 | Q109: 6.339122966 | R109: -1.570796325 | S109: 1.000477111 | T109: 0.0308843543 | U109: 1.000300055 | V109: 0.02449406859 | W109: 0.9999984981 | X109: -0.001733138704 | Y109: 0.9999999006 | Z109: -0.0004458504752 | AB109: 39.37677115 | AC109: -87.18961017 | AD109: 92.81038983 | AG109: 1 | AH109: 0.03089417766 | AI109: -9.075245534e-10 | AJ109: 2.035490694e-06 | AK109: 14958.713 | AL109: -491288.6992 | AN109: 77500 | AO109: 134.3183841 | AP109: 1 | AQ109: 0.02449896825 | AR109: 77456.80113 | AS109: -1763.293328 | AU109: 9871.641272 | AV109: -1125.660391 | AX109: -405357180.6 | AY109: -4866664231 | AZ109: -1.653897119 | BA109: 762762537.7 | BB109: -108897707 | BC109: -0.1418092117 | BE109: 6.33813969 | BF109: 16.03923613 | BG109: -1.512087907 | BH109: -266.6362554 | BJ109: 39.36868867 | BK109: -86.87396864 | BL109: 93.12603136 | BM109: 93.12603136 | BN109: 0 | BO109: 0 | BQ109: 23.32943694 | BR109: -0.1291262537 | BU109: 32.94119693 | BX109: 977.237 | BY109: 15.0807 | BZ109: -260.9324
A110: 102 | B110: 58.00601812 | C110: 0.05800601812 | D110: 1.000001467 | E110: 0.001712972358 | G110: 0.9781080076 | H110: -0.004005892776 | I110: -0.004005892776 | K110: 1.000001859 | L110: -0.001928146238 | N110: 15 | Q110: 6.230804808 | R110: -1.570796325 | S110: 1.00049384 | T110: 0.03142090678 | U110: 1.000310576 | V110: 0.02491970598 | W110: 0.9999984454 | X110: -0.00176326804 | Y110: 0.9999998971 | Z110: -0.000453601271 | AB110: 39.22744448 | AC110: -87.14078723 | AD110: 92.85921277 | AG110: 1 | AH110: 0.0314312512 | AI110: -9.393521716e-10 | AJ110: 2.070876268e-06 | AK110: 14958.71289 | AL110: -482894.1579 | AN110: 77500 | AO110: 136.6534147 | AP110: 1 | AQ110: 0.02492486558 | AR110: 77455.28705 | AS110: -1793.909203 | AU110: 9867.19941 | AV110: -1144.713895 | AX110: -405175049.6 | AY110: -4781936397 | AZ110: -1.65532476 | BA110: 762334900.2 | BB110: -110592645.3 | BC110: -0.1440659063 | BE110: 6.230010928 | BF110: 15.88977617 | BG110: -1.511258853 | BH110: -266.5887542 | BJ110: 39.21936653 | BK110: -86.83060346 | BL110: 93.16939654 | BM110: 93.16939654 | BN110: 0 | BO110: 0 | BQ110: 23.32957421 | BR110: -0.1313746628 | BU110: 32.79173697 | BX110: 1000 | BY110: 14.8838 | BZ110: -260.5154
A111: 103 | B111: 59.01441193 | C111: 0.05901441193 | D111: 1.000001519 | E111: 0.001742751118 | G111: 0.9781239581 | H111: -0.004075599248 | I111: -0.004075599248 | K111: 1.000001924 | L111: -0.001961665618 | N111: 15 | Q111: 6.124337509 | R111: -1.570796325 | S111: 1.000511155 | T111: 0.03196676827 | U111: 1.000321467 | V111: 0.02535273352 | W111: 0.9999983909 | X111: -0.001793921149 | Y111: 0.9999998935 | Z111: -0.0004614868089 | AB111: 39.07813092 | AC111: -87.09111733 | AD111: 92.90888267 | AG111: 1 | AH111: 0.03197766139 | AI111: -9.722960102e-10 | AJ111: 2.106876995e-06 | AK111: 14958.71279 | AL111: -474643.0602 | AN111: 77500 | AO111: 139.0290382 | AP111: 1 | AQ111: 0.02535816683 | AR111: 77453.71994 | AS111: -1825.055314 | AU111: 9862.605976 | AV111: -1164.071784 | AX111: -404986703.6 | AY111: -4698630498 | AZ111: -1.656776326 | BA111: 761892674.1 | BB111: -112316976.6 | BC111: -0.1463641755 | BE111: 6.12373257 | BF111: 15.74032433 | BG111: -1.510412151 | BH111: -266.5402417 | BJ111: 39.07005734 | BK111: -86.78629919 | BL111: 93.21370081 | BM111: 93.21370081 | BN111: 0 | BO111: 0 | BQ111: 23.3297163 | BR111: -0.1336623523 | BU111: 32.64228513 | BX111: 1023.293 | BY111: 14.7437 | BZ111: -261.1239
A112: 104 | B112: 60.04033597 | C112: 0.06004033597 | D112: 1.000001572 | E112: 0.001773047557 | G112: 0.9781404686 | H112: -0.004146521068 | I112: -0.004146521068 | K112: 1.000001992 | L112: -0.001995767705 | N112: 15 | Q112: 6.019689443 | R112: -1.570796325 | S112: 1.000529077 | T112: 0.03252209962 | U112: 1.000332739 | V112: 0.02579327917 | W112: 0.9999983345 | X112: -0.001825107137 | Y112: 0.9999998898 | Z112: -0.0004695094313 | AB112: 38.92883092 | AC112: -87.04058584 | AD112: 92.95941416 | AG112: 1 | AH112: 0.03253357054 | AI112: -1.006395216e-09 | AJ112: 2.143503569e-06 | AK112: 14958.71267 | AL112: -466532.9551 | AN112: 77500 | AO112: 141.4459602 | AP112: 1 | AQ112: 0.02579900072 | AR112: 77452.09794 | AS112: -1856.740771 | AU112: 9857.85595 | AV112: -1183.737966 | AX112: -404791936.7 | AY112: -4616721863 | AZ112: -1.658252189 | BA112: 761435376.1 | BB112: -114071034.7 | BC112: -0.1487046385 | BE112: 6.019273056 | BF112: 15.5908809 | BG112: -1.50954755 | BH112: -266.4907037 | BJ112: 38.92076158 | BK112: -86.74104278 | BL112: 93.25895722 | BM112: 93.25895722 | BN112: 0 | BO112: 0 | BQ112: 23.32986338 | BR112: -0.1359900151 | BU112: 32.4928417 | BX112: 1047.129 | BY112: 14.5866 | BZ112: -260.4077
A113: 105 | B113: 61.08409497 | C113: 0.06108409497 | D113: 1.000001627 | E113: 0.001803870675 | G113: 0.9781575587 | H113: -0.004218679552 | I113: -0.004218679552 | K113: 1.000002061 | L113: -0.002030462628 | N113: 15 | Q113: 5.916829524 | R113: -1.570796325 | S113: 1.000547627 | T113: 0.03308706442 | U113: 1.000344406 | V113: 0.02624147312 | W113: 0.9999982761 | X113: -0.001856835269 | Y113: 0.9999998859 | Z113: -0.0004776715212 | AB113: 38.77954497 | AC113: -86.98917787 | AD113: 93.01082213 | AG113: 1 | AH113: 0.03309914378 | AI113: -1.041690308e-09 | AJ113: 2.180766871e-06 | AK113: 14958.71256 | AL113: -458561.4335 | AN113: 77500 | AO113: 143.9048987 | AP113: 1 | AQ113: 0.0262474982 | AR113: 77450.41914 | AS113: -1888.974838 | AU113: 9852.944152 | AV113: -1203.716353 | AX113: -404590536.7 | AY113: -4536186241 | AZ113: -1.65975272 | BA113: 760962508.3 | BB113: -115855153.2 | BC113: -0.1510879234 | BE113: 5.916601367 | BF113: 15.44144619 | BG113: -1.508664796 | BH113: -266.4401256 | BJ113: 38.77147971 | BK113: -86.69482093 | BL113: 93.30517907 | BM113: 93.30517907 | BN113: 0 | BO113: 0 | BQ113: 23.33001562 | BR113: -0.1383583571 | BU113: 32.34340699 | BX113: 1071.519 | BY113: 14.3581 | BZ113: -260.5301
A114: 106 | B114: 62.14599899 | C114: 0.06214599899 | D114: 1.000001684 | E114: 0.001835229628 | G114: 0.9781752488 | H114: -0.004292096397 | I114: -0.004292096397 | K114: 1.000002134 | L114: -0.002065760693 | N114: 15 | Q114: 5.815727198 | R114: -1.570796325 | S114: 1.000566827 | T114: 0.03366182906 | U114: 1.000356483 | V114: 0.02669744778 | W114: 0.9999982156 | X114: -0.001889114967 | Y114: 0.9999998819 | Z114: -0.0004859755032 | AB114: 38.63027356 | AC114: -86.9368783 | AD114: 93.0631217 | AG114: 1 | AH114: 0.03367454911 | AI114: -1.078223227e-09 | AJ114: 2.218677969e-06 | AK114: 14958.71244 | AL114: -450726.1274 | AN114: 77500 | AO114: 146.4065841 | AP114: 1 | AQ114: 0.02670379249 | AR114: 77448.68153 | AS114: -1921.766936 | AU114: 9847.865246 | AV114: -1224.010847 | AX114: -404382284.8 | AY114: -4456999792 | AZ114: -1.661278297 | BA114: 760473557.3 | BB114: -117669665.2 | BC114: -0.153514668 | BE114: 5.815687016 | BF114: 15.29202052 | BG114: -1.50776363 | BH114: -266.3884926 | BJ114: 38.62221225 | BK114: -86.64762004 | BL114: 93.35237996 | BM114: 93.35237996 | BN114: 0 | BO114: 0 | BQ114: 23.3301732 | BR114: -0.1407680968 | BU114: 32.19398132 | BX114: 1096.478 | BY114: 14.1501 | BZ114: -260.5471
A115: 107 | B115: 63.22636346 | C115: 0.06322636346 | D115: 1.000001743 | E115: 0.00186713373 | G115: 0.9781935599 | H115: -0.004366793687 | I115: -0.004366793687 | K115: 1.000002209 | L115: -0.002101672385 | N115: 15 | Q115: 5.716352432 | R115: -1.570796325 | S115: 1.0005867 | T115: 0.03424656274 | U115: 1.000368983 | V115: 0.02716133785 | W115: 0.999998153 | X115: -0.001921955822 | Y115: 0.9999998778 | Z115: -0.0004944238441 | AB115: 38.48101719 | AC115: -86.88367174 | AD115: 93.11632826 | AG115: 1 | AH115: 0.03425995745 | AI115: -1.116037386e-09 | AJ115: 2.257248124e-06 | AK115: 14958.71231 | AL115: -443024.7094 | AN115: 77500 | AO115: 148.9517596 | AP115: 1 | AQ115: 0.02716801914 | AR115: 77446.88308 | AS115: -1955.126642 | AU115: 9842.613731 | AV115: -1244.625346 | AX115: -404166955.2 | AY115: -4379139081 | AZ115: -1.662829303 | BA115: 759967993.9 | BB115: -119514902.8 | BC115: -0.1559855189 | BE115: 5.716500033 | BF115: 15.14260421 | BG115: -1.506843784 | BH115: -266.3357893 | BJ115: 38.4729597 | BK115: -86.59942624 | BL115: 93.40057376 | BM115: 93.40057376 | BN115: 0 | BO115: 0 | BQ115: 23.33033631 | BR115: -0.1432199659 | BU115: 32.04456501 | BX115: 1122.018 | BY115: 13.9679 | BZ115: -259.931
A116: 108 | B116: 64.32550931 | C116: 0.06432550931 | D116: 1.000001804 | E116: 0.001899592459 | G116: 0.978212514 | H116: -0.004442793904 | I116: -0.004442793904 | K116: 1.000002286 | L116: -0.00213820837 | N116: 15 | Q116: 5.618675708 | R116: -1.570796325 | S116: 1.00060727 | T116: 0.03484143756 | U116: 1.000381921 | V116: 0.02763328031 | W116: 0.9999980883 | X116: -0.001955367587 | Y116: 0.9999998735 | Z116: -0.0005030190534 | AB116: 38.33177639 | AC116: -86.82954254 | AD116: 93.17045746 | AG116: 1 | AH116: 0.03485554271 | AI116: -1.155177717e-09 | AJ116: 2.296488795e-06 | AK116: 14958.71219 | AL116: -435454.8919 | AN116: 77500 | AO116: 151.5411812 | AP116: 1 | AQ116: 0.02764031604 | AR116: 77445.02165 | AS116: -1989.063693 | AU116: 9837.183937 | AV116: -1265.563734 | AX116: -403944315.7 | AY116: -4302581071 | AZ116: -1.664406122 | BA116: 759445272.8 | BB116: -121391196.9 | BC116: -0.1585011323 | BE116: 5.619010967 | BF116: 14.99319759 | BG116: -1.50590499 | BH116: -266.2820003 | BJ116: 38.32372259 | BK116: -86.55022537 | BL116: 93.44977463 | BM116: 93.44977463 | BN116: 0 | BO116: 0 | BQ116: 23.33050514 | BR116: -0.1457147094 | BU116: 31.89515839 | BX116: 1148.154 | BY116: 13.7508 | BZ116: -259.948
A117: 109 | B117: 65.44376304 | C117: 0.06544376304 | D117: 1.000001868 | E117: 0.001932615456 | G117: 0.9782321335 | H117: -0.004520119928 | I117: -0.004520119928 | K117: 1.000002366 | L117: -0.002175379502 | N117: 15 | Q117: 5.52266801 | R117: -1.570796325 | S117: 1.000628561 | T117: 0.03544662854 | U117: 1.000395312 | V117: 0.02811341453 | W117: 0.9999980212 | X117: -0.001989360188 | Y117: 0.999999869 | Z117: -0.0005117636842 | AB117: 38.18255171 | AC117: -86.77447477 | AD117: 93.22552523 | AG117: 1 | AH117: 0.0354614818 | AI117: -1.195690732e-09 | AJ117: 2.336411637e-06 | AK117: 14958.71205 | AL117: -428014.4261 | AN117: 77500 | AO117: 154.175618 | AP117: 1 | AQ117: 0.02812082349 | AR117: 77443.09504 | AS117: -2023.587988 | AU117: 9831.570021 | AV117: -1286.829878 | AX117: -403714126.5 | AY117: -4227303117 | AZ117: -1.666009143 | BA117: 758904832.2 | BB117: -123298876.7 | BC117: -0.1610621738 | BE117: 5.523190864 | BF117: 14.84380103 | BG117: -1.504946969 | BH117: -266.2271098 | BJ117: 38.17450147 | BK117: -86.50000297 | BL117: 93.49999703 | BM117: 93.49999703 | BN117: 0 | BO117: 0 | BQ117: 23.3306799 | BR117: -0.1482530859 | BU117: 31.74576183 | BX117: 1174.898 | BY117: 13.6038 | BZ117: -260.1987
A118: 110 | B118: 66.58145682 | C118: 0.06658145682 | D118: 1.000001933 | E118: 0.001966212531 | G118: 0.9782524419 | H118: -0.004598795054 | I118: -0.004598795054 | K118: 1.000002449 | L118: -0.002213196822 | N118: 15 | Q118: 5.428300819 | R118: -1.570796325 | S118: 1.000650598 | T118: 0.03606231368 | U118: 1.000409173 | V118: 0.02860188224 | W118: 0.9999979518 | X118: -0.002023943722 | Y118: 0.9999998645 | Z118: -0.0005206603343 | AB118: 38.03334372 | AC118: -86.71845226 | AD118: 93.28154774 | AG118: 1 | AH118: 0.03607795472 | AI118: -1.23762457e-09 | AJ118: 2.37702851e-06 | AK118: 14958.71192 | AL118: -420701.1019 | AN118: 77500 | AO118: 156.8558526 | AP118: 1 | AQ118: 0.02860968422 | AR118: 77441.10097 | AS118: -2058.709592 | AU118: 9825.765965 | AV118: -1308.427625 | AX118: -403476141 | AY118: -4153282960 | AZ118: -1.667638759 | BA118: 758346093.3 | BB118: -125238269.5 | BC118: -0.1636693179 | BE118: 5.429011271 | BF118: 14.69441487 | BG118: -1.503969441 | BH118: -266.1711016 | BJ118: 38.02529692 | BK118: -86.4487443 | BL118: 93.5512557 | BM118: 93.5512557 | BN118: 0 | BO118: 0 | BQ118: 23.33086078 | BR118: -0.150835868 | BU118: 31.59637567 | BX118: 1202.264 | BY118: 13.4128 | BZ118: -259.341
A119: 111 | B119: 67.73892861 | C119: 0.06773892861 | D119: 1.000002001 | E119: 0.002000393662 | G119: 0.9782734635 | H119: -0.004678842991 | I119: -0.004678842991 | K119: 1.000002535 | L119: -0.002251671563 | N119: 15 | Q119: 5.335546103 | R119: -1.570796325 | S119: 1.000673407 | T119: 0.03668867401 | U119: 1.00042352 | V119: 0.02909882761 | W119: 0.99999788 | X119: -0.002059128461 | Y119: 0.9999998597 | Z119: -0.0005297116462 | AB119: 37.88415299 | AC119: -86.66145854 | AD119: 93.33854146 | AG119: 1 | AH119: 0.03670514458 | AI119: -1.281029063e-09 | AJ119: 2.418351478e-06 | AK119: 14958.71177 | AL119: -413512.7468 | AN119: 77500 | AO119: 159.5826813 | AP119: 1 | AQ119: 0.02910704345 | AR119: 77439.03708 | AS119: -2094.438736 | AU119: 9819.76557 | AV119: -1330.360798 | AX119: -403230104.9 | AY119: -4080498717 | AZ119: -1.669295367 | BA119: 757768459.8 | BB119: -127209699.6 | BC119: -0.1663232487 | BE119: 5.336444219 | BF119: 14.54503948 | BG119: -1.502972118 | BH119: -266.1139592 | BJ119: 37.87610952 | BK119: -86.39643431 | BL119: 93.60356569 | BM119: 93.60356569 | BN119: 0 | BO119: 0 | BQ119: 23.33104802 | BR119: -0.1534638423 | BU119: 31.44700028 | BX119: 1230.269 | BY119: 13.1837 | BZ119: -259.551
A120: 112 | B120: 68.91652223 | C120: 0.06891652223 | D120: 1.000002071 | E120: 0.002035169003 | G120: 0.9782952232 | H120: -0.004760287875 | I120: -0.004760287875 | K120: 1.000002624 | L120: -0.002290815153 | N120: 15 | Q120: 5.24437631 | R120: -1.570796325 | S120: 1.000697016 | T120: 0.03732589361 | U120: 1.00043837 | V120: 0.02960439726 | W120: 0.9999978056 | X120: -0.002094924857 | Y120: 0.9999998548 | Z120: -0.0005389203088 | AB120: 37.73498013 | AC120: -86.60347687 | AD120: 93.39652313 | AG120: 1 | AH120: 0.03734323769 | AI120: -1.325955785e-09 | AJ120: 2.460392818e-06 | AK120: 14958.71163 | AL120: -406447.2256 | AN120: 77500 | AO120: 162.3569139 | AP120: 1 | AQ120: 0.02961304893 | AR120: 77436.90094 | AS120: -2130.785822 | AU120: 9813.562449 | AV120: -1352.633189 | AX120: -402975756.4 | AY120: -4008928881 | AZ120: -1.670979366 | BA120: 757171317.6 | BB120: -129213488.8 | BC120: -0.1690246596 | BE120: 5.245462218 | BF120: 14.39567527 | BG120: -1.501954706 | BH120: -266.0556658 | BJ120: 37.72693988 | BK120: -86.34305764 | BL120: 93.65694236 | BM120: 93.65694236 | BN120: 0 | BO120: 0 | BQ120: 23.33124183 | BR120: -0.1561378102 | BU120: 31.29763607 | BX120: 1258.925 | BY120: 13.0792 | BZ120: -259.272
A121: 113 | B121: 70.11458749 | C121: 0.07011458749 | D121: 1.000002144 | E121: 0.002070548884 | G121: 0.978317747 | H121: -0.004843154277 | I121: -0.004843154277 | K121: 1.000002716 | L121: -0.00233063922 | N121: 15 | Q121: 5.154764358 | R121: -1.570796325 | S121: 1.000721452 | T121: 0.0379741597 | U121: 1.000453741 | V121: 0.03011874035 | W121: 0.9999977287 | X121: -0.002131343543 | Y121: 0.9999998497 | Z121: -0.0005482890574 | AB121: 37.58582577 | AC121: -86.54449022 | AD121: 93.45550978 | AG121: 1 | AH121: 0.03799242361 | AI121: -1.372458124e-09 | AJ121: 2.503165016e-06 | AK121: 14958.71147 | AL121: -399502.4395 | AN121: 77500 | AO121: 165.1793747 | AP121: 1 | AQ121: 0.03012785095 | AR121: 77434.69001 | AS121: -2167.761424 | AU121: 9807.150029 | AV121: -1375.248557 | AX121: -402712825.9 | AY121: -3938552307 | AZ121: -1.67269116 | BA121: 756554034.7 | BB121: -131249954.9 | BC121: -0.1717742529 | BE121: 5.156038249 | BF121: 14.24632261 | BG121: -1.500916907 | BH121: -265.9962043 | BJ121: 37.57778864 | BK121: -86.28859865 | BL121: 93.71140135 | BM121: 93.71140135 | BN121: 0 | BO121: 0 | BQ121: 23.33144244 | BR121: -0.1588585874 | BU121: 31.14828341 | BX121: 1288.25 | BY121: 12.807 | BZ121: -258.861
A122: 114 | B122: 71.33348026 | C122: 0.07133348026 | D122: 1.000002219 | E122: 0.002106543815 | G122: 0.9783410618 | H122: -0.00492746721 | I122: -0.00492746721 | K122: 1.000002811 | L122: -0.002371155593 | N122: 15 | Q122: 5.066683628 | R122: -1.570796325 | S122: 1.000746744 | T122: 0.03863366267 | U122: 1.00046965 | V122: 0.03064200858 | W122: 0.999997649 | X122: -0.002168395335 | Y122: 0.9999998444 | Z122: -0.000557820675 | AB122: 37.43669056 | AC122: -86.48448129 | AD122: 93.51551871 | AG122: 1 | AH122: 0.03865289517 | AI122: -1.420591338e-09 | AJ122: 2.546680779e-06 | AK122: 14958.71132 | AL122: -392676.3254 | AN122: 77500 | AO122: 168.0509019 | AP122: 1 | AQ122: 0.03065160244 | AR122: 77432.40168 | AS122: -2205.376291 | AU122: 9800.521541 | AV122: -1398.21062 | AX122: -402441035.9 | AY122: -3869348215 | AZ122: -1.674431156 | BA122: 755915960.2 | BB122: -133319411.9 | BC122: -0.1745727405 | BE122: 5.068145756 | BF122: 14.09698193 | BG122: -1.499858415 | BH122: -265.9355572 | BJ122: 37.42865643 | BK122: -86.23304137 | BL122: 93.76695863 | BM122: 93.76695863 | BN122: 0 | BO122: 0 | BQ122: 23.33165009 | BR122: -0.1616270051 | BU122: 30.99894273 | BX122: 1318.257 | BY122: 12.6826 | BZ122: -258.683
A123: 115 | B123: 72.57356263 | C123: 0.07257356263 | D123: 1.000002297 | E123: 0.002143164486 | G123: 0.9783651955 | H123: -0.005013252137 | I123: -0.005013252137 | K123: 1.00000291 | L123: -0.002412376306 | N123: 15 | Q123: 4.980107955 | R123: -1.570796325 | S123: 1.000772923 | T123: 0.03930459613 | U123: 1.000486117 | V123: 0.03117435623 | W123: 0.9999975666 | X123: -0.002206091242 | Y123: 0.999999839 | Z123: -0.0005675179929 | AB123: 37.28757517 | AC123: -86.42343247 | AD123: 93.57656753 | AG123: 1 | AH123: 0.03932484856 | AI123: -1.470412622e-09 | AJ123: 2.590953032e-06 | AK123: 14958.71115 | AL123: -385966.8558 | AN123: 77500 | AO123: 170.9723486 | AP123: 1 | AQ123: 0.03118445899 | AR123: 77430.03326 | AS123: -2243.641348 | AU123: 9793.670016 | AV123: -1421.523049 | AX123: -402160100.7 | AY123: -3801296176 | AZ123: -1.676199763 | BA123: 755256424.1 | BB123: -135422169.3 | BC123: -0.1774208433 | BE123: 4.981758635 | BF123: 13.94765364 | BG123: -1.49877892 | BH123: -265.8737066 | BJ123: 37.27954394 | BK123: -86.17636951 | BL123: 93.82363049 | BM123: 93.82363049 | BN123: 0 | BO123: 0 | BQ123: 23.33186502 | BR123: -0.1644439094 | BU123: 30.84961445 | BX123: 1348.963 | BY123: 12.4759 | BZ123: -258.797
A124: 116 | B124: 73.83520297 | C124: 0.07383520297 | D124: 1.000002377 | E124: 0.002180421776 | G124: 0.9783901768 | H124: -0.005100534981 | I124: -0.005100534981 | K124: 1.000003012 | L124: -0.002454313604 | N124: 15 | Q124: 4.895011621 | R124: -1.570796325 | S124: 1.000800019 | T124: 0.03998715695 | U124: 1.000503161 | V124: 0.03171594023 | W124: 0.9999974812 | X124: -0.002244442458 | Y124: 0.9999998333 | Z124: -0.0005773838918 | AB124: 37.13848029 | AC124: -86.36132586 | AD124: 93.63867414 | AG124: 1 | AH124: 0.04000848339 | AI124: -1.521981179e-09 | AJ124: 2.635994928e-06 | AK124: 14958.71098 | AL124: -379372.0376 | AN124: 77500 | AO124: 173.9445826 | AP124: 1 | AQ124: 0.03172657887 | AR124: 77427.58194 | AS124: -2282.567702 | AU124: 9786.588285 | AV124: -1445.189465 | AX124: -401869726.2 | AY124: -3734376110 | AZ124: -1.677997395 | BA124: 754574737.3 | BB124: -137558531 | BC124: -0.1803192913 | BE124: 4.896851232 | BF124: 13.7983382 | BG124: -1.497678104 | BH124: -265.8106345 | BJ124: 37.13045187 | BK124: -86.11856647 | BL124: 93.88143353 | BM124: 93.88143353 | BN124: 0 | BO124: 0 | BQ124: 23.3320875 | BR124: -0.1673101626 | BU124: 30.700299 | BX124: 1380.384 | BY124: 12.2584 | BZ124: -258.41
A125: 117 | B125: 75.11877603 | C125: 0.07511877603 | D125: 1.00000246 | E125: 0.002218326751 | G125: 0.9784160355 | H125: -0.005189342134 | I125: -0.005189342134 | K125: 1.000003117 | L125: -0.002496979944 | N125: 15 | Q125: 4.81136935 | R125: -1.570796325 | S125: 1.000828065 | T125: 0.04068154537 | U125: 1.000520803 | V125: 0.03226692018 | W125: 0.9999973929 | X125: -0.002283460377 | Y125: 0.9999998275 | Z125: -0.0005874213023 | AB125: 36.98940663 | AC125: -86.29814326 | AD125: 93.70185674 | AG125: 1 | AH125: 0.04070400272 | AI125: -1.575358287e-09 | AJ125: 2.681819846e-06 | AK125: 14958.71081 | AL125: -372889.9117 | AN125: 77500 | AO125: 176.9684868 | AP125: 1 | AQ125: 0.03227812313 | AR125: 77425.04482 | AS125: -2322.166643 | AU125: 9779.268971 | AV125: -1469.213431 | AX125: -401569610.1 | AY125: -3668568282 | AZ125: -1.679824467 | BA125: 753870190.3 | BB125: -139728795.5 | BC125: -0.1832688235 | BE125: 4.81339833 | BF125: 13.64903606 | BG125: -1.496555644 | BH125: -265.7463223 | BJ125: 36.98138093 | BK125: -86.05961533 | BL125: 93.94038467 | BM125: 93.94038467 | BN125: 0 | BO125: 0 | BQ125: 23.33231779 | BR125: -0.1702266425 | BU125: 30.55099686 | BX125: 1412.538 | BY125: 12.0929 | BZ125: -258.136
A126: 118 | B126: 76.4246631 | C126: 0.0764246631 | D126: 1.000002547 | E126: 0.002256890671 | G126: 0.9784428025 | H126: -0.005279700464 | I126: -0.005279700464 | K126: 1.000003227 | L126: -0.002540387998 | N126: 15 | Q126: 4.729156295 | R126: -1.570796325 | S126: 1.000857094 | T126: 0.04138796495 | U126: 1.000539063 | V126: 0.03282745842 | W126: 0.9999973015 | X126: -0.002323156588 | Y126: 0.9999998214 | Z126: -0.0005976332059 | AB126: 36.84035496 | AC126: -86.23386614 | AD126: 93.76613386 | AG126: 1 | AH126: 0.04141161318 | AI126: -1.630607373e-09 | AJ126: 2.728441397e-06 | AK126: 14958.71063 | AL126: -366518.5526 | AN126: 77500 | AO126: 180.0449594 | AP126: 1 | AQ126: 0.03283925559 | AR126: 77422.41891 | AS126: -2362.449643 | AU126: 9771.704484 | AV126: -1493.598446 | AX126: -401259441 | AY126: -3603853291 | AZ126: -1.681681398 | BA126: 753142053.8 | BB126: -141933254.6 | BC126: -0.186270188 | BE126: 4.731375146 | BF126: 13.49974768 | BG126: -1.49541121 | BH126: -265.6807511 | BJ126: 36.83233187 | BK126: -85.99949884 | BL126: 94.00050116 | BM126: 94.00050116 | BN126: 0 | BO126: 0 | BQ126: 23.33255616 | BR126: -0.1731942436 | BU126: 30.40170848 | BX126: 1445.44 | BY126: 11.9189 | BZ126: -257.929
A127: 119 | B127: 77.75325211 | C127: 0.07775325211 | D127: 1.000002636 | E127: 0.002296124991 | G127: 0.9784705098 | H127: -0.005371637327 | I127: -0.005371637327 | K127: 1.00000334 | L127: -0.002584550661 | N127: 15 | Q127: 4.648348034 | R127: -1.570796325 | S127: 1.000887139 | T127: 0.04210662272 | U127: 1.000557963 | V127: 0.03339772004 | W127: 0.9999972068 | X127: -0.002363542881 | Y127: 0.9999998152 | Z127: -0.0006080226363 | AB127: 36.69132602 | AC127: -86.1684757 | AD127: 93.8315243 | AG127: 1 | AH127: 0.04213152494 | AI127: -1.68779409e-09 | AJ127: 2.775873431e-06 | AK127: 14958.71044 | AL127: -360256.0679 | AN127: 77500 | AO127: 183.1749144 | AP127: 1 | AQ127: 0.03341014294 | AR127: 77419.70111 | AS127: -2403.428367 | AU127: 9763.88702 | AV127: -1518.347938 | AX127: -400938899.1 | AY127: -3540212072 | AZ127: -1.68356861 | BA127: 752389577.6 | BB127: -144172193 | BC127: -0.1893241419 | BE127: 4.650757319 | BF127: 13.35047356 | BG127: -1.494244468 | BH127: -265.6139017 | BJ127: 36.68330547 | BK127: -85.9381994 | BL127: 94.0618006 | BM127: 94.0618006 | BN127: 0 | BO127: 0 | BQ127: 23.3328029 | BR127: -0.1762138769 | BU127: 30.25243436 | BX127: 1479.108 | BY127: 11.7147 | BZ127: -257.745
A128: 120 | B128: 79.1049377 | C128: 0.0791049377 | D128: 1.000002729 | E128: 0.002336041365 | G128: 0.9784991904 | H128: -0.005465180576 | I128: -0.005465180576 | K128: 1.000003457 | L128: -0.002629481051 | N128: 15 | Q128: 4.568920564 | R128: -1.570796325 | S128: 1.000918238 | T128: 0.04283772919 | U128: 1.000577526 | V128: 0.03397787296 | W128: 0.9999971089 | X128: -0.002404631255 | Y128: 0.9999998087 | Z128: -0.0006185926794 | AB128: 36.54232062 | AC128: -86.1019528 | AD128: 93.8980472 | AG128: 1 | AH128: 0.04286395186 | AI128: -1.74698639e-09 | AJ128: 2.824130038e-06 | AK128: 14958.71025 | AL128: -354100.5971 | AN128: 77500 | AO128: 186.3592814 | AP128: 1 | AQ128: 0.03399095478 | AR128: 77416.88822 | AS128: -2445.114665 | AU128: 9755.808554 | AV128: -1543.465256 | AX128: -400607655.2 | AY128: -3477625884 | AZ128: -1.685486525 | BA128: 751611990.4 | BB128: -146445887.7 | BC128: -0.1924314508 | BE128: 4.571520907 | BF128: 13.2012142 | BG128: -1.493055075 | BH128: -265.5457545 | BJ128: 36.53430253 | BK128: -85.87569909 | BL128: 94.12430091 | BM128: 94.12430091 | BN128: 0 | BO128: 0 | BQ128: 23.33305829 | BR128: -0.1792864705 | BU128: 30.103175 | BX128: 1513.561 | BY128: 11.5252 | BZ128: -257.61
A129: 121 | B129: 80.48012139 | C129: 0.08048012139 | D129: 1.000002824 | E129: 0.002376651649 | G129: 0.9785288786 | H129: -0.005560358567 | I129: -0.005560358567 | K129: 1.000003578 | L129: -0.002675192513 | N129: 15 | Q129: 4.490850291 | R129: -1.570796325 | S129: 1.000950426 | T129: 0.0435814984 | U129: 1.000597774 | V129: 0.03456808795 | W129: 0.9999970075 | X129: -0.002446433912 | Y129: 0.999999802 | Z129: -0.0006293464751 | AB129: 36.39333959 | AC129: -86.03427797 | AD129: 93.96572203 | AG129: 1 | AH129: 0.04360911151 | AI129: -1.808254612e-09 | AJ129: 2.873225552e-06 | AK129: 14958.71005 | AL129: -348050.3118 | AN129: 77500 | AO129: 189.5990064 | AP129: 1 | AQ129: 0.03458186361 | AR129: 77413.9769 | AS129: -2487.520584 | AU129: 9747.460838 | AV129: -1568.953663 | AX129: -400265371.2 | AY129: -3416076307 | AZ129: -1.687435571 | BA129: 750808499.4 | BB129: -148754606.8 | BC129: -0.1955928892 | BE129: 4.493642376 | BF129: 13.05197013 | BG129: -1.491842681 | BH129: -265.4762894 | BJ129: 36.38532386 | BK129: -85.81197965 | BL129: 94.18802035 | BM129: 94.18802035 | BN129: 0 | BO129: 0 | BQ129: 23.33332266 | BR129: -0.1824129698 | BU129: 29.95393093 | BX129: 1548.817 | BY129: 11.3354 | BZ129: -257.471
A130: 122 | B130: 81.87921168 | C130: 0.08187921168 | D130: 1.000002923 | E130: 0.002417967906 | G130: 0.9785596098 | H130: -0.005657200175 | I130: -0.005657200175 | K130: 1.000003704 | L130: -0.002721698625 | N130: 15 | Q130: 4.414114024 | R130: -1.570796325 | S130: 1.000983741 | T130: 0.044338148 | U130: 1.000618732 | V130: 0.03516853868 | W130: 0.9999969025 | X130: -0.00248896327 | Y130: 0.999999795 | Z130: -0.0006402872179 | AB130: 36.24438378 | AC130: -85.96543143 | AD130: 94.03456857 | AG130: 1 | AH130: 0.04436722523 | AI130: -1.87167156e-09 | AJ130: 2.923174557e-06 | AK130: 14958.70984 | AL130: -342103.4147 | AN130: 77500 | AO130: 192.8950518 | AP130: 1 | AQ130: 0.03518304498 | AR130: 77410.96373 | AS130: -2530.658367 | AU130: 9738.835392 | AV130: -1594.816329 | AX130: -399911699.3 | AY130: -3355545238 | AZ130: -1.689416174 | BA130: 749978289.9 | BB130: -151098609.4 | BC130: -0.1988092403 | BE130: 4.417098598 | BF130: 12.90274187 | BG130: -1.490606933 | BH130: -265.4054863 | BJ130: 36.23637034 | BK130: -85.74702248 | BL130: 94.25297752 | BM130: 94.25297752 | BN130: 0 | BO130: 0 | BQ130: 23.3335963 | BR130: -0.1855943381 | BU130: 29.80470267 | BX130: 1584.893 | BY130: 11.1604 | BZ130: -256.942
A131: 123 | B131: 83.30262417 | C131: 0.08330262417 | D131: 1.000003026 | E131: 0.002460002409 | G131: 0.9785914208 | H131: -0.0057557348 | I131: -0.0057557348 | K131: 1.000003834 | L131: -0.002769013201 | N131: 15 | Q131: 4.338688969 | R131: -1.570796325 | S131: 1.001018225 | T131: 0.04510789929 | U131: 1.000640424 | V131: 0.03577940179 | W131: 0.9999967939 | X131: -0.002532231962 | Y131: 0.9999997878 | Z131: -0.0006514181576 | AB131: 36.09545407 | AC131: -85.89539307 | AD131: 94.10460693 | AG131: 1 | AH131: 0.04513851823 | AI131: -1.937312592e-09 | AJ131: 2.97399189e-06 | AK131: 14958.70962 | AL131: -336258.1395 | AN131: 77500 | AO131: 196.2483966 | AP131: 1 | AQ131: 0.03579467747 | AR131: 77407.84515 | AS131: -2574.540454 | AU131: 9729.923509 | AV131: -1621.056323 | AX131: -399546282.6 | AY131: -3296014887 | AZ131: -1.691428764 | BA131: 749120524.9 | BB131: -153478144.2 | BC131: -0.2020812956 | BE131: 4.341866839 | BF131: 12.75353 | BG131: -1.489347469 | BH131: -265.3333243 | BJ131: 36.08744284 | BK131: -85.6808086 | BL131: 94.3191914 | BM131: 94.3191914 | BN131: 0 | BO131: 0 | BQ131: 23.33387954 | BR131: -0.1888315567 | BU131: 29.6554908 | BX131: 1621.81 | BY131: 10.9787 | BZ131: -256.753
A132: 124 | B132: 84.75078169 | C132: 0.08475078169 | D132: 1.000003132 | E132: 0.002502767643 | G132: 0.9786243496 | H132: -0.00585599238 | I132: -0.00585599238 | K132: 1.000003968 | L132: -0.002817150295 | N132: 15 | Q132: 4.26455272 | R132: -1.570796325 | S132: 1.001053916 | T132: 0.04589097727 | U132: 1.000662877 | V132: 0.03640085691 | W132: 0.9999966815 | X132: -0.002576252841 | Y132: 0.9999997804 | Z132: -0.0006627426007 | AB132: 35.94655137 | AC132: -85.82414242 | AD132: 94.17585758 | AG132: 1 | AH132: 0.04592321962 | AI132: -2.005255707e-09 | AJ132: 3.025692647e-06 | AK132: 14958.7094 | AL132: -330512.7496 | AN132: 77500 | AO132: 199.6600369 | AP132: 1 | AQ132: 0.03641694275 | AR132: 77404.61749 | AS132: -2619.179487 | AU132: 9720.71624 | AV132: -1647.6766 | AX132: -399168754 | AY132: -3237467768 | AZ132: -1.693473773 | BA132: 748234345 | BB132: -155893448.7 | BC132: -0.2054098549 | BE132: 4.267924756 | BF132: 12.60433508 | BG132: -1.488063918 | BH132: -265.2597823 | BJ132: 35.93854228 | BK132: -85.6133187 | BL132: 94.3866813 | BM132: 94.3866813 | BN132: 0 | BO132: 0 | BQ132: 23.33417273 | BR132: -0.1921256254 | BU132: 29.50629588 | BX132: 1659.587 | BY132: 10.7578 | BZ132: -256.857
A133: 125 | B133: 86.22411441 | C133: 0.08622411441 | D133: 1.000003242 | E133: 0.002546276311 | G133: 0.9786584356 | H133: -0.005958003397 | I133: -0.005958003397 | K133: 1.000004107 | L133: -0.002866124205 | N133: 15 | Q133: 4.191683255 | R133: -1.570796325 | S133: 1.001090857 | T133: 0.04668761071 | U133: 1.000686117 | V133: 0.03703308672 | W133: 0.9999965651 | X133: -0.00262103898 | Y133: 0.9999997727 | Z133: -0.0006742639111 | AB133: 35.79767663 | AC133: -85.75165871 | AD133: 94.24834129 | AG133: 1 | AH133: 0.04672156248 | AI133: -2.075581643e-09 | AJ133: 3.078292185e-06 | AK133: 14958.70917 | AL133: -324865.5384 | AN133: 77500 | AO133: 203.1309861 | AP133: 1 | AQ133: 0.03705002569 | AR133: 77401.27693 | AS133: -2664.588312 | AU133: 9711.2044 | AV133: -1674.679999 | AX133: -398778737.1 | AY133: -3179886697 | AZ133: -1.695551633 | BA133: 747318867.4 | BB133: -158344748.8 | BC133: -0.2087957261 | BE133: 4.195250388 | BF133: 12.45515773 | BG133: -1.486755907 | BH133: -265.1848387 | BJ133: 35.78966962 | BK133: -85.54453311 | BL133: 94.45546689 | BM133: 94.45546689 | BN133: 0 | BO133: 0 | BQ133: 23.33447622 | BR133: -0.1954775631 | BU133: 29.35711853 | BX133: 1698.244 | BY133: 10.5805 | BZ133: -256.313
A134: 126 | B134: 87.72305998 | C134: 0.08772305998 | D134: 1.000003355 | E134: 0.002590541337 | G134: 0.9786937194 | H134: -0.006061798895 | I134: -0.006061798895 | K134: 1.000004251 | L134: -0.002915949478 | N134: 15 | Q134: 4.120058929 | R134: -1.570796325 | S134: 1.001129093 | T134: 0.0474980322 | U134: 1.000710171 | V134: 0.03767627701 | W134: 0.9999964446 | X134: -0.002666603685 | Y134: 0.9999997647 | Z134: -0.0006859855112 | AB134: 35.64883083 | AC134: -85.67792077 | AD134: 94.32207923 | AG134: 1 | AH134: 0.04753378398 | AI134: -2.148373966e-09 | AJ134: 3.131806129e-06 | AK134: 14958.70893 | AL134: -319314.8285 | AN134: 77500 | AO134: 206.6622754 | AP134: 1 | AQ134: 0.03769411432 | AR134: 77397.81955 | AS134: -2710.779983 | AU134: 9701.378558 | AV134: -1702.069226 | AX134: -398375845 | AY134: -3123254788 | AZ134: -1.697662777 | BA134: 746373186.3 | BB134: -160832257.4 | BC134: -0.2122397253 | BE134: 4.12382215 | BF134: 12.30599854 | BG134: -1.485423052 | BH134: -265.1084718 | BJ134: 35.64082582 | BK134: -85.47443177 | BL134: 94.52556823 | BM134: 94.52556823 | BN134: 0 | BO134: 0 | BQ134: 23.33479035 | BR134: -0.1988884079 | BU134: 29.20795934 | BX134: 1737.801 | BY134: 10.4643 | BZ134: -256.379
A135: 127 | B135: 89.24806367 | C135: 0.08924806367 | D135: 1.000003473 | E135: 0.002635575869 | G135: 0.9787302433 | H135: -0.006167410485 | I135: -0.006167410485 | K135: 1.0000044 | L135: -0.002966640914 | N135: 15 | Q135: 4.049658466 | R135: -1.570796325 | S135: 1.001168668 | T135: 0.04832247822 | U135: 1.000735068 | V135: 0.0383306167 | W135: 0.9999963199 | X135: -0.002712960489 | Y135: 0.9999997565 | Z135: -0.0006979108829 | AB135: 35.50001499 | AC135: -85.60290713 | AD135: 94.39709287 | AG135: 1 | AH135: 0.04836012537 | AI135: -2.223719174e-09 | AJ135: 3.186250375e-06 | AK135: 14958.70868 | AL135: -313858.9709 | AN135: 77500 | AO135: 210.2549537 | AP135: 1 | AQ135: 0.03834939998 | AR135: 77394.24126 | AS135: -2757.76776 | AU135: 9691.229036 | AV135: -1729.846852 | AX135: -397959680.9 | AY135: -3067555447 | AZ135: -1.69980764 | BA135: 745396372 | BB135: -163356173.3 | BC135: -0.2157426762 | BE135: 4.053618829 | BF135: 12.15685817 | BG135: -1.484064964 | BH135: -265.0306591 | BJ135: 35.49201191 | BK135: -85.40299429 | BL135: 94.59700571 | BM135: 94.59700571 | BN135: 0 | BO135: 0 | BQ135: 23.33511552 | BR135: -0.2023592176 | BU135: 29.05881897 | BX135: 1778.279 | BY135: 10.2137 | BZ135: -256.015
A136: 128 | B136: 90.79957847 | C136: 0.09079957847 | D136: 1.000003595 | E136: 0.002681393284 | G136: 0.9787680509 | H136: -0.00627487036 | I136: -0.00627487036 | K136: 1.000004555 | L136: -0.003018213569 | N136: 15 | Q136: 3.980460952 | R136: -1.570796325 | S136: 1.001209629 | T136: 0.04916118918 | U136: 1.000760838 | V136: 0.03899629792 | W136: 0.9999961909 | X136: -0.002760123161 | Y136: 0.9999997479 | Z136: -0.0007100435686 | AB136: 35.35123014 | AC136: -85.52659593 | AD136: 94.47340407 | AG136: 1 | AH136: 0.04920083213 | AI136: -2.301706799e-09 | AJ136: 3.241641097e-06 | AK136: 14958.70843 | AL136: -308496.3451 | AN136: 77500 | AO136: 213.9100882 | AP136: 1 | AQ136: 0.03901607732 | AR136: 77390.53785 | AS136: -2805.56512 | AU136: 9680.745905 | AV136: -1758.015295 | AX136: -397529837.8 | AY136: -3012772368 | AZ136: -1.701986657 | BA136: 744387470.8 | BB136: -165916680.7 | BC136: -0.2193054102 | BE136: 3.984619572 | BF136: 12.00773728 | BG136: -1.482681247 | BH136: -264.9513779 | BJ136: 35.34322894 | BK136: -85.33019986 | BL136: 94.66980014 | BM136: 94.66980014 | BN136: 0 | BO136: 0 | BQ136: 23.3354521 | BR136: -0.2058910704 | BU136: 28.90969808 | BX136: 1819.701 | BY136: 10.0452 | BZ136: -255.833
A137: 129 | B137: =min_f*EXP(A137*rr/668) -> 92.37806526 | C137: 0.09237806526 | D137: =SQRT((B137/Fesr)^2+1) -> 1.000003721 | E137: =ATAN(B137/Fesr) -> 0.002728007191 | G137: =(Ro/(Ro+Rdcr))/SQRT((B137/(Q*Fo))^2+(1-(B137^2/Fo^2))^2) -> 0.9788071875 | H137: =-ATAN(B137*Fo/(Q*(Fo^2-B137^2))) -> -0.006384211305 | I137: =IF(H137>0,H137-Pi,H137) -> -0.006384211305 | K137: =SQRT((B137/Frhp)^2+1) -> 1.000004715 | L137: =-ATAN(B137/Frhp) -> -0.003070682761 | N137: 15 | Q137: =1/(2*Pi*_Rfb1*(Cc1ea_u+Cc2ea_u)*B137) -> 3.912445834 | R137: =-Pi/2 -> -1.570796325 | S137: =SQRT(1+(B137/Fz1_u)^2) -> 1.001252025 | T137: =ATAN2(Fz1_u,B137) -> 0.05001440952 | U137: =SQRT(1+(B137/Fz2_u)^2) -> 1.00078751 | V137: =ATAN2(Fz2_u,B137) -> 0.03967351605 | W137: =1/SQRT(1+(B137/Fp1_u)^2) -> 0.9999960573 | X137: =-ATAN2(Fp1_u,B137) -> -0.00280810571 | Y137: =1/SQRT(1+(B137/Fp2_u)^2) -> 0.9999997391 | Z137: =-ATAN2(Fp2_u,B137) -> -0.0007223871723 | AB137: 35.20247738 | AC137: =(180/Pi)*(E137+I137+R137+T137+V137+X137+Z137+L137) -> -85.44896496 | AD137: 94.55103504 | AG137: 1 | AH137: =Rcea1_u*Cc1ea_u*B137*2*Pi -> 0.05005615399 | AI137: =-Rcea1_u*Cc1ea_u*Cc2ea_u*(B137*2*Pi)^2 -> -2.382429514e-09 | AJ137: =(Cc2ea_u+Cc1ea_u)*B137*2*Pi -> 3.297994747e-06 | AK137: 14958.70816 | AL137: -303225.3581 | AN137: =_Rfb1 -> 77500 | AO137: =_Rfb1*Rcea2_u*Cc3ea_u*B137*2*Pi -> 217.6287646 | AP137: 1 | AQ137: =(_Rfb1+Rcea2_u)*Cc3ea_u*B137*2*Pi -> 0.03969434437 | AR137: 77386.70497 | AS137: -2854.185752 | AU137: =Eadcg/(1+(Eadcg*B137/GBP)^2) -> 9669.918981 | AV137: =-(B137*Eadcg*Eadcg/GBP)/(1+(Eadcg*B137/GBP)^2) -> -1786.576813 | AX137: -397085898 | AY137: -2958889527 | AZ137: -1.704200261 | BA137: 743345504.9 | BB137: -168513947.9 | BC137: -0.2229287658 | BE137: =SQRT(AX137^2+AY137^2)/SQRT(BA137^2+BB137^2) -> 3.916803888 | BF137: 11.85863654 | BG137: -1.481271495 | BH137: =BG137*180/Pi-180 -> -264.8706051 | BJ137: 35.19447799 | BK137: =(180/Pi)*(E137+I137+BG137+L137) -> -85.25602732 | BL137: 94.74397268 | BM137: 94.74397268 | BN137: =SUM((BJ138<0)*(BJ137>0))*B137 -> 0 | BO137: 0 | BQ137: 23.3358005 | BR137: =(I137+E137)*180/Pi -> -0.209485065 | BU137: 28.76059734 | BX137: 1862.087 | BY137: 9.87672 | BZ137: -255.47
A138: 130 | B138: 93.98399294 | C138: =B138/1000 -> 0.09398399294 | D138: 1.000003852 | E138: 0.002775431435 | G138: 0.9788476998 | H138: -0.006495466712 | I138: -0.006495466712 | K138: 1.00000488 | L138: -0.003124064076 | N138: 15 | Q138: 3.845592906 | R138: -1.570796325 | S138: 1.001295907 | T138: 0.05088238769 | U138: 1.000815118 | V138: 0.04036246978 | W138: 0.999995919 | X138: -0.002856922389 | Y138: 0.9999997299 | Z138: -0.0007349453606 | AB138: =20*LOG(D138*N138*S138*U138*G138*Q138*W138*Y138*K138) -> 35.05375784 | AC138: -85.36999163 | AD138: =AC138+180 -> 94.63000837 | AG138: 1 | AH138: 0.05092634501 | AI138: -2.465983239e-09 | AJ138: 3.355328065e-06 | AK138: =AG138*AI138/(AI138^2+AJ138^2)+AH138*AJ138/(AI138^2+AJ138^2) -> 14958.70789 | AL138: =AH138*AI138/(AI138^2+AJ138^2)-AG138*AJ138/(AI138^2+AJ138^2) -> -298044.4441 | AN138: 77500 | AO138: 221.4120875 | AP138: 1 | AQ138: 0.04038440263 | AR138: =AN138*AP138/(AP138^2+AQ138^2)+AO138*AQ138/(AP138^2+AQ138^2) -> 77382.73809 | AS138: =AO138*AP138/(AP138^2+AQ138^2)-AN138*AQ138/(AP138^2+AQ138^2) -> -2903.643564 | AU138: 9658.737826 | AV138: -1815.533495 | AX138: -396627433.6 | AY138: -2905891181 | AZ138: =ATAN2(AX138,AY138) -> -1.706448888 | BA138: =AK138-AL138*AS138/_Rfb2+AK138*AR138/_Rfb2+AR138-AS138*AV138+AU138*AR138 -> 742269471.8 | BB138: =AL138+AL138*AR138/_Rfb2+AK138*AS138/_Rfb2+AS138+AS138*AU138+AR138*AV138 -> -171148126 | BC138: -0.226613589 | BE138: 3.850151634 | BF138: =20*LOG(BE138) -> 11.70955668 | BG138: =AZ138-BC138 -> -1.479835299 | BH138: -264.7883171 | BJ138: =20*LOG(BE138*N138*G138*D138*K138) -> 35.04576019 | BK138: -85.18045512 | BL138: =IF(BK138>180,BK138-180,BK138+180) -> 94.81954488 | BM138: =IF(BL138>180,BL138-360,BL138) -> 94.81954488 | BN138: 0 | BO138: =IF(BN138>0,BM138,0) -> 0 | BQ138: =20*LOG(N138*G138*D138) -> 23.33616113 | BR138: -0.2131423212 | BU138: =20*LOG(BE138*7) -> 28.61151748 | BX138: 1905.461 | BY138: 9.71342 | BZ138: -255.059
A139: 131 | B139: 95.61783854 | C139: 0.09561783854 | D139: 1.000003987 | E139: 0.002823680104 | G139: 0.9788896365 | H139: -0.006608670587 | I139: -0.006608670587 | K139: 1.000005051 | L139: -0.00317837337 | N139: 15 | Q139: 3.779882312 | R139: -1.570796325 | S139: 1.001341325 | T139: 0.05176537631 | U139: 1.000843693 | V139: 0.04106336114 | W139: 0.9999957759 | X139: -0.002906587698 | Y139: 0.9999997205 | Z139: -0.0007477218639 | AB139: 34.90507266 | AC139: -85.289653 | AD139: 94.710347 | AG139: 1 | AH139: 0.05181166369 | AI139: -2.55246726e-09 | AJ139: 3.413658083e-06 | AK139: 14958.70761 | AL139: -292952.0641 | AN139: 77500 | AO139: 225.2611809 | AP139: 1 | AQ139: 0.04108645706 | AR139: 77378.63255 | AS139: -2953.952682 | AU139: 9647.191739 | AV139: -1844.887244 | AX139: -396154005.7 | AY139: -2853761862 | AZ139: -1.708732971 | BA139: 741158344.2 | BB139: -173819347.8 | BC139: =ATAN2(BA139,BB139) -> -0.2303607323 | BE139: 3.784643013 | BF139: 11.56049842 | BG139: -1.478372239 | BH139: -264.70449 | BJ139: 34.89707671 | BK139: -85.10346131 | BL139: 94.89653869 | BM139: 94.89653869 | BN139: 0 | BO139: 0 | BQ139: 23.33653442 | BR139: -0.2168639805 | BU139: 28.46245922 | BX139: 1949.845 | BY139: 9.52685 | BZ139: -254.971
A140: 132 | B140: 97.2800874 | C140: 0.0972800874 | D140: 1.000004126 | E140: 0.002872767528 | G140: 0.9789330476 | H140: -0.006723857569 | I140: -0.006723857569 | K140: 1.000005228 | L140: -0.003233626773 | N140: 15 | Q140: 3.71529453 | R140: -1.570796325 | S140: 1.001388333 | T140: 0.05266363215 | U140: 1.000873269 | V140: 0.04177639557 | W140: 0.9999956277 | X140: -0.002957116388 | Y140: 0.9999997107 | Z140: -0.0007607204775 | AB140: 34.75642306 | AC140: -85.20792572 | AD140: 94.79207428 | AG140: 1 | AH140: 0.05271237301 | AI140: -2.641984347e-09 | AJ140: 3.473002127e-06 | AK140: 14958.70731 | AL140: -287946.7055 | AN140: 77500 | AO140: 229.1771881 | AP140: 1 | AQ140: 0.04180071621 | AR140: 77374.38352 | AS140: -3005.127459 | AU140: 9635.269759 | AV140: -1874.639768 | AX140: -395665165 | AY140: -2802486371 | AZ140: -1.711052944 | BA140: 740011069.7 | BB140: -176527727.1 | BC140: -0.2341710549 | BE140: 3.72025857 | BF140: 11.41146252 | BG140: -1.476881889 | BH140: -264.6190992 | BJ140: 34.74842875 | BK140: -85.02502356 | BL140: 94.97497644 | BM140: 94.97497644 | BN140: 0 | BO140: 0 | BQ140: 23.33692082 | BR140: -0.2206512061 | BU140: 28.31342332 | BX140: 1995.262 | BY140: 9.33494 | BZ140: -254.804
A141: 133 | B141: 98.97123328 | C141: 0.09897123328 | D141: 1.000004271 | E141: 0.002922708289 | G141: 0.9789779852 | H141: -0.006841062937 | I141: -0.006841062937 | K141: 1.000005412 | L141: -0.003289840698 | N141: 15 | Q141: 3.651810376 | R141: -1.570796325 | S141: 1.001436988 | T141: 0.05357741624 | U141: 1.000903881 | V141: 0.04250178199 | W141: 0.9999954744 | X141: -0.003008523468 | Y141: 0.9999997005 | Z141: -0.0007739450627 | AB141: 34.60781028 | AC141: -85.12478609 | AD141: 94.87521391 | AG141: 1 | AH141: 0.05362874054 | AI141: -2.734640869e-09 | AJ141: 3.533377826e-06 | AK141: 14958.70701 | AL141: -283026.8813 | AN141: 77500 | AO141: 233.1612723 | AP141: 1 | AQ141: 0.04252739225 | AR141: 77369.986 | AS141: -3057.182471 | AU141: 9622.960661 | AV141: -1904.792569 | AX141: -395160451.2 | AY141: -2752049779 | AZ141: -1.713409237 | BA141: 738826570.9 | BB141: -179273356.8 | BC141: -0.2380454224 | BE141: 3.656979181 | BF141: 11.26244976 | BG141: -1.475363815 | BH141: -264.5321199 | BJ141: 34.59981756 | BK141: -84.94511912 | BL141: 95.05488088 | BM141: 95.05488088 | BN141: 0 | BO141: 0 | BQ141: 23.33732079 | BR141: -0.2245051843 | BU141: 28.16441056 | BX141: 2041.738 | BY141: 9.08847 | BZ141: -254.411
A142: 134 | B142: 100.6917785 | C142: 0.1006917785 | D142: 1.000004421 | E142: 0.002973517219 | G142: 0.979024503 | H142: -0.006960322629 | I142: -0.006960322629 | K142: 1.000005601 | L142: -0.00334703184 | N142: 15 | Q142: 3.589410991 | R142: -1.570796325 | S142: 1.001487347 | T142: 0.05450699392 | U142: 1.000935566 | V142: 0.0432397328 | W142: 0.9999953157 | X142: -0.003060824209 | Y142: 0.99999969 | Z142: -0.0007873995476 | AB142: 34.45923561 | AC142: -85.04020999 | AD142: 94.95979001 | AG142: 1 | AH142: 0.05456103846 | AI142: -2.830546931e-09 | AJ142: 3.594803114e-06 | AK142: 14958.7067 | AL142: -278191.1303 | AN142: 77500 | AO142: 237.214617 | AP142: 1 | AQ142: 0.04326670105 | AR142: 77365.43483 | AS142: -3110.132523 | AU142: 9610.252952 | AV142: -1935.346924 | AX142: -394639393 | AY142: -2702437418 | AZ142: -1.715802281 | BA142: 737603744.7 | BB142: -182056308 | BC142: -0.241984706 | BE142: 3.594786051 | BF142: 11.11346096 | BG142: -1.473817575 | BH142: -264.4435269 | BJ142: 34.45124442 | BK142: -84.86372484 | BL142: 95.13627516 | BM142: 95.13627516 | BN142: 0 | BO142: 0 | BQ142: 23.33773481 | BR142: -0.228427124 | BU142: 28.01542176 | BX142: 2089.296 | BY142: 8.96986 | BZ142: -254.113
A143: 135 | B143: 102.4422343 | C143: 0.1024422343 | D143: 1.000004576 | E143: 0.003025209412 | G143: 0.9790726568 | H143: -0.007081673251 | I143: -0.007081673251 | K143: 1.000005798 | L143: -0.003405217188 | N143: 15 | Q143: 3.528077839 | R143: -1.570796325 | S143: 1.00153947 | T143: 0.05545263488 | U143: 1.000968361 | V143: 0.04399046402 | W143: 0.9999951514 | X143: -0.003114034143 | Y143: 0.9999996791 | Z143: -0.000801087929 | AB143: 34.31070038 | AC143: -84.95417293 | AD143: 95.04582707 | AG143: 1 | AH143: 0.05550954373 | AI143: -2.929816495e-09 | AJ143: 3.657296237e-06 | AK143: 14958.70637 | AL143: -273438.0158 | AN143: 77500 | AO143: 241.3384262 | AP143: 1 | AQ143: 0.04401886221 | AR143: 77360.72464 | AS143: -3163.992652 | AU143: 9597.134875 | AV143: -1966.303878 | AX143: -394101508.4 | AY143: -2653634880 | AZ143: -1.718232502 | BA143: 736341462.9 | BB143: -184876628.4 | BC143: -0.2459897827 | BE143: 3.533660709 | BF143: 10.96449695 | BG143: -1.472242719 | BH143: -264.3532943 | BJ143: 34.30271068 | BK143: -84.78081717 | BL143: 95.21918283 | BM143: 95.21918283 | BN143: 0 | BO143: 0 | BQ143: 23.33816337 | BR143: -0.232418258 | BU143: 27.86645775 | BX143: 2137.962 | BY143: 8.68736 | BZ143: -254.34
A144: 136 | B144: 104.2231205 | C144: 0.1042231205 | D144: 1.000004736 | E144: 0.00307780022 | G144: 0.9791225043 | H144: -0.007205152095 | I144: -0.007205152095 | K144: 1.000006001 | L144: -0.003464414024 | N144: 15 | Q144: 3.467792703 | R144: -1.570796325 | S144: 1.001593417 | T144: 0.05641461327 | U144: 1.001002305 | V144: 0.04475419524 | W144: 0.9999949814 | X144: -0.003168169077 | Y144: 0.9999996679 | Z144: -0.000815014273 | AB144: 34.16220598 | AC144: -84.86664999 | AD144: 95.13335001 | AG144: 1 | AH144: 0.0564745381 | AI144: -3.032567523e-09 | AJ144: 3.720875759e-06 | AK144: 14958.70603 | AL144: -268766.126 | AN144: 77500 | AO144: 245.533925 | AP144: 1 | AQ144: 0.04478409916 | AR144: 77355.84992 | AS144: -3218.778129 | AU144: 9583.594401 | AV144: -1997.664227 | AX144: -393546304.1 | AY144: -2605628013 | AZ144: -1.720700325 | BA144: 735038571.3 | BB144: -187734341.2 | BC144: -0.2500615348 | BE144: 3.473584998 | BF144: 10.81555861 | BG144: -1.470638791 | BH144: -264.261396 | BJ144: 34.15421771 | BK144: -84.69637213 | BL144: 95.30362787 | BM144: 95.30362787 | BN144: 0 | BO144: 0 | BQ144: 23.33860697 | BR144: -0.2364798433 | BU144: 27.71751941 | BX144: 2187.762 | BY144: 8.53088 | BZ144: -253.785
A145: 137 | B145: 106.0349661 | C145: 0.1060349661 | D145: 1.000004903 | E145: 0.003131305265 | G145: 0.9791741053 | H145: -0.007330797148 | I145: -0.007330797148 | K145: 1.000006212 | L145: -0.00352463993 | N145: 15 | Q145: 3.408537673 | R145: -1.570796325 | S145: 1.001649254 | T145: 0.05739320771 | U145: 1.001037439 | V145: 0.04553114978 | W145: 0.9999948054 | X145: -0.003223245089 | Y145: 0.9999996562 | Z145: -0.0008291827163 | AB145: 34.01375382 | AC145: -84.77761586 | AD145: 95.22238414 | AG145: 1 | AH145: 0.05745630822 | AI145: -3.138922113e-09 | AJ145: 3.785560567e-06 | AK145: 14958.70569 | AL145: -264174.0732 | AN145: 77500 | AO145: 249.8023595 | AP145: 1 | AQ145: 0.04556263922 | AR145: 77350.80493 | AS145: -3274.504459 | AU145: 9569.619235 | AV145: -2029.428502 | AX145: -392973275.9 | AY145: -2558402916 | AZ145: -1.723206172 | BA145: 733693890.5 | BB145: -190629443.6 | BC145: -0.2542008493 | BE145: 3.414541075 | BF145: 10.66664683 | BG145: -1.469005323 | BH145: -264.1678052 | BJ145: 34.00576694 | BK145: -84.61036533 | BL145: 95.38963467 | BM145: 95.38963467 | BN145: 0 | BO145: 0 | BQ145: 23.33906616 | BR145: -0.2406131613 | BU145: 27.56860763 | BX145: 2238.721 | BY145: 8.34969 | BZ145: -253.783
A146: 138 | B146: 107.8783094 | C146: 0.1078783094 | D146: 1.000005074 | E146: 0.003185740439 | G146: 0.9792275216 | H146: -0.007458647114 | I146: -0.007458647114 | K146: 1.000006429 | L146: -0.003585912795 | N146: 15 | Q146: 3.350295149 | R146: -1.570796325 | S146: 1.001707045 | T146: 0.0583887014 | U146: 1.001073803 | V146: 0.04632155468 | W146: 0.9999946232 | X146: -0.003279278539 | Y146: 0.9999996442 | Z146: -0.0008435974677 | AB146: 33.8653454 | AC146: -84.68704483 | AD146: 95.31295517 | AG146: 1 | AH146: 0.05845514571 | AI146: -3.249006644e-09 | AJ146: 3.851369874e-06 | AK146: 14958.70533 | AL146: -259660.4932 | AN146: 77500 | AO146: 254.1449978 | AP146: 1 | AQ146: 0.04635471365 | AR146: 77345.58376 | AS146: -3331.18739 | AU146: 9555.196812 | AV146: -2061.596956 | AX146: -392381908.8 | AY146: -2511945938 | AZ146: -1.72575046 | BA146: 732306215.1 | BB146: -193561905.1 | BC146: -0.2584086175 | BE146: 3.356511403 | BF146: 10.51776254 | BG146: -1.467341842 | BH146: -264.0724948 | BJ146: 33.85735986 | BK146: -84.52277194 | BL146: 95.47722806 | BM146: 95.47722806 | BN146: 0 | BO146: 0 | BQ146: 23.33954148 | BR146: -0.2448195191 | BU146: 27.41972334 | BX146: 2290.868 | BY146: 8.28183 | BZ146: -253.62
A147: 139 | B147: 109.7536979 | C147: 0.1097536979 | D147: 1.000005252 | E147: 0.00324112191 | G147: 0.9792828173 | H147: -0.007588741425 | I147: -0.007588741425 | K147: 1.000006655 | L147: -0.003648250818 | N147: 15 | Q147: 3.293047829 | R147: -1.570796325 | S147: 1.00176686 | T147: 0.05940138214 | U147: 1.001111441 | V147: 0.04712564077 | W147: 0.9999944346 | X147: -0.00333628607 | Y147: 0.9999996317 | Z147: -0.0008582628091 | AB147: 33.71698223 | AC147: -84.59491075 | AD147: 95.40508925 | AG147: 1 | AH147: 0.0594713473 | AI147: -3.362951928e-09 | AJ147: 3.91832323e-06 | AK147: 14958.70495 | AL147: -255224.0453 | AN147: 77500 | AO147: 258.5631298 | AP147: 1 | AQ147: 0.04716055774 | AR147: 77340.18028 | AS147: -3388.842908 | AU147: 9540.314297 | AV147: -2094.169546 | AX147: -391771676.3 | AY147: -2466243672 | AZ147: -1.728333601 | BA147: 730874314.4 | BB147: -196531666.2 | BC147: -0.2626857348 | BE147: 3.299478747 | BF147: 10.3689067 | BG147: -1.465647866 | BH147: -263.9754371 | BJ147: 33.708998 | BK147: -84.43356671 | BL147: 95.56643329 | BM147: 95.56643329 | BN147: 0 | BO147: 0 | BQ147: 23.34003349 | BR147: -0.2491002494 | BU147: 27.27086751 | BX147: 2344.229 | BY147: 8.06623 | BZ147: -253.171
A148: 140 | B148: 111.6616887 | C148: 0.1116616887 | D148: 1.000005437 | E148: 0.00329746613 | G148: 0.9793400587 | H148: -0.007721120255 | I148: -0.007721120255 | K148: 1.000006888 | L148: -0.003711672514 | N148: 15 | Q148: 3.236778708 | R148: -1.570796325 | S148: 1.001828768 | T148: 0.06043154246 | U148: 1.001150398 | V148: 0.04794364274 | W148: 0.9999942394 | X148: -0.003394284615 | Y148: 0.9999996188 | Z148: -0.0008731830967 | AB148: 33.5686659 | AC148: -84.50118705 | AD148: 95.49881295 | AG148: 1 | AH148: 0.06050521484 | AI148: -3.480893365e-09 | AJ148: 3.986440523e-06 | AK148: 14958.70457 | AL148: -250863.4116 | AN148: 77500 | AO148: 263.0580679 | AP148: 1 | AQ148: 0.04798041086 | AR148: 77334.58815 | AS148: -3447.487245 | AU148: 9524.958588 | AV148: -2127.145922 | AX148: -391142041.4 | AY148: -2421282954 | AZ148: -1.730956004 | BA148: 729396932.1 | BB148: -199538636.8 | BC148: -0.2670331001 | BE148: 3.243426165 | BF148: 10.22008032 | BG148: -1.463922904 | BH148: -263.876604 | BJ148: 33.56068293 | BK148: -84.34272393 | BL148: 95.65727607 | BM148: 95.65727607 | BN148: 0 | BO148: 0 | BQ148: 23.34054279 | BR148: -0.2534567117 | BU148: 27.12204112 | BX148: 2398.833 | BY148: 7.81402 | BZ148: -252.658
A149: 141 | B149: 113.6028486 | C149: 0.1136028486 | D149: 1.000005627 | E149: 0.003354789832 | G149: 0.9793993145 | H149: -0.007855824541 | I149: -0.007855824541 | K149: 1.00000713 | L149: -0.003776196721 | N149: 15 | Q149: 3.181471072 | R149: -1.570796325 | S149: 1.001892844 | T149: 0.0614794796 | U149: 1.00119072 | V149: 0.04877579921 | W149: 0.9999940374 | X149: -0.0034532914 | Y149: 0.9999996054 | Z149: -0.0008883627627 | AB149: 33.42039806 | AC149: -84.40584674 | AD149: 95.59415326 | AG149: 1 | AH149: 0.06155705543 | AI149: -3.602971104e-09 | AJ149: 4.055741987e-06 | AK149: 14958.70417 | AL149: -246577.2968 | AN149: 77500 | AO149: 267.6311474 | AP149: 1 | AQ149: 0.04881451654 | AR149: 77328.80081 | AS149: -3507.136879 | AU149: 9509.116319 | AV149: -2160.525403 | AX149: -390492455.8 | AY149: -2377050858 | AZ149: -1.733618072 | BA149: 727872786.7 | BB149: -202582694.4 | BC149: -0.2714516151 | BE149: 3.18833701 | BF149: 10.07128441 | BG149: -1.462166457 | BH149: -263.775967 | BJ149: 33.41241631 | BK149: -84.25021747 | BL149: 95.74978253 | BM149: 95.74978253 | BN149: 0 | BO149: 0 | BQ149: 23.34106997 | BR149: -0.2578902926 | BU149: 26.97324521 | BX149: 2454.709 | BY149: 7.64239 | BZ149: -251.974
A150: 142 | B150: 115.5777542 | C150: 0.1155777542 | D150: 1.000005825 | E150: 0.003413110044 | G150: 0.9794606559 | H150: -0.007992895995 | I150: -0.007992895995 | K150: 1.00000738 | L150: -0.003841842605 | N150: 15 | Q150: 3.127108491 | R150: -1.570796325 | S150: 1.001959163 | T150: 0.06254549566 | U150: 1.001232453 | V150: 0.04962235275 | W150: 0.9999938283 | X150: -0.003513323952 | Y150: 0.9999995916 | Z150: -0.000903806316 | AB150: 33.27218039 | AC150: -84.30886238 | AD150: 95.69113762 | AG150: 1 | AH150: 0.06262718153 | AI150: -3.729330207e-09 | AJ150: 4.126248208e-06 | AK150: 14958.70375 | AL150: -242364.4278 | AN150: 77500 | AO150: 272.2837266 | AP150: 1 | AQ150: 0.04966312257 | AR150: 77322.81149 | AS150: -3567.808538 | AU150: 9492.773857 | AV150: -2194.306968 | AX150: =-AV150*AL150+AK150*AU150 -> -389822360.7 | AY150: =AU150*AL150+AK150*AV150 -> -2333534692 | AZ150: -1.736320201 | BA150: 726300571.7 | BB150: -205663682.7 | BC150: -0.2759421843 | BE150: 3.134194919 | BF150: 9.922520043 | BG150: -1.460378017 | BH150: -263.673497 | BJ150: 33.26419983 | BK150: -84.15602073 | BL150: 95.84397927 | BM150: 95.84397927 | BN150: 0 | BO150: 0 | BQ150: 23.34161568 | BR150: -0.2624024063 | BU150: 26.82448084 | BX150: 2511.886 | BY150: 7.45716 | BZ150: -252.252
A151: 143 | B151: 117.5869922 | C151: 0.1175869922 | D151: 1.000006029 | E151: 0.003472444088 | G151: 0.9795241565 | H151: -0.008132377123 | I151: -0.008132377123 | K151: 1.000007639 | L151: -0.003908629661 | N151: 15 | Q151: 3.073674816 | R151: -1.570796325 | S151: 1.002027803 | T151: 0.06362989758 | U151: 1.001275649 | V151: 0.05048354999 | W151: 0.9999936118 | X151: -0.003574400101 | Y151: 0.9999995772 | Z151: -0.0009195183442 | AB151: 33.12401465 | AC151: -84.2102061 | AD151: 95.7897939 | AG151: 1 | AH151: 0.06371591103 | AI151: -3.860120826e-09 | AJ151: 4.19798013e-06 | AK151: 14958.70332 | AL151: -238223.5531 | AN151: 77500 | AO151: 277.0171876 | AP151: 1 | AQ151: 0.05052648102 | AR151: 77316.61317 | AS151: -3629.5192 | AU151: 9475.917309 | AV151: -2228.489229 | AX151: -389131186.3 | AY151: -2290721999 | AZ151: -1.73906278 | BA151: 724678955.8 | BB151: -208781409.7 | BC151: -0.2805057137 | BE151: 3.080983809 | BF151: 9.773788321 | BG151: -1.458557067 | BH151: -263.5691642 | BJ151: 33.11603523 | BK151: -84.06010668 | BL151: 95.93989332 | BM151: 95.93989332 | BN151: 0 | BO151: 0 | BQ151: 23.34218056 | BR151: -0.266994496 | BU151: 26.67574912 | BX151: 2570.396 | BY151: 7.31271 | BZ151: -251.702
A152: 144 | B152: 119.6311593 | C152: 0.1196311593 | D152: 1.00000624 | E152: 0.003532809588 | G152: 0.9795898927 | H152: -0.008274311244 | I152: -0.008274311244 | K152: 1.000007907 | L152: -0.003976577728 | N152: 15 | Q152: 3.021154176 | R152: -1.570796325 | S152: 1.002098845 | T152: 0.0647329973 | U152: 1.001320358 | V152: 0.05135964161 | W152: 0.9999933878 | X152: -0.003636537989 | Y152: 0.9999995624 | Z152: -0.0009355035145 | AB152: 32.97590266 | AC152: -84.10984959 | AD152: 95.89015041 | AG152: 1 | AH152: 0.06482356732 | AI152: -3.995498378e-09 | AJ152: 4.270959062e-06 | AK152: 14958.70288 | AL152: -234153.4426 | AN152: 77500 | AO152: 281.8329365 | AP152: 1 | AQ152: 0.05140484835 | AR152: 77310.19859 | AS152: -3692.286098 | AU152: 9458.532524 | AV152: -2263.070422 | AX152: -388418352.5 | AY152: -2248600550 | AZ152: -1.741846192 | BA152: 723006583.1 | BB152: -211935645.7 | BC152: -0.2851431109 | BE152: 3.028687876 | BF152: 9.625090382 | BG152: -1.456703081 | BH152: -263.4629386 | BJ152: 32.96792435 | BK152: -83.9624478 | BL152: 96.0375522 | BM152: 96.0375522 | BN152: 0 | BO152: 0 | BQ152: 23.34276529 | BR152: -0.2716680337 | BU152: 26.52705118 | BX152: 2630.268 | BY152: 7.13504 | BZ152: -251.401
A153: 145 | B153: 121.7108629 | C153: 0.1217108629 | D153: 1.000006459 | E153: 0.003594224473 | G153: 0.9796579434 | H153: -0.008418742504 | I153: -0.008418742504 | K153: 1.000008184 | L153: -0.004045706986 | N153: 15 | Q153: 2.969530969 | R153: -1.570796325 | S153: 1.002172373 | T153: 0.06585511174 | U153: 1.001366632 | V153: 0.05225088249 | W153: 0.9999931559 | X153: -0.003699756072 | Y153: 0.9999995471 | Z153: -0.0009517665752 | AB153: 32.82784629 | AC153: -84.00776406 | AD153: 95.99223594 | AG153: 1 | AH153: 0.06595047943 | AI153: -4.13562373e-09 | AJ153: 4.34520668e-06 | AK153: 14958.70242 | AL153: -230152.8873 | AN153: 77500 | AO153: 286.7324039 | AP153: 1 | AQ153: 0.05229848547 | AR153: 77303.56026 | AS153: -3756.12672 | AU153: 9440.605097 | AV153: -2298.048384 | AX153: -387683268.6 | AY153: -2207158343 | AZ153: -1.744670809 | BA153: 721282074.1 | BB153: -215126122.3 | BC153: -0.2898552839 | BE153: 2.977291587 | BF153: 9.476427406 | BG153: -1.454815525 | BH153: -263.3547897 | BJ153: 32.81986906 | BK153: -83.86301613 | BL153: 96.13698387 | BM153: 96.13698387 | BN153: 0 | BO153: 0 | BQ153: 23.34337057 | BR153: -0.2764245217 | BU153: 26.37838821 | BX153: 2691.535 | BY153: 6.88093 | BZ153: -251.244
A154: 146 | B154: 123.8267206 | C154: 0.1238267206 | D154: 1.000006686 | E154: 0.003656706985 | G154: 0.9797283905 | H154: -0.008565715899 | I154: -0.008565715899 | K154: 1.000008471 | L154: -0.004116037968 | N154: 15 | Q154: 2.918789861 | R154: -1.570796325 | S154: 1.002248475 | T154: 0.06699656292 | U154: 1.001414527 | V154: 0.05315753171 | W154: 0.9999929159 | X154: -0.003764073126 | Y154: 0.9999995312 | Z154: -0.0009683123573 | AB154: 32.67984749 | AC154: -83.90392029 | AD154: 96.09607971 | AG154: 1 | AH154: 0.06709698212 | AI154: -4.28066339e-09 | AJ154: 4.420745042e-06 | AK154: 14958.70195 | AL154: -226220.6989 | AN154: 77500 | AO154: 291.717045 | AP154: 1 | AQ154: 0.05320765785 | AR154: 77296.69041 | AS154: -3821.058811 | AU154: 9422.120375 | AV154: -2333.420534 | AX154: -386925333.7 | AY154: -2166383599 | AZ154: -1.747536997 | BA154: 719504025.5 | BB154: -218352529.4 | BC154: -0.2946431411 | BE154: 2.926779676 | BF154: 9.327800612 | BG154: -1.452893856 | BH154: -263.2446861 | BJ154: 32.67187131 | BK154: -83.76178321 | BL154: 96.23821679 | BM154: 96.23821679 | BN154: 0 | BO154: 0 | BQ154: 23.34399712 | BR154: -0.2812654927 | BU154: 26.22976141 | BX154: 2754.229 | BY154: 6.70094 | BZ154: -251.051
A155: 147 | B155: 125.979361 | C155: 0.125979361 | D155: 1.00000692 | E155: 0.003720275682 | G155: 0.9798013187 | H155: -0.00871527729 | I155: -0.00871527729 | K155: 1.000008768 | L155: -0.004187591564 | N155: 15 | Q155: 2.868915779 | R155: -1.570796325 | S155: 1.002327239 | T155: 0.068157678 | U155: 1.001464099 | V155: 0.05407985261 | W155: 0.9999926674 | X155: -0.003829508255 | Y155: 0.9999995147 | Z155: -0.0009851457756 | AB155: 32.53190828 | AC155: -83.79828858 | AD155: 96.20171142 | AG155: 1 | AH155: 0.06826341595 | AI155: -4.430789709e-09 | AJ155: 4.497596584e-06 | AK155: 14958.70145 | AL155: -222355.7093 | AN155: 77500 | AO155: 296.7883406 | AP155: 1 | AQ155: 0.05413263555 | AR155: 77289.58101 | AS155: -3887.10038 | AU155: 9403.063464 | AV155: -2369.183853 | AX155: -386143937.2 | AY155: -2126264761 | AZ155: -1.750445109 | BA155: 717671011.5 | BB155: -221614514.3 | BC155: -0.29950759 | BE155: 2.877137139 | BF155: 9.179211261 | BG155: -1.450937519 | BH155: -263.1325963 | BJ155: 32.5239331 | BK155: -83.65872013 | BL155: 96.34127987 | BM155: 96.34127987 | BN155: 0 | BO155: 0 | BQ155: 23.34464568 | BR155: -0.2861925112 | BU155: 26.08117206 | BX155: 2818.383 | BY155: 6.53562 | BZ155: -250.48
A156: 148 | B156: 128.1694236 | C156: 0.1281694236 | D156: 1.000007163 | E156: 0.003784949445 | G156: 0.9798768158 | H156: -0.008867473427 | I156: -0.008867473427 | K156: 1.000009076 | L156: -0.004260389024 | N156: 15 | Q156: 2.819893907 | R156: -1.570796325 | S156: 1.002408759 | T156: 0.06933878938 | U156: 1.001515408 | V156: 0.0550181129 | W156: 0.9999924103 | X156: -0.003896080894 | Y156: 0.9999994977 | Z156: -0.001002271831 | AB156: 32.38403072 | AC156: -83.69083876 | AD156: 96.30916124 | AG156: 1 | AH156: 0.06945012741 | AI156: -4.586181079e-09 | AJ156: 4.575784137e-06 | AK156: 14958.70094 | AL156: -218556.7705 | AN156: 77500 | AO156: 301.9477971 | AP156: 1 | AQ156: 0.05507369334 | AR156: 77282.22376 | AS156: -3954.269695 | AU156: 9383.419233 | AV156: -2405.334868 | AX156: -385338458.6 | AY156: -2086790488 | AZ156: -1.753395491 | BA156: 715781583.9 | BB156: -224911679.3 | BC156: -0.3044495367 | BE156: 2.82834923 | BF156: 9.030660658 | BG156: -1.448945954 | BH156: -263.018488 | BJ156: 32.37605653 | BK156: -83.55379749 | BL156: 96.44620251 | BM156: 96.44620251 | BN156: 0 | BO156: 0 | BQ156: 23.34531704 | BR156: -0.2912071738 | BU156: 25.93262146 | BX156: 2884.032 | BY156: 6.32652 | BZ156: -250.202
A157: 149 | B157: 130.3975588 | C157: 0.1303975588 | D157: 1.000007414 | E157: 0.003850747483 | G157: 0.9799549727 | H157: -0.009022351963 | I157: -0.009022351963 | K157: 1.000009394 | L157: -0.00433445197 | N157: 15 | Q157: 2.771709684 | R157: -1.570796325 | S157: 1.002493131 | T157: 0.07054023471 | U157: 1.001568513 | V157: 0.05597258468 | W157: 0.9999921441 | X157: -0.003963810817 | Y157: 0.9999994801 | Z157: -0.001019695609 | AB157: 32.23621699 | AC157: -83.58154019 | AD157: 96.41845981 | AG157: 1 | AH157: 0.07065746902 | AI157: -4.747022149e-09 | AJ157: 4.655330925e-06 | AK157: 14958.70042 | AL157: -214822.7538 | AN157: 77500 | AO157: 307.1969472 | AP157: 1 | AQ157: 0.05603111075 | AR157: 77274.61008 | AS157: -4022.585289 | AU157: 9363.172323 | AV157: -2441.869628 | AX157: -384508268.2 | AY157: -2047949659 | AZ157: -1.756388473 | BA157: 713834273.3 | BB157: -228243579.6 | BC157: -0.3094698853 | BE157: 2.780401459 | BF157: 8.882150154 | BG157: -1.446918588 | BH157: -262.9023285 | BJ157: 32.22824375 | BK157: -83.44698539 | BL157: 96.55301461 | BM157: 96.55301461 | BN157: 0 | BO157: 0 | BQ157: 23.346012 | BR157: -0.2963111104 | BU157: 25.78411095 | BX157: 2951.209 | BY157: 6.18308 | BZ157: -249.926
A158: 150 | B158: 132.6644287 | C158: 0.1326644287 | D158: 1.000007674 | E158: 0.00391768934 | G158: 0.9800358836 | H158: -0.009179961483 | I158: -0.009179961483 | K158: 1.000009723 | L158: -0.0044098024 | N158: 15 | Q158: 2.724348797 | R158: -1.570796325 | S158: 1.002580455 | T158: 0.071762357 | U158: 1.001623477 | V158: 0.05694354451 | W158: 0.9999918686 | X158: -0.004032718138 | Y158: 0.9999994619 | Z158: -0.001037422287 | AB158: 32.08846931 | AC158: -83.47036174 | AD158: 96.52963826 | AG158: 1 | AH158: 0.07188579941 | AI158: -4.913504046e-09 | AJ158: 4.736260578e-06 | AK158: 14958.69987 | AL158: -211152.5502 | AN158: 77500 | AO158: 312.53735 | AP158: 1 | AQ158: 0.0570051722 | AR158: 77266.73108 | AS158: -4092.06596 | AU158: 9342.307158 | AV158: -2478.783683 | AX158: -383652727.2 | AY158: -2009731363 | AZ158: -1.759424376 | BA158: 711827589.9 | BB158: -231609721.9 | BC158: -0.3145695371 | BE158: 2.733279583 | BF158: 8.733681145 | BG158: -1.444854839 | BH158: -262.7840844 | BJ158: 32.08049699 | BK158: -83.33825343 | BL158: 96.66174657 | BM158: 96.66174657 | BN158: 0 | BO158: 0 | BQ158: 23.34673139 | BR158: -0.3015059848 | BU158: 25.63564195 | BX158: 3019.952 | BY158: 6.01306 | BZ158: -249.651
A159: 151 | B159: 134.9707064 | C159: 0.1349707064 | D159: 1.000007943 | E159: 0.003985794898 | G159: 0.9801196458 | H159: -0.009340351517 | I159: -0.009340351517 | K159: 1.000010064 | L159: -0.004486462692 | N159: 15 | Q159: 2.677797176 | R159: -1.570796325 | S159: 1.002670833 | T159: 0.07300550468 | U159: 1.001680366 | V159: 0.05793127349 | W159: 0.9999915834 | X159: -0.004102823326 | Y159: 0.999999443 | Z159: -0.001055457131 | AB159: 31.94078998 | AC159: -83.35727179 | AD159: 96.64272821 | AG159: 1 | AH159: 0.07313548347 | AI159: -5.085824597e-09 | AJ159: 4.818597137e-06 | AK159: 14958.69931 | AL159: -207545.0694 | AN159: 77500 | AO159: 317.9705919 | AP159: 1 | AQ159: 0.05799616701 | AR159: 77258.57757 | AS159: -4162.730776 | AU159: 9320.807951 | AV159: -2516.072067 | AX159: -382771188.5 | AY159: -1972124899 | AZ159: -1.762503507 | BA159: 709760024.1 | BB159: -235009561.5 | BC159: -0.3197493895 | BE159: 2.686969605 | BF159: 8.585255076 | BG159: -1.442754117 | BH159: -262.6637219 | BJ159: 31.93281856 | BK159: -83.22757075 | BL159: 96.77242925 | BM159: 96.77242925 | BN159: 0 | BO159: 0 | BQ159: 23.34747606 | BR159: -0.3067934958 | BU159: 25.48721588 | BX159: 3090.295 | BY159: 5.85449 | BZ159: -248.418
A160: 152 | B160: 137.3170772 | C160: 0.1373170772 | D160: 1.000008222 | E160: 0.004055084385 | G160: 0.9802063605 | H160: -0.00950357257 | I160: -0.00950357257 | K160: 1.000010417 | L160: -0.004564455616 | N160: 15 | Q160: 2.632040995 | R160: -1.570796325 | S160: 1.002764372 | T160: 0.07427003165 | U160: 1.001739247 | V160: 0.05893605731 | W160: 0.9999912883 | X160: -0.004174147202 | Y160: 0.9999994235 | Z160: -0.001073805497 | AB160: 31.7931814 | AC160: -83.24223825 | AD160: 96.75776175 | AG160: 1 | AH160: 0.0744068924 | AI160: -5.264188568e-09 | AJ160: 4.902365058e-06 | AK160: 14958.69872 | AL160: -203999.2399 | AN160: 77500 | AO160: 323.498287 | AP160: 1 | AQ160: 0.05900438958 | AR160: 77250.14007 | AS160: -4234.599072 | AU160: 9298.65872 | AV160: -2553.729275 | AX160: -381862996.6 | AY160: -1935119778 | AZ160: -1.765626156 | BA160: 707630048.4 | BB160: -238442501 | BC160: -0.3250103354 | BE160: 2.641457771 | BF160: 8.43687344 | BG160: -1.440615821 | BH160: -262.5412065 | BJ160: 31.78521084 | BK160: -83.11490594 | BL160: 96.88509406 | BM160: 96.88509406 | BN160: 0 | BO160: 0 | BQ160: 23.34824692 | BR160: -0.312175378 | BU160: 25.33883424 | BX160: 3162.278 | BY160: 5.60993 | BZ160: -248.626
A161: 153 | B161: 139.704238 | C161: 0.139704238 | D161: 1.00000851 | E161: 0.004125578382 | G161: 0.9802961323 | H161: -0.009669676137 | I161: -0.009669676137 | K161: 1.000010783 | L161: -0.004643804335 | N161: 15 | Q161: 2.587066661 | R161: -1.570796325 | S161: 1.002861182 | T161: 0.07555629736 | U161: 1.001800188 | V161: 0.05995818634 | W161: 0.9999909827 | X161: -0.00424671095 | Y161: 0.9999994033 | Z161: -0.001092472835 | AB161: 31.64564603 | AC161: -83.1252285 | AD161: 96.8747715 | AG161: 1 | AH161: 0.07570040387 | AI161: -5.448807909e-09 | AJ161: 4.987589226e-06 | AK161: 14958.69812 | AL161: -200514.0082 | AN161: 77500 | AO161: 329.1220771 | AP161: 1 | AQ161: 0.06003013938 | AR161: 77241.40874 | AS161: -4307.690456 | AU161: 9275.843295 | AV161: -2591.749239 | AX161: -380927488.5 | AY161: -1898705713 | AZ161: -1.768792601 | BA161: 705436117.9 | BB161: -241907887.8 | BC161: -0.3303532621 | BE161: 2.596730561 | BF161: 8.288537783 | BG161: -1.438439339 | BH161: -262.4165033 | BJ161: 31.63767632 | BK161: -83.0002271 | BL161: 96.9997729 | BM161: 96.9997729 | BN161: 0 | BO161: 0 | BQ161: 23.34904488 | BR161: -0.3176534029 | BU161: 25.19049858 | BX161: 3235.937 | BY161: 5.43209 | BZ161: -248.575
A162: 154 | B162: 142.1328979 | C162: 0.1421328979 | D162: 1.000008809 | E162: 0.004197297824 | G162: 0.9803890694 | H162: -0.009838714733 | I162: -0.009838714733 | K162: 1.000011161 | L162: -0.004724532415 | N162: 15 | Q162: 2.542860815 | R162: -1.570796325 | S162: 1.002961378 | T162: 0.07686466685 | U162: 1.001863264 | V162: 0.06099795563 | W162: 0.9999906665 | X162: -0.004320536121 | Y162: 0.9999993823 | Z162: -0.001111464691 | AB162: 31.49818644 | AC162: -83.00620944 | AD162: 96.99379056 | AG162: 1 | AH162: 0.07701640214 | AI162: -5.639901998e-09 | AJ162: 5.074294956e-06 | AK162: 14958.69749 | AL162: -197088.3392 | AN162: 77500 | AO162: 334.8436329 | AP162: 1 | AQ162: 0.06107372112 | AR162: 77232.37344 | AS162: -4382.024804 | AU162: 9252.345336 | AV162: -2630.12531 | AX162: -379963994.3 | AY162: -1862872625 | AZ162: -1.772003102 | BA162: 703176671.9 | BB162: -245405012.2 | BC162: -0.3357790507 | BE162: 2.552774689 | BF162: 8.140249703 | BG162: -1.436224051 | BH162: -262.2895767 | BJ162: 31.49021755 | BK162: -82.88350181 | BL162: 97.11649819 | BM162: 97.11649819 | BN162: 0 | BO162: 0 | BQ162: 23.3498709 | BR162: -0.3232293797 | BU162: 25.0422105 | BX162: 3311.311 | BY162: 5.23561 | BZ162: -247.758
A163: 155 | B163: 144.6037783 | C163: 0.1446037783 | D163: 1.000009118 | E163: 0.004270264015 | G163: 0.9804852841 | H163: -0.01001074191 | I163: -0.01001074191 | K163: 1.000011552 | L163: -0.004806663833 | N163: 15 | Q163: 2.499410325 | R163: -1.570796325 | S163: 1.003065077 | T163: 0.07819551087 | U163: 1.001928547 | V163: 0.06205566507 | W163: 0.9999903392 | X163: -0.004395644643 | Y163: 0.9999993607 | Z163: -0.001130786707 | AB163: 31.35080526 | AC163: -82.88514744 | AD163: 97.11485256 | AG163: 1 | AH163: 0.07835527811 | AI163: -5.837697911e-09 | AJ163: 5.162508004e-06 | AK163: 14958.69684 | AL163: -193721.2153 | AN163: 77500 | AO163: 340.6646539 | AP163: 1 | AQ163: 0.0621354448 | AR163: 77223.02366 | AS163: -4457.62227 | AU163: 9228.148344 | AV163: -2668.850235 | AX163: -378971837.4 | AY163: -1827610634 | AZ163: -1.775257901 | BA163: 700850135.4 | BB163: -248933105.1 | BC163: -0.3412885748 | BE163: 2.5095771 | BF163: 7.992010855 | BG163: -1.433969326 | BH163: -262.1603904 | BJ163: 31.34283717 | BK163: -82.76469714 | BL163: 97.23530286 | BM163: 97.23530286 | BN163: 0 | BO163: 0 | BQ163: 23.35072597 | BR163: -0.3289051564 | BU163: 24.89397166 | BX163: 3388.442 | BY163: 5.05282 | BZ163: -247.756
A164: 156 | B164: 147.1176133 | C164: 0.1471176133 | D164: 1.000009437 | E164: 0.004344498624 | G164: 0.9805848927 | H164: -0.01018581231 | I164: -0.01018581231 | K164: 1.000011957 | L164: -0.004890222982 | N164: 15 | Q164: 2.456702284 | R164: -1.570796325 | S164: 1.003172402 | T164: 0.07954920586 | U164: 1.001996115 | V164: 0.06313161938 | W164: 0.9999900004 | X164: -0.004472058822 | Y164: 0.9999993382 | Z164: -0.001150444621 | AB164: 31.20350524 | AC164: -82.76200836 | AD164: 97.23799164 | AG164: 1 | AH164: 0.0797174295 | AI164: -6.042430687e-09 | AJ164: 5.252254573e-06 | AK164: 14958.69617 | AL164: -190411.6362 | AN164: 77500 | AO164: 346.5868692 | AP164: 1 | AQ164: 0.0632156258 | AR164: 77213.34854 | AS164: -4534.503278 | AU164: 9203.235682 | AV164: -2707.916136 | AX164: -377950335.7 | AY164: -1792910059 | AZ164: -1.778557222 | BA164: 698454920.7 | BB164: -252491336 | BC164: -0.3468826997 | BE164: 2.467124962 | BF164: 7.843822949 | BG164: -1.431674522 | BH164: -262.0289079 | BJ164: 31.19553792 | BK164: -82.64377961 | BL164: 97.35622039 | BM164: 97.35622039 | BN164: 0 | BO164: 0 | BQ164: 23.35161111 | BR164: -0.3346826211 | BU164: 24.74578375 | BX164: 3467.369 | BY164: 4.9029 | BZ164: -247.513
A165: 157 | B165: 149.6751495 | C165: 0.1496751495 | D165: 1.000009768 | E165: 0.004420023701 | G165: 0.9806880156 | H165: -0.01036398162 | I165: -0.01036398162 | K165: 1.000012377 | L165: -0.004975234677 | N165: 15 | Q165: 2.414724006 | R165: -1.570796325 | S165: 1.003283479 | T165: 0.0809261341 | U165: 1.002066049 | V165: 0.06422612819 | W165: 0.9999896497 | X165: -0.004549801355 | Y165: 0.999999315 | Z165: -0.001170444273 | AB165: 31.0562892 | AC165: -82.63675756 | AD165: 97.36324244 | AG165: 1 | AH165: 0.08110326093 | AI165: -6.254343606e-09 | AJ165: 5.343561324e-06 | AK165: 14958.69548 | AL165: -187158.6188 | AN165: 77500 | AO165: 352.6120381 | AP165: 1 | AQ165: 0.06431458498 | AR165: 77203.33685 | AS165: -4612.68853 | AU165: 9177.590587 | AV165: -2747.314486 | AX165: -376898801.8 | AY165: -1758761419 | AZ165: -1.781901269 | BA165: 695989429.3 | BB165: -256078810.8 | BC165: -0.3525622812 | BE165: 2.425405665 | BF165: 7.695687752 | BG165: -1.429338988 | BH165: -261.8950916 | BJ165: 31.04832264 | BK165: -82.52071523 | BL165: 97.47928477 | BM165: 97.47928477 | BN165: 0 | BO165: 0 | BQ165: 23.35252739 | BR165: -0.3405637028 | BU165: 24.59764855 | BX165: 3548.134 | BY165: 4.65226 | BZ165: -246.726
A166: 158 | B166: 152.2771467 | C166: 0.1522771467 | D166: 1.000010111 | E166: 0.004496861677 | G166: 0.9807947775 | H166: -0.0105453067 | I166: -0.0105453067 | K166: 1.000012811 | L166: -0.005061724167 | N166: 15 | Q166: 2.373463021 | R166: -1.570796325 | S166: 1.003398438 | T166: 0.08232668372 | U166: 1.002138429 | V166: 0.06533950614 | W166: 0.9999892867 | X166: -0.004628895331 | Y166: 0.999999291 | Z166: -0.001190791604 | AB166: 30.90916009 | AC166: -82.50935984 | AD166: 97.49064016 | AG166: 1 | AH166: 0.08251318407 | AI166: -6.473688482e-09 | AJ166: 5.436455379e-06 | AK166: 14958.69476 | AL166: -183961.1968 | AN166: 77500 | AO166: 358.7419504 | AP166: 1 | AQ166: 0.06543264879 | AR166: 77192.97699 | AS166: -4692.199002 | AU166: 9151.196193 | AV166: -2787.03609 | AX166: -375816544.1 | AY166: -1725155426 | AZ166: -1.785290225 | BA166: 693452053.2 | BB166: -259694570 | BC166: -0.3583281647 | BE166: 2.384406817 | BF166: 7.547607096 | BG166: -1.42696206 | BH166: -261.7589037 | BJ166: 30.90119426 | BK166: -82.39546947 | BL166: 97.60453053 | BM166: 97.60453053 | BN166: 0 | BO166: 0 | BQ166: 23.3534759 | BR166: -0.3465503726 | BU166: 24.4495679 | BX166: 3630.781 | BY166: 4.4951 | BZ166: -246.212
A167: 159 | B167: 154.9243777 | C167: 0.1549243777 | D167: 1.000010466 | E167: 0.004575035372 | G167: 0.9809053077 | H167: -0.01072984551 | I167: -0.01072984551 | K167: 1.00001326 | L167: -0.005149717138 | N167: 15 | Q167: 2.332907073 | R167: -1.570796325 | S167: 1.003517415 | T167: 0.08375124875 | U167: 1.002213343 | V167: 0.06647207292 | W167: 0.999988911 | X167: -0.00470936424 | Y167: 0.9999992661 | Z167: -0.001211492658 | AB167: 30.76212093 | AC167: -82.37977949 | AD167: 97.62022051 | AG167: 1 | AH167: 0.08394761772 | AI167: -6.70072596e-09 | AJ167: 5.530964331e-06 | AK167: 14958.69402 | AL167: -180818.4205 | AN167: 77500 | AO167: 364.9784268 | AP167: 1 | AQ167: 0.06657014936 | AR167: 77182.25695 | AS167: -4773.055947 | AU167: 9124.03555 | AV167: -2827.07106 | AX167: -374702867.7 | AY167: -1692082988 | AZ167: -1.788724251 | BA167: 690841177.8 | BB167: -263337585.9 | BC167: -0.3641811839 | BE167: 2.344116239 | BF167: 7.399582871 | BG167: -1.424543067 | BH167: -261.6203055 | BJ167: 30.75415582 | BK167: -82.26800725 | BL167: 97.73199275 | BM167: 97.73199275 | BN167: 0 | BO167: 0 | BQ167: 23.35445777 | BR167: -0.3526446452 | BU167: 24.30154367 | BX167: 3715.352 | BY167: 4.3437 | BZ167: -245.97
A168: 160 | B168: 157.6176291 | C168: 0.1576176291 | D168: 1.000010833 | E168: 0.004654568005 | G168: 0.9810197401 | H168: -0.01091765723 | I168: -0.01091765723 | K168: 1.000013725 | L168: -0.005239239724 | N168: 15 | Q168: 2.293044114 | R168: -1.570796325 | S168: 1.00364055 | T168: 0.08520022923 | U168: 1.002290878 | V168: 0.06762415333 | W168: 0.9999885221 | X168: -0.004791231982 | Y168: 0.9999992404 | Z168: -0.001232553585 | AB168: 30.61517486 | AC168: -82.24798026 | AD168: 97.75201974 | AG168: 1 | AH168: 0.085406988 | AI168: -6.935725825e-09 | AJ168: 5.627116255e-06 | AK168: 14958.69325 | AL168: -177729.3562 | AN168: 77500 | AO168: 371.32332 | AP168: 1 | AQ168: 0.06772742458 | AR168: 77171.16433 | AS168: -4855.280892 | AU168: 9096.091647 | AV168: -2867.408798 | AX168: -373557075.1 | AY168: -1659535201 | AZ168: -1.792203483 | BA168: 688155183.4 | BB168: -267006761.2 | BC168: -0.3701221598 | BE168: 2.304521965 | BF168: 7.251617035 | BG168: -1.422081323 | BH168: -261.479258 | BJ168: 30.60721045 | BK168: -82.13829295 | BL168: 97.86170705 | BM168: 97.86170705 | BN168: 0 | BO168: 0 | BQ168: 23.3554742 | BR168: -0.3588485798 | BU168: 24.15357784 | BX168: 3801.894 | BY168: 4.14374 | BZ168: -245.169
A169: 161 | B169: 160.3577007 | C169: 0.1603577007 | D169: 1.000011213 | E169: 0.004735483196 | G169: 0.9811382134 | H169: -0.01110880221 | I169: -0.01110880221 | K169: 1.000014206 | L169: -0.00533031851 | N169: 15 | Q169: 2.253862303 | R169: -1.570796325 | S169: 1.003767987 | T169: 0.08667403124 | U169: 1.002371126 | V169: 0.06879607735 | W169: 0.9999881195 | X169: -0.004874522872 | Y169: 0.9999992138 | Z169: -0.00125398064 | AB169: 30.46832514 | AC169: -82.11392535 | AD169: 97.88607465 | AG169: 1 | AH169: 0.0868917284 | AI169: -7.178967325e-09 | AJ169: 5.724939712e-06 | AK169: 14958.69245 | AL169: -174693.0864 | AN169: 77500 | AO169: 377.7785147 | AP169: 1 | AQ169: 0.06890481821 | AR169: 77159.68629 | AS169: -4938.895642 | AU169: 9067.347435 | AV169: -2908.037972 | AX169: -372378467.1 | AY169: -1627503355 | AZ169: -1.795728035 | BA169: 685392447.6 | BB169: -270700926.6 | BC169: -0.3761518995 | BE169: 2.265612231 | BF169: 7.103711612 | BG169: -1.419576135 | BH169: -261.3357213 | BJ169: 30.4603614 | BK169: -82.00629039 | BL169: 97.99370961 | BM169: 97.99370961 | BN169: 0 | BO169: 0 | BQ169: 23.35652639 | BR169: -0.3651642816 | BU169: 24.00567241 | BX169: 3890.451 | BY169: 3.9573 | BZ169: -244.768
A170: 162 | B170: 163.1454065 | C170: 0.1631454065 | D170: 1.000011606 | E170: 0.004817804977 | G170: 0.9812608712 | H170: -0.01130334206 | I170: -0.01130334206 | K170: 1.000014705 | L170: -0.005422980546 | N170: 15 | Q170: 2.215350002 | R170: -1.570796325 | S170: 1.003899877 | T170: 0.08817306694 | U170: 1.002454181 | V170: 0.06998818022 | W170: 0.9999877029 | X170: -0.004959261645 | Y170: 0.9999991862 | Z170: -0.001275780187 | AB170: 30.32157511 | AC170: -81.97757743 | AD170: 98.02242257 | AG170: 1 | AH170: 0.08840227997 | AI170: -7.430739501e-09 | AJ170: 5.824463762e-06 | AK170: 14958.69162 | AL170: -171708.7092 | AN170: 77500 | AO170: 384.3459284 | AP170: 1 | AQ170: 0.07010268 | AR170: 77147.80958 | AS170: -5023.922279 | AU170: 9037.785852 | AV170: -2948.946493 | AX170: -371166344.2 | AY170: -1595978924 | AZ170: -1.799297992 | BA170: 682551348.4 | BB170: -274418839 | BC170: -0.3822711946 | BE170: 2.227375481 | BF170: 6.955868694 | BG170: -1.417026797 | BH170: -261.189655 | BJ170: 30.31361203 | BK170: -81.87196284 | BL170: 98.12803716 | BM170: 98.12803716 | BN170: 0 | BO170: 0 | BQ170: 23.35761561 | BR170: -0.3715939031 | BU170: 23.85782949 | BX170: 3981.072 | BY170: 3.89809 | BZ170: -244.315
A171: 163 | B171: 165.9815746 | C171: 0.1659815746 | D171: 1.000012013 | E171: 0.004901557797 | G171: 0.9813878625 | H171: -0.01150133963 | I171: -0.01150133963 | K171: 1.00001522 | L171: -0.005517253351 | N171: 15 | Q171: 2.17749577 | R171: -1.570796325 | S171: 1.004036374 | T171: 0.08969775468 | U171: 1.002540142 | V171: 0.07120080251 | W171: 0.9999872716 | X171: -0.005045473469 | Y171: 0.9999991577 | Z171: -0.001297958704 | AB171: 30.17492825 | AC171: -81.8388986 | AD171: 98.1611014 | AG171: 1 | AH171: 0.08993909142 | AI171: -7.69134153e-09 | AJ171: 5.925717967e-06 | AK171: 14958.69077 | AL171: -168775.3379 | AN171: 77500 | AO171: 391.027512 | AP171: 1 | AQ171: 0.07132136577 | AR171: 77135.52049 | AS171: -5110.383159 | AU171: 9007.38985 | AV171: -2990.121501 | AX171: -369920007.4 | AY171: -1564953569 | AZ171: -1.802913413 | BA171: 679630266 | BB171: -278159179.2 | BC171: -0.3884808208 | BE171: 2.189800357 | BF171: 6.808090446 | BG171: -1.414432592 | BH171: -261.041018 | BJ171: 30.16696582 | BK171: -81.73527301 | BL171: 98.26472699 | BM171: 98.26472699 | BN171: 0 | BO171: 0 | BQ171: 23.35874317 | BR171: -0.3781396453 | BU171: 23.71005125 | BX171: 4073.803 | BY171: 3.5601 | BZ171: -244.142
A172: 164 | B172: 168.8670475 | C172: 0.1688670475 | D172: 1.000012434 | E172: 0.00498676653 | G172: 0.9815193415 | H172: -0.0117028591 | I172: -0.0117028591 | K172: 1.000015754 | L172: -0.005613164922 | N172: 15 | Q172: 2.140288362 | R172: -1.570796325 | S172: 1.004177638 | T172: 0.09124851899 | U172: 1.00262911 | V172: 0.07243429014 | W172: 0.9999868252 | X172: -0.005133183948 | Y172: 0.9999991281 | Z172: -0.001320522777 | AB172: 30.02838817 | AC172: -81.69785042 | AD172: 98.30214958 | AG172: 1 | AH172: 0.09150261925 | AI172: -7.961083083e-09 | AJ172: 6.028732405e-06 | AK172: 14958.68989 | AL172: -165892.1014 | AN172: 77500 | AO172: 397.8252502 | AP172: 1 | AQ172: 0.07256123754 | AR172: 77122.80485 | AS172: -5198.300913 | AU172: 8976.142427 | AV172: -3031.549339 | AX172: -368638759.4 | AY172: -1534419136 | AZ172: -1.806574328 | BA172: 676627586.5 | BB172: -281920550.3 | BC172: -0.3947815355 | BE172: 2.152875697 | BF172: 6.660379105 | BG172: -1.411792792 | BH172: -260.8897686 | BJ172: 30.02042636 | BK172: -81.59618305 | BL172: 98.40381695 | BM172: 98.40381695 | BN172: 0 | BO172: 0 | BQ172: 23.35991042 | BR172: -0.3848037595 | BU172: 23.56233991 | BX172: 4168.694 | BY172: 3.40988 | BZ172: -243.709
A173: 165 | B173: 171.8026823 | C173: 0.1718026823 | D173: 1.00001287 | E173: 0.005073456483 | G173: 0.981655468 | H173: -0.01190796597 | I173: -0.01190796597 | K173: 1.000016307 | L173: -0.005710743742 | N173: 15 | Q173: 2.103716727 | R173: -1.570796325 | S173: 1.004323836 | T173: 0.09282579069 | U173: 1.00272119 | V173: 0.07368899452 | W173: 0.9999863632 | X173: -0.005222419132 | Y173: 0.9999990975 | Z173: -0.001343479109 | AB173: 29.88195858 | AC173: -81.55439389 | AD173: 98.44560611 | AG173: 1 | AH173: 0.09309332792 | AI173: -8.24028469e-09 | AJ173: 6.133537677e-06 | AK173: 14958.68897 | AL173: -163058.143 | AN173: 77500 | AO173: 404.7411623 | AP173: 1 | AQ173: 0.07382266361 | AR173: 77109.64802 | AS173: -5287.698444 | AU173: 8944.026654 | AV173: -3073.21554 | AX173: -367321906.2 | AY173: -1504367653 | AZ173: -1.810280735 | BA173: 673541704.1 | BB173: -285701475.5 | BC173: -0.4011740775 | BE173: 2.116590533 | BF173: 6.512736986 | BG173: -1.409106658 | BH173: -260.7358645 | BJ173: 29.87399739 | BK173: -81.45465454 | BL173: 98.54534546 | BM173: 98.54534546 | BN173: 0 | BO173: 0 | BQ173: 23.36111877 | BR173: -0.3915885488 | BU173: 23.41469779 | BX173: 4265.795 | BY173: 3.2245 | BZ173: -243.324
A174: 166 | B174: 174.7893511 | C174: 0.1747893511 | D174: 1.000013321 | E174: 0.005161653402 | G174: 0.9817964076 | H174: -0.01211672709 | I174: -0.01211672709 | K174: 1.000016878 | L174: -0.005810018789 | N174: 15 | Q174: 2.06777 | R174: -1.570796325 | S174: 1.004475139 | T174: 0.0944300069 | U174: 1.002816491 | V174: 0.07496527254 | W174: 0.999985885 | X174: -0.00531320552 | Y174: 0.9999990659 | Z174: -0.001366834519 | AB174: 29.73564334 | AC174: -81.40848943 | AD174: 98.59151057 | AG174: 1 | AH174: 0.09471168993 | AI174: -8.529278122e-09 | AJ174: 6.240164914e-06 | AK174: 14958.68802 | AL174: -160272.6211 | AN174: 77500 | AO174: 411.7773027 | AP174: 1 | AQ174: 0.07510601868 | AR174: 77096.03485 | AS174: -5378.598931 | AU174: 8911.025706 | AV174: -3115.104802 | AX174: -365968758 | AY174: -1474791327 | AZ174: -1.814032604 | BA174: 670371025.1 | BB174: -289500396.9 | BC174: -0.4076591648 | BE174: 2.080934086 | BF174: 6.365166483 | BG174: -1.406373439 | BH174: -260.5792626 | BJ174: 29.72768275 | BK174: -81.31064848 | BL174: 98.68935152 | BM174: 98.68935152 | BN174: 0 | BO174: 0 | BQ174: 23.36236966 | BR174: -0.3984963692 | BU174: 23.26712728 | BX174: 4365.158 | BY174: 3.07782 | BZ174: -242.172
A175: 167 | B175: 177.827941 | C175: 0.177827941 | D175: 1.000013789 | E175: 0.00525138348 | G175: 0.981942332 | H175: -0.01232921076 | I175: -0.01232921076 | K175: 1.00001747 | L175: -0.005911019546 | N175: 15 | Q175: 2.032437504 | R175: -1.570796325 | S175: 1.004631724 | T175: 0.09606161112 | U175: 1.002915124 | V175: 0.07626348668 | W175: 0.9999853899 | X175: -0.005405570076 | Y175: 0.9999990331 | Z175: -0.001390595945 | AB175: 29.58944642 | AC175: -81.26009692 | AD175: 98.73990308 | AG175: 1 | AH175: 0.09635818603 | AI175: -8.828406787e-09 | AJ175: 6.348645791e-06 | AK175: 14958.68704 | AL175: -157534.7081 | AN175: 77500 | AO175: 418.9357614 | AP175: 1 | AQ175: 0.07641168398 | AR175: 77081.9497 | AS175: -5471.02582 | AU175: 8877.122902 | AV175: -3157.200976 | AX175: -364578630.6 | AY175: -1445682546 | AZ175: -1.817829866 | BA175: 667113970.5 | BB175: -293315673.3 | BC175: -0.4142374938 | BE175: 2.045895765 | BF175: 6.217670069 | BG175: -1.403592372 | BH175: -260.4199192 | BJ175: 29.58148642 | BK175: -81.16412529 | BL175: 98.83587471 | BM175: 98.83587471 | BN175: 0 | BO175: 0 | BQ175: 23.36366461 | BR175: -0.4055296318 | BU175: 23.11963087 | BX175: 4466.836 | BY175: 2.92332 | BZ175: -240.903
A176: 168 | B176: 180.9193547 | C176: 0.1809193547 | D176: 1.000014272 | E176: 0.005342673365 | G176: 0.982093419 | H176: -0.01254548668 | I176: -0.01254548668 | K176: 1.000018083 | L176: -0.006013776006 | N176: 15 | Q176: 1.997708743 | R176: -1.570796325 | S176: 1.004793774 | T176: 0.09772105325 | U176: 1.003017206 | V176: 0.07758400507 | W176: 0.9999848776 | X176: -0.005499540231 | Y176: 0.9999989992 | Z176: -0.001414770446 | AB176: 29.44337196 | AC176: -81.10917563 | AD176: 98.89082437 | AG176: 1 | AH176: 0.09803330531 | AI176: -9.138026135e-09 | AJ176: 6.459012532e-06 | AK176: 14958.68603 | AL176: -154843.5907 | AN176: 77500 | AO176: 426.2186649 | AP176: 1 | AQ176: 0.07774004735 | AR176: 77067.37642 | AS176: -5565.002827 | AU176: 8842.301736 | AV176: -3199.487048 | AX176: -363150847.4 | AY176: -1417033873 | AZ176: -1.821672422 | BA176: 663768980.1 | BB176: -297145578.8 | BC176: -0.4209097376 | BE176: 2.011465162 | BF176: 6.070250303 | BG176: -1.400762685 | BH176: -260.25779 | BJ176: 29.43541253 | BK176: -81.01504482 | BL176: 98.98495518 | BM176: 98.98495518 | BN176: 0 | BO176: 0 | BQ176: 23.36500516 | BR176: -0.4126908042 | BU176: 22.9722111 | BX176: 4570.882 | BY176: 2.72669 | BZ176: -241.252
A177: 169 | B177: 184.0645104 | C177: 0.1840645104 | D177: 1.000014773 | E177: 0.005435550169 | G177: 0.9822498529 | H177: -0.01276562606 | I177: -0.01276562606 | K177: 1.000018717 | L177: -0.006118318685 | N177: 15 | Q177: 1.963573401 | R177: -1.570796325 | S177: 1.004961481 | T177: 0.09940878966 | U177: 1.003122857 | V177: 0.07892720155 | W177: 0.9999843472 | X177: -0.005595143891 | Y177: 0.9999989641 | Z177: -0.001439365201 | AB177: 29.29742421 | AC177: -80.95568429 | AD177: 99.04431571 | AG177: 1 | AH177: 0.09973754536 | AI177: -9.458504084e-09 | AJ177: 6.571297921e-06 | AK177: 14958.68498 | AL177: -152198.4696 | AN177: 77500 | AO177: 433.6281765 | AP177: 1 | AQ177: 0.07909150338 | AR177: 77052.29828 | AS177: -5660.553934 | AU177: 8806.545916 | AV177: -3241.945124 | AX177: -361684740.2 | AY177: -1388838047 | AZ177: -1.825560135 | BA177: 660334515.8 | BB177: -300988301.5 | BC177: -0.4276765445 | BE177: 1.977632049 | BF177: 5.922909831 | BG177: -1.397883591 | BH177: -260.0928301 | BJ177: 29.28946535 | BK177: -80.86336635 | BL177: 99.13663365 | BM177: 99.13663365 | BN177: 0 | BO177: 0 | BQ177: 23.36639294 | BR177: -0.4199824125 | BU177: 22.82487063 | BX177: 4677.351 | BY177: 2.54392 | BZ177: -240.638
A178: 170 | B178: 187.2643424 | C178: 0.1872643424 | D178: 1.000015291 | E178: 0.005530041475 | G178: 0.9824118245 | H178: -0.01298970161 | I178: -0.01298970161 | K178: 1.000019374 | L178: -0.006224678627 | N178: 15 | Q178: 1.930021338 | R178: -1.570796325 | S178: 1.005135039 | T178: 0.1011252832 | U178: 1.003232202 | V178: 0.08029345571 | W178: 0.9999837983 | X178: -0.005692409448 | Y178: 0.9999989278 | Z178: -0.001464387517 | AB178: 29.15160759 | AC178: -80.79958104 | AD178: 99.20041896 | AG178: 1 | AH178: 0.1014714124 | AI178: -9.790221453e-09 | AJ178: 6.685535313e-06 | AK178: 14958.68389 | AL178: -149598.559 | AN178: 77500 | AO178: 441.1664973 | AP178: 1 | AQ178: 0.08046645353 | AR178: 77036.69803 | AS178: -5757.703385 | AU178: 8769.839405 | AV178: -3284.556418 | AX178: -360179651.6 | AY178: -1361087979 | AZ178: -1.829492829 | BA178: 656809066.1 | BB178: -304841941.9 | BC178: -0.4345385367 | BE178: 1.944386376 | BF178: 5.775651386 | BG178: -1.394954293 | BH178: -259.9249937 | BJ178: 29.14364928 | BK178: -80.70904854 | BL178: 99.29095146 | BM178: 99.29095146 | BN178: 0 | BO178: 0 | BQ178: 23.36782962 | BR178: -0.4274070429 | BU178: 22.67761219 | BX178: 4786.301 | BY178: 2.53075 | BZ178: -240.031
A179: 171 | B179: 190.5198012 | C179: 0.1905198012 | D179: 1.000015827 | E179: 0.005626175344 | G179: 0.982579532 | H179: -0.01321778762 | I179: -0.01321778762 | K179: 1.000020053 | L179: -0.006332887417 | N179: 15 | Q179: 1.897042587 | R179: -1.570796325 | S179: 1.005314653 | T179: 0.1028710034 | U179: 1.003345368 | V179: 0.08168315299 | W179: 0.9999832301 | X179: -0.005791365788 | Y179: 0.9999988902 | Z179: -0.001489844826 | AB179: 29.00592666 | AC179: -80.64082344 | AD179: 99.35917656 | AG179: 1 | AH179: 0.1032354215 | AI179: -1.013357242e-08 | AJ179: 6.801758641e-06 | AK179: 14958.68277 | AL179: -147043.0866 | AN179: 77500 | AO179: 448.8358665 | AP179: 1 | AQ179: 0.08186530622 | AR179: 77020.55782 | AS179: -5856.475685 | AU179: 8732.16646 | AV179: -3327.301237 | AX179: -358634935.9 | AY179: -1333776753 | AZ179: -1.83347029 | BA179: 653191149.4 | BB179: -308704512 | BC179: -0.4414963088 | BE179: 1.911718267 | BF179: 5.628477798 | BG179: -1.391973981 | BH179: -259.7542344 | BJ179: 28.99796889 | BK179: -80.55204948 | BL179: 99.44795052 | BM179: 99.44795052 | BN179: 0 | BO179: 0 | BQ179: 23.36931692 | BR179: -0.4349673438 | BU179: 22.5304386 | BX179: 4897.788 | BY179: 2.17956 | BZ179: -239.481
A180: 172 | B180: 193.831854 | C180: 0.193831854 | D180: 1.000016382 | E180: 0.005723980326 | G180: 0.9827531803 | H180: -0.01344995999 | I180: -0.01344995999 | K180: 1.000020756 | L180: -0.006442977189 | N180: 15 | Q180: 1.864627352 | R180: -1.570796325 | S180: 1.005500533 | T180: 0.1046464261 | U180: 1.003462491 | V180: 0.08309668472 | W180: 0.999982642 | X180: -0.005892042297 | Y180: 0.9999988513 | Z180: -0.001515744691 | AB180: 28.86038615 | AC180: -80.47936847 | AD180: 99.52063153 | AG180: 1 | AH180: 0.1050300967 | AI180: -1.048896498e-08 | AJ180: 6.92000243e-06 | AK180: 14958.6816 | AL180: -144531.2933 | AN180: 77500 | AO180: 456.6385623 | AP180: 1 | AQ180: 0.08328847697 | AR180: 77003.85924 | AS180: -5956.895595 | AU180: 8693.511677 | AV180: -3370.158971 | AX180: -357049961.7 | AY180: -1306897621 | AZ180: -1.837492262 | BA180: 649479318.7 | BB180: -312573934.1 | BC180: -0.4485504262 | BE180: 1.879618017 | BF180: 5.481391988 | BG180: -1.388941836 | BH180: -259.5805053 | BJ180: 28.85242891 | BK180: -80.39232669 | BL180: 99.60767331 | BM180: 99.60767331 | BN180: 0 | BO180: 0 | BQ180: 23.37085663 | BR180: -0.4426660279 | BU180: 22.38335279 | BX180: 5011.872 | BY180: 2.08934 | BZ180: -238.507
A181: 173 | B181: 197.2014844 | C181: 0.1972014844 | D181: 1.000016957 | E181: 0.005823485467 | G181: 0.9829329821 | H181: -0.01368629626 | I181: -0.01368629626 | K181: 1.000021484 | L181: -0.006554980634 | N181: 15 | Q181: 1.832766004 | R181: -1.570796325 | S181: 1.005692895 | T181: 0.1064520339 | U181: 1.003583706 | V181: 0.08453444819 | W181: 0.9999820332 | X181: -0.005994468875 | Y181: 0.999998811 | Z181: -0.001542094805 | AB181: 28.71499093 | AC181: -80.31517251 | AD181: 99.68482749 | AG181: 1 | AH181: 0.1068559711 | AI181: -1.085682144e-08 | AJ181: 7.040301804e-06 | AK181: 14958.6804 | AL181: -142062.4331 | AN181: 77500 | AO181: 464.5769025 | AP181: 1 | AQ181: 0.08473638855 | AR181: 76986.58323 | AS181: -6058.988127 | AU181: 8653.860037 | AV181: -3413.10809 | AX181: -355424113 | AY181: -1280444005 | AZ181: -1.841558445 | BA181: 645672166.1 | BB181: -316448040.2 | BC181: -0.4557014233 | BE181: 1.848076093 | BF181: 5.334396978 | BG181: -1.385857022 | BH181: -259.4037585 | BJ181: 28.70703421 | BK181: -80.22983705 | BL181: 99.77016295 | BM181: 99.77016295 | BN181: 0 | BO181: 0 | BQ181: 23.37245062 | BR181: -0.450505874 | BU181: 22.23635778 | BX181: 5128.614 | BY181: 1.79547 | BZ181: -237.881
A182: 174 | B182: 200.6296935 | C182: 0.2006296935 | D182: 1.000017551 | E182: 0.005924720316 | G182: 0.9831191578 | H182: -0.01392687568 | I182: -0.01392687568 | K182: 1.000022238 | L182: -0.006668931011 | N182: 15 | Q182: 1.801449079 | R182: -1.570796325 | S182: 1.005891964 | T182: 0.1082883162 | U182: 1.003709158 | V182: 0.08599684671 | W182: 0.9999814031 | X182: -0.006098675937 | Y182: 0.9999987693 | Z182: -0.001568902995 | AB182: 28.56974606 | AC182: -80.14819138 | AD182: 99.85180862 | AG182: 1 | AH182: 0.1087135869 | AI182: -1.123757893e-08 | AJ182: 7.162692498e-06 | AK182: 14958.67915 | AL182: -139635.7724 | AN182: 77500 | AO182: 472.6532451 | AP182: 1 | AQ182: 0.08620947106 | AR182: 76968.71012 | AS182: -6162.778542 | AU182: 8613.196949 | AV182: -3456.126127 | AX182: -353756791.6 | AY182: -1254409491 | AZ182: -1.845668497 | BA182: 641768327.2 | BB182: -320324571.1 | BC182: -0.4629498025 | BE182: 1.817083123 | BF182: 5.187495893 | BG182: -1.382718695 | BH182: -259.2239456 | BJ182: 28.56178986 | BK182: -80.06453689 | BL182: 99.93546311 | BM182: 99.93546311 | BN182: 0 | BO182: 0 | BQ182: 23.37410081 | BR182: -0.4584897296 | BU182: 22.08945669 | BX182: 5248.075 | BY182: 1.60241 | BZ182: -238.28
A183: 175 | B183: 204.1174995 | C183: 0.2041174995 | D183: 1.000018167 | E183: 0.006027714937 | G183: 0.9833119358 | H183: -0.01417177924 | I183: -0.01417177924 | K183: 1.000023018 | L183: -0.006784862158 | N183: 15 | Q183: 1.770667274 | R183: -1.570796325 | S183: 1.006097974 | T183: 0.1101557688 | U183: 1.003838992 | V183: 0.08748428964 | W183: 0.9999807509 | X183: -0.00620469443 | Y183: 0.9999987261 | Z183: -0.001596177224 | AB183: 28.42465678 | AC183: -79.97838028 | AD183: 100.0216197 | AG183: 1 | AH183: 0.1106034962 | AI183: -1.163168989e-08 | AJ183: 7.287210868e-06 | AK183: 14958.67786 | AL183: -137250.5905 | AN183: 77500 | AO183: 480.8699893 | AP183: 1 | AQ183: 0.08770816206 | AR183: 76950.2196 | AS183: -6268.292342 | AU183: 8571.508303 | AV183: -3499.189684 | AX183: -352047418.9 | AY183: -1228787827 | AZ183: -1.849822029 | BA183: 637766485.9 | BB183: -324201176.2 | BC183: -0.4702960323 | BE183: 1.786629901 | BF183: 5.040691961 | BG183: -1.379525997 | BH183: -259.0410174 | BJ183: 28.41670108 | BK183: -79.89638192 | BL183: 100.1036181 | BM183: 100.1036181 | BN183: 0 | BO183: 0 | BQ183: 23.37580919 | BR183: -0.4666205129 | BU183: 21.94265276 | BX183: 5370.318 | BY183: 1.48515 | BZ183: -237.347
A184: 176 | B184: 207.6659387 | C184: 0.2076659387 | D184: 1.000018804 | E184: 0.006132499916 | G184: 0.983511553 | H184: -0.01442108974 | I184: -0.01442108974 | K184: 1.000023825 | L184: -0.006902808498 | N184: 15 | Q184: 1.740411446 | R184: -1.570796325 | S184: 1.006311164 | T184: 0.1120548943 | U184: 1.003973362 | V184: 0.08899719251 | W184: 0.9999800759 | X184: -0.006312555837 | Y184: 0.9999986814 | Z184: -0.001623925593 | AB184: 28.27972848 | AC184: -79.80569385 | AD184: 100.1943061 | AG184: 1 | AH184: 0.1125262601 | AI184: -1.203962264e-08 | AJ184: 7.413893902e-06 | AK184: 14958.67652 | AL184: -134906.1789 | AN184: 77500 | AO184: 489.2295757 | AP184: 1 | AQ184: 0.08923290676 | AR184: 76931.09067 | AS184: -6375.555265 | AU184: 8528.780514 | AV184: -3542.274422 | AX184: -350295437.9 | AY184: -1203572927 | AZ184: -1.854018604 | BA184: 633665379 | BB184: -328075412.9 | BC184: -0.4777405457 | BE184: 1.756707381 | BF184: 4.893988519 | BG184: -1.376278058 | BH184: -258.8549243 | BJ184: 28.27177328 | BK184: -79.72532726 | BL184: 100.2746727 | BM184: 100.2746727 | BN184: 0 | BO184: 0 | BQ184: 23.37757783 | BR184: -0.4749012153 | BU184: 21.79594932 | BX184: 5495.409 | BY184: 1.35836 | BZ184: -235.612
A185: 177 | B185: 211.2760649 | C185: 0.2112760649 | D185: 1.000019464 | E185: 0.00623910637 | G185: 0.9837182547 | H185: -0.01467489182 | I185: -0.01467489182 | K185: 1.00002466 | L185: -0.007022805056 | N185: 15 | Q185: 1.710672606 | R185: -1.570796325 | S185: 1.006531784 | T185: 0.1139862021 | U185: 1.004112426 | V185: 0.090535977 | W185: 0.9999793772 | X185: -0.006422292188 | Y185: 0.9999986352 | Z185: -0.001652156346 | AB185: 28.13496677 | AC185: -79.63008613 | AD185: 100.3699139 | AG185: 1 | AH185: 0.11448245 | AI185: -1.246186192e-08 | AJ185: 7.542779232e-06 | AK185: 14958.67514 | AL185: -132601.8411 | AN185: 77500 | AO185: 497.7344877 | AP185: 1 | AQ185: 0.09078415807 | AR185: 76911.30166 | AS185: -6484.593279 | AU185: 8485.00058 | AV185: -3585.355067 | AX185: -348500315.5 | AY185: -1178758860 | AZ185: -1.858257735 | BA185: 629463802 | BB185: -331944747.4 | BC185: -0.4852837388 | BE185: 1.727306673 | BF185: 4.747389016 | BG185: -1.372973996 | BH185: -258.6656154 | BJ185: 28.12701206 | BK185: -79.55132743 | BL185: 100.4486726 | BM185: 100.4486726 | BN185: 0 | BO185: 0 | BQ185: 23.37940885 | BR185: -0.483334904 | BU185: 21.64934982 | BX185: 5623.413 | BY185: 1.07298 | BZ185: -235.138
A186: 178 | B186: 214.9489507 | C186: 0.2149489507 | D186: 1.000020146 | E186: 0.006347565957 | G186: 0.9839322956 | H186: -0.01493327206 | I186: -0.01493327206 | K186: 1.000025525 | L186: -0.007144887462 | N186: 15 | Q186: 1.681441921 | R186: -1.570796325 | S186: 1.006760089 | T186: 0.1159502082 | U186: 1.004256346 | V186: 0.09210107106 | W186: 0.9999786539 | X186: -0.006533936069 | Y186: 0.9999985873 | Z186: -0.001680877869 | AB186: 27.99037743 | AC186: -79.45151055 | AD186: 100.5484894 | AG186: 1 | AH186: 0.1164726469 | AI186: -1.289890947e-08 | AJ186: 7.673905143e-06 | AK186: 14958.67371 | AL186: -130336.8926 | AN186: 77500 | AO186: 506.3872516 | AP186: 1 | AQ186: 0.09236237679 | AR186: 76890.83017 | AS186: -6595.432576 | AU186: 8440.15613 | AV186: -3628.405407 | AX186: -346661544.4 | AY186: -1154339856 | AZ186: -1.862538885 | BA186: 625160613.6 | BB186: -335806554.1 | BC186: -0.4929259692 | BE186: 1.698419044 | BF186: 4.600897019 | BG186: -1.369612916 | BH186: -258.4730397 | BJ186: 27.98242321 | BK186: -79.37433636 | BL186: 100.6256636 | BM186: 100.6256636 | BN186: 0 | BO186: 0 | BQ186: 23.38130448 | BR186: -0.4919247243 | BU186: 21.50285782 | BX186: 5754.399 | BY186: 0.869153 | BZ186: -234.689
A187: 179 | B187: 218.685687 | C187: 0.218685687 | D187: 1.000020853 | E187: 0.006457910884 | G187: 0.9841539395 | H187: -0.01519631896 | I187: -0.01519631896 | K187: 1.00002642 | L187: -0.007269091966 | N187: 15 | Q187: 1.652710708 | R187: -1.570796325 | S187: 1.006996347 | T187: 0.1179474354 | U187: 1.004405292 | V187: 0.09369290891 | W187: 0.9999779053 | X187: -0.006647520633 | Y187: 0.9999985378 | Z187: -0.001710098691 | AB187: 27.84596645 | AC187: -79.26991999 | AD187: 100.73008 | AG187: 1 | AH187: 0.1184974419 | AI187: -1.335128463e-08 | AJ187: 7.807310585e-06 | AK187: 14958.67223 | AL187: -128110.6607 | AN187: 77500 | AO187: 515.1904378 | AP187: 1 | AQ187: 0.09396803173 | AR187: 76869.65309 | AS187: -6708.099563 | AU187: 8394.235479 | AV187: -3671.398305 | AX187: -344778645.4 | AY187: -1130310297 | AZ187: -1.866861465 | BA187: 620754741.1 | BB187: -339658116.8 | BC187: -0.5006675541 | BE187: 1.670035913 | BF187: 4.454516211 | BG187: -1.366193911 | BH187: -258.2771452 | BJ187: 27.8380127 | BK187: -79.19430738 | BL187: 100.8056926 | BM187: 100.8056926 | BN187: 0 | BO187: 0 | BQ187: 23.38326701 | BR187: -0.500673903 | BU187: 21.35647701 | BX187: 5888.437 | BY187: 0.803236 | BZ187: -233.954
A188: 180 | B188: 222.4873838 | C188: 0.2224873838 | D188: 1.000021584 | E188: 0.006570173918 | G188: 0.9843834599 | H188: -0.01546412307 | I188: -0.01546412307 | K188: 1.000027347 | L188: -0.007395455448 | N188: 15 | Q188: 1.624470433 | R188: -1.570796325 | S188: 1.007240833 | T188: 0.1199784132 | U188: 1.004559439 | V188: 0.09531193113 | W188: 0.9999771305 | X188: -0.006763079609 | Y188: 0.9999984865 | Z188: -0.001739827495 | AB188: 27.70174001 | AC188: -79.08526671 | AD188: 100.9147333 | AG188: 1 | AH188: 0.1205574366 | AI188: -1.381952495e-08 | AJ188: 7.943035188e-06 | AK188: 14958.67069 | AL188: -125922.4841 | AN188: 77500 | AO188: 524.1466611 | AP188: 1 | AQ188: 0.09560159986 | AR188: 76847.74653 | AS188: -6822.620853 | AU188: 8347.227685 | AV188: -3714.305699 | AX188: -342851170 | AY188: -1106664721 | AZ188: -1.871224831 | BA188: 616245186.1 | BB188: -343496629.3 | BC188: -0.5085087692 | BE188: 1.642148848 | BF188: 4.308250399 | BG188: -1.362716061 | BH188: -258.0778791 | BJ188: 27.69378674 | BK188: -79.01119322 | BL188: 100.9888068 | BM188: 100.9888068 | BN188: 0 | BO188: 0 | BQ188: 23.38529881 | BR188: -0.5095857503 | BU188: 21.2102112 | BX188: 6025.596 | BY188: 0.769928 | BZ188: -234.147
A189: 181 | B189: 226.3551704 | C189: 0.2263551704 | D189: 1.000022341 | E189: 0.006684388397 | G189: 0.9846211405 | H189: -0.01573677703 | I189: -0.01573677703 | K189: 1.000028306 | L189: -0.007524015428 | N189: 15 | Q189: 1.596712705 | R189: -1.570796325 | S189: 1.00749383 | T189: 0.1220436778 | U189: 1.004718966 | V189: 0.09695858469 | W189: 0.9999763284 | X189: -0.006880647311 | Y189: 0.9999984334 | Z189: -0.001770073109 | AB189: 27.55770453 | AC189: -78.8975024 | AD189: 101.1024976 | AG189: 1 | AH189: 0.1226532428 | AI189: -1.430418684e-08 | AJ189: 8.081119266e-06 | AK189: 14958.6691 | AL189: -123771.7126 | AN189: 77500 | AO189: 533.2585821 | AP189: 1 | AQ189: 0.09726356642 | AR189: 76825.08585 | AS189: -6939.023258 | AU189: 8299.122602 | AV189: -3757.098622 | AX189: -340878702.1 | AY189: -1083397813 | AZ189: -1.875628282 | BA189: 611631030 | BB189: -347319196.8 | BC189: -0.5164498472 | BE189: 1.614749564 | BF189: 4.162103518 | BG189: -1.359178435 | BH189: -257.875188 | BJ189: 27.54975173 | BK189: -78.82494603 | BL189: 101.175054 | BM189: 101.175054 | BN189: 0 | BO189: 0 | BQ189: 23.38740235 | BR189: -0.5186636636 | BU189: 21.06406432 | BX189: 6165.95 | BY189: 0.469478 | BZ189: -232.056
A190: 182 | B190: 230.2901958 | C190: 0.2302901958 | D190: 1.000023124 | E190: 0.006800588234 | G190: 0.9848672756 | H190: -0.01601437561 | I190: -0.01601437561 | K190: 1.000029299 | L190: -0.007654810077 | N190: 15 | Q190: 1.569429281 | R190: -1.570796325 | S190: 1.007755633 | T190: 0.1241437724 | U190: 1.004884062 | V190: 0.098633323 | W190: 0.9999754983 | X190: -0.00700025865 | Y190: 0.9999983785 | Z190: -0.001800844519 | AB190: 27.41386664 | AC190: -78.70657816 | AD190: 101.2934218 | AG190: 1 | AH190: 0.1247854831 | AI190: -1.480584622e-08 | AJ190: 8.22160384e-06 | AK190: 14958.66746 | AL190: -121657.7076 | AN190: 77500 | AO190: 542.5289074 | AP190: 1 | AQ190: 0.0989544251 | AR190: 76801.64559 | AS190: -7057.333779 | AU190: 8249.910941 | AV190: -3799.747212 | AX190: -338860860.9 | AY190: -1060504408 | AZ190: -1.880071063 | BA190: 606911439.3 | BB190: -351122837 | BC190: -0.5244909756 | BE190: 1.587829922 | BF190: 4.016079634 | BG190: -1.355580088 | BH190: -257.6690179 | BJ190: 27.4059143 | BK190: -78.63551734 | BL190: 101.3644827 | BM190: 101.3644827 | BN190: 0 | BO190: 0 | BQ190: 23.38958018 | BR190: -0.5279111306 | BU190: 20.91804043 | BX190: 6309.573 | BY190: 0.369853 | BZ190: -231.369
A191: 183 | B191: 234.2936289 | C191: 0.2342936289 | D191: 1.000023935 | E191: 0.006918807936 | G191: 0.9851221702 | H191: -0.01629701582 | I191: -0.01629701582 | K191: 1.000030326 | L191: -0.007787878231 | N191: 15 | Q191: 1.542612056 | R191: -1.570796325 | S191: 1.008026547 | T191: 0.1262792465 | U191: 1.005054919 | V191: 0.100336606 | W191: 0.999974639 | X191: -0.007121949142 | Y191: 0.9999983216 | Z191: -0.001832150864 | AB191: 27.27023317 | AC191: -78.5124445 | AD191: 101.4875555 | AG191: 1 | AH191: 0.126954791 | AI191: -1.532509919e-08 | AJ191: 8.364530639e-06 | AK191: 14958.66576 | AL191: -119579.8409 | AN191: 77500 | AO191: 551.9603908 | AP191: 1 | AQ191: 0.1006746782 | AR191: 76777.39948 | AS191: -7177.579592 | AU191: 8199.584323 | AV191: -3842.220733 | AX191: -336797302.7 | AY191: -1037979485 | AZ191: -1.884552358 | BA191: 602085671.5 | BB191: -354904482.3 | BC191: -0.532632296 | BE191: 1.561381924 | BF191: 3.870182948 | BG191: -1.351920062 | BH191: -257.4593139 | BJ191: 27.26228129 | BK191: -78.44285814 | BL191: 101.5571419 | BM191: 101.5571419 | BN191: 0 | BO191: 0 | BQ191: 23.39183494 | BR191: -0.5373317318 | BU191: 20.77214375 | BX191: 6456.542 | BY191: 0.127676 | BZ191: -230.779
A192: 184 | B192: 238.3666588 | C192: 0.2383666588 | D192: 1.000024775 | E192: 0.007039082605 | G192: 0.9853861408 | H192: -0.01658479695 | I192: -0.01658479695 | K192: 1.00003139 | L192: -0.007923259397 | N192: 15 | Q192: 1.516253063 | R192: -1.570796325 | S192: 1.008306885 | T192: 0.1284506566 | U192: 1.005231738 | V192: 0.1020689 | W192: 0.9999737496 | X192: -0.007245754921 | Y192: 0.9999982627 | Z192: -0.001864001445 | AB192: 27.12681122 | AC192: -78.31505136 | AD192: 101.6849486 | AG192: 1 | AH192: 0.1291618107 | AI192: -1.586256278e-08 | AJ192: 8.509942119e-06 | AK192: 14958.664 | AL192: -117537.4954 | AN192: 77500 | AO192: 561.5558339 | AP192: 1 | AQ192: 0.1024248366 | AR192: 76752.3204 | AS192: -7299.788043 | AU192: 8148.135342 | AV192: -3884.487594 | AX192: -334687723.9 | AY192: -1015818165 | AZ192: -1.889071289 | BA192: 597153080.7 | BB192: -358660981.7 | BC192: -0.5408739022 | BE192: 1.535397715 | BF192: 3.724417799 | BG192: -1.348197387 | BH192: -257.2460203 | BJ192: 27.11885981 | BK192: -78.24691879 | BL192: 101.7530812 | BM192: 101.7530812 | BN192: 0 | BO192: 0 | BQ192: 23.39416936 | BR192: -0.546929145 | BU192: 20.6263786 | BX192: 6606.934 | BY192: 0.0369381 | BZ192: -229.609
A193: 185 | B193: 242.5104955 | C193: 0.2425104955 | D193: 1.000025644 | E193: 0.007161447956 | G193: 0.9856595153 | H193: -0.01687782065 | I193: -0.01687782065 | K193: 1.000032491 | L193: -0.008060993772 | N193: 15 | Q193: 1.490344473 | R193: -1.570796325 | S193: 1.008596972 | T193: 0.1306585658 | U193: 1.005414725 | V193: 0.103830678 | W193: 0.999972829 | X193: -0.007371712749 | Y193: 0.9999982018 | Z193: -0.001896405722 | AB193: 26.98360813 | AC193: -78.11434812 | AD193: 101.8856519 | AG193: 1 | AH193: 0.1314071979 | AI193: -1.641887565e-08 | AJ193: 8.657881476e-06 | AK193: 14958.66217 | AL193: -115530.0644 | AN193: 77500 | AO193: 571.318087 | AP193: 1 | AQ193: 0.1042054203 | AR193: 76726.38035 | AS193: -7423.986629 | AU193: 8095.55762 | AV193: -3926.515379 | AX193: -332531863 | AY193: -994015710.1 | AZ193: -1.893626921 | BA193: 592113123.5 | BB193: -362389103.7 | BC193: -0.5492158389 | BE193: 1.509869574 | BF193: 3.578788671 | BG193: -1.344411082 | BH193: -257.029081 | BJ193: 26.97565717 | BK193: -78.0476491 | BL193: 101.9523509 | BM193: 101.9523509 | BN193: 0 | BO193: 0 | BQ193: 23.39658629 | BR193: -0.5567071481 | BU193: 20.48074947 | BX193: 6760.83 | BY193: -0.0490191 | BZ193: -229.1
